Workbook

Sheet 【1-A-1】標準時収支
A1: 別添様式 1-A-1 | X1: 編集可能セル
F4: 2020-04-01 | I4: 2020-04-01 | J4: =EOMONTH(I4,11)+1 -> 2021-04-01 | K4: =EOMONTH(J4,11)+1 -> 2022-04-01 | L4: =EOMONTH(K4,11)+1 -> 2023-04-01 | M4: =EOMONTH(L4,11)+1 -> 2024-04-01 | N4: =EOMONTH(M4,11)+1 -> 2025-04-01 | O4: 2026-04-01 | P4: 2027-04-01 | Q4: 2028-04-01 | R4: 2029-04-01 | S4: 2030-04-01 | T4: 2031-04-01 | U4: 2032-04-01 | V4: 2033-04-01 | W4: 2034-04-01 | X4: 2035-04-01 | Y4: 2036-04-01
A5: 列番号 | B5: 1 | C5: =B5+1 -> 2 | D5: =C5+1 -> 3 | E5: =D5+1 -> 4 | F5: =E5+1 -> 5 | I5: =F5+1 -> 6 | J5: =I5+1 -> 7 | K5: 8 | L5: 9 | M5: 10 | N5: 11 | O5: 12 | P5: 13 | Q5: 14 | R5: 15 | S5: 16 | T5: 17 | U5: 18 | V5: 19 | W5: 20 | X5: 21 | Y5: 22
A7: 行番号 | B7: 損益計算書 | Y7: 単位：千円
A8: 1 | B8: 年度 | F8: 期中合計額 | I8: 令和2年度 | J8: 令和3年度 | K8: 令和4年度 | L8: 令和5年度 | M8: 令和6年度 | N8: 令和7年度 | O8: 令和8年度 | P8: 令和9年度 | Q8: 令和10年度 | R8: 令和11年度 | S8: 令和12年度 | T8: 令和13年度 | U8: 令和14年度 | V8: 令和15年度 | W8: 令和16年度 | X8: 令和17年度 | Y8: 令和18年度
A9: =A8+1 -> 2 | B9: 開始日付 | I9: 2020-04-01 | J9: =I10+1 -> 2021-04-01 | K9: =J10+1 -> 2022-04-01 | L9: 2023-04-01 | M9: 2024-04-01 | N9: 2025-04-01 | O9: 2026-04-01 | P9: 2027-04-01 | Q9: 2028-04-01 | R9: 2029-04-01 | S9: 2030-04-01 | T9: 2031-04-01 | U9: 2032-04-01 | V9: 2033-04-01 | W9: 2034-04-01 | X9: 2035-04-01 | Y9: 2036-04-01
A10: =A9+1 -> 3 | B10: 終了日付 | I10: =EOMONTH(I9,11) -> 2021-03-31 | J10: =EOMONTH(J9,11) -> 2022-03-31 | K10: =EOMONTH(K9,11) -> 2023-03-31 | L10: 2024-03-31 | M10: 2025-03-31 | N10: 2026-03-31 | O10: 2027-03-31 | P10: 2028-03-31 | Q10: 2029-03-31 | R10: 2030-03-31 | S10: 2031-03-31 | T10: 2032-03-31 | U10: 2033-03-31 | V10: 2034-03-31 | W10: 2035-03-31 | X10: 2036-03-31 | Y10: 2037-03-31
A11: 4 | B11: ケース | I11: 標準時 | J11: 標準時 | K11: 標準時 | L11: 標準時 | M11: 標準時 | N11: 標準時 | O11: 標準時 | P11: 標準時 | Q11: 標準時 | R11: 標準時 | S11: 標準時 | T11: 標準時 | U11: 標準時 | V11: 標準時 | W11: 標準時 | X11: 標準時 | Y11: 標準時
A12: 5 | B12: 収入 | F12: =SUM(I12:Y12) -> 0 | I12: =SUM(I13,I19,I25,I31,I37:I39) -> 0 | J12: =SUM(J13,J19,J25,J31,J37:J39) -> 0 | K12: 0 | L12: 0 | M12: 0 | N12: 0 | O12: 0 | P12: 0 | Q12: 0 | R12: 0 | S12: 0 | T12: 0 | U12: 0 | V12: 0 | W12: 0 | X12: 0 | Y12: 0
A13: 6 | C13: 展示収入 | F13: =SUM(I13:Y13) -> 0 | I13: =SUM(I14:I18) -> 0 | J13: 0 | K13: 0 | L13: 0 | M13: 0 | N13: 0 | O13: 0 | P13: 0 | Q13: 0 | R13: 0 | S13: 0 | T13: 0 | U13: 0 | V13: 0 | W13: 0 | X13: 0 | Y13: 0
A14: 7 | D14: 企画展収入 | F14: 0
A15: 8 | D15: コレクション展収入 | F15: =SUM(I15:Y15) -> 0
A16: 9 | D16: （その他項目名） | F16: =SUM(I16:Y16) -> 0
A17: 10 | D17: （その他項目名） | F17: =SUM(I17:Y17) -> 0
A18: 11 | D18: （その他項目名） | F18: =SUM(I18:Y18) -> 0
A19: 12 | C19: 駐車場収入 | F19: 0 | I19: =SUM(I20:I24) -> 0 | J19: 0 | K19: =SUM(K20:K24) -> 0 | L19: =SUM(L20:L24) -> 0 | M19: =SUM(M20:M24) -> 0 | N19: =SUM(N20:N24) -> 0 | O19: =SUM(O20:O24) -> 0 | P19: 0 | Q19: 0 | R19: 0 | S19: 0 | T19: 0 | U19: 0 | V19: 0 | W19: 0 | X19: 0 | Y19: 0
A20: 13 | D20: （例）駐車場土地賃貸料 | F20: 0
A21: 14 | D21: （その他項目名） | F21: =SUM(I21:Y21) -> 0
A22: 15 | D22: （その他項目名） | F22: =SUM(I22:Y22) -> 0
A23: 16 | D23: （その他項目名） | F23: =SUM(I23:Y23) -> 0
A24: 17 | D24: （その他項目名） | F24: 0
A25: 18 | C25: サービス施設収入 | F25: 0 | I25: =SUM(I26:I30) -> 0 | J25: 0 | K25: 0 | L25: 0 | M25: 0 | N25: 0 | O25: 0 | P25: 0 | Q25: 0 | R25: 0 | S25: 0 | T25: 0 | U25: 0 | V25: 0 | W25: 0 | X25: 0 | Y25: 0
A26: 19 | D26: （例）レストランテナント料 | F26: 0
A27: 20 | D27: （その他項目名） | F27: =SUM(I27:Y27) -> 0
A28: 21 | D28: （その他項目名） | F28: =SUM(I28:Y28) -> 0
A29: 22 | D29: （その他項目名） | F29: =SUM(I29:Y29) -> 0
A30: 23 | D30: （その他項目名） | F30: 0
A31: 24 | C31: その他収入 | F31: 0 | I31: =SUM(I32:I36) -> 0 | J31: =SUM(J32:J36) -> 0 | K31: 0 | L31: 0 | M31: 0 | N31: 0 | O31: 0 | P31: 0 | Q31: 0 | R31: 0 | S31: 0 | T31: 0 | U31: 0 | V31: 0 | W31: 0 | X31: 0 | Y31: 0
A32: 25 | D32: （その他項目名） | F32: =SUM(I32:Y32) -> 0
A33: 26 | D33: （その他項目名） | F33: =SUM(I33:Y33) -> 0
A34: 27 | D34: （その他項目名） | F34: =SUM(I34:Y34) -> 0
A35: 28 | D35: （その他項目名） | F35: =SUM(I35:Y35) -> 0
A36: 29 | D36: （その他項目名） | F36: 0
A37: 30 | C37: 当初想定するサービス対価 | F37: 0
A38: 31 | C38: 納付相当額 | F38: 0 | I38: 0 | J38: 0 | K38: 0 | L38: 0 | M38: 0 | N38: 0 | O38: 0 | P38: 0 | Q38: 0 | R38: 0 | S38: 0 | T38: 0 | U38: 0 | V38: 0 | W38: 0 | X38: 0 | Y38: 0
A39: 32 | C39: 追加給付額 | F39: 0 | I39: 0 | J39: 0 | K39: 0 | L39: 0 | M39: 0 | N39: 0 | O39: 0 | Q39: 0 | R39: 0 | S39: 0 | T39: 0 | U39: 0 | V39: 0 | W39: 0 | X39: 0 | Y39: 0
A40: 33 | B40: 費用 | F40: 0 | I40: =SUM(I41,I52,I79) -> 0 | J40: 0 | K40: 0 | L40: 0 | M40: 0 | N40: 0 | O40: 0 | P40: 0 | Q40: 0 | R40: 0 | S40: 0 | T40: 0 | U40: 0 | V40: 0 | W40: 0 | X40: 0 | Y40: 0
A41: 34 | C41: 事業費 | F41: 0 | I41: =SUM(I42:I51) -> 0 | J41: =SUM(J42:J51) -> 0 | K41: 0 | L41: 0 | M41: 0 | N41: 0 | O41: 0 | P41: 0 | Q41: 0 | R41: 0 | S41: 0 | T41: 0 | U41: 0 | V41: 0 | W41: 0 | X41: 0 | Y41: 0
A42: 35 | D42: 展示事業費 | F42: 0
A43: 36 | D43: 事務 | F43: 0
A44: 37 | D44: 教育普及費 | F44: 0
A45: 38 | D45: 渉外 | F45: 0
A46: 39 | D46: （その他項目名） | F46: 0
A47: 40 | D47: （その他項目名） | F47: =SUM(I47:Y47) -> 0
A48: 41 | D48: （その他項目名） | F48: =SUM(I48:Y48) -> 0
A49: 42 | D49: （その他項目名） | F49: =SUM(I49:Y49) -> 0
A50: 43 | D50: （その他項目名） | F50: =SUM(I50:Y50) -> 0
A51: 44 | D51: （その他項目名） | F51: 0
A52: 45 | C52: 維持管理費 | F52: 0 | I52: =SUM(I53,I62,I68:I78) -> 0 | J52: =SUM(J53,J62,J68:J78) -> 0 | K52: 0 | L52: 0 | M52: 0 | N52: 0 | O52: 0 | P52: 0 | Q52: 0 | R52: 0 | S52: 0 | T52: 0 | U52: 0 | V52: 0 | W52: 0 | X52: 0 | Y52: 0
A53: 46 | D53: 施設管理費 | F53: 0 | I53: =SUM(I54:I61) -> 0 | J53: =SUM(J54:J61) -> 0 | K53: 0 | L53: 0 | M53: 0 | N53: 0 | O53: 0 | P53: 0 | Q53: 0 | R53: 0 | S53: 0 | T53: 0 | U53: 0 | V53: 0 | W53: 0 | X53: 0 | Y53: 0
A54: 47 | E54: 設備管理・保守費 | F54: =SUM(I54:Y54) -> 0
A55: 48 | E55: 警備費 | F55: 0
A56: 49 | E56: 清掃費 | F56: =SUM(I56:Y56) -> 0
A57: 50 | E57: 建物修繕費 | F57: 0
A58: 51 | E58: （その他項目名） | F58: 0
A59: 52 | E59: （その他項目名） | F59: =SUM(I59:Y59) -> 0
A60: 53 | E60: （その他項目名） | F60: =SUM(I60:Y60) -> 0
A61: 54 | E61: （その他項目名） | F61: 0
A62: 55 | D62: 光熱水費 | F62: 0 | I62: =SUM(I63:I67) -> 0 | J62: =SUM(J63:J67) -> 0 | K62: 0 | L62: 0 | M62: 0 | N62: 0 | O62: 0 | P62: 0 | Q62: 0 | R62: 0 | S62: 0 | T62: 0 | U62: 0 | V62: 0 | W62: 0 | X62: 0 | Y62: 0
A63: 56 | E63: 地域冷暖房費 | F63: 0
A64: 57 | E64: （その他項目名） | F64: =SUM(I64:Y64) -> 0
A65: 58 | E65: （その他項目名） | F65: 0
A66: 59 | E66: （その他項目名） | F66: 0
A67: 60 | E67: （その他項目名） | F67: 0
A68: 61 | D68: 調査研究費 | F68: 0
A69: 62 | D69: 収集・保管費 | F69: 0
A70: 63 | D70: 教育普及費 | F70: 0
A71: 64 | D71: アーカイブ及び記録・管理費 | F71: 0
A72: 65 | D72: 事務 | F72: 0
A73: 66 | D73: 渉外 | F73: 0
A74: 67 | D74: （その他項目名） | F74: 0
A75: 68 | D75: （その他項目名） | F75: =SUM(I75:Y75) -> 0
A76: 69 | D76: （その他項目名） | F76: =SUM(I76:Y76) -> 0
A77: 70 | D77: （その他項目名） | F77: =SUM(I77:Y77) -> 0
A78: 71 | D78: （その他項目名） | F78: =SUM(I78:Y78) -> 0
A79: 72 | C79: （その他） | F79: 0 | I79: =SUM(I80:I84) -> 0 | J79: =SUM(J80:J84) -> 0 | K79: 0 | L79: 0 | M79: 0 | N79: 0 | O79: 0 | P79: 0 | Q79: 0 | R79: 0 | S79: 0 | T79: 0 | U79: 0 | V79: 0 | W79: 0 | X79: 0 | Y79: 0
A80: 73 | D80: （その他項目名） | F80: 0
A81: 74 | D81: （その他項目名） | F81: =SUM(I81:Y81) -> 0
A82: 75 | D82: （その他項目名） | F82: =SUM(I82:Y82) -> 0
A83: 76 | D83: （その他項目名） | F83: =SUM(I83:Y83) -> 0
A84: 77 | D84: （その他項目名） | F84: 0
A85: 78 | B85: 営業損益 | F85: 0 | I85: =I12-I40 -> 0 | J85: 0 | K85: 0 | L85: 0 | M85: 0 | N85: 0 | O85: 0 | P85: 0 | Q85: 0 | R85: 0 | S85: 0 | T85: 0 | U85: 0 | V85: 0 | W85: 0 | X85: 0 | Y85: 0
A86: 79 | B86: 営業外損益 | F86: 0 | I86: =I87-I93 -> 0 | J86: =J87-J93 -> 0 | K86: 0 | L86: 0 | M86: 0 | N86: 0 | O86: 0 | P86: 0 | Q86: 0 | R86: 0 | S86: 0 | T86: 0 | U86: 0 | V86: 0 | W86: 0 | X86: 0 | Y86: 0
A87: =A86+1 -> 80 | C87: 営業外収入 | F87: 0 | I87: =SUM(I88:I92) -> 0 | J87: =SUM(J88:J92) -> 0 | K87: 0 | L87: 0 | M87: 0 | N87: 0 | O87: 0 | P87: 0 | Q87: 0 | R87: 0 | S87: 0 | T87: 0 | U87: 0 | V87: 0 | W87: 0 | X87: 0 | Y87: 0
A88: 81 | D88: （その他項目名） | F88: =SUM(I88:Y88) -> 0
A89: 82 | D89: （その他項目名） | F89: =SUM(I89:Y89) -> 0
A90: 83 | D90: （その他項目名） | F90: =SUM(I90:Y90) -> 0
A91: 84 | D91: （その他項目名） | F91: =SUM(I91:Y91) -> 0
A92: 85 | D92: （その他項目名） | F92: 0
A93: 86 | C93: 営業外費用 | F93: 0 | I93: =SUM(I94:I99) -> 0 | J93: 0 | K93: 0 | L93: 0 | M93: 0 | N93: 0 | O93: 0 | P93: 0 | Q93: 0 | R93: 0 | S93: 0 | T93: 0 | U93: 0 | V93: 0 | W93: 0 | X93: 0 | Y93: 0
A94: 87 | D94: （その他項目名） | F94: 0
A95: 88 | D95: （その他項目名） | F95: =SUM(I95:Y95) -> 0
A96: 89 | D96: （その他項目名） | F96: =SUM(I96:Y96) -> 0
A97: 90 | D97: （その他項目名） | F97: =SUM(I97:Y97) -> 0
A98: 91 | D98: （その他項目名） | F98: =SUM(I98:Y98) -> 0
A99: 92 | D99: （その他項目名） | F99: =SUM(I99:Y99) -> 0
A100: 93 | B100: 税引前当期純利益 | F100: 0 | I100: =I85+I86 -> 0 | J100: 0 | K100: 0 | L100: 0 | M100: 0 | N100: 0 | O100: 0 | P100: 0 | Q100: 0 | R100: 0 | S100: 0 | T100: 0 | U100: 0 | V100: 0 | W100: 0 | X100: 0 | Y100: 0
A101: 94 | B101: 法人税等 | F101: 0
A102: 95 | B102: 税引後当期純利益 | F102: 0 | I102: =I100-I101 -> 0 | J102: =J100-J101 -> 0 | K102: =K100-K101 -> 0 | L102: =L100-L101 -> 0 | M102: =M100-M101 -> 0 | N102: =N100-N101 -> 0 | O102: 0 | P102: 0 | Q102: 0 | R102: 0 | S102: 0 | T102: 0 | U102: 0 | V102: 0 | W102: 0 | X102: 0 | Y102: 0
A103: 96
A104: 97 | B104: キャッシュフロー計算書 | Y104: 単位：千円
A105: 98 | B105: 年度 | F105: 期中合計額 | I105: 令和2年度 | J105: 令和3年度 | K105: 令和4年度 | L105: 令和5年度 | M105: 令和6年度 | N105: 令和7年度 | O105: 令和8年度 | P105: 令和9年度 | Q105: 令和10年度 | R105: 令和11年度 | S105: 令和12年度 | T105: 令和13年度 | U105: 令和14年度 | V105: 令和15年度 | W105: 令和16年度 | X105: 令和17年度 | Y105: 令和18年度
A106: 99 | B106: 営業活動によるキャッシュフロー | F106: =SUM(I106:Y106) -> 0 | I106: =SUM(I107:I115) -> 0 | J106: 0 | K106: 0 | L106: 0 | M106: 0 | N106: 0 | O106: 0 | P106: 0 | Q106: 0 | R106: 0 | S106: 0 | T106: 0 | U106: 0 | V106: 0 | W106: 0 | X106: 0 | Y106: 0
A107: 100 | C107: 税引前当期純利益 | F107: 0 | I107: =I100 -> 0 | J107: =J100 -> 0 | K107: 0 | L107: 0 | M107: 0 | N107: 0 | O107: 0 | P107: 0 | Q107: 0 | R107: 0 | S107: 0 | T107: 0 | U107: 0 | V107: 0 | W107: 0 | X107: 0 | Y107: 0
A108: 101 | C108: 支払利息 | F108: 0
A109: 102 | C109: 法人税等の支払額 | F109: 0
A110: 103 | C110: 利息の支払額 | F110: 0
A111: 104 | C111: （その他項目名） | F111: 0
A112: 105 | C112: （その他項目名） | F112: =SUM(I112:Y112) -> 0
A113: 106 | C113: （その他項目名） | F113: =SUM(I113:Y113) -> 0
A114: 107 | C114: （その他項目名） | F114: =SUM(I114:Y114) -> 0
A115: 108 | C115: （その他項目名） | F115: =SUM(I115:Y115) -> 0
A116: 109 | B116: 投資活動によるキャッシュフロー | F116: 0 | I116: =SUM(I117:I123) -> 0 | J116: =SUM(J117:J123) -> 0 | K116: 0 | L116: 0 | M116: 0 | N116: 0 | O116: 0 | P116: 0 | Q116: 0 | R116: 0 | S116: 0 | T116: 0 | U116: 0 | V116: 0 | W116: 0 | X116: 0 | Y116: 0
A117: 110 | C117: 事業者による更新投資 | F117: 0
A118: 111 | C118: 備品調達 | F118: 0
A119: 112 | C119: （その他項目名） | F119: 0
A120: 113 | C120: （その他項目名） | F120: 0
A121: 114 | C121: （その他項目名） | F121: 0
A122: 115 | C122: （その他項目名） | F122: =SUM(I122:Y122) -> 0
A123: 116 | C123: （その他項目名） | F123: 0
A124: 117 | B124: 財務活動によるキャッシュフロー | F124: 0 | I124: =SUM(I125:I133) -> 0 | J124: 0 | K124: 0 | L124: 0 | M124: 0 | N124: 0 | O124: 0 | P124: 0 | Q124: 0 | R124: 0 | S124: 0 | T124: 0 | U124: 0 | V124: 0 | W124: 0 | X124: 0 | Y124: 0
A125: 118 | C125: 出資金による調達 | F125: 0
A126: 119 | C126: 借入による調達 | F126: 0
A127: 120 | C127: 借入金の返済 | F127: 0
A128: 121 | C128: 配当の支払 | F128: 0
A129: 122 | C129: （その他項目名） | F129: 0
A130: 123 | C130: （その他項目名） | F130: 0
A131: 124 | C131: （その他項目名） | F131: =SUM(I131:Y131) -> 0
A132: 125 | C132: （その他項目名） | F132: =SUM(I132:Y132) -> 0
A133: 126 | C133: （その他項目名） | F133: =SUM(I133:Y133) -> 0
A134: 127 | B134: 現金及び現金同等物の増減 | F134: =SUM(I134:Y134) -> 0 | I134: =I106+I116+I124 -> 0 | J134: =J106+J116+J124 -> 0 | K134: 0 | L134: 0 | M134: 0 | N134: 0 | O134: 0 | P134: 0 | Q134: 0 | R134: 0 | S134: 0 | T134: 0 | U134: 0 | V134: 0 | W134: 0 | X134: 0 | Y134: 0
A135: 128 | B135: 期首現金及び現金同等物の残高 | I135: =H136 -> 0 | J135: =I136 -> 0 | K135: =J136 -> 0 | L135: 0 | M135: 0 | N135: 0 | O135: 0 | P135: 0 | Q135: 0 | R135: 0 | S135: 0 | T135: 0 | U135: 0 | V135: 0 | W135: 0 | X135: 0 | Y135: 0
A136: 129 | B136: 期末現金及び現金同等物の残高 | I136: =SUM(I134:I135) -> 0 | J136: =SUM(J134:J135) -> 0 | K136: 0 | L136: 0 | M136: 0 | N136: 0 | O136: 0 | P136: 0 | Q136: 0 | R136: 0 | S136: 0 | T136: 0 | U136: 0 | V136: 0 | W136: 0 | X136: 0 | Y136: 0
A137: 130
A138: 131 | B138: 貸借対照表 | Y138: 単位：千円
A139: 132 | B139: 年度 | I139: 令和2年度 | J139: 令和3年度 | K139: 令和4年度 | L139: 令和5年度 | M139: 令和6年度 | N139: 令和7年度 | O139: 令和8年度 | P139: 令和9年度 | Q139: 令和10年度 | R139: 令和11年度 | S139: 令和12年度 | T139: 令和13年度 | U139: 令和14年度 | V139: 令和15年度 | W139: 令和16年度 | X139: 令和17年度 | Y139: 令和18年度
A140: 133 | B140: 資産の部 | I140: =SUM(I141,I148) -> 0 | J140: =SUM(J141,J148) -> 0 | K140: 0 | L140: 0 | M140: 0 | N140: 0 | O140: 0 | P140: 0 | Q140: 0 | R140: 0 | S140: 0 | T140: 0 | U140: 0 | V140: 0 | W140: 0 | X140: 0 | Y140: 0
A141: 134 | C141: 流動資産 | I141: =SUM(I142:I147) -> 0 | J141: =SUM(J142:J147) -> 0 | K141: 0 | L141: 0 | M141: 0 | N141: 0 | O141: 0 | P141: 0 | Q141: 0 | R141: 0 | S141: 0 | T141: 0 | U141: 0 | V141: 0 | W141: 0 | X141: 0 | Y141: 0
A142: 135 | D142: 現預金
A143: 136 | D143: （その他項目名）
A144: 137 | D144: （その他項目名）
A145: 138 | D145: （その他項目名）
A146: 139 | D146: （その他項目名）
A147: 140 | D147: （その他項目名）
A148: 141 | C148: 固定資産 | I148: =SUM(I149,I155) -> 0 | J148: =SUM(J149,J155) -> 0 | K148: 0 | L148: 0 | M148: 0 | N148: 0 | O148: 0 | P148: 0 | Q148: 0 | R148: 0 | S148: 0 | T148: 0 | U148: 0 | V148: 0 | W148: 0 | X148: 0 | Y148: 0
A149: 142 | D149: 有形固定資産 | I149: =SUM(I150:I154) -> 0 | J149: =SUM(J150:J154) -> 0 | K149: 0 | L149: 0 | M149: 0 | N149: 0 | O149: 0 | P149: 0 | Q149: 0 | R149: 0 | S149: 0 | T149: 0 | U149: 0 | V149: 0 | W149: 0 | X149: 0 | Y149: 0
A150: 143 | E150: （その他項目名）
A151: =A150+1 -> 144 | E151: （その他項目名）
A152: 145 | E152: （その他項目名）
A153: 146 | E153: （その他項目名）
A154: 147 | E154: （その他項目名）
A155: 148 | D155: 無形固定資産 | I155: =SUM(I156:I160) -> 0 | J155: 0 | K155: 0 | L155: 0 | M155: 0 | N155: 0 | O155: 0 | P155: 0 | Q155: 0 | R155: 0 | S155: 0 | T155: 0 | U155: 0 | V155: 0 | W155: 0 | X155: 0 | Y155: 0
A156: 149 | E156: （その他項目名）
A157: 150 | E157: （その他項目名）
A158: 151 | E158: （その他項目名）
A159: 152 | E159: （その他項目名）
A160: 153 | E160: （その他項目名）
A161: 154 | B161: 負債の部 | I161: =SUM(I162,I168) -> 0 | J161: =SUM(J162,J168) -> 0 | K161: 0 | L161: 0 | M161: 0 | N161: 0 | O161: 0 | P161: 0 | Q161: 0 | R161: 0 | S161: 0 | T161: 0 | U161: 0 | V161: 0 | W161: 0 | X161: 0 | Y161: 0
A162: 155 | C162: 流動負債 | I162: =SUM(I163:I167) -> 0 | J162: =SUM(J163:J167) -> 0 | K162: 0 | L162: 0 | M162: 0 | N162: 0 | O162: 0 | P162: 0 | Q162: 0 | R162: 0 | S162: 0 | T162: 0 | U162: 0 | V162: 0 | W162: 0 | X162: 0 | Y162: 0
A163: 156 | D163: （その他項目名）
A164: 157 | D164: （その他項目名）
A165: 158 | D165: （その他項目名）
A166: 159 | D166: （その他項目名）
A167: 160 | D167: （その他項目名）
A168: 161 | C168: 固定負債 | I168: =SUM(I169:I173) -> 0 | J168: 0 | K168: 0 | L168: 0 | M168: 0 | N168: 0 | O168: 0 | P168: 0 | Q168: 0 | R168: 0 | S168: 0 | T168: 0 | U168: 0 | V168: 0 | W168: 0 | X168: 0 | Y168: 0
A169: 162 | D169: （その他項目名）
A170: 163 | D170: （その他項目名）
A171: 164 | D171: （その他項目名）
A172: 165 | D172: （その他項目名）
A173: 166 | D173: （その他項目名）
A174: 167 | B174: 純資産の部 | I174: =SUM(I175:I180) -> 0 | J174: =SUM(J175:J180) -> 0 | K174: 0 | L174: 0 | M174: 0 | N174: 0 | O174: 0 | P174: 0 | Q174: 0 | R174: 0 | S174: 0 | T174: 0 | U174: 0 | V174: 0 | W174: 0 | X174: 0 | Y174: 0
A175: 168 | C175: 資本金
A176: 169 | C176: 利益剰余金
A177: 170 | C177: （その他項目名）
A178: 171 | C178: （その他項目名）
A179: 172 | C179: （その他項目名）
A180: 173 | C180: （その他項目名）
A181: 174
A182: 175 | B182: 【提案書作成要領】
A183: 176 | B183: ・A3 4枚以内で記載すること。
A184: 177 | B184: ・各費目については可能な限り詳細に記載すること。
A185: 178 | B185: ・他の様式と整合性を確保すること。
A186: 179 | B186: ・消費税及び地方消費税は含めないこと。
A187: 180 | B187: ・物価変動は見込まないこと。
A188: 181
A189: 182 | B189: 追加給付額算定用EIRR | Y189: 単位：千円
A190: 183 | B190: 年度 | F190: 期中合計額 | I190: 令和2年度 | J190: 令和3年度 | K190: 令和4年度 | L190: 令和5年度 | M190: 令和6年度 | N190: 令和7年度 | O190: 令和8年度 | P190: 令和9年度 | Q190: 令和10年度 | R190: 令和11年度 | S190: 令和12年度 | T190: 令和13年度 | U190: 令和14年度 | V190: 令和15年度 | W190: 令和16年度 | X190: 令和17年度 | Y190: 令和18年度
A191: 184 | B191: FCF（営業＋投資キャッシュフロー） | F191: =SUM(I191:Y191) -> 0 | I191: =I106+I116 -> 0 | J191: =J106+J116 -> 0 | K191: 0 | L191: 0 | M191: 0 | N191: 0 | O191: 0 | P191: 0 | Q191: 0 | R191: 0 | S191: 0 | T191: 0 | U191: 0 | V191: 0 | W191: 0 | X191: 0 | Y191: 0
A192: 185 | B192: 出資金による調達 | F192: 0 | I192: =I125 -> 0 | J192: =J125 -> 0 | K192: 0 | L192: 0 | M192: 0 | N192: 0 | O192: 0 | P192: 0 | Q192: 0 | R192: 0 | S192: 0 | T192: 0 | U192: 0 | V192: 0 | W192: 0 | X192: 0 | Y192: 0
A193: 186 | B193: 借入による調達 | F193: 0 | I193: =I126 -> 0 | J193: =J126 -> 0 | K193: 0 | L193: 0 | M193: 0 | N193: 0 | O193: 0 | P193: 0 | Q193: 0 | R193: 0 | S193: 0 | T193: 0 | U193: 0 | V193: 0 | W193: 0 | X193: 0 | Y193: 0
A194: 187 | B194: 借入金の返済 | F194: 0 | I194: =I127 -> 0 | J194: =J127 -> 0 | K194: 0 | L194: 0 | M194: 0 | N194: 0 | O194: 0 | P194: 0 | Q194: 0 | R194: 0 | S194: 0 | T194: 0 | U194: 0 | V194: 0 | W194: 0 | X194: 0 | Y194: 0
A195: 188 | B195: 元利返済後CF | F195: 0 | I195: =SUM(I191:I194) -> 0 | J195: =SUM(J191:J194) -> 0 | K195: 0 | L195: 0 | M195: 0 | N195: 0 | O195: 0 | P195: 0 | Q195: 0 | R195: 0 | S195: 0 | T195: 0 | U195: 0 | V195: 0 | W195: 0 | X195: 0 | Y195: 0
A196: 189 | B196: 出資金償還 | F196: 0 | I196: =0-MAX(H175-I175,0) -> 0 | J196: 0 | K196: 0 | L196: 0 | M196: 0 | N196: 0 | O196: 0 | P196: 0 | Q196: 0 | R196: 0 | S196: 0 | T196: 0 | U196: 0 | V196: 0 | W196: 0 | X196: 0 | Y196: 0
A197: 190 | B197: 現預金前年度期末残高 | F197: 0 | I197: =H142 -> 0 | J197: =I142 -> 0 | K197: 0 | L197: 0 | M197: 0 | N197: 0 | O197: 0 | P197: 0 | Q197: 0 | R197: 0 | S197: 0 | T197: 0 | U197: 0 | V197: 0 | W197: 0 | X197: 0 | Y197: 0
A198: 191 | B198: 配当前現金 | F198: 0 | I198: =SUM(I195:I197) -> 0 | J198: =SUM(J195:J197) -> 0 | K198: 0 | L198: 0 | M198: 0 | N198: 0 | O198: 0 | P198: 0 | Q198: 0 | R198: 0 | S198: 0 | T198: 0 | U198: 0 | V198: 0 | W198: 0 | X198: 0 | Y198: 0
A199: 192 | B199: 配当前利益剰余金 | F199: 0 | I199: =H176+I102 -> 0 | J199: 0 | K199: 0 | L199: 0 | M199: =L176+M102 -> 0 | N199: 0 | O199: 0 | P199: 0 | Q199: 0 | R199: 0 | S199: 0 | T199: 0 | U199: 0 | V199: 0 | W199: 0 | X199: 0 | Y199: 0
B200: 精算フラグ | F200: 0 | I200: FALSE | J200: FALSE | K200: FALSE | L200: FALSE | M200: FALSE | N200: FALSE | O200: FALSE | P200: FALSE | Q200: FALSE | R200: FALSE | S200: FALSE | T200: FALSE | U200: FALSE | V200: FALSE | W200: FALSE | X200: FALSE | Y200: TRUE
A201: =A199+1 -> 193 | B201: 追加給付額算定用配当金 | F201: 0 | I201: =IF(I200,MAX(I198,0),MAX(0,MIN(I198:I199))) -> 0 | J201: 0 | K201: 0 | L201: 0 | M201: 0 | N201: 0 | O201: 0 | P201: 0 | Q201: 0 | R201: 0 | S201: 0 | T201: 0 | U201: 0 | V201: 0 | W201: 0 | X201: 0 | Y201: =IF(Y200,MAX(Y198,0),MAX(0,MIN(Y198:Y199))) -> 0
A202: 194 | B202: EIRR算定 | F202: =SUM(I202:Y202) -> 0 | I202: =SUM(I203:I205) -> 0 | J202: 0 | K202: 0 | L202: 0 | M202: 0 | N202: 0 | O202: 0 | P202: 0 | Q202: 0 | R202: 0 | S202: 0 | T202: 0 | U202: 0 | V202: 0 | W202: 0 | X202: 0 | Y202: 0
A203: 195 | C203: 出資金の拠出 | F203: =SUM(I203:Y203) -> 0 | I203: =0-I125 -> 0 | J203: 0 | K203: 0 | L203: 0 | M203: 0 | N203: 0 | O203: 0 | P203: 0 | Q203: 0 | R203: 0 | S203: 0 | T203: 0 | U203: 0 | V203: 0 | W203: 0 | X203: 0 | Y203: 0
... 3 more rows

Sheet 【1-A-2】標準時収支 提案指標
A1: 別添様式 1-A-2 | E1: 編集可能セル
A2: 列番号 | B2: 1 | C2: =B2+1 -> 2 | D2: =C2+1 -> 3 | E2: =D2+1 -> 4 | F2: =E2+1 -> 5
A5: 行番号 | B5: 提案指標
A6: 1 | B6: 指標 | E6: 提案数値 | F6: 単位
A7: =A6+1 -> 2 | B7: 還元率 | F7: ％
A8: =A7+1 -> 3 | B8: EIRR | F8: ％
A9: =A8+1 -> 4 | B9: 給付上限額 | F9: 千円
B11: 【提案書作成要領】
B12: ・A4版1枚以内にて作成すること。
B13: ・他の様式と整合性を確保すること。

Sheet 【2-A】収入の算出根拠
A1: 別添様式 2-A
A2: 列番号 | B2: 1 | C2: =B2+1 -> 2 | D2: =C2+1 -> 3
A4: 行番号 | B4: 収入の算出根拠
A5: 1 | B5: 費目 | D5: 前提条件
A6: =A5+1 -> 2 | B6: 展示
A7: =A6+1 -> 3 | C7: 観覧料単価（コレクション展）※1
A8: 4 | C8: 観覧料単価（企画展）※2
A9: 5 | C9: 展覧会入場者数 | D9: 年間60万人とする。
A10: 6 | C10: 有料率
A11: 7 | C11: 貸出料
A12: 8 | C12: （その他費目）
A13: 9 | B13: 駐車場
A14: 10 | C14: 駐車場、駐輪場料金
A15: 11 | C15: 駐車場、駐輪場台数
A16: 12 | C16: （その他費目）
A17: 13 | B17: サービス施設
A18: 14 | C18: サービス施設賃料
A19: 15 | C19: 貸室使用料※３
A20: 16 | C20: 貸室稼働率
A21: 17 | C21: 貸室稼働日数
A22: 18 | C22: （その他費目）
A23: 19 | B23: その他
A24: 20 | C24: （その他費目）
B26: 【備考】
B27: ※１、２ 同種施設の観覧料を勘案して提案すること。
B28: ※3 近隣施設における使用料等を勘案して提案すること。
B30: 【提案書作成要領】
B31: ・A4版3枚以内にて作成すること。
B32: ・他の様式と整合性を確保すること。
B33: ・記載に当たっては単価や稼働日数・稼働率・数量等の算出根拠を可能な限り具体的かつ詳細に記載すること。
B34: ・必要に応じて項目を追加・細分化して作成すること。
B35: ・事業年度ごとの収入が異なる提案を行う場合、年度ごとの前提条件を記載すること。

Sheet 【3-A】支出の算出根拠
A1: 別添様式 3-A
A2: 列番号 | B2: 1 | C2: =B2+1 -> 2 | D2: =C2+1 -> 3 | E2: =D2+1 -> 4 | F2: =E2+1 -> 5
A4: 行番号 | B4: 支出の算出根拠
A5: 1 | B5: 費目 | F5: 算出根拠
A6: =A5+1 -> 2 | B6: 事業費
A7: =A6+1 -> 3 | C7: 展示事業費
A8: 4 | C8: 事務
A9: 5 | C9: 教育普及費
A10: 6 | C10: 渉外
A11: 7 | C11: （その他費目）
A12: 8 | C12: （その他費目）
A13: 9 | B13: 維持管理費
A14: 10 | C14: 施設管理費
A15: 11 | C15: 光熱水費
A16: 12 | C16: 調査研究費
A17: 13 | C17: 収集・保管費
A18: 14 | C18: 教育普及費
A19: 15 | C19: アーカイブ及び記録・管理費
A20: 16 | C20: 事務
A21: 17 | C21: 渉外
A22: 18 | C22: （その他費目）
A23: 19 | B23: その他の費用
A24: 20 | C24: （その他費目）
A25: 21 | C25: （その他費目）
A26: 22 | C26: （その他費目）
B28: 【提案書作成要領】
B29: ・A4版3枚以内にて作成すること。
B30: ・他の様式と整合性を確保すること。
B31: ・記載に当たっては単価や数量等の算出根拠を可能な限り具体的かつ詳細に記載すること。 必要に応じて項目を追加・細分化して作成すること。
B33: ・事業年度ごとの支出が異なる提案を行う場合、年度ごとの算出根拠を記載すること。

Sheet 【4-A】資金調達計画
A1: 別添様式 4-A
A2: 列番号 | B2: 1 | C2: =B2+1 -> 2 | D2: =C2+1 -> 3 | E2: 4 | F2: 5 | G2: 6 | H2: 7 | I2: 8 | J2: 9 | K2: 10 | L2: 11 | M2: 12 | N2: 13 | O2: 14 | P2: 15 | Q2: 16 | R2: 17 | S2: 18 | T2: 19 | U2: 20
A4: 行番号 | B4: 資金調達計画 | U4: 単位：千円
A5: 1 | B5: 事業年度 | D5: 期中合計額 | E5: 令和2年度 | F5: 令和3年度 | G5: 令和4年度 | H5: 令和5年度 | I5: 令和6年度 | J5: 令和7年度 | K5: 令和8年度 | L5: 令和9年度 | M5: 令和10年度 | N5: 令和11年度 | O5: 令和12年度 | P5: 令和13年度 | Q5: 令和14年度 | R5: 令和15年度 | S5: 令和16年度 | T5: 令和17年度 | U5: 令和18年度
A6: =A5+1 -> 2 | B6: 出資金による調達 | D6: =SUM(E6:U6) -> 0
A7: =A6+1 -> 3 | C7: (出資者名） | D7: =SUM(E7:U7) -> 0
A8: 4 | C8: (出資者名） | D8: =SUM(E8:U8) -> 0
A9: 5 | C9: (出資者名） | D9: 0
A10: 6 | C10: (出資者名） | D10: 0
A11: 7 | B11: 借入金による調達 | D11: 0
A12: 8 | C12: （金融機関等の名称） | D12: 0
A13: 9 | C13: （金融機関等の名称） | D13: 0
A14: 10 | C14: （金融機関等の名称） | D14: 0
A15: 11 | C15: （金融機関等の名称） | D15: 0
A16: 12 | B16: その他 | D16: 0
A17: 13 | C17: （調達先の名称） | D17: 0
A18: 14 | C18: （調達先の名称） | D18: 0
A19: 15 | C19: （調達先の名称） | D19: 0
A20: 16 | C20: （調達先の名称） | D20: 0
A21: 17
A22: 18 | B22: 出資金明細
A23: 19 | B23: 出資者名 | D23: 出資割合 | E23: 出資者の役割等
A24: 20
A25: 21
A26: 22
A27: 23
A28: 24
A29: 25
A30: 26 | B30: 借入金明細
A31: 27 | B31: 金融機関等の名称 | D31: 借入条件
A32: 28
A33: 29
A34: 30
A35: 31
A36: 32
A37: 33
A38: 34 | B38: その他の資金調達の明細
A39: 35 | B39: 調達先名 | D39: 調達条件
A40: 36
A41: 37
A42: 38
A43: 39
B45: 【提案書作成要領】
B46: ・A3版２枚以内にて作成すること。
B47: ・他の様式と整合性を確保すること。
B48: ・必要に応じて項目を追加・細分化して作成すること。
B49: ・消費税及び地方消費税は含めないこと。
B50: ・物価変動は見込まないこと。

Sheet 【1-B】悲観時（機構基準）収支
A1: 別添様式 1-B | X1: 編集可能セル
I4: 2020-04-01 | J4: =EOMONTH(I4,11)+1 -> 2021-04-01 | K4: =EOMONTH(J4,11)+1 -> 2022-04-01 | L4: =EOMONTH(K4,11)+1 -> 2023-04-01 | M4: =EOMONTH(L4,11)+1 -> 2024-04-01 | N4: =EOMONTH(M4,11)+1 -> 2025-04-01 | O4: 2026-04-01 | P4: 2027-04-01 | Q4: 2028-04-01 | R4: 2029-04-01 | S4: 2030-04-01 | T4: 2031-04-01 | U4: 2032-04-01 | V4: 2033-04-01 | W4: 2034-04-01 | X4: 2035-04-01 | Y4: 2036-04-01
A5: 列番号 | B5: 1 | C5: =B5+1 -> 2 | D5: =C5+1 -> 3 | E5: =D5+1 -> 4 | F5: =E5+1 -> 5 | I5: =F5+1 -> 6 | J5: =I5+1 -> 7 | K5: =J5+1 -> 8 | L5: =K5+1 -> 9 | M5: 10 | N5: 11 | O5: 12 | P5: 13 | Q5: 14 | R5: 15 | S5: 16 | T5: 17 | U5: 18 | V5: 19 | W5: 20 | X5: 21 | Y5: 22
A7: 行番号 | B7: 損益計算書 | Y7: 単位：千円
A8: 1 | B8: 年度 | F8: 期中合計額 | I8: 令和2年度 | J8: 令和3年度 | K8: 令和4年度 | L8: 令和5年度 | M8: 令和6年度 | N8: 令和7年度 | O8: 令和8年度 | P8: 令和9年度 | Q8: 令和10年度 | R8: 令和11年度 | S8: 令和12年度 | T8: 令和13年度 | U8: 令和14年度 | V8: 令和15年度 | W8: 令和16年度 | X8: 令和17年度 | Y8: 令和18年度
A9: =A8+1 -> 2 | B9: 開始日付 | I9: 2020-04-01 | J9: =I10+1 -> 2021-04-01 | K9: =J10+1 -> 2022-04-01 | L9: 2023-04-01 | M9: 2024-04-01 | N9: 2025-04-01 | O9: 2026-04-01 | P9: 2027-04-01 | Q9: 2028-04-01 | R9: 2029-04-01 | S9: 2030-04-01 | T9: 2031-04-01 | U9: 2032-04-01 | V9: 2033-04-01 | W9: 2034-04-01 | X9: 2035-04-01 | Y9: 2036-04-01
A10: =A9+1 -> 3 | B10: 終了日付 | I10: =EOMONTH(I9,11) -> 2021-03-31 | J10: =EOMONTH(J9,11) -> 2022-03-31 | K10: =EOMONTH(K9,11) -> 2023-03-31 | L10: 2024-03-31 | M10: 2025-03-31 | N10: 2026-03-31 | O10: 2027-03-31 | P10: 2028-03-31 | Q10: 2029-03-31 | R10: 2030-03-31 | S10: 2031-03-31 | T10: 2032-03-31 | U10: 2033-03-31 | V10: 2034-03-31 | W10: 2035-03-31 | X10: 2036-03-31 | Y10: 2037-03-31
A11: 4 | B11: ケース | I11: 標準時 | J11: 標準時 | K11: 標準時 | L11: 標準時 | M11: 標準時 | N11: 悲観時（機構基準） | O11: 標準時 | P11: 標準時 | Q11: 悲観時（機構基準） | R11: 標準時 | S11: 標準時 | T11: 標準時 | U11: 悲観時（機構基準） | V11: 標準時 | W11: 標準時 | X11: 標準時 | Y11: 標準時
A12: 5 | B12: 収入 | F12: =SUM(I12:Y12) -> 0 | I12: =SUM(I13,I19,I25,I31,I37:I39) -> 0 | J12: =SUM(J13,J19,J25,J31,J37:J39) -> 0 | K12: 0 | L12: 0 | M12: 0 | N12: 0 | O12: 0 | P12: 0 | Q12: 0 | R12: 0 | S12: 0 | T12: 0 | U12: 0 | V12: 0 | W12: 0 | X12: 0 | Y12: 0
A13: 6 | C13: 展示収入 | F13: =SUM(I13:Y13) -> 0 | I13: =SUM(I14:I18) -> 0 | J13: =SUM(J14:J18) -> 0 | K13: 0 | L13: 0 | M13: 0 | N13: 0 | O13: 0 | P13: 0 | Q13: 0 | R13: 0 | S13: 0 | T13: 0 | U13: 0 | V13: 0 | W13: 0 | X13: 0 | Y13: 0
A14: 7 | D14: 企画展収入 | F14: 0
A15: 8 | D15: コレクション展収入 | F15: =SUM(I15:Y15) -> 0
A16: 9 | D16: （その他項目名） | F16: =SUM(I16:Y16) -> 0
A17: 10 | D17: （その他項目名） | F17: =SUM(I17:Y17) -> 0
A18: 11 | D18: （その他項目名） | F18: 0
A19: 12 | C19: 駐車場収入 | F19: 0 | I19: =SUM(I20:I24) -> 0 | J19: =SUM(J20:J24) -> 0 | K19: =SUM(K20:K24) -> 0 | L19: 0 | M19: 0 | N19: 0 | O19: 0 | P19: 0 | Q19: 0 | R19: 0 | S19: 0 | T19: 0 | U19: 0 | V19: 0 | W19: 0 | X19: 0 | Y19: 0
A20: 13 | D20: （例）駐車場土地賃貸料 | F20: 0
A21: 14 | D21: （その他項目名） | F21: =SUM(I21:Y21) -> 0
A22: 15 | D22: （その他項目名） | F22: =SUM(I22:Y22) -> 0
A23: 16 | D23: （その他項目名） | F23: =SUM(I23:Y23) -> 0
A24: 17 | D24: （その他項目名） | F24: 0
A25: 18 | C25: サービス施設収入 | F25: 0 | I25: =SUM(I26:I30) -> 0 | J25: =SUM(J26:J30) -> 0 | K25: 0 | L25: 0 | M25: 0 | N25: 0 | O25: 0 | P25: 0 | Q25: 0 | R25: 0 | S25: 0 | T25: 0 | U25: 0 | V25: 0 | W25: 0 | X25: 0 | Y25: 0
A26: 19 | D26: （例）レストランテナント料 | F26: 0
A27: 20 | D27: （その他項目名） | F27: =SUM(I27:Y27) -> 0
A28: 21 | D28: （その他項目名） | F28: =SUM(I28:Y28) -> 0
A29: 22 | D29: （その他項目名） | F29: =SUM(I29:Y29) -> 0
A30: 23 | D30: （その他項目名） | F30: 0
A31: 24 | C31: その他収入 | F31: 0 | I31: =SUM(I32:I36) -> 0 | J31: =SUM(J32:J36) -> 0 | K31: 0 | L31: 0 | M31: 0 | N31: 0 | O31: 0 | P31: 0 | Q31: 0 | R31: 0 | S31: 0 | T31: 0 | U31: 0 | V31: 0 | W31: 0 | X31: 0 | Y31: 0
A32: 25 | D32: （その他項目名） | F32: =SUM(I32:Y32) -> 0
A33: 26 | D33: （その他項目名） | F33: =SUM(I33:Y33) -> 0
A34: 27 | D34: （その他項目名） | F34: =SUM(I34:Y34) -> 0
A35: 28 | D35: （その他項目名） | F35: =SUM(I35:Y35) -> 0
A36: 29 | D36: （その他項目名） | F36: 0
A37: 30 | C37: 当初想定するサービス対価 | F37: 0
A38: 31 | C38: 納付相当額 | F38: 0 | I38: 0 | J38: 0 | K38: 0 | L38: 0 | M38: 0 | N38: 0 | O38: 0 | P38: 0 | Q38: 0 | R38: 0 | S38: 0 | T38: 0 | U38: 0 | V38: 0 | W38: 0 | X38: 0 | Y38: 0
A39: 32 | C39: 追加給付額 | F39: 0 | I39: ='追加給付算定 (機構基準)'!K160 -> 0 | J39: ='追加給付算定 (機構基準)'!L160 -> 0 | K39: ='追加給付算定 (機構基準)'!M160 -> 0 | L39: ='追加給付算定 (機構基準)'!N160 -> 0 | M39: ='追加給付算定 (機構基準)'!O160 -> 0 | N39: ='追加給付算定 (機構基準)'!P160 -> 0 | O39: ='追加給付算定 (機構基準)'!Q160 -> 0 | P39: ='追加給付算定 (機構基準)'!R160 -> 0 | Q39: ='追加給付算定 (機構基準)'!S160 -> 0 | R39: ='追加給付算定 (機構基準)'!T160 -> 0 | S39: ='追加給付算定 (機構基準)'!U160 -> 0 | T39: ='追加給付算定 (機構基準)'!V160 -> 0 | U39: ='追加給付算定 (機構基準)'!W160 -> 0 | V39: ='追加給付算定 (機構基準)'!X160 -> 0 | W39: ='追加給付算定 (機構基準)'!Y160 -> 0 | X39: ='追加給付算定 (機構基準)'!Z160 -> 0 | Y39: ='追加給付算定 (機構基準)'!AA160 -> 0
A40: 33 | B40: 費用 | F40: 0 | I40: =SUM(I41,I52,I79) -> 0 | J40: =SUM(J41,J52,J79) -> 0 | K40: 0 | L40: 0 | M40: 0 | N40: 0 | O40: 0 | P40: 0 | Q40: 0 | R40: 0 | S40: 0 | T40: 0 | U40: 0 | V40: 0 | W40: 0 | X40: 0 | Y40: 0
A41: 34 | C41: 事業費 | F41: 0 | I41: =SUM(I42:I51) -> 0 | J41: =SUM(J42:J51) -> 0 | K41: =SUM(K42:K51) -> 0 | L41: =SUM(L42:L51) -> 0 | M41: 0 | N41: 0 | O41: 0 | P41: 0 | Q41: 0 | R41: 0 | S41: 0 | T41: 0 | U41: 0 | V41: 0 | W41: 0 | X41: 0 | Y41: 0
A42: 35 | D42: 展示事業費 | F42: 0
A43: 36 | D43: 事務 | F43: 0
A44: 37 | D44: 教育普及費 | F44: 0
A45: 38 | D45: 渉外 | F45: 0
A46: 39 | D46: （その他項目名） | F46: 0
A47: 40 | D47: （その他項目名） | F47: =SUM(I47:Y47) -> 0
A48: 41 | D48: （その他項目名） | F48: =SUM(I48:Y48) -> 0
A49: 42 | D49: （その他項目名） | F49: =SUM(I49:Y49) -> 0
A50: 43 | D50: （その他項目名） | F50: =SUM(I50:Y50) -> 0
A51: 44 | D51: （その他項目名） | F51: 0
A52: 45 | C52: 維持管理費 | F52: 0 | I52: =SUM(I53,I62,I68:I78) -> 0 | J52: =SUM(J53,J62,J68:J78) -> 0 | K52: 0 | L52: 0 | M52: 0 | N52: 0 | O52: 0 | P52: 0 | Q52: 0 | R52: 0 | S52: 0 | T52: 0 | U52: 0 | V52: 0 | W52: 0 | X52: 0 | Y52: 0
A53: 46 | D53: 施設管理費 | F53: 0 | I53: =SUM(I54:I61) -> 0 | J53: =SUM(J54:J61) -> 0 | K53: 0 | L53: 0 | M53: 0 | N53: 0 | O53: 0 | P53: 0 | Q53: 0 | R53: 0 | S53: 0 | T53: 0 | U53: 0 | V53: 0 | W53: 0 | X53: 0 | Y53: 0
A54: 47 | E54: 設備管理・保守費 | F54: 0
A55: 48 | E55: 警備費 | F55: 0
A56: 49 | E56: 清掃費 | F56: 0
A57: 50 | E57: 建物修繕費 | F57: 0
A58: 51 | E58: （その他項目名） | F58: 0
A59: 52 | E59: （その他項目名） | F59: 0
A60: 53 | E60: （その他項目名） | F60: 0
A61: 54 | E61: （その他項目名） | F61: 0
A62: 55 | D62: 光熱水費 | F62: 0 | I62: =SUM(I63:I67) -> 0 | J62: =SUM(J63:J67) -> 0 | K62: 0 | L62: 0 | M62: 0 | N62: 0 | O62: 0 | P62: 0 | Q62: 0 | R62: 0 | S62: 0 | T62: 0 | U62: 0 | V62: 0 | W62: 0 | X62: 0 | Y62: 0
A63: 56 | E63: 地域冷暖房費 | F63: 0
A64: 57 | E64: （その他項目名） | F64: 0
A65: 58 | E65: （その他項目名） | F65: 0
A66: 59 | E66: （その他項目名） | F66: 0
A67: 60 | E67: （その他項目名） | F67: 0
A68: 61 | D68: 調査研究費 | F68: 0
A69: 62 | D69: 収集・保管費 | F69: 0
A70: 63 | D70: 教育普及費 | F70: 0
A71: 64 | D71: アーカイブ及び記録・管理費 | F71: 0
A72: 65 | D72: 事務 | F72: 0
A73: 66 | D73: 渉外 | F73: 0
A74: 67 | D74: （その他項目名） | F74: 0
A75: 68 | D75: （その他項目名） | F75: =SUM(I75:Y75) -> 0
A76: 69 | D76: （その他項目名） | F76: =SUM(I76:Y76) -> 0
A77: 70 | D77: （その他項目名） | F77: =SUM(I77:Y77) -> 0
A78: 71 | D78: （その他項目名） | F78: 0
A79: 72 | C79: （その他） | F79: 0 | I79: =SUM(I80:I84) -> 0 | J79: =SUM(J80:J84) -> 0 | K79: =SUM(K80:K84) -> 0 | L79: =SUM(L80:L84) -> 0 | M79: =SUM(M80:M84) -> 0 | N79: 0 | O79: 0 | P79: 0 | Q79: 0 | R79: 0 | S79: 0 | T79: 0 | U79: 0 | V79: 0 | W79: 0 | X79: 0 | Y79: 0
A80: 73 | D80: （その他項目名） | F80: 0
A81: 74 | D81: （その他項目名） | F81: =SUM(I81:Y81) -> 0
A82: 75 | D82: （その他項目名） | F82: =SUM(I82:Y82) -> 0
A83: 76 | D83: （その他項目名） | F83: =SUM(I83:Y83) -> 0
A84: 77 | D84: （その他項目名） | F84: 0
A85: 78 | B85: 営業損益 | F85: 0 | I85: =I12-I40 -> 0 | J85: 0 | K85: 0 | L85: 0 | M85: 0 | N85: 0 | O85: 0 | P85: 0 | Q85: 0 | R85: 0 | S85: 0 | T85: 0 | U85: 0 | V85: 0 | W85: 0 | X85: 0 | Y85: 0
A86: 79 | B86: 営業外損益 | F86: 0 | I86: =I87-I93 -> 0 | J86: =J87-J93 -> 0 | K86: 0 | L86: 0 | M86: 0 | N86: 0 | O86: 0 | P86: 0 | Q86: 0 | R86: 0 | S86: 0 | T86: 0 | U86: 0 | V86: 0 | W86: 0 | X86: 0 | Y86: 0
A87: =A86+1 -> 80 | C87: 営業外収入 | F87: 0 | I87: =SUM(I88:I92) -> 0 | J87: =SUM(J88:J92) -> 0 | K87: 0 | L87: 0 | M87: 0 | N87: 0 | O87: 0 | P87: 0 | Q87: 0 | R87: 0 | S87: 0 | T87: 0 | U87: 0 | V87: 0 | W87: 0 | X87: 0 | Y87: 0
A88: 81 | D88: （その他項目名） | F88: =SUM(I88:Y88) -> 0
A89: 82 | D89: （その他項目名） | F89: =SUM(I89:Y89) -> 0
A90: 83 | D90: （その他項目名） | F90: =SUM(I90:Y90) -> 0
A91: 84 | D91: （その他項目名） | F91: =SUM(I91:Y91) -> 0
A92: 85 | D92: （その他項目名） | F92: 0
A93: 86 | C93: 営業外費用 | F93: 0 | I93: =SUM(I94:I99) -> 0 | J93: =SUM(J94:J99) -> 0 | K93: =SUM(K94:K99) -> 0 | L93: =SUM(L94:L99) -> 0 | M93: 0 | N93: 0 | O93: 0 | P93: 0 | Q93: 0 | R93: 0 | S93: 0 | T93: 0 | U93: 0 | V93: 0 | W93: 0 | X93: 0 | Y93: 0
A94: 87 | D94: （その他項目名） | F94: 0
A95: 88 | D95: （その他項目名） | F95: =SUM(I95:Y95) -> 0
A96: 89 | D96: （その他項目名） | F96: =SUM(I96:Y96) -> 0
A97: 90 | D97: （その他項目名） | F97: =SUM(I97:Y97) -> 0
A98: 91 | D98: （その他項目名） | F98: =SUM(I98:Y98) -> 0
A99: 92 | D99: （その他項目名） | F99: 0
A100: 93 | B100: 税引前当期純利益 | F100: 0 | I100: =I85+I86 -> 0 | J100: =J85+J86 -> 0 | K100: =K85+K86 -> 0 | L100: =L85+L86 -> 0 | M100: =M85+M86 -> 0 | N100: =N85+N86 -> 0 | O100: 0 | P100: 0 | Q100: 0 | R100: 0 | S100: 0 | T100: 0 | U100: 0 | V100: 0 | W100: 0 | X100: 0 | Y100: 0
A101: 94 | B101: 法人税等 | F101: 0 | I101: ='追加給付算定 (機構基準)'!K222 -> 0 | J101: ='追加給付算定 (機構基準)'!L222 -> 0 | K101: ='追加給付算定 (機構基準)'!M222 -> 0 | L101: ='追加給付算定 (機構基準)'!N222 -> 0 | M101: ='追加給付算定 (機構基準)'!O222 -> 0 | N101: ='追加給付算定 (機構基準)'!P222 -> 0 | O101: ='追加給付算定 (機構基準)'!Q222 -> 0 | P101: ='追加給付算定 (機構基準)'!R222 -> 0 | Q101: ='追加給付算定 (機構基準)'!S222 -> 0 | R101: ='追加給付算定 (機構基準)'!T222 -> 0 | S101: ='追加給付算定 (機構基準)'!U222 -> 0 | T101: ='追加給付算定 (機構基準)'!V222 -> 0 | U101: ='追加給付算定 (機構基準)'!W222 -> 0 | V101: ='追加給付算定 (機構基準)'!X222 -> 0 | W101: ='追加給付算定 (機構基準)'!Y222 -> 0 | X101: ='追加給付算定 (機構基準)'!Z222 -> 0 | Y101: ='追加給付算定 (機構基準)'!AA222 -> 0
A102: 95 | B102: 税引後当期純利益 | F102: 0 | I102: =I100-I101 -> 0 | J102: =J100-J101 -> 0 | K102: =K100-K101 -> 0 | L102: =L100-L101 -> 0 | M102: =M100-M101 -> 0 | N102: =N100-N101 -> 0 | O102: 0 | P102: 0 | Q102: 0 | R102: 0 | S102: 0 | T102: 0 | U102: 0 | V102: 0 | W102: 0 | X102: 0 | Y102: 0
A103: 96
A104: 97 | B104: キャッシュフロー計算書 | Y104: 単位：千円
A105: 98 | B105: 年度 | F105: 期中合計額 | I105: 令和2年度 | J105: 令和3年度 | K105: 令和4年度 | L105: 令和5年度 | M105: 令和6年度 | N105: 令和7年度 | O105: 令和8年度 | P105: 令和9年度 | Q105: 令和10年度 | R105: 令和11年度 | S105: 令和12年度 | T105: 令和13年度 | U105: 令和14年度 | V105: 令和15年度 | W105: 令和16年度 | X105: 令和17年度 | Y105: 令和18年度
A106: 99 | B106: 営業活動によるキャッシュフロー | F106: =SUM(I106:Y106) -> 0 | I106: =SUM(I107:I115) -> 0 | J106: =SUM(J107:J115) -> 0 | K106: 0 | L106: 0 | M106: 0 | N106: 0 | O106: 0 | P106: 0 | Q106: 0 | R106: 0 | S106: 0 | T106: 0 | U106: 0 | V106: 0 | W106: 0 | X106: 0 | Y106: 0
A107: 100 | C107: 税引前当期純利益 | F107: 0 | I107: =I100 -> 0 | J107: =J100 -> 0 | K107: 0 | L107: 0 | M107: 0 | N107: 0 | O107: 0 | P107: 0 | Q107: 0 | R107: 0 | S107: 0 | T107: 0 | U107: 0 | V107: 0 | W107: 0 | X107: 0 | Y107: 0
A108: 101 | C108: 支払利息 | F108: 0
A109: 102 | C109: 法人税等の支払額 | F109: 0
A110: 103 | C110: 利息の支払額 | F110: 0
A111: 104 | C111: （その他項目名） | F111: =SUM(I111:Y111) -> 0
A112: 105 | C112: （その他項目名） | F112: =SUM(I112:Y112) -> 0
A113: 106 | C113: （その他項目名） | F113: =SUM(I113:Y113) -> 0
A114: 107 | C114: （その他項目名） | F114: 0
A115: 108 | C115: （その他項目名） | F115: 0
A116: 109 | B116: 投資活動によるキャッシュフロー | F116: 0 | I116: =SUM(I117:I123) -> 0 | J116: 0 | K116: 0 | L116: 0 | M116: 0 | N116: 0 | O116: 0 | P116: 0 | Q116: 0 | R116: 0 | S116: 0 | T116: 0 | U116: 0 | V116: 0 | W116: 0 | X116: 0 | Y116: 0
A117: 110 | C117: 事業者による更新投資 | F117: 0
A118: 111 | C118: 備品調達 | F118: 0
A119: 112 | C119: （その他項目名） | F119: 0
A120: 113 | C120: （その他項目名） | F120: =SUM(I120:Y120) -> 0
A121: 114 | C121: （その他項目名） | F121: =SUM(I121:Y121) -> 0
A122: 115 | C122: （その他項目名） | F122: 0
A123: 116 | C123: （その他項目名） | F123: 0
A124: 117 | B124: 財務活動によるキャッシュフロー | F124: 0 | I124: =SUM(I125:I133) -> 0 | J124: =SUM(J125:J133) -> 0 | K124: 0 | L124: 0 | M124: 0 | N124: 0 | O124: 0 | P124: 0 | Q124: 0 | R124: 0 | S124: 0 | T124: 0 | U124: 0 | V124: 0 | W124: 0 | X124: 0 | Y124: 0
A125: 118 | C125: 出資金による調達 | F125: 0
A126: 119 | C126: 借入による調達 | F126: 0
A127: 120 | C127: 借入金の返済 | F127: 0
A128: 121 | C128: 配当の支払 | F128: 0
A129: 122 | C129: （その他項目名） | F129: =SUM(I129:Y129) -> 0
A130: 123 | C130: （その他項目名） | F130: =SUM(I130:Y130) -> 0
A131: 124 | C131: （その他項目名） | F131: 0
A132: 125 | C132: （その他項目名） | F132: 0
A133: 126 | C133: （その他項目名） | F133: 0
A134: 127 | B134: 現金及び現金同等物の増減 | F134: 0 | I134: =I106+I116+I124 -> 0 | J134: =J106+J116+J124 -> 0 | K134: 0 | L134: 0 | M134: 0 | N134: 0 | O134: 0 | P134: 0 | Q134: 0 | R134: 0 | S134: 0 | T134: 0 | U134: 0 | V134: 0 | W134: 0 | X134: 0 | Y134: 0
A135: 128 | B135: 期首現金及び現金同等物の残高 | I135: =H136 -> 0 | J135: =I136 -> 0 | K135: =J136 -> 0 | L135: 0 | M135: 0 | N135: 0 | O135: 0 | P135: 0 | Q135: 0 | R135: 0 | S135: 0 | T135: 0 | U135: 0 | V135: 0 | W135: 0 | X135: 0 | Y135: 0
A136: 129 | B136: 期末現金及び現金同等物の残高 | I136: =SUM(I134:I135) -> 0 | J136: =SUM(J134:J135) -> 0 | K136: 0 | L136: 0 | M136: 0 | N136: 0 | O136: 0 | P136: 0 | Q136: 0 | R136: 0 | S136: 0 | T136: 0 | U136: 0 | V136: 0 | W136: 0 | X136: 0 | Y136: 0
A137: 130
A138: 131 | B138: 貸借対照表 | Y138: 単位：千円
A139: 132 | B139: 年度 | I139: 令和2年度 | J139: 令和3年度 | K139: 令和4年度 | L139: 令和5年度 | M139: 令和6年度 | N139: 令和7年度 | O139: 令和8年度 | P139: 令和9年度 | Q139: 令和10年度 | R139: 令和11年度 | S139: 令和12年度 | T139: 令和13年度 | U139: 令和14年度 | V139: 令和15年度 | W139: 令和16年度 | X139: 令和17年度 | Y139: 令和18年度
A140: 133 | B140: 資産の部 | I140: =SUM(I141,I148) -> 0 | J140: =SUM(J141,J148) -> 0 | K140: 0 | L140: 0 | M140: 0 | N140: 0 | O140: 0 | P140: 0 | Q140: 0 | R140: 0 | S140: 0 | T140: 0 | U140: 0 | V140: 0 | W140: 0 | X140: 0 | Y140: 0
A141: 134 | C141: 流動資産 | I141: =SUM(I142:I147) -> 0 | J141: =SUM(J142:J147) -> 0 | K141: 0 | L141: 0 | M141: 0 | N141: 0 | O141: 0 | P141: 0 | Q141: 0 | R141: 0 | S141: 0 | T141: 0 | U141: 0 | V141: 0 | W141: 0 | X141: 0 | Y141: 0
A142: 135 | D142: 現預金
A143: 136 | D143: （その他項目名）
A144: 137 | D144: （その他項目名）
A145: 138 | D145: （その他項目名）
A146: 139 | D146: （その他項目名）
A147: 140 | D147: （その他項目名）
A148: 141 | C148: 固定資産 | I148: =SUM(I149,I155) -> 0 | J148: =SUM(J149,J155) -> 0 | K148: 0 | L148: 0 | M148: 0 | N148: 0 | O148: 0 | P148: 0 | Q148: 0 | R148: 0 | S148: 0 | T148: 0 | U148: 0 | V148: 0 | W148: 0 | X148: 0 | Y148: 0
A149: 142 | D149: 有形固定資産 | I149: =SUM(I150:I154) -> 0 | J149: =SUM(J150:J154) -> 0 | K149: 0 | L149: 0 | M149: 0 | N149: 0 | O149: 0 | P149: 0 | Q149: 0 | R149: 0 | S149: 0 | T149: 0 | U149: 0 | V149: 0 | W149: 0 | X149: 0 | Y149: 0
A150: 143 | E150: （その他項目名）
A151: 144 | E151: （その他項目名）
A152: =A151+1 -> 145 | E152: （その他項目名）
A153: 146 | E153: （その他項目名）
A154: 147 | E154: （その他項目名）
A155: 148 | D155: 無形固定資産 | I155: =SUM(I156:I160) -> 0 | J155: =SUM(J156:J160) -> 0 | K155: 0 | L155: 0 | M155: 0 | N155: 0 | O155: 0 | P155: 0 | Q155: 0 | R155: 0 | S155: 0 | T155: 0 | U155: 0 | V155: 0 | W155: 0 | X155: 0 | Y155: 0
A156: 149 | E156: （その他項目名）
A157: 150 | E157: （その他項目名）
A158: 151 | E158: （その他項目名）
A159: 152 | E159: （その他項目名）
A160: 153 | E160: （その他項目名）
A161: 154 | B161: 負債の部 | I161: =SUM(I162,I168) -> 0 | J161: =SUM(J162,J168) -> 0 | K161: 0 | L161: 0 | M161: 0 | N161: 0 | O161: 0 | P161: 0 | Q161: 0 | R161: 0 | S161: 0 | T161: 0 | U161: 0 | V161: 0 | W161: 0 | X161: 0 | Y161: 0
A162: 155 | C162: 流動負債 | I162: =SUM(I163:I167) -> 0 | J162: =SUM(J163:J167) -> 0 | K162: 0 | L162: 0 | M162: 0 | N162: 0 | O162: 0 | P162: 0 | Q162: 0 | R162: 0 | S162: 0 | T162: 0 | U162: 0 | V162: 0 | W162: 0 | X162: 0 | Y162: 0
A163: 156 | D163: （その他項目名）
A164: 157 | D164: （その他項目名）
A165: 158 | D165: （その他項目名）
A166: 159 | D166: （その他項目名）
A167: 160 | D167: （その他項目名）
A168: 161 | C168: 固定負債 | I168: =SUM(I169:I173) -> 0 | J168: =SUM(J169:J173) -> 0 | K168: 0 | L168: 0 | M168: 0 | N168: 0 | O168: 0 | P168: 0 | Q168: 0 | R168: 0 | S168: 0 | T168: 0 | U168: 0 | V168: 0 | W168: 0 | X168: 0 | Y168: 0
A169: 162 | D169: （その他項目名）
A170: 163 | D170: （その他項目名）
A171: 164 | D171: （その他項目名）
A172: 165 | D172: （その他項目名）
A173: 166 | D173: （その他項目名）
A174: 167 | B174: 純資産の部 | I174: =SUM(I175:I180) -> 0 | J174: =SUM(J175:J180) -> 0 | K174: 0 | L174: 0 | M174: 0 | N174: 0 | O174: 0 | P174: 0 | Q174: 0 | R174: 0 | S174: 0 | T174: 0 | U174: 0 | V174: 0 | W174: 0 | X174: 0 | Y174: 0
A175: 168 | C175: 資本金
A176: 169 | C176: 利益剰余金
A177: 170 | C177: （その他項目名）
A178: 171 | C178: （その他項目名）
A179: 172 | C179: （その他項目名）
A180: 173 | C180: （その他項目名）
A181: 174
A182: 175 | B182: 【提案書作成要領】
A183: 176 | B183: ・A3 4枚以内で記載すること。
A184: 177 | B184: ・各費目については可能な限り詳細に記載すること。
A185: 178 | B185: ・他の様式と整合性を確保すること。
A186: 179 | B186: ・消費税及び地方消費税は含めないこと。
A187: 180 | B187: ・物価変動は見込まないこと。
A188: 181
A189: 182 | B189: 追加給付額算定用EIRR | Y189: 単位：千円
A190: 183 | B190: 年度 | F190: 期中合計額 | I190: 令和2年度 | J190: 令和3年度 | K190: 令和4年度 | L190: 令和5年度 | M190: 令和6年度 | N190: 令和7年度 | O190: 令和8年度 | P190: 令和9年度 | Q190: 令和10年度 | R190: 令和11年度 | S190: 令和12年度 | T190: 令和13年度 | U190: 令和14年度 | V190: 令和15年度 | W190: 令和16年度 | X190: 令和17年度 | Y190: 令和18年度
A191: 184 | B191: FCF（営業＋投資キャッシュフロー） | F191: =SUM(I191:Y191) -> 0 | I191: =I106+I116 -> 0 | J191: 0 | K191: 0 | L191: 0 | M191: 0 | N191: 0 | O191: 0 | P191: 0 | Q191: 0 | R191: 0 | S191: 0 | T191: 0 | U191: 0 | V191: 0 | W191: 0 | X191: 0 | Y191: 0
A192: 185 | B192: 出資金による調達 | F192: 0 | I192: =I125 -> 0 | J192: =J125 -> 0 | K192: 0 | L192: 0 | M192: 0 | N192: 0 | O192: 0 | P192: 0 | Q192: 0 | R192: 0 | S192: 0 | T192: 0 | U192: 0 | V192: 0 | W192: 0 | X192: 0 | Y192: 0
A193: 186 | B193: 借入による調達 | F193: 0 | I193: =I126 -> 0 | J193: 0 | K193: 0 | L193: 0 | M193: 0 | N193: 0 | O193: 0 | P193: 0 | Q193: 0 | R193: 0 | S193: 0 | T193: 0 | U193: 0 | V193: 0 | W193: 0 | X193: 0 | Y193: 0
A194: 187 | B194: 借入金の返済 | F194: 0 | I194: =I127 -> 0 | J194: 0 | K194: 0 | L194: 0 | M194: 0 | N194: 0 | O194: 0 | P194: 0 | Q194: 0 | R194: 0 | S194: 0 | T194: 0 | U194: 0 | V194: 0 | W194: 0 | X194: 0 | Y194: 0
A195: 188 | B195: 元利返済後CF | F195: 0 | I195: =SUM(I191:I194) -> 0 | J195: =SUM(J191:J194) -> 0 | K195: 0 | L195: 0 | M195: 0 | N195: 0 | O195: 0 | P195: 0 | Q195: 0 | R195: 0 | S195: 0 | T195: 0 | U195: 0 | V195: 0 | W195: 0 | X195: 0 | Y195: 0
A196: 189 | B196: 出資金償還 | F196: 0 | I196: =0-MAX(H175-I175,0) -> 0 | J196: 0 | K196: 0 | L196: 0 | M196: 0 | N196: 0 | O196: 0 | P196: 0 | Q196: 0 | R196: 0 | S196: 0 | T196: 0 | U196: 0 | V196: 0 | W196: 0 | X196: 0 | Y196: 0
A197: 190 | B197: 現預金前年度期末残高 | F197: 0 | I197: =H142 -> 0 | J197: 0 | K197: 0 | L197: 0 | M197: 0 | N197: 0 | O197: 0 | P197: 0 | Q197: 0 | R197: 0 | S197: 0 | T197: 0 | U197: 0 | V197: 0 | W197: 0 | X197: 0 | Y197: 0
A198: 191 | B198: 配当前現金 | F198: 0 | I198: =SUM(I195:I197) -> 0 | J198: =SUM(J195:J197) -> 0 | K198: 0 | L198: 0 | M198: 0 | N198: 0 | O198: 0 | P198: 0 | Q198: 0 | R198: 0 | S198: 0 | T198: 0 | U198: 0 | V198: 0 | W198: 0 | X198: 0 | Y198: 0
A199: 192 | B199: 配当前利益剰余金 | F199: 0 | I199: =H176+I102 -> 0 | J199: =I176+J102 -> 0 | K199: 0 | L199: 0 | M199: 0 | N199: 0 | O199: 0 | P199: 0 | Q199: 0 | R199: 0 | S199: 0 | T199: 0 | U199: 0 | V199: 0 | W199: 0 | X199: 0 | Y199: 0
B200: 精算フラグ | F200: 0 | I200: FALSE | J200: FALSE | K200: FALSE | L200: FALSE | M200: FALSE | N200: FALSE | O200: FALSE | P200: FALSE | Q200: FALSE | R200: FALSE | S200: FALSE | T200: FALSE | U200: FALSE | V200: FALSE | W200: FALSE | X200: FALSE | Y200: TRUE
A201: =A199+1 -> 193 | B201: 追加給付額算定用配当金 | F201: 0 | I201: =IF(I200,MAX(I198,0),MAX(0,MIN(I198:I199))) -> 0 | J201: 0 | K201: 0 | L201: 0 | M201: 0 | N201: 0 | O201: 0 | P201: 0 | Q201: 0 | R201: 0 | S201: 0 | T201: 0 | U201: 0 | V201: 0 | W201: 0 | X201: 0 | Y201: =IF(Y200,MAX(Y198,0),MAX(0,MIN(Y198:Y199))) -> 0
A202: 194 | B202: EIRR算定 | F202: =SUM(I202:Y202) -> 0 | I202: =SUM(I203:I205) -> 0 | J202: 0 | K202: 0 | L202: 0 | M202: 0 | N202: 0 | O202: 0 | P202: 0 | Q202: 0 | R202: 0 | S202: 0 | T202: 0 | U202: 0 | V202: 0 | W202: 0 | X202: 0 | Y202: 0
A203: 195 | C203: 出資金の拠出 | F203: =SUM(I203:Y203) -> 0 | I203: =0-I125 -> 0 | J203: 0 | K203: 0 | L203: 0 | M203: 0 | N203: 0 | O203: 0 | P203: 0 | Q203: 0 | R203: 0 | S203: 0 | T203: 0 | U203: 0 | V203: 0 | W203: 0 | X203: 0 | Y203: 0
... 3 more rows

Sheet 【2-B】収入の算出根拠
A1: 別添様式 2-B
A2: 列番号 | B2: 1 | C2: =B2+1 -> 2 | D2: =C2+1 -> 3
A4: 行番号 | B4: 収入の算出根拠
A5: 1 | B5: 費目 | D5: 前提条件
A6: =A5+1 -> 2 | B6: 展示
A7: =A6+1 -> 3 | C7: 観覧料単価（コレクション展）※1
A8: 4 | C8: 観覧料単価（企画展）※2
A9: 5 | C9: 展覧会入場者数 | D9: 令和７年度、令和10年度、令和14年度において年間51.9万人（標準時比13.5%減少）、それ以外の年度は年間60万人入場したものとする。
A10: 6 | C10: 有料率
A11: 7 | C11: 貸出料
A12: 8 | C12: （その他費目）
A13: 9 | B13: 駐車場
A14: 10 | C14: 駐車場、駐輪場料金
A15: 11 | C15: 駐車場、駐輪場台数
A16: 12 | C16: （その他費目）
A17: 13 | B17: サービス施設
A18: 14 | C18: サービス施設賃料
A19: 15 | C19: 貸室使用料※３
A20: 16 | C20: 貸室稼働率
A21: 17 | C21: 貸室稼働日数
A22: 18 | C22: （その他費目）
A23: 19 | B23: その他
A24: 20 | C24: （その他費目）
B26: 【備考】
B27: ※１、２ 同種施設の観覧料を勘案して提案すること。
B28: ※3 近隣施設における使用料等を勘案して提案すること。
B30: 【提案書作成要領】
B31: ・A4版3枚以内にて作成すること。
B32: ・他の様式と整合性を確保すること。
B33: ・記載に当たっては単価や稼働日数・稼働率・数量等の算出根拠を可能な限り具体的かつ詳細に記載すること。
B34: ・必要に応じて項目を追加・細分化して作成すること。
B35: ・事業年度ごとの収入が異なる提案を行う場合、年度ごとの前提条件を記載すること。

Sheet 【3-B】支出の算出根拠
A1: 別添様式 3-B
A2: 列番号 | B2: 1 | C2: =B2+1 -> 2 | D2: =C2+1 -> 3 | E2: =D2+1 -> 4 | F2: =E2+1 -> 5
A4: 行番号 | B4: 支出の算出根拠
A5: 1 | B5: 費目 | F5: 算出根拠
A6: =A5+1 -> 2 | B6: 事業費
A7: =A6+1 -> 3 | C7: 展示事業費
A8: 4 | C8: 事務
A9: 5 | C9: 教育普及費
A10: 6 | C10: 渉外
A11: 7 | C11: （その他費目）
A12: 8 | C12: （その他費目）
A13: 9 | B13: 維持管理費
A14: 10 | C14: 施設管理費
A15: 11 | C15: 光熱水費
A16: 12 | C16: 調査研究費
A17: 13 | C17: 収集・保管費
A18: 14 | C18: 教育普及費
A19: 15 | C19: アーカイブ及び記録・管理費
A20: 16 | C20: 事務
A21: 17 | C21: 渉外
A22: 18 | C22: （その他費目）
A23: 19 | B23: その他の費用
A24: 20 | C24: （その他費目）
A25: 21 | C25: （その他費目）
A26: 22 | C26: （その他費目）
B28: 【提案書作成要領】
B29: ・A4版3枚以内にて作成すること。
B30: ・他の様式と整合性を確保すること。
B31: ・記載に当たっては単価や数量等の算出根拠を可能な限り具体的かつ詳細に記載すること。 必要に応じて項目を追加・細分化して作成すること。
B33: ・事業年度ごとの支出が異なる提案を行う場合、年度ごとの算出根拠を記載すること。

Sheet 【4-B】資金調達計画
A1: 別添様式 4-B
A2: 列番号 | B2: 1 | C2: =B2+1 -> 2 | D2: =C2+1 -> 3 | E2: 4 | F2: 5 | G2: 6 | H2: 7 | I2: 8 | J2: 9 | K2: 10 | L2: 11 | M2: 12 | N2: 13 | O2: 14 | P2: 15 | Q2: 16 | R2: 17 | S2: 18 | T2: 19 | U2: 20
A4: 行番号 | B4: 資金調達計画 | U4: 単位：千円
A5: 1 | B5: 事業年度 | D5: 期中合計額 | E5: 令和2年度 | F5: 令和3年度 | G5: 令和4年度 | H5: 令和5年度 | I5: 令和6年度 | J5: 令和7年度 | K5: 令和8年度 | L5: 令和9年度 | M5: 令和10年度 | N5: 令和11年度 | O5: 令和12年度 | P5: 令和13年度 | Q5: 令和14年度 | R5: 令和15年度 | S5: 令和16年度 | T5: 令和17年度 | U5: 令和18年度
A6: =A5+1 -> 2 | B6: 出資金による調達 | D6: =SUM(E6:U6) -> 0
A7: =A6+1 -> 3 | C7: (出資者名） | D7: =SUM(E7:U7) -> 0
A8: 4 | C8: (出資者名） | D8: =SUM(E8:U8) -> 0
A9: 5 | C9: (出資者名） | D9: 0
A10: 6 | C10: (出資者名） | D10: 0
A11: 7 | B11: 借入金による調達 | D11: 0
A12: 8 | C12: （金融機関等の名称） | D12: 0
A13: 9 | C13: （金融機関等の名称） | D13: 0
A14: 10 | C14: （金融機関等の名称） | D14: 0
A15: 11 | C15: （金融機関等の名称） | D15: 0
A16: 12 | B16: その他 | D16: 0
A17: 13 | C17: （調達先の名称） | D17: 0
A18: 14 | C18: （調達先の名称） | D18: 0
A19: 15 | C19: （調達先の名称） | D19: 0
A20: 16 | C20: （調達先の名称） | D20: 0
A21: 17
A22: 18 | B22: 出資金明細
A23: 19 | B23: 出資者名 | D23: 出資割合 | E23: 出資者の役割等
A24: 20
A25: 21
A26: 22
A27: 23
A28: 24
A29: 25
A30: 26 | B30: 借入金明細
A31: 27 | B31: 金融機関等の名称 | D31: 借入条件
A32: 28
A33: 29
A34: 30
A35: 31
A36: 32
A37: 33
A38: 34 | B38: その他の資金調達の明細
A39: 35 | B39: 調達先名 | D39: 調達条件
A40: 36
A41: 37
A42: 38
A43: 39
B45: 【提案書作成要領】
B46: ・A3版２枚以内にて作成すること。
B47: ・他の様式と整合性を確保すること。
B48: ・必要に応じて項目を追加・細分化して作成すること。
B49: ・消費税及び地方消費税は含めないこと。
B50: ・物価変動は見込まないこと。

Sheet 【1-C】悲観時（事業者基準）収支
A1: 別添様式 1-C | X1: 編集可能セル
A2: 列番号 | B2: 1 | C2: =B2+1 -> 2 | D2: =C2+1 -> 3 | E2: =D2+1 -> 4 | F2: =E2+1 -> 5 | I2: =F2+1 -> 6 | J2: =I2+1 -> 7 | K2: =J2+1 -> 8 | L2: 9 | M2: 10 | N2: 11 | O2: 12 | P2: 13 | Q2: 14 | R2: 15 | S2: 16 | T2: 17 | U2: 18 | V2: 19 | W2: 20 | X2: 21 | Y2: 22
A4: 行番号 | B4: 損益計算書 | Y4: 単位：千円
A5: 1 | B5: 年度 | F5: 期中合計額 | I5: 令和2年度 | J5: 令和3年度 | K5: 令和4年度 | L5: 令和5年度 | M5: 令和6年度 | N5: 令和7年度 | O5: 令和8年度 | P5: 令和9年度 | Q5: 令和10年度 | R5: 令和11年度 | S5: 令和12年度 | T5: 令和13年度 | U5: 令和14年度 | V5: 令和15年度 | W5: 令和16年度 | X5: 令和17年度 | Y5: 令和18年度
A6: =A5+1 -> 2 | B6: 開始日付 | I6: 2020-04-01 | J6: =I7+1 -> 2021-04-01 | K6: =J7+1 -> 2022-04-01 | L6: 2023-04-01 | M6: 2024-04-01 | N6: 2025-04-01 | O6: 2026-04-01 | P6: 2027-04-01 | Q6: 2028-04-01 | R6: 2029-04-01 | S6: 2030-04-01 | T6: 2031-04-01 | U6: 2032-04-01 | V6: 2033-04-01 | W6: 2034-04-01 | X6: 2035-04-01 | Y6: 2036-04-01
A7: =A6+1 -> 3 | B7: 終了日付 | I7: =EOMONTH(I6,11) -> 2021-03-31 | J7: =EOMONTH(J6,11) -> 2022-03-31 | K7: =EOMONTH(K6,11) -> 2023-03-31 | L7: 2024-03-31 | M7: 2025-03-31 | N7: 2026-03-31 | O7: 2027-03-31 | P7: 2028-03-31 | Q7: 2029-03-31 | R7: 2030-03-31 | S7: 2031-03-31 | T7: 2032-03-31 | U7: 2033-03-31 | V7: 2034-03-31 | W7: 2035-03-31 | X7: 2036-03-31 | Y7: 2037-03-31
A8: 4 | B8: ケース | I8: 標準時 | J8: 標準時 | K8: 標準時 | L8: 標準時 | M8: 標準時 | N8: 悲観時（事業者基準） | O8: 標準時 | P8: 標準時 | Q8: 悲観時（事業者基準） | R8: 標準時 | S8: 標準時 | T8: 標準時 | U8: 悲観時（事業者基準） | V8: 標準時 | W8: 標準時 | X8: 標準時 | Y8: 標準時
A9: 5 | B9: 収入 | F9: =SUM(I9:Y9) -> 0 | I9: =SUM(I10,I16,I22,I28,I34:I36) -> 0 | J9: =SUM(J10,J16,J22,J28,J34:J36) -> 0 | K9: 0 | L9: 0 | M9: 0 | N9: 0 | O9: 0 | P9: 0 | Q9: 0 | R9: 0 | S9: 0 | T9: 0 | U9: 0 | V9: 0 | W9: 0 | X9: 0 | Y9: 0
A10: 6 | C10: 展示収入 | F10: =SUM(I10:Y10) -> 0 | I10: =SUM(I11:I15) -> 0 | J10: =SUM(J11:J15) -> 0 | K10: 0 | L10: 0 | M10: 0 | N10: 0 | O10: 0 | P10: 0 | Q10: 0 | R10: 0 | S10: 0 | T10: 0 | U10: 0 | V10: 0 | W10: 0 | X10: 0 | Y10: 0
A11: 7 | D11: 企画展収入 | F11: 0
A12: 8 | D12: コレクション展収入 | F12: =SUM(I12:Y12) -> 0
A13: 9 | D13: （その他項目名） | F13: =SUM(I13:Y13) -> 0
A14: 10 | D14: （その他項目名） | F14: =SUM(I14:Y14) -> 0
A15: 11 | D15: （その他項目名） | F15: 0
A16: 12 | C16: 駐車場収入 | F16: 0 | I16: =SUM(I17:I21) -> 0 | J16: 0 | K16: 0 | L16: 0 | M16: 0 | N16: 0 | O16: 0 | P16: 0 | Q16: 0 | R16: 0 | S16: 0 | T16: 0 | U16: 0 | V16: 0 | W16: 0 | X16: 0 | Y16: 0
A17: 13 | D17: （例）駐車場土地賃貸料 | F17: 0
A18: 14 | D18: （その他項目名） | F18: =SUM(I18:Y18) -> 0
A19: 15 | D19: （その他項目名） | F19: =SUM(I19:Y19) -> 0
A20: 16 | D20: （その他項目名） | F20: =SUM(I20:Y20) -> 0
A21: 17 | D21: （その他項目名） | F21: 0
A22: 18 | C22: サービス施設収入 | F22: 0 | I22: =SUM(I23:I27) -> 0 | J22: 0 | K22: 0 | L22: 0 | M22: 0 | N22: 0 | O22: 0 | P22: 0 | Q22: 0 | R22: 0 | S22: 0 | T22: 0 | U22: 0 | V22: 0 | W22: 0 | X22: 0 | Y22: 0
A23: 19 | D23: （例）レストランテナント料 | F23: 0
A24: 20 | D24: （その他項目名） | F24: =SUM(I24:Y24) -> 0
A25: 21 | D25: （その他項目名） | F25: =SUM(I25:Y25) -> 0
A26: 22 | D26: （その他項目名） | F26: =SUM(I26:Y26) -> 0
A27: 23 | D27: （その他項目名） | F27: 0
A28: 24 | C28: その他収入 | F28: 0 | I28: =SUM(I29:I33) -> 0 | J28: =SUM(J29:J33) -> 0 | K28: 0 | L28: 0 | M28: 0 | N28: 0 | O28: 0 | P28: 0 | Q28: 0 | R28: 0 | S28: 0 | T28: 0 | U28: 0 | V28: 0 | W28: 0 | X28: 0 | Y28: 0
A29: 25 | D29: （その他項目名） | F29: =SUM(I29:Y29) -> 0
A30: 26 | D30: （その他項目名） | F30: =SUM(I30:Y30) -> 0
A31: 27 | D31: （その他項目名） | F31: =SUM(I31:Y31) -> 0
A32: 28 | D32: （その他項目名） | F32: =SUM(I32:Y32) -> 0
A33: 29 | D33: （その他項目名） | F33: 0
A34: 30 | C34: 当初想定するサービス対価 | F34: 0
A35: 31 | C35: 納付相当額 | F35: 0 | I35: 0 | J35: 0 | K35: 0 | L35: 0 | M35: 0 | N35: 0 | O35: 0 | P35: 0 | Q35: 0 | R35: 0 | S35: 0 | T35: 0 | U35: 0 | V35: 0 | W35: 0 | X35: 0 | Y35: 0
A36: 32 | C36: 追加給付額 | F36: 0 | I36: ='追加給付算定 (事業者基準) '!K160 -> 0 | J36: ='追加給付算定 (事業者基準) '!L160 -> 0 | K36: ='追加給付算定 (事業者基準) '!M160 -> 0 | L36: ='追加給付算定 (事業者基準) '!N160 -> 0 | M36: ='追加給付算定 (事業者基準) '!O160 -> 0 | N36: ='追加給付算定 (事業者基準) '!P160 -> 0 | O36: ='追加給付算定 (事業者基準) '!Q160 -> 0 | P36: ='追加給付算定 (事業者基準) '!R160 -> 0 | Q36: ='追加給付算定 (事業者基準) '!S160 -> 0 | R36: ='追加給付算定 (事業者基準) '!T160 -> 0 | S36: ='追加給付算定 (事業者基準) '!U160 -> 0 | T36: ='追加給付算定 (事業者基準) '!V160 -> 0 | U36: ='追加給付算定 (事業者基準) '!W160 -> 0 | V36: ='追加給付算定 (事業者基準) '!X160 -> 0 | W36: ='追加給付算定 (事業者基準) '!Y160 -> 0 | X36: ='追加給付算定 (事業者基準) '!Z160 -> 0 | Y36: ='追加給付算定 (事業者基準) '!AA160 -> 0
A37: 33 | B37: 費用 | F37: 0 | I37: =SUM(I38,I49,I76) -> 0 | J37: =SUM(J38,J49,J76) -> 0 | K37: 0 | L37: 0 | M37: 0 | N37: 0 | O37: 0 | P37: 0 | Q37: 0 | R37: 0 | S37: 0 | T37: 0 | U37: 0 | V37: 0 | W37: 0 | X37: 0 | Y37: 0
A38: 34 | C38: 事業費 | F38: 0 | I38: =SUM(I39:I48) -> 0 | J38: =SUM(J39:J48) -> 0 | K38: 0 | L38: 0 | M38: 0 | N38: 0 | O38: 0 | P38: 0 | Q38: 0 | R38: 0 | S38: 0 | T38: 0 | U38: 0 | V38: 0 | W38: 0 | X38: 0 | Y38: 0
A39: 35 | D39: 展示事業費 | F39: 0
A40: 36 | D40: 事務 | F40: 0
A41: 37 | D41: 教育普及費 | F41: 0
A42: 38 | D42: 渉外 | F42: 0
A43: 39 | D43: （その他項目名） | F43: 0
A44: 40 | D44: （その他項目名） | F44: =SUM(I44:Y44) -> 0
A45: 41 | D45: （その他項目名） | F45: =SUM(I45:Y45) -> 0
A46: 42 | D46: （その他項目名） | F46: =SUM(I46:Y46) -> 0
A47: 43 | D47: （その他項目名） | F47: =SUM(I47:Y47) -> 0
A48: 44 | D48: （その他項目名） | F48: 0
A49: 45 | C49: 維持管理費 | F49: 0 | I49: =SUM(I50,I59,I65:I75) -> 0 | J49: =SUM(J50,J59,J65:J75) -> 0 | K49: 0 | L49: 0 | M49: 0 | N49: 0 | O49: 0 | P49: 0 | Q49: 0 | R49: 0 | S49: 0 | T49: 0 | U49: 0 | V49: 0 | W49: 0 | X49: 0 | Y49: 0
A50: 46 | D50: 施設管理費 | F50: 0 | I50: =SUM(I51:I58) -> 0 | J50: =SUM(J51:J58) -> 0 | K50: 0 | L50: 0 | M50: 0 | N50: 0 | O50: 0 | P50: 0 | Q50: 0 | R50: 0 | S50: 0 | T50: 0 | U50: 0 | V50: 0 | W50: 0 | X50: 0 | Y50: 0
A51: 47 | E51: 設備管理・保守費 | F51: 0
A52: 48 | E52: 警備費 | F52: 0
A53: 49 | E53: 清掃費 | F53: 0
A54: 50 | E54: 建物修繕費 | F54: 0
A55: 51 | E55: （その他項目名） | F55: 0
A56: 52 | E56: （その他項目名） | F56: 0
A57: 53 | E57: （その他項目名） | F57: 0
A58: 54 | E58: （その他項目名） | F58: 0
A59: 55 | D59: 光熱水費 | F59: 0 | I59: =SUM(I60:I64) -> 0 | J59: =SUM(J60:J64) -> 0 | K59: 0 | L59: 0 | M59: 0 | N59: 0 | O59: 0 | P59: 0 | Q59: 0 | R59: 0 | S59: 0 | T59: 0 | U59: 0 | V59: 0 | W59: 0 | X59: 0 | Y59: 0
A60: 56 | E60: 地域冷暖房費 | F60: 0
A61: 57 | E61: （その他項目名） | F61: 0
A62: 58 | E62: （その他項目名） | F62: 0
A63: 59 | E63: （その他項目名） | F63: 0
A64: 60 | E64: （その他項目名） | F64: 0
A65: 61 | D65: 調査研究費 | F65: 0
A66: 62 | D66: 収集・保管費 | F66: 0
A67: 63 | D67: 教育普及費 | F67: 0
A68: 64 | D68: アーカイブ及び記録・管理費 | F68: 0
A69: 65 | D69: 事務 | F69: 0
A70: 66 | D70: 渉外 | F70: 0
A71: 67 | D71: （その他項目名） | F71: =SUM(I71:Y71) -> 0
A72: 68 | D72: （その他項目名） | F72: =SUM(I72:Y72) -> 0
A73: 69 | D73: （その他項目名） | F73: =SUM(I73:Y73) -> 0
A74: 70 | D74: （その他項目名） | F74: 0
A75: 71 | D75: （その他項目名） | F75: 0
A76: 72 | C76: （その他） | F76: 0 | I76: =SUM(I77:I81) -> 0 | J76: =SUM(J77:J81) -> 0 | K76: 0 | L76: 0 | M76: 0 | N76: 0 | O76: 0 | P76: 0 | Q76: 0 | R76: 0 | S76: 0 | T76: 0 | U76: 0 | V76: 0 | W76: 0 | X76: 0 | Y76: 0
A77: 73 | D77: （その他項目名） | F77: =SUM(I77:Y77) -> 0
A78: 74 | D78: （その他項目名） | F78: =SUM(I78:Y78) -> 0
A79: 75 | D79: （その他項目名） | F79: =SUM(I79:Y79) -> 0
A80: 76 | D80: （その他項目名） | F80: 0
A81: 77 | D81: （その他項目名） | F81: 0
A82: 78 | B82: 営業損益 | F82: 0 | I82: =I9-I37 -> 0 | J82: 0 | K82: 0 | L82: 0 | M82: 0 | N82: 0 | O82: 0 | P82: 0 | Q82: 0 | R82: 0 | S82: 0 | T82: 0 | U82: 0 | V82: 0 | W82: 0 | X82: 0 | Y82: 0
A83: 79 | B83: 営業外損益 | F83: 0 | I83: =I84-I90 -> 0 | J83: =J84-J90 -> 0 | K83: 0 | L83: 0 | M83: 0 | N83: 0 | O83: 0 | P83: 0 | Q83: 0 | R83: 0 | S83: 0 | T83: 0 | U83: 0 | V83: 0 | W83: 0 | X83: 0 | Y83: 0
A84: =A83+1 -> 80 | C84: 営業外収入 | F84: 0 | I84: =SUM(I85:I89) -> 0 | J84: =SUM(J85:J89) -> 0 | K84: 0 | L84: 0 | M84: 0 | N84: 0 | O84: 0 | P84: 0 | Q84: 0 | R84: 0 | S84: 0 | T84: 0 | U84: 0 | V84: 0 | W84: 0 | X84: 0 | Y84: 0
A85: 81 | D85: （その他項目名） | F85: =SUM(I85:Y85) -> 0
A86: 82 | D86: （その他項目名） | F86: =SUM(I86:Y86) -> 0
A87: 83 | D87: （その他項目名） | F87: =SUM(I87:Y87) -> 0
A88: 84 | D88: （その他項目名） | F88: =SUM(I88:Y88) -> 0
A89: 85 | D89: （その他項目名） | F89: 0
A90: 86 | C90: 営業外費用 | F90: 0 | I90: =SUM(I91:I96) -> 0 | J90: =SUM(J91:J96) -> 0 | K90: 0 | L90: 0 | M90: 0 | N90: 0 | O90: 0 | P90: 0 | Q90: 0 | R90: 0 | S90: 0 | T90: 0 | U90: 0 | V90: 0 | W90: 0 | X90: 0 | Y90: 0
A91: 87 | D91: （その他項目名） | F91: 0
A92: 88 | D92: （その他項目名） | F92: =SUM(I92:Y92) -> 0
A93: 89 | D93: （その他項目名） | F93: =SUM(I93:Y93) -> 0
A94: 90 | D94: （その他項目名） | F94: =SUM(I94:Y94) -> 0
A95: 91 | D95: （その他項目名） | F95: =SUM(I95:Y95) -> 0
A96: 92 | D96: （その他項目名） | F96: 0
A97: 93 | B97: 税引前当期純利益 | F97: 0 | I97: =I82+I83 -> 0 | J97: =J82+J83 -> 0 | K97: =K82+K83 -> 0 | L97: =L82+L83 -> 0 | M97: =M82+M83 -> 0 | N97: =N82+N83 -> 0 | O97: 0 | P97: 0 | Q97: 0 | R97: 0 | S97: 0 | T97: 0 | U97: 0 | V97: 0 | W97: 0 | X97: 0 | Y97: 0
A98: 94 | B98: 法人税等 | F98: 0 | I98: ='追加給付算定 (事業者基準) '!K222 -> 0 | J98: ='追加給付算定 (事業者基準) '!L222 -> 0 | K98: ='追加給付算定 (事業者基準) '!M222 -> 0 | L98: ='追加給付算定 (事業者基準) '!N222 -> 0 | M98: ='追加給付算定 (事業者基準) '!O222 -> 0 | N98: ='追加給付算定 (事業者基準) '!P222 -> 0 | O98: ='追加給付算定 (事業者基準) '!Q222 -> 0 | P98: ='追加給付算定 (事業者基準) '!R222 -> 0 | Q98: ='追加給付算定 (事業者基準) '!S222 -> 0 | R98: ='追加給付算定 (事業者基準) '!T222 -> 0 | S98: ='追加給付算定 (事業者基準) '!U222 -> 0 | T98: ='追加給付算定 (事業者基準) '!V222 -> 0 | U98: ='追加給付算定 (事業者基準) '!W222 -> 0 | V98: ='追加給付算定 (事業者基準) '!X222 -> 0 | W98: ='追加給付算定 (事業者基準) '!Y222 -> 0 | X98: ='追加給付算定 (事業者基準) '!Z222 -> 0 | Y98: ='追加給付算定 (事業者基準) '!AA222 -> 0
A99: 95 | B99: 税引後当期純利益 | F99: 0 | I99: =I97-I98 -> 0 | J99: =J97-J98 -> 0 | K99: =K97-K98 -> 0 | L99: =L97-L98 -> 0 | M99: =M97-M98 -> 0 | N99: =N97-N98 -> 0 | O99: 0 | P99: 0 | Q99: 0 | R99: 0 | S99: 0 | T99: 0 | U99: 0 | V99: 0 | W99: 0 | X99: 0 | Y99: 0
A100: 96
A101: 97 | B101: キャッシュフロー計算書 | Y101: 単位：千円
A102: 98 | B102: 年度 | F102: 期中合計額 | I102: 令和2年度 | J102: 令和3年度 | K102: 令和4年度 | L102: 令和5年度 | M102: 令和6年度 | N102: 令和7年度 | O102: 令和8年度 | P102: 令和9年度 | Q102: 令和10年度 | R102: 令和11年度 | S102: 令和12年度 | T102: 令和13年度 | U102: 令和14年度 | V102: 令和15年度 | W102: 令和16年度 | X102: 令和17年度 | Y102: 令和18年度
A103: 99 | B103: 営業活動によるキャッシュフロー | F103: =SUM(I103:Y103) -> 0 | I103: =SUM(I104:I112) -> 0 | J103: =SUM(J104:J112) -> 0 | K103: 0 | L103: 0 | M103: 0 | N103: 0 | O103: 0 | P103: 0 | Q103: 0 | R103: 0 | S103: 0 | T103: 0 | U103: 0 | V103: 0 | W103: 0 | X103: 0 | Y103: 0
A104: 100 | C104: 税引前当期純利益 | F104: 0 | I104: =I97 -> 0 | J104: =J97 -> 0 | K104: 0 | L104: 0 | M104: 0 | N104: 0 | O104: 0 | P104: 0 | Q104: 0 | R104: 0 | S104: 0 | T104: 0 | U104: 0 | V104: 0 | W104: 0 | X104: 0 | Y104: 0
A105: 101 | C105: 支払利息 | F105: 0
A106: 102 | C106: 法人税等の支払額 | F106: 0
A107: 103 | C107: 利息の支払額 | F107: 0
A108: 104 | C108: （その他項目名） | F108: =SUM(I108:Y108) -> 0
A109: 105 | C109: （その他項目名） | F109: =SUM(I109:Y109) -> 0
A110: 106 | C110: （その他項目名） | F110: =SUM(I110:Y110) -> 0
A111: 107 | C111: （その他項目名） | F111: 0
A112: 108 | C112: （その他項目名） | F112: 0
A113: 109 | B113: 投資活動によるキャッシュフロー | F113: 0 | I113: =SUM(I114:I120) -> 0 | J113: =SUM(J114:J120) -> 0 | K113: 0 | L113: 0 | M113: 0 | N113: 0 | O113: 0 | P113: 0 | Q113: 0 | R113: 0 | S113: 0 | T113: 0 | U113: 0 | V113: 0 | W113: 0 | X113: 0 | Y113: 0
A114: 110 | C114: 事業者による更新投資 | F114: 0
A115: 111 | C115: 備品調達 | F115: 0
A116: 112 | C116: （その他項目名） | F116: 0
A117: 113 | C117: （その他項目名） | F117: =SUM(I117:Y117) -> 0
A118: 114 | C118: （その他項目名） | F118: 0
A119: 115 | C119: （その他項目名） | F119: 0
A120: 116 | C120: （その他項目名） | F120: 0
A121: 117 | B121: 財務活動によるキャッシュフロー | F121: 0 | I121: =SUM(I122:I130) -> 0 | J121: =SUM(J122:J130) -> 0 | K121: 0 | L121: 0 | M121: 0 | N121: 0 | O121: 0 | P121: 0 | Q121: 0 | R121: 0 | S121: 0 | T121: 0 | U121: 0 | V121: 0 | W121: 0 | X121: 0 | Y121: 0
A122: 118 | C122: 出資金による調達 | F122: 0
A123: 119 | C123: 借入による調達 | F123: 0
A124: 120 | C124: 借入金の返済 | F124: 0
A125: 121 | C125: 配当の支払 | F125: 0
A126: 122 | C126: （その他項目名） | F126: 0
A127: 123 | C127: （その他項目名） | F127: =SUM(I127:Y127) -> 0
A128: 124 | C128: （その他項目名） | F128: =SUM(I128:Y128) -> 0
A129: 125 | C129: （その他項目名） | F129: 0
A130: 126 | C130: （その他項目名） | F130: 0
A131: 127 | B131: 現金及び現金同等物の増減 | F131: 0 | I131: =I103+I113+I121 -> 0 | J131: =J103+J113+J121 -> 0 | K131: 0 | L131: 0 | M131: 0 | N131: 0 | O131: 0 | P131: 0 | Q131: 0 | R131: 0 | S131: 0 | T131: 0 | U131: 0 | V131: 0 | W131: 0 | X131: 0 | Y131: 0
A132: 128 | B132: 期首現金及び現金同等物の残高 | I132: =H133 -> 0 | J132: =I133 -> 0 | K132: =J133 -> 0 | L132: 0 | M132: 0 | N132: 0 | O132: 0 | P132: 0 | Q132: 0 | R132: 0 | S132: 0 | T132: 0 | U132: 0 | V132: 0 | W132: 0 | X132: 0 | Y132: 0
A133: 129 | B133: 期末現金及び現金同等物の残高 | I133: =SUM(I131:I132) -> 0 | J133: =SUM(J131:J132) -> 0 | K133: 0 | L133: 0 | M133: 0 | N133: 0 | O133: 0 | P133: 0 | Q133: 0 | R133: 0 | S133: 0 | T133: 0 | U133: 0 | V133: 0 | W133: 0 | X133: 0 | Y133: 0
A134: 130
A135: 131 | B135: 貸借対照表 | Y135: 単位：千円
A136: 132 | B136: 年度 | I136: 令和2年度 | J136: 令和3年度 | K136: 令和4年度 | L136: 令和5年度 | M136: 令和6年度 | N136: 令和7年度 | O136: 令和8年度 | P136: 令和9年度 | Q136: 令和10年度 | R136: 令和11年度 | S136: 令和12年度 | T136: 令和13年度 | U136: 令和14年度 | V136: 令和15年度 | W136: 令和16年度 | X136: 令和17年度 | Y136: 令和18年度
A137: 133 | B137: 資産の部 | I137: =SUM(I138,I145) -> 0 | J137: =SUM(J138,J145) -> 0 | K137: 0 | L137: 0 | M137: 0 | N137: 0 | O137: 0 | P137: 0 | Q137: 0 | R137: 0 | S137: 0 | T137: 0 | U137: 0 | V137: 0 | W137: 0 | X137: 0 | Y137: 0
A138: 134 | C138: 流動資産 | I138: =SUM(I139:I144) -> 0 | J138: =SUM(J139:J144) -> 0 | K138: 0 | L138: 0 | M138: 0 | N138: 0 | O138: 0 | P138: 0 | Q138: 0 | R138: 0 | S138: 0 | T138: 0 | U138: 0 | V138: 0 | W138: 0 | X138: 0 | Y138: 0
A139: 135 | D139: 現預金
A140: 136 | D140: （その他項目名）
A141: 137 | D141: （その他項目名）
A142: 138 | D142: （その他項目名）
A143: 139 | D143: （その他項目名）
A144: 140 | D144: （その他項目名）
A145: 141 | C145: 固定資産 | I145: =SUM(I146,I152) -> 0 | J145: =SUM(J146,J152) -> 0 | K145: 0 | L145: 0 | M145: 0 | N145: 0 | O145: 0 | P145: 0 | Q145: 0 | R145: 0 | S145: 0 | T145: 0 | U145: 0 | V145: 0 | W145: 0 | X145: 0 | Y145: 0
A146: 142 | D146: 有形固定資産 | I146: =SUM(I147:I151) -> 0 | J146: =SUM(J147:J151) -> 0 | K146: 0 | L146: 0 | M146: 0 | N146: 0 | O146: 0 | P146: 0 | Q146: 0 | R146: 0 | S146: 0 | T146: 0 | U146: 0 | V146: 0 | W146: 0 | X146: 0 | Y146: 0
A147: 143 | E147: （その他項目名）
A148: 144 | E148: （その他項目名）
A149: =A148+1 -> 145 | E149: （その他項目名）
A150: 146 | E150: （その他項目名）
A151: 147 | E151: （その他項目名）
A152: 148 | D152: 無形固定資産 | I152: =SUM(I153:I157) -> 0 | J152: =SUM(J153:J157) -> 0 | K152: 0 | L152: 0 | M152: 0 | N152: 0 | O152: 0 | P152: 0 | Q152: 0 | R152: 0 | S152: 0 | T152: 0 | U152: 0 | V152: 0 | W152: 0 | X152: 0 | Y152: 0
A153: 149 | E153: （その他項目名）
A154: 150 | E154: （その他項目名）
A155: 151 | E155: （その他項目名）
A156: 152 | E156: （その他項目名）
A157: 153 | E157: （その他項目名）
A158: 154 | B158: 負債の部 | I158: =SUM(I159,I165) -> 0 | J158: =SUM(J159,J165) -> 0 | K158: 0 | L158: 0 | M158: 0 | N158: 0 | O158: 0 | P158: 0 | Q158: 0 | R158: 0 | S158: 0 | T158: 0 | U158: 0 | V158: 0 | W158: 0 | X158: 0 | Y158: 0
A159: 155 | C159: 流動負債 | I159: =SUM(I160:I164) -> 0 | J159: =SUM(J160:J164) -> 0 | K159: 0 | L159: 0 | M159: 0 | N159: 0 | O159: 0 | P159: 0 | Q159: 0 | R159: 0 | S159: 0 | T159: 0 | U159: 0 | V159: 0 | W159: 0 | X159: 0 | Y159: 0
A160: 156 | D160: （その他項目名）
A161: 157 | D161: （その他項目名）
A162: 158 | D162: （その他項目名）
A163: 159 | D163: （その他項目名）
A164: 160 | D164: （その他項目名）
A165: 161 | C165: 固定負債 | I165: =SUM(I166:I170) -> 0 | J165: =SUM(J166:J170) -> 0 | K165: 0 | L165: 0 | M165: 0 | N165: 0 | O165: 0 | P165: 0 | Q165: 0 | R165: 0 | S165: 0 | T165: 0 | U165: 0 | V165: 0 | W165: 0 | X165: 0 | Y165: 0
A166: 162 | D166: （その他項目名）
A167: 163 | D167: （その他項目名）
A168: 164 | D168: （その他項目名）
A169: 165 | D169: （その他項目名）
A170: 166 | D170: （その他項目名）
A171: 167 | B171: 純資産の部 | I171: =SUM(I172:I177) -> 0 | J171: =SUM(J172:J177) -> 0 | K171: 0 | L171: 0 | M171: 0 | N171: 0 | O171: 0 | P171: 0 | Q171: 0 | R171: 0 | S171: 0 | T171: 0 | U171: 0 | V171: 0 | W171: 0 | X171: 0 | Y171: 0
A172: 168 | C172: 資本金
A173: 169 | C173: 利益剰余金
A174: 170 | C174: （その他項目名）
A175: 171 | C175: （その他項目名）
A176: 172 | C176: （その他項目名）
A177: 173 | C177: （その他項目名）
A178: 174
A179: 175 | B179: 【提案書作成要領】
A180: 176 | B180: ・A3 4枚以内で記載すること。
A181: 177 | B181: ・各費目については可能な限り詳細に記載すること。
A182: 178 | B182: ・他の様式と整合性を確保すること。
A183: 179 | B183: ・消費税及び地方消費税は含めないこと。
A184: 180 | B184: ・物価変動は見込まないこと。
A185: 181
A186: 182 | B186: 追加給付額算定用EIRR | Y186: 単位：千円
A187: 183 | B187: 年度 | F187: 期中合計額 | I187: 令和2年度 | J187: 令和3年度 | K187: 令和4年度 | L187: 令和5年度 | M187: 令和6年度 | N187: 令和7年度 | O187: 令和8年度 | P187: 令和9年度 | Q187: 令和10年度 | R187: 令和11年度 | S187: 令和12年度 | T187: 令和13年度 | U187: 令和14年度 | V187: 令和15年度 | W187: 令和16年度 | X187: 令和17年度 | Y187: 令和18年度
A188: 184 | B188: FCF（営業＋投資キャッシュフロー） | F188: =SUM(I188:Y188) -> 0 | I188: =I103+I113 -> 0 | J188: 0 | K188: 0 | L188: 0 | M188: 0 | N188: 0 | O188: 0 | P188: 0 | Q188: 0 | R188: 0 | S188: 0 | T188: 0 | U188: 0 | V188: 0 | W188: 0 | X188: 0 | Y188: 0
A189: 185 | B189: 出資金による調達 | F189: 0 | I189: =I122 -> 0 | J189: =J122 -> 0 | K189: 0 | L189: 0 | M189: 0 | N189: 0 | O189: 0 | P189: 0 | Q189: 0 | R189: 0 | S189: 0 | T189: 0 | U189: 0 | V189: 0 | W189: 0 | X189: 0 | Y189: 0
A190: 186 | B190: 借入による調達 | F190: 0 | I190: =I123 -> 0 | J190: =J123 -> 0 | K190: 0 | L190: 0 | M190: 0 | N190: 0 | O190: 0 | P190: 0 | Q190: 0 | R190: 0 | S190: 0 | T190: 0 | U190: 0 | V190: 0 | W190: 0 | X190: 0 | Y190: 0
A191: 187 | B191: 借入金の返済 | F191: 0 | I191: =I124 -> 0 | J191: 0 | K191: 0 | L191: 0 | M191: 0 | N191: 0 | O191: 0 | P191: 0 | Q191: 0 | R191: 0 | S191: 0 | T191: 0 | U191: 0 | V191: 0 | W191: 0 | X191: 0 | Y191: 0
A192: 188 | B192: 元利返済後CF | F192: 0 | I192: =SUM(I188:I191) -> 0 | J192: =SUM(J188:J191) -> 0 | K192: 0 | L192: 0 | M192: 0 | N192: 0 | O192: 0 | P192: 0 | Q192: 0 | R192: 0 | S192: 0 | T192: 0 | U192: 0 | V192: 0 | W192: 0 | X192: 0 | Y192: 0
A193: 189 | B193: 出資金償還 | F193: 0 | I193: =0-MAX(H172-I172,0) -> 0 | J193: 0 | K193: 0 | L193: 0 | M193: 0 | N193: 0 | O193: 0 | P193: 0 | Q193: 0 | R193: 0 | S193: 0 | T193: 0 | U193: 0 | V193: 0 | W193: 0 | X193: 0 | Y193: 0
A194: 190 | B194: 現預金前年度期末残高 | F194: 0 | I194: =H139 -> 0 | J194: 0 | K194: 0 | L194: 0 | M194: 0 | N194: 0 | O194: 0 | P194: 0 | Q194: 0 | R194: 0 | S194: 0 | T194: 0 | U194: 0 | V194: 0 | W194: 0 | X194: 0 | Y194: 0
A195: 191 | B195: 配当前現金 | F195: 0 | I195: =SUM(I192:I194) -> 0 | J195: =SUM(J192:J194) -> 0 | K195: 0 | L195: 0 | M195: 0 | N195: 0 | O195: 0 | P195: 0 | Q195: 0 | R195: 0 | S195: 0 | T195: 0 | U195: 0 | V195: 0 | W195: 0 | X195: 0 | Y195: 0
A196: 192 | B196: 配当前利益剰余金 | F196: 0 | I196: =H173+I99 -> 0 | J196: =I173+J99 -> 0 | K196: 0 | L196: 0 | M196: 0 | N196: 0 | O196: 0 | P196: 0 | Q196: 0 | R196: 0 | S196: 0 | T196: 0 | U196: 0 | V196: 0 | W196: 0 | X196: 0 | Y196: 0
B197: 精算フラグ | F197: 0 | I197: FALSE | J197: FALSE | K197: FALSE | L197: FALSE | M197: FALSE | N197: FALSE | O197: FALSE | P197: FALSE | Q197: FALSE | R197: FALSE | S197: FALSE | T197: FALSE | U197: FALSE | V197: FALSE | W197: FALSE | X197: FALSE | Y197: TRUE
A198: =A196+1 -> 193 | B198: 追加給付額算定用配当金 | F198: 0 | I198: =IF(I197,MAX(I195,0),MAX(0,MIN(I195:I196))) -> 0 | J198: 0 | K198: 0 | L198: 0 | M198: 0 | N198: 0 | O198: 0 | P198: 0 | Q198: 0 | R198: 0 | S198: 0 | T198: 0 | U198: 0 | V198: 0 | W198: 0 | X198: 0 | Y198: =IF(Y197,MAX(Y195,0),MAX(0,MIN(Y195:Y196))) -> 0
A199: 194 | B199: EIRR算定 | F199: =SUM(I199:Y199) -> 0 | I199: =SUM(I200:I202) -> 0 | J199: 0 | K199: 0 | L199: 0 | M199: 0 | N199: 0 | O199: 0 | P199: 0 | Q199: 0 | R199: 0 | S199: 0 | T199: 0 | U199: 0 | V199: 0 | W199: 0 | X199: 0 | Y199: 0
A200: 195 | C200: 出資金の拠出 | F200: =SUM(I200:Y200) -> 0 | I200: =0-I122 -> 0 | J200: 0 | K200: 0 | L200: 0 | M200: 0 | N200: 0 | O200: 0 | P200: 0 | Q200: 0 | R200: 0 | S200: 0 | T200: 0 | U200: 0 | V200: 0 | W200: 0 | X200: 0 | Y200: 0
A201: 196 | C201: 出資金の償還 | F201: =SUM(I201:Y201) -> 0 | I201: =MAX(H172-I172,0) -> 0 | J201: 0 | K201: 0 | L201: 0 | M201: 0 | N201: 0 | O201: 0 | P201: 0 | Q201: 0 | R201: 0 | S201: 0 | T201: 0 | U201: 0 | V201: 0 | W201: 0 | X201: 0 | Y201: 0
... 2 more rows

Sheet 【2-C】収入の算出根拠
A1: 別添様式 2-C
A2: 列番号 | B2: 1 | C2: =B2+1 -> 2 | D2: 3 | E2: 4 | F2: 5 | G2: 6 | H2: 7 | I2: 8
A4: 行番号 | B4: 収入の算出根拠 | F4: 入場者数減少割合 | I4: （単位：％）
A5: 1 | B5: 費目 | D5: 前提条件 | F5: 年度 | G5: 令和7年度 | H5: 令和10年度 | I5: 令和14年度
A6: =A5+1 -> 2 | B6: 展示 | F6: 減少割合
A7: =A6+1 -> 3 | C7: 観覧料単価（コレクション展）※1
A8: 4 | C8: 観覧料単価（企画展）※2
A9: 5 | C9: 展覧会入場者数
A10: 6 | C10: 有料率
A11: 7 | C11: 貸出料
A12: 8 | C12: （その他費目）
A13: 9 | B13: 駐車場
A14: 10 | C14: 駐車場、駐輪場料金
A15: 11 | C15: 駐車場、駐輪場台数
A16: 12 | C16: （その他費目）
A17: 13 | B17: サービス施設
A18: 14 | C18: サービス施設賃料
A19: 15 | C19: 貸室使用料※３
A20: 16 | C20: 貸室稼働率
A21: 17 | C21: 貸室稼働日数
A22: 18 | C22: （その他費目）
A23: 19 | B23: その他
A24: 20 | C24: （その他費目）
B26: 【備考】
B27: ※１、２ 同種施設の観覧料を勘案して提案すること。
B28: ※3 近隣施設における使用料等を勘案して提案すること。
B30: 【提案書作成要領】
B31: ・A4版3枚以内にて作成すること。
B32: ・他の様式と整合性を確保すること。
B33: ・記載に当たっては単価や稼働日数・稼働率・数量等の算出根拠を可能な限り具体的かつ詳細に記載すること。
B34: ・必要に応じて項目を追加・細分化して作成すること。
B35: ・事業年度ごとの収入が異なる提案を行う場合、年度ごとの前提条件を記載すること。

Sheet 【3-C】支出の算出根拠
A1: 別添様式 3-C
A2: 列番号 | B2: 1 | C2: =B2+1 -> 2 | D2: =C2+1 -> 3 | E2: =D2+1 -> 4 | F2: =E2+1 -> 5
A4: 行番号 | B4: 支出の算出根拠
A5: 1 | B5: 費目 | F5: 算出根拠
A6: =A5+1 -> 2 | B6: 事業費
A7: =A6+1 -> 3 | C7: 展示事業費
A8: 4 | C8: 事務
A9: 5 | C9: 教育普及費
A10: 6 | C10: 渉外
A11: 7 | C11: （その他費目）
A12: 8 | C12: （その他費目）
A13: 9 | B13: 維持管理費
A14: 10 | C14: 施設管理費
A15: 11 | C15: 光熱水費
A16: 12 | C16: 調査研究費
A17: 13 | C17: 収集・保管費
A18: 14 | C18: 教育普及費
A19: 15 | C19: アーカイブ及び記録・管理費
A20: 16 | C20: 事務
A21: 17 | C21: 渉外
A22: 18 | C22: （その他費目）
A23: 19 | B23: その他の費用
A24: 20 | C24: （その他費目）
A25: 21 | C25: （その他費目）
A26: 22 | C26: （その他費目）
B28: 【提案書作成要領】
B29: ・A4版3枚以内にて作成すること。
B30: ・他の様式と整合性を確保すること。
B31: ・記載に当たっては単価や数量等の算出根拠を可能な限り具体的かつ詳細に記載すること。 必要に応じて項目を追加・細分化して作成すること。
B33: ・事業年度ごとの支出が異なる提案を行う場合、年度ごとの算出根拠を記載すること。

Sheet 【4-C】資金調達計画
A1: 別添様式 4-C
A2: 列番号 | B2: 1 | C2: =B2+1 -> 2 | D2: =C2+1 -> 3 | E2: 4 | F2: 5 | G2: 6 | H2: 7 | I2: 8 | J2: 9 | K2: 10 | L2: 11 | M2: 12 | N2: 13 | O2: 14 | P2: 15 | Q2: 16 | R2: 17 | S2: 18 | T2: 19 | U2: 20
A4: 行番号 | B4: 資金調達計画 | U4: 単位：千円
A5: 1 | B5: 事業年度 | D5: 期中合計額 | E5: 令和2年度 | F5: 令和3年度 | G5: 令和4年度 | H5: 令和5年度 | I5: 令和6年度 | J5: 令和7年度 | K5: 令和8年度 | L5: 令和9年度 | M5: 令和10年度 | N5: 令和11年度 | O5: 令和12年度 | P5: 令和13年度 | Q5: 令和14年度 | R5: 令和15年度 | S5: 令和16年度 | T5: 令和17年度 | U5: 令和18年度
A6: =A5+1 -> 2 | B6: 出資金による調達 | D6: =SUM(E6:U6) -> 0
A7: =A6+1 -> 3 | C7: (出資者名） | D7: =SUM(E7:U7) -> 0
A8: 4 | C8: (出資者名） | D8: =SUM(E8:U8) -> 0
A9: 5 | C9: (出資者名） | D9: 0
A10: 6 | C10: (出資者名） | D10: 0
A11: 7 | B11: 借入金による調達 | D11: 0
A12: 8 | C12: （金融機関等の名称） | D12: 0
A13: 9 | C13: （金融機関等の名称） | D13: 0
A14: 10 | C14: （金融機関等の名称） | D14: 0
A15: 11 | C15: （金融機関等の名称） | D15: 0
A16: 12 | B16: その他 | D16: 0
A17: 13 | C17: （調達先の名称） | D17: 0
A18: 14 | C18: （調達先の名称） | D18: 0
A19: 15 | C19: （調達先の名称） | D19: 0
A20: 16 | C20: （調達先の名称） | D20: 0
A21: 17
A22: 18 | B22: 出資金明細
A23: 19 | B23: 出資者名 | D23: 出資割合 | E23: 出資者の役割等
A24: 20
A25: 21
A26: 22
A27: 23
A28: 24
A29: 25
A30: 26 | B30: 借入金明細
A31: 27 | B31: 金融機関等の名称 | D31: 借入条件
A32: 28
A33: 29
A34: 30
A35: 31
A36: 32
A37: 33
A38: 34 | B38: その他の資金調達の明細
A39: 35 | B39: 調達先名 | D39: 調達条件
A40: 36
A41: 37
A42: 38
A43: 39
B45: 【提案書作成要領】
B46: ・A3版２枚以内にて作成すること。
B47: ・他の様式と整合性を確保すること。
B48: ・必要に応じて項目を追加・細分化して作成すること。
B49: ・消費税及び地方消費税は含めないこと。
B50: ・物価変動は見込まないこと。

Sheet 非表示＞ (hidden)

Sheet 追加給付算定 (機構基準) (hidden)
D1: 前提条件
G2: 法人市民税率 | H2: 0.02660242821
G3: 法人税率 | H3: 0.296
G4: 消費税率 | H4: 0.1
G5: 割引率 | H5: 0.02
K8: 2020 | L8: =K8+1 -> 2021 | M8: =L8+1 -> 2022 | N8: 2023 | O8: 2024 | P8: 2025 | Q8: 2026 | R8: 2027 | S8: 2028 | T8: 2029 | U8: 2030 | V8: 2031 | W8: 2032 | X8: 2033 | Y8: 2034 | Z8: 2035 | AA8: 2036 | AJ8: 2020 | AK8: =AJ8+1 -> 2021 | AL8: =AK8+1 -> 2022 | AM8: 2023 | AN8: 2024 | AO8: 2025 | AP8: 2026 | AQ8: 2027 | AR8: 2028 | AS8: 2029 | AT8: 2030 | AU8: 2031 | AV8: 2032 | AW8: 2033 | AX8: 2034 | AY8: 2035 | AZ8: 2036
K9: =K8&K10 -> 2020標準時 | L9: =L8&L10 -> 2021標準時 | M9: 2022標準時 | N9: 2023標準時 | O9: 2024標準時 | P9: 2025標準時 | Q9: 2026標準時 | R9: 2027標準時 | S9: 2028標準時 | T9: 2029標準時 | U9: 2030標準時 | V9: 2031標準時 | W9: 2032標準時 | X9: 2033標準時 | Y9: 2034標準時 | Z9: 2035標準時 | AA9: 2036標準時 | AJ9: =AJ8&AJ10 -> 2020悲観時（機構基準） | AK9: =AK8&AK10 -> 2021悲観時（機構基準） | AL9: 2022悲観時（機構基準） | AM9: 2023悲観時（機構基準） | AN9: 2024悲観時（機構基準） | AO9: 2025悲観時（機構基準） | AP9: 2026悲観時（機構基準） | AQ9: 2027悲観時（機構基準） | AR9: 2028悲観時（機構基準） | AS9: 2029悲観時（機構基準） | AT9: 2030悲観時（機構基準） | AU9: 2031悲観時（機構基準） | AV9: 2032悲観時（機構基準） | AW9: 2033悲観時（機構基準） | AX9: 2034悲観時（機構基準） | AY9: 2035悲観時（機構基準） | AZ9: 2036悲観時（機構基準）
K10: 標準時 | L10: =K10 -> 標準時 | M10: =L10 -> 標準時 | N10: 標準時 | O10: 標準時 | P10: 標準時 | Q10: 標準時 | R10: 標準時 | S10: 標準時 | T10: 標準時 | U10: 標準時 | V10: 標準時 | W10: 標準時 | X10: 標準時 | Y10: 標準時 | Z10: 標準時 | AA10: 標準時 | AJ10: 悲観時（機構基準） | AK10: =AJ10 -> 悲観時（機構基準） | AL10: =AK10 -> 悲観時（機構基準） | AM10: 悲観時（機構基準） | AN10: 悲観時（機構基準） | AO10: 悲観時（機構基準） | AP10: 悲観時（機構基準） | AQ10: 悲観時（機構基準） | AR10: 悲観時（機構基準） | AS10: 悲観時（機構基準） | AT10: 悲観時（機構基準） | AU10: 悲観時（機構基準） | AV10: 悲観時（機構基準） | AW10: 悲観時（機構基準） | AX10: 悲観時（機構基準） | AY10: 悲観時（機構基準） | AZ10: 悲観時（機構基準）
D11: ='【1-A-1】標準時収支'!B7 -> 損益計算書
D12: ='【1-A-1】標準時収支'!B8 -> 年度 | E12: ='【1-A-1】標準時収支'!C8 -> 0 | F12: ='【1-A-1】標準時収支'!D8 -> 0 | G12: ='【1-A-1】標準時収支'!E8 -> 0 | H12: ='【1-A-1】標準時収支'!F8 -> 期中合計額 | I12: ='【1-A-1】標準時収支'!G8 -> 0 | J12: ='【1-A-1】標準時収支'!H8 -> 0 | K12: ='【1-A-1】標準時収支'!I8 -> 令和2年度 | L12: ='【1-A-1】標準時収支'!J8 -> 令和3年度 | M12: ='【1-A-1】標準時収支'!K8 -> 令和4年度 | N12: ='【1-A-1】標準時収支'!L8 -> 令和5年度 | O12: ='【1-A-1】標準時収支'!M8 -> 令和6年度 | P12: ='【1-A-1】標準時収支'!N8 -> 令和7年度 | Q12: ='【1-A-1】標準時収支'!O8 -> 令和8年度 | R12: ='【1-A-1】標準時収支'!P8 -> 令和9年度 | S12: ='【1-A-1】標準時収支'!Q8 -> 令和10年度 | T12: ='【1-A-1】標準時収支'!R8 -> 令和11年度 | U12: ='【1-A-1】標準時収支'!S8 -> 令和12年度 | V12: ='【1-A-1】標準時収支'!T8 -> 令和13年度 | W12: ='【1-A-1】標準時収支'!U8 -> 令和14年度 | X12: ='【1-A-1】標準時収支'!V8 -> 令和15年度 | Y12: ='【1-A-1】標準時収支'!W8 -> 令和16年度 | Z12: ='【1-A-1】標準時収支'!X8 -> 令和17年度 | AA12: ='【1-A-1】標準時収支'!Y8 -> 令和18年度 | AC12: ='【1-B】悲観時（機構基準）収支'!B8 -> 年度 | AD12: ='【1-B】悲観時（機構基準）収支'!C8 -> 0 | AE12: ='【1-B】悲観時（機構基準）収支'!D8 -> 0 | AF12: ='【1-B】悲観時（機構基準）収支'!E8 -> 0 | AG12: ='【1-B】悲観時（機構基準）収支'!F8 -> 期中合計額 | AH12: ='【1-B】悲観時（機構基準）収支'!G8 -> 0 | AI12: ='【1-B】悲観時（機構基準）収支'!H8 -> 0 | AJ12: ='【1-B】悲観時（機構基準）収支'!I8 -> 令和2年度 | AK12: ='【1-B】悲観時（機構基準）収支'!J8 -> 令和3年度 | AL12: ='【1-B】悲観時（機構基準）収支'!K8 -> 令和4年度 | AM12: ='【1-B】悲観時（機構基準）収支'!L8 -> 令和5年度 | AN12: ='【1-B】悲観時（機構基準）収支'!M8 -> 令和6年度 | AO12: ='【1-B】悲観時（機構基準）収支'!N8 -> 令和7年度 | AP12: ='【1-B】悲観時（機構基準）収支'!O8 -> 令和8年度 | AQ12: ='【1-B】悲観時（機構基準）収支'!P8 -> 令和9年度 | AR12: ='【1-B】悲観時（機構基準）収支'!Q8 -> 令和10年度 | AS12: ='【1-B】悲観時（機構基準）収支'!R8 -> 令和11年度 | AT12: ='【1-B】悲観時（機構基準）収支'!S8 -> 令和12年度 | AU12: ='【1-B】悲観時（機構基準）収支'!T8 -> 令和13年度 | AV12: ='【1-B】悲観時（機構基準）収支'!U8 -> 令和14年度 | AW12: ='【1-B】悲観時（機構基準）収支'!V8 -> 令和15年度 | AX12: ='【1-B】悲観時（機構基準）収支'!W8 -> 令和16年度 | AY12: ='【1-B】悲観時（機構基準）収支'!X8 -> 令和17年度 | AZ12: ='【1-B】悲観時（機構基準）収支'!Y8 -> 令和18年度
D13: ='【1-A-1】標準時収支'!B9 -> 開始日付 | E13: ='【1-A-1】標準時収支'!C9 -> 0 | F13: ='【1-A-1】標準時収支'!D9 -> 0 | G13: ='【1-A-1】標準時収支'!E9 -> 0 | H13: ='【1-A-1】標準時収支'!F9 -> 0 | I13: ='【1-A-1】標準時収支'!G9 -> 0 | J13: ='【1-A-1】標準時収支'!H9 -> 0 | K13: ='【1-A-1】標準時収支'!I9 -> 2020-04-01 | L13: ='【1-A-1】標準時収支'!J9 -> 2021-04-01 | M13: ='【1-A-1】標準時収支'!K9 -> 2022-04-01 | N13: ='【1-A-1】標準時収支'!L9 -> 2023-04-01 | O13: ='【1-A-1】標準時収支'!M9 -> 2024-04-01 | P13: ='【1-A-1】標準時収支'!N9 -> 2025-04-01 | Q13: ='【1-A-1】標準時収支'!O9 -> 2026-04-01 | R13: ='【1-A-1】標準時収支'!P9 -> 2027-04-01 | S13: ='【1-A-1】標準時収支'!Q9 -> 2028-04-01 | T13: ='【1-A-1】標準時収支'!R9 -> 2029-04-01 | U13: ='【1-A-1】標準時収支'!S9 -> 2030-04-01 | V13: ='【1-A-1】標準時収支'!T9 -> 2031-04-01 | W13: ='【1-A-1】標準時収支'!U9 -> 2032-04-01 | X13: ='【1-A-1】標準時収支'!V9 -> 2033-04-01 | Y13: ='【1-A-1】標準時収支'!W9 -> 2034-04-01 | Z13: ='【1-A-1】標準時収支'!X9 -> 2035-04-01 | AA13: ='【1-A-1】標準時収支'!Y9 -> 2036-04-01 | AC13: ='【1-B】悲観時（機構基準）収支'!B9 -> 開始日付 | AD13: ='【1-B】悲観時（機構基準）収支'!C9 -> 0 | AE13: ='【1-B】悲観時（機構基準）収支'!D9 -> 0 | AF13: ='【1-B】悲観時（機構基準）収支'!E9 -> 0 | AG13: ='【1-B】悲観時（機構基準）収支'!F9 -> 0 | AH13: ='【1-B】悲観時（機構基準）収支'!G9 -> 0 | AI13: ='【1-B】悲観時（機構基準）収支'!H9 -> 0 | AJ13: ='【1-B】悲観時（機構基準）収支'!I9 -> 2020-04-01 | AK13: ='【1-B】悲観時（機構基準）収支'!J9 -> 2021-04-01 | AL13: ='【1-B】悲観時（機構基準）収支'!K9 -> 2022-04-01 | AM13: ='【1-B】悲観時（機構基準）収支'!L9 -> 2023-04-01 | AN13: ='【1-B】悲観時（機構基準）収支'!M9 -> 2024-04-01 | AO13: ='【1-B】悲観時（機構基準）収支'!N9 -> 2025-04-01 | AP13: ='【1-B】悲観時（機構基準）収支'!O9 -> 2026-04-01 | AQ13: ='【1-B】悲観時（機構基準）収支'!P9 -> 2027-04-01 | AR13: ='【1-B】悲観時（機構基準）収支'!Q9 -> 2028-04-01 | AS13: ='【1-B】悲観時（機構基準）収支'!R9 -> 2029-04-01 | AT13: ='【1-B】悲観時（機構基準）収支'!S9 -> 2030-04-01 | AU13: ='【1-B】悲観時（機構基準）収支'!T9 -> 2031-04-01 | AV13: ='【1-B】悲観時（機構基準）収支'!U9 -> 2032-04-01 | AW13: ='【1-B】悲観時（機構基準）収支'!V9 -> 2033-04-01 | AX13: ='【1-B】悲観時（機構基準）収支'!W9 -> 2034-04-01 | AY13: ='【1-B】悲観時（機構基準）収支'!X9 -> 2035-04-01 | AZ13: ='【1-B】悲観時（機構基準）収支'!Y9 -> 2036-04-01
D14: ='【1-A-1】標準時収支'!B10 -> 終了日付 | E14: ='【1-A-1】標準時収支'!C10 -> 0 | F14: ='【1-A-1】標準時収支'!D10 -> 0 | G14: ='【1-A-1】標準時収支'!E10 -> 0 | H14: ='【1-A-1】標準時収支'!F10 -> 0 | I14: ='【1-A-1】標準時収支'!G10 -> 0 | J14: ='【1-A-1】標準時収支'!H10 -> 0 | K14: ='【1-A-1】標準時収支'!I10 -> 2021-03-31 | L14: ='【1-A-1】標準時収支'!J10 -> 2022-03-31 | M14: ='【1-A-1】標準時収支'!K10 -> 2023-03-31 | N14: ='【1-A-1】標準時収支'!L10 -> 2024-03-31 | O14: ='【1-A-1】標準時収支'!M10 -> 2025-03-31 | P14: ='【1-A-1】標準時収支'!N10 -> 2026-03-31 | Q14: ='【1-A-1】標準時収支'!O10 -> 2027-03-31 | R14: ='【1-A-1】標準時収支'!P10 -> 2028-03-31 | S14: ='【1-A-1】標準時収支'!Q10 -> 2029-03-31 | T14: ='【1-A-1】標準時収支'!R10 -> 2030-03-31 | U14: ='【1-A-1】標準時収支'!S10 -> 2031-03-31 | V14: ='【1-A-1】標準時収支'!T10 -> 2032-03-31 | W14: ='【1-A-1】標準時収支'!U10 -> 2033-03-31 | X14: ='【1-A-1】標準時収支'!V10 -> 2034-03-31 | Y14: ='【1-A-1】標準時収支'!W10 -> 2035-03-31 | Z14: ='【1-A-1】標準時収支'!X10 -> 2036-03-31 | AA14: ='【1-A-1】標準時収支'!Y10 -> 2037-03-31 | AC14: ='【1-B】悲観時（機構基準）収支'!B10 -> 終了日付 | AD14: ='【1-B】悲観時（機構基準）収支'!C10 -> 0 | AE14: ='【1-B】悲観時（機構基準）収支'!D10 -> 0 | AF14: ='【1-B】悲観時（機構基準）収支'!E10 -> 0 | AG14: ='【1-B】悲観時（機構基準）収支'!F10 -> 0 | AH14: ='【1-B】悲観時（機構基準）収支'!G10 -> 0 | AI14: ='【1-B】悲観時（機構基準）収支'!H10 -> 0 | AJ14: ='【1-B】悲観時（機構基準）収支'!I10 -> 2021-03-31 | AK14: ='【1-B】悲観時（機構基準）収支'!J10 -> 2022-03-31 | AL14: ='【1-B】悲観時（機構基準）収支'!K10 -> 2023-03-31 | AM14: ='【1-B】悲観時（機構基準）収支'!L10 -> 2024-03-31 | AN14: ='【1-B】悲観時（機構基準）収支'!M10 -> 2025-03-31 | AO14: ='【1-B】悲観時（機構基準）収支'!N10 -> 2026-03-31 | AP14: ='【1-B】悲観時（機構基準）収支'!O10 -> 2027-03-31 | AQ14: ='【1-B】悲観時（機構基準）収支'!P10 -> 2028-03-31 | AR14: ='【1-B】悲観時（機構基準）収支'!Q10 -> 2029-03-31 | AS14: ='【1-B】悲観時（機構基準）収支'!R10 -> 2030-03-31 | AT14: ='【1-B】悲観時（機構基準）収支'!S10 -> 2031-03-31 | AU14: ='【1-B】悲観時（機構基準）収支'!T10 -> 2032-03-31 | AV14: ='【1-B】悲観時（機構基準）収支'!U10 -> 2033-03-31 | AW14: ='【1-B】悲観時（機構基準）収支'!V10 -> 2034-03-31 | AX14: ='【1-B】悲観時（機構基準）収支'!W10 -> 2035-03-31 | AY14: ='【1-B】悲観時（機構基準）収支'!X10 -> 2036-03-31 | AZ14: ='【1-B】悲観時（機構基準）収支'!Y10 -> 2037-03-31
D15: ='【1-A-1】標準時収支'!B11 -> ケース | E15: ='【1-A-1】標準時収支'!C11 -> 0 | F15: ='【1-A-1】標準時収支'!D11 -> 0 | G15: ='【1-A-1】標準時収支'!E11 -> 0 | H15: ='【1-A-1】標準時収支'!F11 -> 0 | I15: ='【1-A-1】標準時収支'!G11 -> 0 | J15: ='【1-A-1】標準時収支'!H11 -> 0 | K15: ='【1-A-1】標準時収支'!I11 -> 標準時 | L15: ='【1-A-1】標準時収支'!J11 -> 標準時 | M15: ='【1-A-1】標準時収支'!K11 -> 標準時 | N15: ='【1-A-1】標準時収支'!L11 -> 標準時 | O15: ='【1-A-1】標準時収支'!M11 -> 標準時 | P15: ='【1-A-1】標準時収支'!N11 -> 標準時 | Q15: ='【1-A-1】標準時収支'!O11 -> 標準時 | R15: ='【1-A-1】標準時収支'!P11 -> 標準時 | S15: ='【1-A-1】標準時収支'!Q11 -> 標準時 | T15: ='【1-A-1】標準時収支'!R11 -> 標準時 | U15: ='【1-A-1】標準時収支'!S11 -> 標準時 | V15: ='【1-A-1】標準時収支'!T11 -> 標準時 | W15: ='【1-A-1】標準時収支'!U11 -> 標準時 | X15: ='【1-A-1】標準時収支'!V11 -> 標準時 | Y15: ='【1-A-1】標準時収支'!W11 -> 標準時 | Z15: ='【1-A-1】標準時収支'!X11 -> 標準時 | AA15: ='【1-A-1】標準時収支'!Y11 -> 標準時 | AC15: ='【1-B】悲観時（機構基準）収支'!B11 -> ケース | AD15: ='【1-B】悲観時（機構基準）収支'!C11 -> 0 | AE15: ='【1-B】悲観時（機構基準）収支'!D11 -> 0 | AF15: ='【1-B】悲観時（機構基準）収支'!E11 -> 0 | AG15: ='【1-B】悲観時（機構基準）収支'!F11 -> 0 | AH15: ='【1-B】悲観時（機構基準）収支'!G11 -> 0 | AI15: ='【1-B】悲観時（機構基準）収支'!H11 -> 0 | AJ15: ='【1-B】悲観時（機構基準）収支'!I11 -> 標準時 | AK15: ='【1-B】悲観時（機構基準）収支'!J11 -> 標準時 | AL15: ='【1-B】悲観時（機構基準）収支'!K11 -> 標準時 | AM15: ='【1-B】悲観時（機構基準）収支'!L11 -> 標準時 | AN15: ='【1-B】悲観時（機構基準）収支'!M11 -> 標準時 | AO15: ='【1-B】悲観時（機構基準）収支'!N11 -> 悲観時（機構基準） | AP15: ='【1-B】悲観時（機構基準）収支'!O11 -> 標準時 | AQ15: ='【1-B】悲観時（機構基準）収支'!P11 -> 標準時 | AR15: ='【1-B】悲観時（機構基準）収支'!Q11 -> 悲観時（機構基準） | AS15: ='【1-B】悲観時（機構基準）収支'!R11 -> 標準時 | AT15: ='【1-B】悲観時（機構基準）収支'!S11 -> 標準時 | AU15: ='【1-B】悲観時（機構基準）収支'!T11 -> 標準時 | AV15: ='【1-B】悲観時（機構基準）収支'!U11 -> 悲観時（機構基準） | AW15: ='【1-B】悲観時（機構基準）収支'!V11 -> 標準時 | AX15: ='【1-B】悲観時（機構基準）収支'!W11 -> 標準時 | AY15: ='【1-B】悲観時（機構基準）収支'!X11 -> 標準時 | AZ15: ='【1-B】悲観時（機構基準）収支'!Y11 -> 標準時
C16: 1 | D16: ='【1-A-1】標準時収支'!B12 -> 収入 | E16: ='【1-A-1】標準時収支'!C12 -> 0 | F16: ='【1-A-1】標準時収支'!D12 -> 0 | G16: ='【1-A-1】標準時収支'!E12 -> 0 | H16: ='【1-A-1】標準時収支'!F12 -> 0 | I16: ='【1-A-1】標準時収支'!G12 -> 0 | J16: ='【1-A-1】標準時収支'!H12 -> 0 | K16: ='【1-A-1】標準時収支'!I12 -> 0 | L16: ='【1-A-1】標準時収支'!J12 -> 0 | M16: ='【1-A-1】標準時収支'!K12 -> 0 | N16: ='【1-A-1】標準時収支'!L12 -> 0 | O16: ='【1-A-1】標準時収支'!M12 -> 0 | P16: ='【1-A-1】標準時収支'!N12 -> 0 | Q16: ='【1-A-1】標準時収支'!O12 -> 0 | R16: ='【1-A-1】標準時収支'!P12 -> 0 | S16: ='【1-A-1】標準時収支'!Q12 -> 0 | T16: ='【1-A-1】標準時収支'!R12 -> 0 | U16: ='【1-A-1】標準時収支'!S12 -> 0 | V16: ='【1-A-1】標準時収支'!T12 -> 0 | W16: ='【1-A-1】標準時収支'!U12 -> 0 | X16: ='【1-A-1】標準時収支'!V12 -> 0 | Y16: ='【1-A-1】標準時収支'!W12 -> 0 | Z16: ='【1-A-1】標準時収支'!X12 -> 0 | AA16: ='【1-A-1】標準時収支'!Y12 -> 0 | AC16: ='【1-B】悲観時（機構基準）収支'!B12 -> 収入 | AD16: ='【1-B】悲観時（機構基準）収支'!C12 -> 0 | AE16: ='【1-B】悲観時（機構基準）収支'!D12 -> 0 | AF16: ='【1-B】悲観時（機構基準）収支'!E12 -> 0 | AG16: ='【1-B】悲観時（機構基準）収支'!F12 -> 0 | AH16: ='【1-B】悲観時（機構基準）収支'!G12 -> 0 | AI16: ='【1-B】悲観時（機構基準）収支'!H12 -> 0 | AJ16: ='【1-B】悲観時（機構基準）収支'!I12 -> 0 | AK16: ='【1-B】悲観時（機構基準）収支'!J12 -> 0 | AL16: ='【1-B】悲観時（機構基準）収支'!K12 -> 0 | AM16: ='【1-B】悲観時（機構基準）収支'!L12 -> 0 | AN16: ='【1-B】悲観時（機構基準）収支'!M12 -> 0 | AO16: ='【1-B】悲観時（機構基準）収支'!N12 -> 0 | AP16: ='【1-B】悲観時（機構基準）収支'!O12 -> 0 | AQ16: ='【1-B】悲観時（機構基準）収支'!P12 -> 0 | AR16: ='【1-B】悲観時（機構基準）収支'!Q12 -> 0 | AS16: ='【1-B】悲観時（機構基準）収支'!R12 -> 0 | AT16: ='【1-B】悲観時（機構基準）収支'!S12 -> 0 | AU16: ='【1-B】悲観時（機構基準）収支'!T12 -> 0 | AV16: ='【1-B】悲観時（機構基準）収支'!U12 -> 0 | AW16: ='【1-B】悲観時（機構基準）収支'!V12 -> 0 | AX16: ='【1-B】悲観時（機構基準）収支'!W12 -> 0 | AY16: ='【1-B】悲観時（機構基準）収支'!X12 -> 0 | AZ16: ='【1-B】悲観時（機構基準）収支'!Y12 -> 0
C17: =C16+1 -> 2 | D17: ='【1-A-1】標準時収支'!B13 -> 0 | E17: ='【1-A-1】標準時収支'!C13 -> 展示収入 | F17: ='【1-A-1】標準時収支'!D13 -> 0 | G17: ='【1-A-1】標準時収支'!E13 -> 0 | H17: ='【1-A-1】標準時収支'!F13 -> 0 | I17: ='【1-A-1】標準時収支'!G13 -> 0 | J17: ='【1-A-1】標準時収支'!H13 -> 0 | K17: ='【1-A-1】標準時収支'!I13 -> 0 | L17: ='【1-A-1】標準時収支'!J13 -> 0 | M17: ='【1-A-1】標準時収支'!K13 -> 0 | N17: ='【1-A-1】標準時収支'!L13 -> 0 | O17: ='【1-A-1】標準時収支'!M13 -> 0 | P17: ='【1-A-1】標準時収支'!N13 -> 0 | Q17: ='【1-A-1】標準時収支'!O13 -> 0 | R17: ='【1-A-1】標準時収支'!P13 -> 0 | S17: ='【1-A-1】標準時収支'!Q13 -> 0 | T17: ='【1-A-1】標準時収支'!R13 -> 0 | U17: ='【1-A-1】標準時収支'!S13 -> 0 | V17: ='【1-A-1】標準時収支'!T13 -> 0 | W17: ='【1-A-1】標準時収支'!U13 -> 0 | X17: ='【1-A-1】標準時収支'!V13 -> 0 | Y17: ='【1-A-1】標準時収支'!W13 -> 0 | Z17: ='【1-A-1】標準時収支'!X13 -> 0 | AA17: ='【1-A-1】標準時収支'!Y13 -> 0 | AC17: ='【1-B】悲観時（機構基準）収支'!B13 -> 0 | AD17: ='【1-B】悲観時（機構基準）収支'!C13 -> 展示収入 | AE17: ='【1-B】悲観時（機構基準）収支'!D13 -> 0 | AF17: ='【1-B】悲観時（機構基準）収支'!E13 -> 0 | AG17: ='【1-B】悲観時（機構基準）収支'!F13 -> 0 | AH17: ='【1-B】悲観時（機構基準）収支'!G13 -> 0 | AI17: ='【1-B】悲観時（機構基準）収支'!H13 -> 0 | AJ17: ='【1-B】悲観時（機構基準）収支'!I13 -> 0 | AK17: ='【1-B】悲観時（機構基準）収支'!J13 -> 0 | AL17: ='【1-B】悲観時（機構基準）収支'!K13 -> 0 | AM17: ='【1-B】悲観時（機構基準）収支'!L13 -> 0 | AN17: ='【1-B】悲観時（機構基準）収支'!M13 -> 0 | AO17: ='【1-B】悲観時（機構基準）収支'!N13 -> 0 | AP17: ='【1-B】悲観時（機構基準）収支'!O13 -> 0 | AQ17: ='【1-B】悲観時（機構基準）収支'!P13 -> 0 | AR17: ='【1-B】悲観時（機構基準）収支'!Q13 -> 0 | AS17: ='【1-B】悲観時（機構基準）収支'!R13 -> 0 | AT17: ='【1-B】悲観時（機構基準）収支'!S13 -> 0 | AU17: ='【1-B】悲観時（機構基準）収支'!T13 -> 0 | AV17: ='【1-B】悲観時（機構基準）収支'!U13 -> 0 | AW17: ='【1-B】悲観時（機構基準）収支'!V13 -> 0 | AX17: ='【1-B】悲観時（機構基準）収支'!W13 -> 0 | AY17: ='【1-B】悲観時（機構基準）収支'!X13 -> 0 | AZ17: ='【1-B】悲観時（機構基準）収支'!Y13 -> 0
C18: =C17+1 -> 3 | D18: ='【1-A-1】標準時収支'!B14 -> 0 | E18: ='【1-A-1】標準時収支'!C14 -> 0 | F18: ='【1-A-1】標準時収支'!D14 -> 企画展収入 | G18: ='【1-A-1】標準時収支'!E14 -> 0 | H18: ='【1-A-1】標準時収支'!F14 -> 0 | I18: ='【1-A-1】標準時収支'!G14 -> 0 | J18: ='【1-A-1】標準時収支'!H14 -> 0 | K18: ='【1-A-1】標準時収支'!I14 -> 0 | L18: ='【1-A-1】標準時収支'!J14 -> 0 | M18: ='【1-A-1】標準時収支'!K14 -> 0 | N18: ='【1-A-1】標準時収支'!L14 -> 0 | O18: ='【1-A-1】標準時収支'!M14 -> 0 | P18: ='【1-A-1】標準時収支'!N14 -> 0 | Q18: ='【1-A-1】標準時収支'!O14 -> 0 | R18: ='【1-A-1】標準時収支'!P14 -> 0 | S18: ='【1-A-1】標準時収支'!Q14 -> 0 | T18: ='【1-A-1】標準時収支'!R14 -> 0 | U18: ='【1-A-1】標準時収支'!S14 -> 0 | V18: ='【1-A-1】標準時収支'!T14 -> 0 | W18: ='【1-A-1】標準時収支'!U14 -> 0 | X18: ='【1-A-1】標準時収支'!V14 -> 0 | Y18: ='【1-A-1】標準時収支'!W14 -> 0 | Z18: ='【1-A-1】標準時収支'!X14 -> 0 | AA18: ='【1-A-1】標準時収支'!Y14 -> 0 | AC18: ='【1-B】悲観時（機構基準）収支'!B14 -> 0 | AD18: ='【1-B】悲観時（機構基準）収支'!C14 -> 0 | AE18: ='【1-B】悲観時（機構基準）収支'!D14 -> 企画展収入 | AF18: ='【1-B】悲観時（機構基準）収支'!E14 -> 0 | AG18: ='【1-B】悲観時（機構基準）収支'!F14 -> 0 | AH18: ='【1-B】悲観時（機構基準）収支'!G14 -> 0 | AI18: ='【1-B】悲観時（機構基準）収支'!H14 -> 0 | AJ18: ='【1-B】悲観時（機構基準）収支'!I14 -> 0 | AK18: ='【1-B】悲観時（機構基準）収支'!J14 -> 0 | AL18: ='【1-B】悲観時（機構基準）収支'!K14 -> 0 | AM18: ='【1-B】悲観時（機構基準）収支'!L14 -> 0 | AN18: ='【1-B】悲観時（機構基準）収支'!M14 -> 0 | AO18: ='【1-B】悲観時（機構基準）収支'!N14 -> 0 | AP18: ='【1-B】悲観時（機構基準）収支'!O14 -> 0 | AQ18: ='【1-B】悲観時（機構基準）収支'!P14 -> 0 | AR18: ='【1-B】悲観時（機構基準）収支'!Q14 -> 0 | AS18: ='【1-B】悲観時（機構基準）収支'!R14 -> 0 | AT18: ='【1-B】悲観時（機構基準）収支'!S14 -> 0 | AU18: ='【1-B】悲観時（機構基準）収支'!T14 -> 0 | AV18: ='【1-B】悲観時（機構基準）収支'!U14 -> 0 | AW18: ='【1-B】悲観時（機構基準）収支'!V14 -> 0 | AX18: ='【1-B】悲観時（機構基準）収支'!W14 -> 0 | AY18: ='【1-B】悲観時（機構基準）収支'!X14 -> 0 | AZ18: ='【1-B】悲観時（機構基準）収支'!Y14 -> 0
C19: 4 | D19: ='【1-A-1】標準時収支'!B15 -> 0 | E19: ='【1-A-1】標準時収支'!C15 -> 0 | F19: ='【1-A-1】標準時収支'!D15 -> コレクション展収入 | G19: ='【1-A-1】標準時収支'!E15 -> 0 | H19: ='【1-A-1】標準時収支'!F15 -> 0 | I19: ='【1-A-1】標準時収支'!G15 -> 0 | J19: ='【1-A-1】標準時収支'!H15 -> 0 | K19: ='【1-A-1】標準時収支'!I15 -> 0 | L19: ='【1-A-1】標準時収支'!J15 -> 0 | M19: ='【1-A-1】標準時収支'!K15 -> 0 | N19: ='【1-A-1】標準時収支'!L15 -> 0 | O19: ='【1-A-1】標準時収支'!M15 -> 0 | P19: ='【1-A-1】標準時収支'!N15 -> 0 | Q19: ='【1-A-1】標準時収支'!O15 -> 0 | R19: ='【1-A-1】標準時収支'!P15 -> 0 | S19: ='【1-A-1】標準時収支'!Q15 -> 0 | T19: ='【1-A-1】標準時収支'!R15 -> 0 | U19: ='【1-A-1】標準時収支'!S15 -> 0 | V19: ='【1-A-1】標準時収支'!T15 -> 0 | W19: ='【1-A-1】標準時収支'!U15 -> 0 | X19: ='【1-A-1】標準時収支'!V15 -> 0 | Y19: ='【1-A-1】標準時収支'!W15 -> 0 | Z19: ='【1-A-1】標準時収支'!X15 -> 0 | AA19: ='【1-A-1】標準時収支'!Y15 -> 0 | AC19: ='【1-B】悲観時（機構基準）収支'!B15 -> 0 | AD19: ='【1-B】悲観時（機構基準）収支'!C15 -> 0 | AE19: ='【1-B】悲観時（機構基準）収支'!D15 -> コレクション展収入 | AF19: ='【1-B】悲観時（機構基準）収支'!E15 -> 0 | AG19: ='【1-B】悲観時（機構基準）収支'!F15 -> 0 | AH19: ='【1-B】悲観時（機構基準）収支'!G15 -> 0 | AI19: ='【1-B】悲観時（機構基準）収支'!H15 -> 0 | AJ19: ='【1-B】悲観時（機構基準）収支'!I15 -> 0 | AK19: ='【1-B】悲観時（機構基準）収支'!J15 -> 0 | AL19: ='【1-B】悲観時（機構基準）収支'!K15 -> 0 | AM19: ='【1-B】悲観時（機構基準）収支'!L15 -> 0 | AN19: ='【1-B】悲観時（機構基準）収支'!M15 -> 0 | AO19: ='【1-B】悲観時（機構基準）収支'!N15 -> 0 | AP19: ='【1-B】悲観時（機構基準）収支'!O15 -> 0 | AQ19: ='【1-B】悲観時（機構基準）収支'!P15 -> 0 | AR19: ='【1-B】悲観時（機構基準）収支'!Q15 -> 0 | AS19: ='【1-B】悲観時（機構基準）収支'!R15 -> 0 | AT19: ='【1-B】悲観時（機構基準）収支'!S15 -> 0 | AU19: ='【1-B】悲観時（機構基準）収支'!T15 -> 0 | AV19: ='【1-B】悲観時（機構基準）収支'!U15 -> 0 | AW19: ='【1-B】悲観時（機構基準）収支'!V15 -> 0 | AX19: ='【1-B】悲観時（機構基準）収支'!W15 -> 0 | AY19: ='【1-B】悲観時（機構基準）収支'!X15 -> 0 | AZ19: ='【1-B】悲観時（機構基準）収支'!Y15 -> 0
C20: 5 | D20: ='【1-A-1】標準時収支'!B16 -> 0 | E20: ='【1-A-1】標準時収支'!C16 -> 0 | F20: ='【1-A-1】標準時収支'!D16 -> （その他項目名） | G20: ='【1-A-1】標準時収支'!E16 -> 0 | H20: ='【1-A-1】標準時収支'!F16 -> 0 | I20: ='【1-A-1】標準時収支'!G16 -> 0 | J20: ='【1-A-1】標準時収支'!H16 -> 0 | K20: ='【1-A-1】標準時収支'!I16 -> 0 | L20: ='【1-A-1】標準時収支'!J16 -> 0 | M20: ='【1-A-1】標準時収支'!K16 -> 0 | N20: ='【1-A-1】標準時収支'!L16 -> 0 | O20: ='【1-A-1】標準時収支'!M16 -> 0 | P20: ='【1-A-1】標準時収支'!N16 -> 0 | Q20: ='【1-A-1】標準時収支'!O16 -> 0 | R20: ='【1-A-1】標準時収支'!P16 -> 0 | S20: ='【1-A-1】標準時収支'!Q16 -> 0 | T20: ='【1-A-1】標準時収支'!R16 -> 0 | U20: ='【1-A-1】標準時収支'!S16 -> 0 | V20: ='【1-A-1】標準時収支'!T16 -> 0 | W20: ='【1-A-1】標準時収支'!U16 -> 0 | X20: ='【1-A-1】標準時収支'!V16 -> 0 | Y20: ='【1-A-1】標準時収支'!W16 -> 0 | Z20: ='【1-A-1】標準時収支'!X16 -> 0 | AA20: ='【1-A-1】標準時収支'!Y16 -> 0 | AC20: ='【1-B】悲観時（機構基準）収支'!B16 -> 0 | AD20: ='【1-B】悲観時（機構基準）収支'!C16 -> 0 | AE20: ='【1-B】悲観時（機構基準）収支'!D16 -> （その他項目名） | AF20: ='【1-B】悲観時（機構基準）収支'!E16 -> 0 | AG20: ='【1-B】悲観時（機構基準）収支'!F16 -> 0 | AH20: ='【1-B】悲観時（機構基準）収支'!G16 -> 0 | AI20: ='【1-B】悲観時（機構基準）収支'!H16 -> 0 | AJ20: ='【1-B】悲観時（機構基準）収支'!I16 -> 0 | AK20: ='【1-B】悲観時（機構基準）収支'!J16 -> 0 | AL20: ='【1-B】悲観時（機構基準）収支'!K16 -> 0 | AM20: ='【1-B】悲観時（機構基準）収支'!L16 -> 0 | AN20: ='【1-B】悲観時（機構基準）収支'!M16 -> 0 | AO20: ='【1-B】悲観時（機構基準）収支'!N16 -> 0 | AP20: ='【1-B】悲観時（機構基準）収支'!O16 -> 0 | AQ20: ='【1-B】悲観時（機構基準）収支'!P16 -> 0 | AR20: ='【1-B】悲観時（機構基準）収支'!Q16 -> 0 | AS20: ='【1-B】悲観時（機構基準）収支'!R16 -> 0 | AT20: ='【1-B】悲観時（機構基準）収支'!S16 -> 0 | AU20: ='【1-B】悲観時（機構基準）収支'!T16 -> 0 | AV20: ='【1-B】悲観時（機構基準）収支'!U16 -> 0 | AW20: ='【1-B】悲観時（機構基準）収支'!V16 -> 0 | AX20: ='【1-B】悲観時（機構基準）収支'!W16 -> 0 | AY20: ='【1-B】悲観時（機構基準）収支'!X16 -> 0 | AZ20: ='【1-B】悲観時（機構基準）収支'!Y16 -> 0
C21: 6 | D21: ='【1-A-1】標準時収支'!B17 -> 0 | E21: ='【1-A-1】標準時収支'!C17 -> 0 | F21: ='【1-A-1】標準時収支'!D17 -> （その他項目名） | G21: ='【1-A-1】標準時収支'!E17 -> 0 | H21: ='【1-A-1】標準時収支'!F17 -> 0 | I21: ='【1-A-1】標準時収支'!G17 -> 0 | J21: ='【1-A-1】標準時収支'!H17 -> 0 | K21: ='【1-A-1】標準時収支'!I17 -> 0 | L21: ='【1-A-1】標準時収支'!J17 -> 0 | M21: ='【1-A-1】標準時収支'!K17 -> 0 | N21: ='【1-A-1】標準時収支'!L17 -> 0 | O21: ='【1-A-1】標準時収支'!M17 -> 0 | P21: ='【1-A-1】標準時収支'!N17 -> 0 | Q21: ='【1-A-1】標準時収支'!O17 -> 0 | R21: ='【1-A-1】標準時収支'!P17 -> 0 | S21: ='【1-A-1】標準時収支'!Q17 -> 0 | T21: ='【1-A-1】標準時収支'!R17 -> 0 | U21: ='【1-A-1】標準時収支'!S17 -> 0 | V21: ='【1-A-1】標準時収支'!T17 -> 0 | W21: ='【1-A-1】標準時収支'!U17 -> 0 | X21: ='【1-A-1】標準時収支'!V17 -> 0 | Y21: ='【1-A-1】標準時収支'!W17 -> 0 | Z21: ='【1-A-1】標準時収支'!X17 -> 0 | AA21: ='【1-A-1】標準時収支'!Y17 -> 0 | AC21: ='【1-B】悲観時（機構基準）収支'!B17 -> 0 | AD21: ='【1-B】悲観時（機構基準）収支'!C17 -> 0 | AE21: ='【1-B】悲観時（機構基準）収支'!D17 -> （その他項目名） | AF21: ='【1-B】悲観時（機構基準）収支'!E17 -> 0 | AG21: ='【1-B】悲観時（機構基準）収支'!F17 -> 0 | AH21: ='【1-B】悲観時（機構基準）収支'!G17 -> 0 | AI21: ='【1-B】悲観時（機構基準）収支'!H17 -> 0 | AJ21: ='【1-B】悲観時（機構基準）収支'!I17 -> 0 | AK21: ='【1-B】悲観時（機構基準）収支'!J17 -> 0 | AL21: ='【1-B】悲観時（機構基準）収支'!K17 -> 0 | AM21: ='【1-B】悲観時（機構基準）収支'!L17 -> 0 | AN21: ='【1-B】悲観時（機構基準）収支'!M17 -> 0 | AO21: ='【1-B】悲観時（機構基準）収支'!N17 -> 0 | AP21: ='【1-B】悲観時（機構基準）収支'!O17 -> 0 | AQ21: ='【1-B】悲観時（機構基準）収支'!P17 -> 0 | AR21: ='【1-B】悲観時（機構基準）収支'!Q17 -> 0 | AS21: ='【1-B】悲観時（機構基準）収支'!R17 -> 0 | AT21: ='【1-B】悲観時（機構基準）収支'!S17 -> 0 | AU21: ='【1-B】悲観時（機構基準）収支'!T17 -> 0 | AV21: ='【1-B】悲観時（機構基準）収支'!U17 -> 0 | AW21: ='【1-B】悲観時（機構基準）収支'!V17 -> 0 | AX21: ='【1-B】悲観時（機構基準）収支'!W17 -> 0 | AY21: ='【1-B】悲観時（機構基準）収支'!X17 -> 0 | AZ21: ='【1-B】悲観時（機構基準）収支'!Y17 -> 0
C22: 7 | D22: ='【1-A-1】標準時収支'!B18 -> 0 | E22: ='【1-A-1】標準時収支'!C18 -> 0 | F22: ='【1-A-1】標準時収支'!D18 -> （その他項目名） | G22: ='【1-A-1】標準時収支'!E18 -> 0 | H22: ='【1-A-1】標準時収支'!F18 -> 0 | I22: ='【1-A-1】標準時収支'!G18 -> 0 | J22: ='【1-A-1】標準時収支'!H18 -> 0 | K22: ='【1-A-1】標準時収支'!I18 -> 0 | L22: ='【1-A-1】標準時収支'!J18 -> 0 | M22: ='【1-A-1】標準時収支'!K18 -> 0 | N22: ='【1-A-1】標準時収支'!L18 -> 0 | O22: ='【1-A-1】標準時収支'!M18 -> 0 | P22: ='【1-A-1】標準時収支'!N18 -> 0 | Q22: ='【1-A-1】標準時収支'!O18 -> 0 | R22: ='【1-A-1】標準時収支'!P18 -> 0 | S22: ='【1-A-1】標準時収支'!Q18 -> 0 | T22: ='【1-A-1】標準時収支'!R18 -> 0 | U22: ='【1-A-1】標準時収支'!S18 -> 0 | V22: ='【1-A-1】標準時収支'!T18 -> 0 | W22: ='【1-A-1】標準時収支'!U18 -> 0 | X22: ='【1-A-1】標準時収支'!V18 -> 0 | Y22: ='【1-A-1】標準時収支'!W18 -> 0 | Z22: ='【1-A-1】標準時収支'!X18 -> 0 | AA22: ='【1-A-1】標準時収支'!Y18 -> 0 | AC22: ='【1-B】悲観時（機構基準）収支'!B18 -> 0 | AD22: ='【1-B】悲観時（機構基準）収支'!C18 -> 0 | AE22: ='【1-B】悲観時（機構基準）収支'!D18 -> （その他項目名） | AF22: ='【1-B】悲観時（機構基準）収支'!E18 -> 0 | AG22: ='【1-B】悲観時（機構基準）収支'!F18 -> 0 | AH22: ='【1-B】悲観時（機構基準）収支'!G18 -> 0 | AI22: ='【1-B】悲観時（機構基準）収支'!H18 -> 0 | AJ22: ='【1-B】悲観時（機構基準）収支'!I18 -> 0 | AK22: ='【1-B】悲観時（機構基準）収支'!J18 -> 0 | AL22: ='【1-B】悲観時（機構基準）収支'!K18 -> 0 | AM22: ='【1-B】悲観時（機構基準）収支'!L18 -> 0 | AN22: ='【1-B】悲観時（機構基準）収支'!M18 -> 0 | AO22: ='【1-B】悲観時（機構基準）収支'!N18 -> 0 | AP22: ='【1-B】悲観時（機構基準）収支'!O18 -> 0 | AQ22: ='【1-B】悲観時（機構基準）収支'!P18 -> 0 | AR22: ='【1-B】悲観時（機構基準）収支'!Q18 -> 0 | AS22: ='【1-B】悲観時（機構基準）収支'!R18 -> 0 | AT22: ='【1-B】悲観時（機構基準）収支'!S18 -> 0 | AU22: ='【1-B】悲観時（機構基準）収支'!T18 -> 0 | AV22: ='【1-B】悲観時（機構基準）収支'!U18 -> 0 | AW22: ='【1-B】悲観時（機構基準）収支'!V18 -> 0 | AX22: ='【1-B】悲観時（機構基準）収支'!W18 -> 0 | AY22: ='【1-B】悲観時（機構基準）収支'!X18 -> 0 | AZ22: ='【1-B】悲観時（機構基準）収支'!Y18 -> 0
C23: 8 | D23: ='【1-A-1】標準時収支'!B19 -> 0 | E23: ='【1-A-1】標準時収支'!C19 -> 駐車場収入 | F23: ='【1-A-1】標準時収支'!D19 -> 0 | G23: ='【1-A-1】標準時収支'!E19 -> 0 | H23: ='【1-A-1】標準時収支'!F19 -> 0 | I23: ='【1-A-1】標準時収支'!G19 -> 0 | J23: ='【1-A-1】標準時収支'!H19 -> 0 | K23: ='【1-A-1】標準時収支'!I19 -> 0 | L23: ='【1-A-1】標準時収支'!J19 -> 0 | M23: ='【1-A-1】標準時収支'!K19 -> 0 | N23: ='【1-A-1】標準時収支'!L19 -> 0 | O23: ='【1-A-1】標準時収支'!M19 -> 0 | P23: ='【1-A-1】標準時収支'!N19 -> 0 | Q23: ='【1-A-1】標準時収支'!O19 -> 0 | R23: ='【1-A-1】標準時収支'!P19 -> 0 | S23: ='【1-A-1】標準時収支'!Q19 -> 0 | T23: ='【1-A-1】標準時収支'!R19 -> 0 | U23: ='【1-A-1】標準時収支'!S19 -> 0 | V23: ='【1-A-1】標準時収支'!T19 -> 0 | W23: ='【1-A-1】標準時収支'!U19 -> 0 | X23: ='【1-A-1】標準時収支'!V19 -> 0 | Y23: ='【1-A-1】標準時収支'!W19 -> 0 | Z23: ='【1-A-1】標準時収支'!X19 -> 0 | AA23: ='【1-A-1】標準時収支'!Y19 -> 0 | AC23: ='【1-B】悲観時（機構基準）収支'!B19 -> 0 | AD23: ='【1-B】悲観時（機構基準）収支'!C19 -> 駐車場収入 | AE23: ='【1-B】悲観時（機構基準）収支'!D19 -> 0 | AF23: ='【1-B】悲観時（機構基準）収支'!E19 -> 0 | AG23: ='【1-B】悲観時（機構基準）収支'!F19 -> 0 | AH23: ='【1-B】悲観時（機構基準）収支'!G19 -> 0 | AI23: ='【1-B】悲観時（機構基準）収支'!H19 -> 0 | AJ23: ='【1-B】悲観時（機構基準）収支'!I19 -> 0 | AK23: ='【1-B】悲観時（機構基準）収支'!J19 -> 0 | AL23: ='【1-B】悲観時（機構基準）収支'!K19 -> 0 | AM23: ='【1-B】悲観時（機構基準）収支'!L19 -> 0 | AN23: ='【1-B】悲観時（機構基準）収支'!M19 -> 0 | AO23: ='【1-B】悲観時（機構基準）収支'!N19 -> 0 | AP23: ='【1-B】悲観時（機構基準）収支'!O19 -> 0 | AQ23: ='【1-B】悲観時（機構基準）収支'!P19 -> 0 | AR23: ='【1-B】悲観時（機構基準）収支'!Q19 -> 0 | AS23: ='【1-B】悲観時（機構基準）収支'!R19 -> 0 | AT23: ='【1-B】悲観時（機構基準）収支'!S19 -> 0 | AU23: ='【1-B】悲観時（機構基準）収支'!T19 -> 0 | AV23: ='【1-B】悲観時（機構基準）収支'!U19 -> 0 | AW23: ='【1-B】悲観時（機構基準）収支'!V19 -> 0 | AX23: ='【1-B】悲観時（機構基準）収支'!W19 -> 0 | AY23: ='【1-B】悲観時（機構基準）収支'!X19 -> 0 | AZ23: ='【1-B】悲観時（機構基準）収支'!Y19 -> 0
C24: 9 | D24: ='【1-A-1】標準時収支'!B20 -> 0 | E24: ='【1-A-1】標準時収支'!C20 -> 0 | F24: ='【1-A-1】標準時収支'!D20 -> （例）駐車場土地賃貸料 | G24: ='【1-A-1】標準時収支'!E20 -> 0 | H24: ='【1-A-1】標準時収支'!F20 -> 0 | I24: ='【1-A-1】標準時収支'!G20 -> 0 | J24: ='【1-A-1】標準時収支'!H20 -> 0 | K24: ='【1-A-1】標準時収支'!I20 -> 0 | L24: ='【1-A-1】標準時収支'!J20 -> 0 | M24: ='【1-A-1】標準時収支'!K20 -> 0 | N24: ='【1-A-1】標準時収支'!L20 -> 0 | O24: ='【1-A-1】標準時収支'!M20 -> 0 | P24: ='【1-A-1】標準時収支'!N20 -> 0 | Q24: ='【1-A-1】標準時収支'!O20 -> 0 | R24: ='【1-A-1】標準時収支'!P20 -> 0 | S24: ='【1-A-1】標準時収支'!Q20 -> 0 | T24: ='【1-A-1】標準時収支'!R20 -> 0 | U24: ='【1-A-1】標準時収支'!S20 -> 0 | V24: ='【1-A-1】標準時収支'!T20 -> 0 | W24: ='【1-A-1】標準時収支'!U20 -> 0 | X24: ='【1-A-1】標準時収支'!V20 -> 0 | Y24: ='【1-A-1】標準時収支'!W20 -> 0 | Z24: ='【1-A-1】標準時収支'!X20 -> 0 | AA24: ='【1-A-1】標準時収支'!Y20 -> 0 | AC24: ='【1-B】悲観時（機構基準）収支'!B20 -> 0 | AD24: ='【1-B】悲観時（機構基準）収支'!C20 -> 0 | AE24: ='【1-B】悲観時（機構基準）収支'!D20 -> （例）駐車場土地賃貸料 | AF24: ='【1-B】悲観時（機構基準）収支'!E20 -> 0 | AG24: ='【1-B】悲観時（機構基準）収支'!F20 -> 0 | AH24: ='【1-B】悲観時（機構基準）収支'!G20 -> 0 | AI24: ='【1-B】悲観時（機構基準）収支'!H20 -> 0 | AJ24: ='【1-B】悲観時（機構基準）収支'!I20 -> 0 | AK24: ='【1-B】悲観時（機構基準）収支'!J20 -> 0 | AL24: ='【1-B】悲観時（機構基準）収支'!K20 -> 0 | AM24: ='【1-B】悲観時（機構基準）収支'!L20 -> 0 | AN24: ='【1-B】悲観時（機構基準）収支'!M20 -> 0 | AO24: ='【1-B】悲観時（機構基準）収支'!N20 -> 0 | AP24: ='【1-B】悲観時（機構基準）収支'!O20 -> 0 | AQ24: ='【1-B】悲観時（機構基準）収支'!P20 -> 0 | AR24: ='【1-B】悲観時（機構基準）収支'!Q20 -> 0 | AS24: ='【1-B】悲観時（機構基準）収支'!R20 -> 0 | AT24: ='【1-B】悲観時（機構基準）収支'!S20 -> 0 | AU24: ='【1-B】悲観時（機構基準）収支'!T20 -> 0 | AV24: ='【1-B】悲観時（機構基準）収支'!U20 -> 0 | AW24: ='【1-B】悲観時（機構基準）収支'!V20 -> 0 | AX24: ='【1-B】悲観時（機構基準）収支'!W20 -> 0 | AY24: ='【1-B】悲観時（機構基準）収支'!X20 -> 0 | AZ24: ='【1-B】悲観時（機構基準）収支'!Y20 -> 0
C25: 10 | D25: ='【1-A-1】標準時収支'!B21 -> 0 | E25: ='【1-A-1】標準時収支'!C21 -> 0 | F25: ='【1-A-1】標準時収支'!D21 -> （その他項目名） | G25: ='【1-A-1】標準時収支'!E21 -> 0 | H25: ='【1-A-1】標準時収支'!F21 -> 0 | I25: ='【1-A-1】標準時収支'!G21 -> 0 | J25: ='【1-A-1】標準時収支'!H21 -> 0 | K25: ='【1-A-1】標準時収支'!I21 -> 0 | L25: ='【1-A-1】標準時収支'!J21 -> 0 | M25: ='【1-A-1】標準時収支'!K21 -> 0 | N25: ='【1-A-1】標準時収支'!L21 -> 0 | O25: ='【1-A-1】標準時収支'!M21 -> 0 | P25: ='【1-A-1】標準時収支'!N21 -> 0 | Q25: ='【1-A-1】標準時収支'!O21 -> 0 | R25: ='【1-A-1】標準時収支'!P21 -> 0 | S25: ='【1-A-1】標準時収支'!Q21 -> 0 | T25: ='【1-A-1】標準時収支'!R21 -> 0 | U25: ='【1-A-1】標準時収支'!S21 -> 0 | V25: ='【1-A-1】標準時収支'!T21 -> 0 | W25: ='【1-A-1】標準時収支'!U21 -> 0 | X25: ='【1-A-1】標準時収支'!V21 -> 0 | Y25: ='【1-A-1】標準時収支'!W21 -> 0 | Z25: ='【1-A-1】標準時収支'!X21 -> 0 | AA25: ='【1-A-1】標準時収支'!Y21 -> 0 | AC25: ='【1-B】悲観時（機構基準）収支'!B21 -> 0 | AD25: ='【1-B】悲観時（機構基準）収支'!C21 -> 0 | AE25: ='【1-B】悲観時（機構基準）収支'!D21 -> （その他項目名） | AF25: ='【1-B】悲観時（機構基準）収支'!E21 -> 0 | AG25: ='【1-B】悲観時（機構基準）収支'!F21 -> 0 | AH25: ='【1-B】悲観時（機構基準）収支'!G21 -> 0 | AI25: ='【1-B】悲観時（機構基準）収支'!H21 -> 0 | AJ25: ='【1-B】悲観時（機構基準）収支'!I21 -> 0 | AK25: ='【1-B】悲観時（機構基準）収支'!J21 -> 0 | AL25: ='【1-B】悲観時（機構基準）収支'!K21 -> 0 | AM25: ='【1-B】悲観時（機構基準）収支'!L21 -> 0 | AN25: ='【1-B】悲観時（機構基準）収支'!M21 -> 0 | AO25: ='【1-B】悲観時（機構基準）収支'!N21 -> 0 | AP25: ='【1-B】悲観時（機構基準）収支'!O21 -> 0 | AQ25: ='【1-B】悲観時（機構基準）収支'!P21 -> 0 | AR25: ='【1-B】悲観時（機構基準）収支'!Q21 -> 0 | AS25: ='【1-B】悲観時（機構基準）収支'!R21 -> 0 | AT25: ='【1-B】悲観時（機構基準）収支'!S21 -> 0 | AU25: ='【1-B】悲観時（機構基準）収支'!T21 -> 0 | AV25: ='【1-B】悲観時（機構基準）収支'!U21 -> 0 | AW25: ='【1-B】悲観時（機構基準）収支'!V21 -> 0 | AX25: ='【1-B】悲観時（機構基準）収支'!W21 -> 0 | AY25: ='【1-B】悲観時（機構基準）収支'!X21 -> 0 | AZ25: ='【1-B】悲観時（機構基準）収支'!Y21 -> 0
C26: 11 | D26: ='【1-A-1】標準時収支'!B22 -> 0 | E26: ='【1-A-1】標準時収支'!C22 -> 0 | F26: ='【1-A-1】標準時収支'!D22 -> （その他項目名） | G26: ='【1-A-1】標準時収支'!E22 -> 0 | H26: ='【1-A-1】標準時収支'!F22 -> 0 | I26: ='【1-A-1】標準時収支'!G22 -> 0 | J26: ='【1-A-1】標準時収支'!H22 -> 0 | K26: ='【1-A-1】標準時収支'!I22 -> 0 | L26: ='【1-A-1】標準時収支'!J22 -> 0 | M26: ='【1-A-1】標準時収支'!K22 -> 0 | N26: ='【1-A-1】標準時収支'!L22 -> 0 | O26: ='【1-A-1】標準時収支'!M22 -> 0 | P26: ='【1-A-1】標準時収支'!N22 -> 0 | Q26: ='【1-A-1】標準時収支'!O22 -> 0 | R26: ='【1-A-1】標準時収支'!P22 -> 0 | S26: ='【1-A-1】標準時収支'!Q22 -> 0 | T26: ='【1-A-1】標準時収支'!R22 -> 0 | U26: ='【1-A-1】標準時収支'!S22 -> 0 | V26: ='【1-A-1】標準時収支'!T22 -> 0 | W26: ='【1-A-1】標準時収支'!U22 -> 0 | X26: ='【1-A-1】標準時収支'!V22 -> 0 | Y26: ='【1-A-1】標準時収支'!W22 -> 0 | Z26: ='【1-A-1】標準時収支'!X22 -> 0 | AA26: ='【1-A-1】標準時収支'!Y22 -> 0 | AC26: ='【1-B】悲観時（機構基準）収支'!B22 -> 0 | AD26: ='【1-B】悲観時（機構基準）収支'!C22 -> 0 | AE26: ='【1-B】悲観時（機構基準）収支'!D22 -> （その他項目名） | AF26: ='【1-B】悲観時（機構基準）収支'!E22 -> 0 | AG26: ='【1-B】悲観時（機構基準）収支'!F22 -> 0 | AH26: ='【1-B】悲観時（機構基準）収支'!G22 -> 0 | AI26: ='【1-B】悲観時（機構基準）収支'!H22 -> 0 | AJ26: ='【1-B】悲観時（機構基準）収支'!I22 -> 0 | AK26: ='【1-B】悲観時（機構基準）収支'!J22 -> 0 | AL26: ='【1-B】悲観時（機構基準）収支'!K22 -> 0 | AM26: ='【1-B】悲観時（機構基準）収支'!L22 -> 0 | AN26: ='【1-B】悲観時（機構基準）収支'!M22 -> 0 | AO26: ='【1-B】悲観時（機構基準）収支'!N22 -> 0 | AP26: ='【1-B】悲観時（機構基準）収支'!O22 -> 0 | AQ26: ='【1-B】悲観時（機構基準）収支'!P22 -> 0 | AR26: ='【1-B】悲観時（機構基準）収支'!Q22 -> 0 | AS26: ='【1-B】悲観時（機構基準）収支'!R22 -> 0 | AT26: ='【1-B】悲観時（機構基準）収支'!S22 -> 0 | AU26: ='【1-B】悲観時（機構基準）収支'!T22 -> 0 | AV26: ='【1-B】悲観時（機構基準）収支'!U22 -> 0 | AW26: ='【1-B】悲観時（機構基準）収支'!V22 -> 0 | AX26: ='【1-B】悲観時（機構基準）収支'!W22 -> 0 | AY26: ='【1-B】悲観時（機構基準）収支'!X22 -> 0 | AZ26: ='【1-B】悲観時（機構基準）収支'!Y22 -> 0
C27: 12 | D27: ='【1-A-1】標準時収支'!B23 -> 0 | E27: ='【1-A-1】標準時収支'!C23 -> 0 | F27: ='【1-A-1】標準時収支'!D23 -> （その他項目名） | G27: ='【1-A-1】標準時収支'!E23 -> 0 | H27: ='【1-A-1】標準時収支'!F23 -> 0 | I27: ='【1-A-1】標準時収支'!G23 -> 0 | J27: ='【1-A-1】標準時収支'!H23 -> 0 | K27: ='【1-A-1】標準時収支'!I23 -> 0 | L27: ='【1-A-1】標準時収支'!J23 -> 0 | M27: ='【1-A-1】標準時収支'!K23 -> 0 | N27: ='【1-A-1】標準時収支'!L23 -> 0 | O27: ='【1-A-1】標準時収支'!M23 -> 0 | P27: ='【1-A-1】標準時収支'!N23 -> 0 | Q27: ='【1-A-1】標準時収支'!O23 -> 0 | R27: ='【1-A-1】標準時収支'!P23 -> 0 | S27: ='【1-A-1】標準時収支'!Q23 -> 0 | T27: ='【1-A-1】標準時収支'!R23 -> 0 | U27: ='【1-A-1】標準時収支'!S23 -> 0 | V27: ='【1-A-1】標準時収支'!T23 -> 0 | W27: ='【1-A-1】標準時収支'!U23 -> 0 | X27: ='【1-A-1】標準時収支'!V23 -> 0 | Y27: ='【1-A-1】標準時収支'!W23 -> 0 | Z27: ='【1-A-1】標準時収支'!X23 -> 0 | AA27: ='【1-A-1】標準時収支'!Y23 -> 0 | AC27: ='【1-B】悲観時（機構基準）収支'!B23 -> 0 | AD27: ='【1-B】悲観時（機構基準）収支'!C23 -> 0 | AE27: ='【1-B】悲観時（機構基準）収支'!D23 -> （その他項目名） | AF27: ='【1-B】悲観時（機構基準）収支'!E23 -> 0 | AG27: ='【1-B】悲観時（機構基準）収支'!F23 -> 0 | AH27: ='【1-B】悲観時（機構基準）収支'!G23 -> 0 | AI27: ='【1-B】悲観時（機構基準）収支'!H23 -> 0 | AJ27: ='【1-B】悲観時（機構基準）収支'!I23 -> 0 | AK27: ='【1-B】悲観時（機構基準）収支'!J23 -> 0 | AL27: ='【1-B】悲観時（機構基準）収支'!K23 -> 0 | AM27: ='【1-B】悲観時（機構基準）収支'!L23 -> 0 | AN27: ='【1-B】悲観時（機構基準）収支'!M23 -> 0 | AO27: ='【1-B】悲観時（機構基準）収支'!N23 -> 0 | AP27: ='【1-B】悲観時（機構基準）収支'!O23 -> 0 | AQ27: ='【1-B】悲観時（機構基準）収支'!P23 -> 0 | AR27: ='【1-B】悲観時（機構基準）収支'!Q23 -> 0 | AS27: ='【1-B】悲観時（機構基準）収支'!R23 -> 0 | AT27: ='【1-B】悲観時（機構基準）収支'!S23 -> 0 | AU27: ='【1-B】悲観時（機構基準）収支'!T23 -> 0 | AV27: ='【1-B】悲観時（機構基準）収支'!U23 -> 0 | AW27: ='【1-B】悲観時（機構基準）収支'!V23 -> 0 | AX27: ='【1-B】悲観時（機構基準）収支'!W23 -> 0 | AY27: ='【1-B】悲観時（機構基準）収支'!X23 -> 0 | AZ27: ='【1-B】悲観時（機構基準）収支'!Y23 -> 0
C28: 13 | D28: ='【1-A-1】標準時収支'!B24 -> 0 | E28: ='【1-A-1】標準時収支'!C24 -> 0 | F28: ='【1-A-1】標準時収支'!D24 -> （その他項目名） | G28: ='【1-A-1】標準時収支'!E24 -> 0 | H28: ='【1-A-1】標準時収支'!F24 -> 0 | I28: ='【1-A-1】標準時収支'!G24 -> 0 | J28: ='【1-A-1】標準時収支'!H24 -> 0 | K28: ='【1-A-1】標準時収支'!I24 -> 0 | L28: ='【1-A-1】標準時収支'!J24 -> 0 | M28: ='【1-A-1】標準時収支'!K24 -> 0 | N28: ='【1-A-1】標準時収支'!L24 -> 0 | O28: ='【1-A-1】標準時収支'!M24 -> 0 | P28: ='【1-A-1】標準時収支'!N24 -> 0 | Q28: ='【1-A-1】標準時収支'!O24 -> 0 | R28: ='【1-A-1】標準時収支'!P24 -> 0 | S28: ='【1-A-1】標準時収支'!Q24 -> 0 | T28: ='【1-A-1】標準時収支'!R24 -> 0 | U28: ='【1-A-1】標準時収支'!S24 -> 0 | V28: ='【1-A-1】標準時収支'!T24 -> 0 | W28: ='【1-A-1】標準時収支'!U24 -> 0 | X28: ='【1-A-1】標準時収支'!V24 -> 0 | Y28: ='【1-A-1】標準時収支'!W24 -> 0 | Z28: ='【1-A-1】標準時収支'!X24 -> 0 | AA28: ='【1-A-1】標準時収支'!Y24 -> 0 | AC28: ='【1-B】悲観時（機構基準）収支'!B24 -> 0 | AD28: ='【1-B】悲観時（機構基準）収支'!C24 -> 0 | AE28: ='【1-B】悲観時（機構基準）収支'!D24 -> （その他項目名） | AF28: ='【1-B】悲観時（機構基準）収支'!E24 -> 0 | AG28: ='【1-B】悲観時（機構基準）収支'!F24 -> 0 | AH28: ='【1-B】悲観時（機構基準）収支'!G24 -> 0 | AI28: ='【1-B】悲観時（機構基準）収支'!H24 -> 0 | AJ28: ='【1-B】悲観時（機構基準）収支'!I24 -> 0 | AK28: ='【1-B】悲観時（機構基準）収支'!J24 -> 0 | AL28: ='【1-B】悲観時（機構基準）収支'!K24 -> 0 | AM28: ='【1-B】悲観時（機構基準）収支'!L24 -> 0 | AN28: ='【1-B】悲観時（機構基準）収支'!M24 -> 0 | AO28: ='【1-B】悲観時（機構基準）収支'!N24 -> 0 | AP28: ='【1-B】悲観時（機構基準）収支'!O24 -> 0 | AQ28: ='【1-B】悲観時（機構基準）収支'!P24 -> 0 | AR28: ='【1-B】悲観時（機構基準）収支'!Q24 -> 0 | AS28: ='【1-B】悲観時（機構基準）収支'!R24 -> 0 | AT28: ='【1-B】悲観時（機構基準）収支'!S24 -> 0 | AU28: ='【1-B】悲観時（機構基準）収支'!T24 -> 0 | AV28: ='【1-B】悲観時（機構基準）収支'!U24 -> 0 | AW28: ='【1-B】悲観時（機構基準）収支'!V24 -> 0 | AX28: ='【1-B】悲観時（機構基準）収支'!W24 -> 0 | AY28: ='【1-B】悲観時（機構基準）収支'!X24 -> 0 | AZ28: ='【1-B】悲観時（機構基準）収支'!Y24 -> 0
C29: 14 | D29: ='【1-A-1】標準時収支'!B25 -> 0 | E29: ='【1-A-1】標準時収支'!C25 -> サービス施設収入 | F29: ='【1-A-1】標準時収支'!D25 -> 0 | G29: ='【1-A-1】標準時収支'!E25 -> 0 | H29: ='【1-A-1】標準時収支'!F25 -> 0 | I29: ='【1-A-1】標準時収支'!G25 -> 0 | J29: ='【1-A-1】標準時収支'!H25 -> 0 | K29: ='【1-A-1】標準時収支'!I25 -> 0 | L29: ='【1-A-1】標準時収支'!J25 -> 0 | M29: ='【1-A-1】標準時収支'!K25 -> 0 | N29: ='【1-A-1】標準時収支'!L25 -> 0 | O29: ='【1-A-1】標準時収支'!M25 -> 0 | P29: ='【1-A-1】標準時収支'!N25 -> 0 | Q29: ='【1-A-1】標準時収支'!O25 -> 0 | R29: ='【1-A-1】標準時収支'!P25 -> 0 | S29: ='【1-A-1】標準時収支'!Q25 -> 0 | T29: ='【1-A-1】標準時収支'!R25 -> 0 | U29: ='【1-A-1】標準時収支'!S25 -> 0 | V29: ='【1-A-1】標準時収支'!T25 -> 0 | W29: ='【1-A-1】標準時収支'!U25 -> 0 | X29: ='【1-A-1】標準時収支'!V25 -> 0 | Y29: ='【1-A-1】標準時収支'!W25 -> 0 | Z29: ='【1-A-1】標準時収支'!X25 -> 0 | AA29: ='【1-A-1】標準時収支'!Y25 -> 0 | AC29: ='【1-B】悲観時（機構基準）収支'!B25 -> 0 | AD29: ='【1-B】悲観時（機構基準）収支'!C25 -> サービス施設収入 | AE29: ='【1-B】悲観時（機構基準）収支'!D25 -> 0 | AF29: ='【1-B】悲観時（機構基準）収支'!E25 -> 0 | AG29: ='【1-B】悲観時（機構基準）収支'!F25 -> 0 | AH29: ='【1-B】悲観時（機構基準）収支'!G25 -> 0 | AI29: ='【1-B】悲観時（機構基準）収支'!H25 -> 0 | AJ29: ='【1-B】悲観時（機構基準）収支'!I25 -> 0 | AK29: ='【1-B】悲観時（機構基準）収支'!J25 -> 0 | AL29: ='【1-B】悲観時（機構基準）収支'!K25 -> 0 | AM29: ='【1-B】悲観時（機構基準）収支'!L25 -> 0 | AN29: ='【1-B】悲観時（機構基準）収支'!M25 -> 0 | AO29: ='【1-B】悲観時（機構基準）収支'!N25 -> 0 | AP29: ='【1-B】悲観時（機構基準）収支'!O25 -> 0 | AQ29: ='【1-B】悲観時（機構基準）収支'!P25 -> 0 | AR29: ='【1-B】悲観時（機構基準）収支'!Q25 -> 0 | AS29: ='【1-B】悲観時（機構基準）収支'!R25 -> 0 | AT29: ='【1-B】悲観時（機構基準）収支'!S25 -> 0 | AU29: ='【1-B】悲観時（機構基準）収支'!T25 -> 0 | AV29: ='【1-B】悲観時（機構基準）収支'!U25 -> 0 | AW29: ='【1-B】悲観時（機構基準）収支'!V25 -> 0 | AX29: ='【1-B】悲観時（機構基準）収支'!W25 -> 0 | AY29: ='【1-B】悲観時（機構基準）収支'!X25 -> 0 | AZ29: ='【1-B】悲観時（機構基準）収支'!Y25 -> 0
C30: 15 | D30: ='【1-A-1】標準時収支'!B26 -> 0 | E30: ='【1-A-1】標準時収支'!C26 -> 0 | F30: ='【1-A-1】標準時収支'!D26 -> （例）レストランテナント料 | G30: ='【1-A-1】標準時収支'!E26 -> 0 | H30: ='【1-A-1】標準時収支'!F26 -> 0 | I30: ='【1-A-1】標準時収支'!G26 -> 0 | J30: ='【1-A-1】標準時収支'!H26 -> 0 | K30: ='【1-A-1】標準時収支'!I26 -> 0 | L30: ='【1-A-1】標準時収支'!J26 -> 0 | M30: ='【1-A-1】標準時収支'!K26 -> 0 | N30: ='【1-A-1】標準時収支'!L26 -> 0 | O30: ='【1-A-1】標準時収支'!M26 -> 0 | P30: ='【1-A-1】標準時収支'!N26 -> 0 | Q30: ='【1-A-1】標準時収支'!O26 -> 0 | R30: ='【1-A-1】標準時収支'!P26 -> 0 | S30: ='【1-A-1】標準時収支'!Q26 -> 0 | T30: ='【1-A-1】標準時収支'!R26 -> 0 | U30: ='【1-A-1】標準時収支'!S26 -> 0 | V30: ='【1-A-1】標準時収支'!T26 -> 0 | W30: ='【1-A-1】標準時収支'!U26 -> 0 | X30: ='【1-A-1】標準時収支'!V26 -> 0 | Y30: ='【1-A-1】標準時収支'!W26 -> 0 | Z30: ='【1-A-1】標準時収支'!X26 -> 0 | AA30: ='【1-A-1】標準時収支'!Y26 -> 0 | AC30: ='【1-B】悲観時（機構基準）収支'!B26 -> 0 | AD30: ='【1-B】悲観時（機構基準）収支'!C26 -> 0 | AE30: ='【1-B】悲観時（機構基準）収支'!D26 -> （例）レストランテナント料 | AF30: ='【1-B】悲観時（機構基準）収支'!E26 -> 0 | AG30: ='【1-B】悲観時（機構基準）収支'!F26 -> 0 | AH30: ='【1-B】悲観時（機構基準）収支'!G26 -> 0 | AI30: ='【1-B】悲観時（機構基準）収支'!H26 -> 0 | AJ30: ='【1-B】悲観時（機構基準）収支'!I26 -> 0 | AK30: ='【1-B】悲観時（機構基準）収支'!J26 -> 0 | AL30: ='【1-B】悲観時（機構基準）収支'!K26 -> 0 | AM30: ='【1-B】悲観時（機構基準）収支'!L26 -> 0 | AN30: ='【1-B】悲観時（機構基準）収支'!M26 -> 0 | AO30: ='【1-B】悲観時（機構基準）収支'!N26 -> 0 | AP30: ='【1-B】悲観時（機構基準）収支'!O26 -> 0 | AQ30: ='【1-B】悲観時（機構基準）収支'!P26 -> 0 | AR30: ='【1-B】悲観時（機構基準）収支'!Q26 -> 0 | AS30: ='【1-B】悲観時（機構基準）収支'!R26 -> 0 | AT30: ='【1-B】悲観時（機構基準）収支'!S26 -> 0 | AU30: ='【1-B】悲観時（機構基準）収支'!T26 -> 0 | AV30: ='【1-B】悲観時（機構基準）収支'!U26 -> 0 | AW30: ='【1-B】悲観時（機構基準）収支'!V26 -> 0 | AX30: ='【1-B】悲観時（機構基準）収支'!W26 -> 0 | AY30: ='【1-B】悲観時（機構基準）収支'!X26 -> 0 | AZ30: ='【1-B】悲観時（機構基準）収支'!Y26 -> 0
C31: 16 | D31: ='【1-A-1】標準時収支'!B27 -> 0 | E31: ='【1-A-1】標準時収支'!C27 -> 0 | F31: ='【1-A-1】標準時収支'!D27 -> （その他項目名） | G31: ='【1-A-1】標準時収支'!E27 -> 0 | H31: ='【1-A-1】標準時収支'!F27 -> 0 | I31: ='【1-A-1】標準時収支'!G27 -> 0 | J31: ='【1-A-1】標準時収支'!H27 -> 0 | K31: ='【1-A-1】標準時収支'!I27 -> 0 | L31: ='【1-A-1】標準時収支'!J27 -> 0 | M31: ='【1-A-1】標準時収支'!K27 -> 0 | N31: ='【1-A-1】標準時収支'!L27 -> 0 | O31: ='【1-A-1】標準時収支'!M27 -> 0 | P31: ='【1-A-1】標準時収支'!N27 -> 0 | Q31: ='【1-A-1】標準時収支'!O27 -> 0 | R31: ='【1-A-1】標準時収支'!P27 -> 0 | S31: ='【1-A-1】標準時収支'!Q27 -> 0 | T31: ='【1-A-1】標準時収支'!R27 -> 0 | U31: ='【1-A-1】標準時収支'!S27 -> 0 | V31: ='【1-A-1】標準時収支'!T27 -> 0 | W31: ='【1-A-1】標準時収支'!U27 -> 0 | X31: ='【1-A-1】標準時収支'!V27 -> 0 | Y31: ='【1-A-1】標準時収支'!W27 -> 0 | Z31: ='【1-A-1】標準時収支'!X27 -> 0 | AA31: ='【1-A-1】標準時収支'!Y27 -> 0 | AC31: ='【1-B】悲観時（機構基準）収支'!B27 -> 0 | AD31: ='【1-B】悲観時（機構基準）収支'!C27 -> 0 | AE31: ='【1-B】悲観時（機構基準）収支'!D27 -> （その他項目名） | AF31: ='【1-B】悲観時（機構基準）収支'!E27 -> 0 | AG31: ='【1-B】悲観時（機構基準）収支'!F27 -> 0 | AH31: ='【1-B】悲観時（機構基準）収支'!G27 -> 0 | AI31: ='【1-B】悲観時（機構基準）収支'!H27 -> 0 | AJ31: ='【1-B】悲観時（機構基準）収支'!I27 -> 0 | AK31: ='【1-B】悲観時（機構基準）収支'!J27 -> 0 | AL31: ='【1-B】悲観時（機構基準）収支'!K27 -> 0 | AM31: ='【1-B】悲観時（機構基準）収支'!L27 -> 0 | AN31: ='【1-B】悲観時（機構基準）収支'!M27 -> 0 | AO31: ='【1-B】悲観時（機構基準）収支'!N27 -> 0 | AP31: ='【1-B】悲観時（機構基準）収支'!O27 -> 0 | AQ31: ='【1-B】悲観時（機構基準）収支'!P27 -> 0 | AR31: ='【1-B】悲観時（機構基準）収支'!Q27 -> 0 | AS31: ='【1-B】悲観時（機構基準）収支'!R27 -> 0 | AT31: ='【1-B】悲観時（機構基準）収支'!S27 -> 0 | AU31: ='【1-B】悲観時（機構基準）収支'!T27 -> 0 | AV31: ='【1-B】悲観時（機構基準）収支'!U27 -> 0 | AW31: ='【1-B】悲観時（機構基準）収支'!V27 -> 0 | AX31: ='【1-B】悲観時（機構基準）収支'!W27 -> 0 | AY31: ='【1-B】悲観時（機構基準）収支'!X27 -> 0 | AZ31: ='【1-B】悲観時（機構基準）収支'!Y27 -> 0
C32: 17 | D32: ='【1-A-1】標準時収支'!B28 -> 0 | E32: ='【1-A-1】標準時収支'!C28 -> 0 | F32: ='【1-A-1】標準時収支'!D28 -> （その他項目名） | G32: ='【1-A-1】標準時収支'!E28 -> 0 | H32: ='【1-A-1】標準時収支'!F28 -> 0 | I32: ='【1-A-1】標準時収支'!G28 -> 0 | J32: ='【1-A-1】標準時収支'!H28 -> 0 | K32: ='【1-A-1】標準時収支'!I28 -> 0 | L32: ='【1-A-1】標準時収支'!J28 -> 0 | M32: ='【1-A-1】標準時収支'!K28 -> 0 | N32: ='【1-A-1】標準時収支'!L28 -> 0 | O32: ='【1-A-1】標準時収支'!M28 -> 0 | P32: ='【1-A-1】標準時収支'!N28 -> 0 | Q32: ='【1-A-1】標準時収支'!O28 -> 0 | R32: ='【1-A-1】標準時収支'!P28 -> 0 | S32: ='【1-A-1】標準時収支'!Q28 -> 0 | T32: ='【1-A-1】標準時収支'!R28 -> 0 | U32: ='【1-A-1】標準時収支'!S28 -> 0 | V32: ='【1-A-1】標準時収支'!T28 -> 0 | W32: ='【1-A-1】標準時収支'!U28 -> 0 | X32: ='【1-A-1】標準時収支'!V28 -> 0 | Y32: ='【1-A-1】標準時収支'!W28 -> 0 | Z32: ='【1-A-1】標準時収支'!X28 -> 0 | AA32: ='【1-A-1】標準時収支'!Y28 -> 0 | AC32: ='【1-B】悲観時（機構基準）収支'!B28 -> 0 | AD32: ='【1-B】悲観時（機構基準）収支'!C28 -> 0 | AE32: ='【1-B】悲観時（機構基準）収支'!D28 -> （その他項目名） | AF32: ='【1-B】悲観時（機構基準）収支'!E28 -> 0 | AG32: ='【1-B】悲観時（機構基準）収支'!F28 -> 0 | AH32: ='【1-B】悲観時（機構基準）収支'!G28 -> 0 | AI32: ='【1-B】悲観時（機構基準）収支'!H28 -> 0 | AJ32: ='【1-B】悲観時（機構基準）収支'!I28 -> 0 | AK32: ='【1-B】悲観時（機構基準）収支'!J28 -> 0 | AL32: ='【1-B】悲観時（機構基準）収支'!K28 -> 0 | AM32: ='【1-B】悲観時（機構基準）収支'!L28 -> 0 | AN32: ='【1-B】悲観時（機構基準）収支'!M28 -> 0 | AO32: ='【1-B】悲観時（機構基準）収支'!N28 -> 0 | AP32: ='【1-B】悲観時（機構基準）収支'!O28 -> 0 | AQ32: ='【1-B】悲観時（機構基準）収支'!P28 -> 0 | AR32: ='【1-B】悲観時（機構基準）収支'!Q28 -> 0 | AS32: ='【1-B】悲観時（機構基準）収支'!R28 -> 0 | AT32: ='【1-B】悲観時（機構基準）収支'!S28 -> 0 | AU32: ='【1-B】悲観時（機構基準）収支'!T28 -> 0 | AV32: ='【1-B】悲観時（機構基準）収支'!U28 -> 0 | AW32: ='【1-B】悲観時（機構基準）収支'!V28 -> 0 | AX32: ='【1-B】悲観時（機構基準）収支'!W28 -> 0 | AY32: ='【1-B】悲観時（機構基準）収支'!X28 -> 0 | AZ32: ='【1-B】悲観時（機構基準）収支'!Y28 -> 0
C33: 18 | D33: ='【1-A-1】標準時収支'!B29 -> 0 | E33: ='【1-A-1】標準時収支'!C29 -> 0 | F33: ='【1-A-1】標準時収支'!D29 -> （その他項目名） | G33: ='【1-A-1】標準時収支'!E29 -> 0 | H33: ='【1-A-1】標準時収支'!F29 -> 0 | I33: ='【1-A-1】標準時収支'!G29 -> 0 | J33: ='【1-A-1】標準時収支'!H29 -> 0 | K33: ='【1-A-1】標準時収支'!I29 -> 0 | L33: ='【1-A-1】標準時収支'!J29 -> 0 | M33: ='【1-A-1】標準時収支'!K29 -> 0 | N33: ='【1-A-1】標準時収支'!L29 -> 0 | O33: ='【1-A-1】標準時収支'!M29 -> 0 | P33: ='【1-A-1】標準時収支'!N29 -> 0 | Q33: ='【1-A-1】標準時収支'!O29 -> 0 | R33: ='【1-A-1】標準時収支'!P29 -> 0 | S33: ='【1-A-1】標準時収支'!Q29 -> 0 | T33: ='【1-A-1】標準時収支'!R29 -> 0 | U33: ='【1-A-1】標準時収支'!S29 -> 0 | V33: ='【1-A-1】標準時収支'!T29 -> 0 | W33: ='【1-A-1】標準時収支'!U29 -> 0 | X33: ='【1-A-1】標準時収支'!V29 -> 0 | Y33: ='【1-A-1】標準時収支'!W29 -> 0 | Z33: ='【1-A-1】標準時収支'!X29 -> 0 | AA33: ='【1-A-1】標準時収支'!Y29 -> 0 | AC33: ='【1-B】悲観時（機構基準）収支'!B29 -> 0 | AD33: ='【1-B】悲観時（機構基準）収支'!C29 -> 0 | AE33: ='【1-B】悲観時（機構基準）収支'!D29 -> （その他項目名） | AF33: ='【1-B】悲観時（機構基準）収支'!E29 -> 0 | AG33: ='【1-B】悲観時（機構基準）収支'!F29 -> 0 | AH33: ='【1-B】悲観時（機構基準）収支'!G29 -> 0 | AI33: ='【1-B】悲観時（機構基準）収支'!H29 -> 0 | AJ33: ='【1-B】悲観時（機構基準）収支'!I29 -> 0 | AK33: ='【1-B】悲観時（機構基準）収支'!J29 -> 0 | AL33: ='【1-B】悲観時（機構基準）収支'!K29 -> 0 | AM33: ='【1-B】悲観時（機構基準）収支'!L29 -> 0 | AN33: ='【1-B】悲観時（機構基準）収支'!M29 -> 0 | AO33: ='【1-B】悲観時（機構基準）収支'!N29 -> 0 | AP33: ='【1-B】悲観時（機構基準）収支'!O29 -> 0 | AQ33: ='【1-B】悲観時（機構基準）収支'!P29 -> 0 | AR33: ='【1-B】悲観時（機構基準）収支'!Q29 -> 0 | AS33: ='【1-B】悲観時（機構基準）収支'!R29 -> 0 | AT33: ='【1-B】悲観時（機構基準）収支'!S29 -> 0 | AU33: ='【1-B】悲観時（機構基準）収支'!T29 -> 0 | AV33: ='【1-B】悲観時（機構基準）収支'!U29 -> 0 | AW33: ='【1-B】悲観時（機構基準）収支'!V29 -> 0 | AX33: ='【1-B】悲観時（機構基準）収支'!W29 -> 0 | AY33: ='【1-B】悲観時（機構基準）収支'!X29 -> 0 | AZ33: ='【1-B】悲観時（機構基準）収支'!Y29 -> 0
C34: 19 | D34: ='【1-A-1】標準時収支'!B30 -> 0 | E34: ='【1-A-1】標準時収支'!C30 -> 0 | F34: ='【1-A-1】標準時収支'!D30 -> （その他項目名） | G34: ='【1-A-1】標準時収支'!E30 -> 0 | H34: ='【1-A-1】標準時収支'!F30 -> 0 | I34: ='【1-A-1】標準時収支'!G30 -> 0 | J34: ='【1-A-1】標準時収支'!H30 -> 0 | K34: ='【1-A-1】標準時収支'!I30 -> 0 | L34: ='【1-A-1】標準時収支'!J30 -> 0 | M34: ='【1-A-1】標準時収支'!K30 -> 0 | N34: ='【1-A-1】標準時収支'!L30 -> 0 | O34: ='【1-A-1】標準時収支'!M30 -> 0 | P34: ='【1-A-1】標準時収支'!N30 -> 0 | Q34: ='【1-A-1】標準時収支'!O30 -> 0 | R34: ='【1-A-1】標準時収支'!P30 -> 0 | S34: ='【1-A-1】標準時収支'!Q30 -> 0 | T34: ='【1-A-1】標準時収支'!R30 -> 0 | U34: ='【1-A-1】標準時収支'!S30 -> 0 | V34: ='【1-A-1】標準時収支'!T30 -> 0 | W34: ='【1-A-1】標準時収支'!U30 -> 0 | X34: ='【1-A-1】標準時収支'!V30 -> 0 | Y34: ='【1-A-1】標準時収支'!W30 -> 0 | Z34: ='【1-A-1】標準時収支'!X30 -> 0 | AA34: ='【1-A-1】標準時収支'!Y30 -> 0 | AC34: ='【1-B】悲観時（機構基準）収支'!B30 -> 0 | AD34: ='【1-B】悲観時（機構基準）収支'!C30 -> 0 | AE34: ='【1-B】悲観時（機構基準）収支'!D30 -> （その他項目名） | AF34: ='【1-B】悲観時（機構基準）収支'!E30 -> 0 | AG34: ='【1-B】悲観時（機構基準）収支'!F30 -> 0 | AH34: ='【1-B】悲観時（機構基準）収支'!G30 -> 0 | AI34: ='【1-B】悲観時（機構基準）収支'!H30 -> 0 | AJ34: ='【1-B】悲観時（機構基準）収支'!I30 -> 0 | AK34: ='【1-B】悲観時（機構基準）収支'!J30 -> 0 | AL34: ='【1-B】悲観時（機構基準）収支'!K30 -> 0 | AM34: ='【1-B】悲観時（機構基準）収支'!L30 -> 0 | AN34: ='【1-B】悲観時（機構基準）収支'!M30 -> 0 | AO34: ='【1-B】悲観時（機構基準）収支'!N30 -> 0 | AP34: ='【1-B】悲観時（機構基準）収支'!O30 -> 0 | AQ34: ='【1-B】悲観時（機構基準）収支'!P30 -> 0 | AR34: ='【1-B】悲観時（機構基準）収支'!Q30 -> 0 | AS34: ='【1-B】悲観時（機構基準）収支'!R30 -> 0 | AT34: ='【1-B】悲観時（機構基準）収支'!S30 -> 0 | AU34: ='【1-B】悲観時（機構基準）収支'!T30 -> 0 | AV34: ='【1-B】悲観時（機構基準）収支'!U30 -> 0 | AW34: ='【1-B】悲観時（機構基準）収支'!V30 -> 0 | AX34: ='【1-B】悲観時（機構基準）収支'!W30 -> 0 | AY34: ='【1-B】悲観時（機構基準）収支'!X30 -> 0 | AZ34: ='【1-B】悲観時（機構基準）収支'!Y30 -> 0
C35: 20 | D35: ='【1-A-1】標準時収支'!B31 -> 0 | E35: ='【1-A-1】標準時収支'!C31 -> その他収入 | F35: ='【1-A-1】標準時収支'!D31 -> 0 | G35: ='【1-A-1】標準時収支'!E31 -> 0 | H35: ='【1-A-1】標準時収支'!F31 -> 0 | I35: ='【1-A-1】標準時収支'!G31 -> 0 | J35: ='【1-A-1】標準時収支'!H31 -> 0 | K35: ='【1-A-1】標準時収支'!I31 -> 0 | L35: ='【1-A-1】標準時収支'!J31 -> 0 | M35: ='【1-A-1】標準時収支'!K31 -> 0 | N35: ='【1-A-1】標準時収支'!L31 -> 0 | O35: ='【1-A-1】標準時収支'!M31 -> 0 | P35: ='【1-A-1】標準時収支'!N31 -> 0 | Q35: ='【1-A-1】標準時収支'!O31 -> 0 | R35: ='【1-A-1】標準時収支'!P31 -> 0 | S35: ='【1-A-1】標準時収支'!Q31 -> 0 | T35: ='【1-A-1】標準時収支'!R31 -> 0 | U35: ='【1-A-1】標準時収支'!S31 -> 0 | V35: ='【1-A-1】標準時収支'!T31 -> 0 | W35: ='【1-A-1】標準時収支'!U31 -> 0 | X35: ='【1-A-1】標準時収支'!V31 -> 0 | Y35: ='【1-A-1】標準時収支'!W31 -> 0 | Z35: ='【1-A-1】標準時収支'!X31 -> 0 | AA35: ='【1-A-1】標準時収支'!Y31 -> 0 | AC35: ='【1-B】悲観時（機構基準）収支'!B31 -> 0 | AD35: ='【1-B】悲観時（機構基準）収支'!C31 -> その他収入 | AE35: ='【1-B】悲観時（機構基準）収支'!D31 -> 0 | AF35: ='【1-B】悲観時（機構基準）収支'!E31 -> 0 | AG35: ='【1-B】悲観時（機構基準）収支'!F31 -> 0 | AH35: ='【1-B】悲観時（機構基準）収支'!G31 -> 0 | AI35: ='【1-B】悲観時（機構基準）収支'!H31 -> 0 | AJ35: ='【1-B】悲観時（機構基準）収支'!I31 -> 0 | AK35: ='【1-B】悲観時（機構基準）収支'!J31 -> 0 | AL35: ='【1-B】悲観時（機構基準）収支'!K31 -> 0 | AM35: ='【1-B】悲観時（機構基準）収支'!L31 -> 0 | AN35: ='【1-B】悲観時（機構基準）収支'!M31 -> 0 | AO35: ='【1-B】悲観時（機構基準）収支'!N31 -> 0 | AP35: ='【1-B】悲観時（機構基準）収支'!O31 -> 0 | AQ35: ='【1-B】悲観時（機構基準）収支'!P31 -> 0 | AR35: ='【1-B】悲観時（機構基準）収支'!Q31 -> 0 | AS35: ='【1-B】悲観時（機構基準）収支'!R31 -> 0 | AT35: ='【1-B】悲観時（機構基準）収支'!S31 -> 0 | AU35: ='【1-B】悲観時（機構基準）収支'!T31 -> 0 | AV35: ='【1-B】悲観時（機構基準）収支'!U31 -> 0 | AW35: ='【1-B】悲観時（機構基準）収支'!V31 -> 0 | AX35: ='【1-B】悲観時（機構基準）収支'!W31 -> 0 | AY35: ='【1-B】悲観時（機構基準）収支'!X31 -> 0 | AZ35: ='【1-B】悲観時（機構基準）収支'!Y31 -> 0
C36: 21 | D36: ='【1-A-1】標準時収支'!B32 -> 0 | E36: ='【1-A-1】標準時収支'!C32 -> 0 | F36: ='【1-A-1】標準時収支'!D32 -> （その他項目名） | G36: ='【1-A-1】標準時収支'!E32 -> 0 | H36: ='【1-A-1】標準時収支'!F32 -> 0 | I36: ='【1-A-1】標準時収支'!G32 -> 0 | J36: ='【1-A-1】標準時収支'!H32 -> 0 | K36: ='【1-A-1】標準時収支'!I32 -> 0 | L36: ='【1-A-1】標準時収支'!J32 -> 0 | M36: ='【1-A-1】標準時収支'!K32 -> 0 | N36: ='【1-A-1】標準時収支'!L32 -> 0 | O36: ='【1-A-1】標準時収支'!M32 -> 0 | P36: ='【1-A-1】標準時収支'!N32 -> 0 | Q36: ='【1-A-1】標準時収支'!O32 -> 0 | R36: ='【1-A-1】標準時収支'!P32 -> 0 | S36: ='【1-A-1】標準時収支'!Q32 -> 0 | T36: ='【1-A-1】標準時収支'!R32 -> 0 | U36: ='【1-A-1】標準時収支'!S32 -> 0 | V36: ='【1-A-1】標準時収支'!T32 -> 0 | W36: ='【1-A-1】標準時収支'!U32 -> 0 | X36: ='【1-A-1】標準時収支'!V32 -> 0 | Y36: ='【1-A-1】標準時収支'!W32 -> 0 | Z36: ='【1-A-1】標準時収支'!X32 -> 0 | AA36: ='【1-A-1】標準時収支'!Y32 -> 0 | AC36: ='【1-B】悲観時（機構基準）収支'!B32 -> 0 | AD36: ='【1-B】悲観時（機構基準）収支'!C32 -> 0 | AE36: ='【1-B】悲観時（機構基準）収支'!D32 -> （その他項目名） | AF36: ='【1-B】悲観時（機構基準）収支'!E32 -> 0 | AG36: ='【1-B】悲観時（機構基準）収支'!F32 -> 0 | AH36: ='【1-B】悲観時（機構基準）収支'!G32 -> 0 | AI36: ='【1-B】悲観時（機構基準）収支'!H32 -> 0 | AJ36: ='【1-B】悲観時（機構基準）収支'!I32 -> 0 | AK36: ='【1-B】悲観時（機構基準）収支'!J32 -> 0 | AL36: ='【1-B】悲観時（機構基準）収支'!K32 -> 0 | AM36: ='【1-B】悲観時（機構基準）収支'!L32 -> 0 | AN36: ='【1-B】悲観時（機構基準）収支'!M32 -> 0 | AO36: ='【1-B】悲観時（機構基準）収支'!N32 -> 0 | AP36: ='【1-B】悲観時（機構基準）収支'!O32 -> 0 | AQ36: ='【1-B】悲観時（機構基準）収支'!P32 -> 0 | AR36: ='【1-B】悲観時（機構基準）収支'!Q32 -> 0 | AS36: ='【1-B】悲観時（機構基準）収支'!R32 -> 0 | AT36: ='【1-B】悲観時（機構基準）収支'!S32 -> 0 | AU36: ='【1-B】悲観時（機構基準）収支'!T32 -> 0 | AV36: ='【1-B】悲観時（機構基準）収支'!U32 -> 0 | AW36: ='【1-B】悲観時（機構基準）収支'!V32 -> 0 | AX36: ='【1-B】悲観時（機構基準）収支'!W32 -> 0 | AY36: ='【1-B】悲観時（機構基準）収支'!X32 -> 0 | AZ36: ='【1-B】悲観時（機構基準）収支'!Y32 -> 0
C37: 22 | D37: ='【1-A-1】標準時収支'!B33 -> 0 | E37: ='【1-A-1】標準時収支'!C33 -> 0 | F37: ='【1-A-1】標準時収支'!D33 -> （その他項目名） | G37: ='【1-A-1】標準時収支'!E33 -> 0 | H37: ='【1-A-1】標準時収支'!F33 -> 0 | I37: ='【1-A-1】標準時収支'!G33 -> 0 | J37: ='【1-A-1】標準時収支'!H33 -> 0 | K37: ='【1-A-1】標準時収支'!I33 -> 0 | L37: ='【1-A-1】標準時収支'!J33 -> 0 | M37: ='【1-A-1】標準時収支'!K33 -> 0 | N37: ='【1-A-1】標準時収支'!L33 -> 0 | O37: ='【1-A-1】標準時収支'!M33 -> 0 | P37: ='【1-A-1】標準時収支'!N33 -> 0 | Q37: ='【1-A-1】標準時収支'!O33 -> 0 | R37: ='【1-A-1】標準時収支'!P33 -> 0 | S37: ='【1-A-1】標準時収支'!Q33 -> 0 | T37: ='【1-A-1】標準時収支'!R33 -> 0 | U37: ='【1-A-1】標準時収支'!S33 -> 0 | V37: ='【1-A-1】標準時収支'!T33 -> 0 | W37: ='【1-A-1】標準時収支'!U33 -> 0 | X37: ='【1-A-1】標準時収支'!V33 -> 0 | Y37: ='【1-A-1】標準時収支'!W33 -> 0 | Z37: ='【1-A-1】標準時収支'!X33 -> 0 | AA37: ='【1-A-1】標準時収支'!Y33 -> 0 | AC37: ='【1-B】悲観時（機構基準）収支'!B33 -> 0 | AD37: ='【1-B】悲観時（機構基準）収支'!C33 -> 0 | AE37: ='【1-B】悲観時（機構基準）収支'!D33 -> （その他項目名） | AF37: ='【1-B】悲観時（機構基準）収支'!E33 -> 0 | AG37: ='【1-B】悲観時（機構基準）収支'!F33 -> 0 | AH37: ='【1-B】悲観時（機構基準）収支'!G33 -> 0 | AI37: ='【1-B】悲観時（機構基準）収支'!H33 -> 0 | AJ37: ='【1-B】悲観時（機構基準）収支'!I33 -> 0 | AK37: ='【1-B】悲観時（機構基準）収支'!J33 -> 0 | AL37: ='【1-B】悲観時（機構基準）収支'!K33 -> 0 | AM37: ='【1-B】悲観時（機構基準）収支'!L33 -> 0 | AN37: ='【1-B】悲観時（機構基準）収支'!M33 -> 0 | AO37: ='【1-B】悲観時（機構基準）収支'!N33 -> 0 | AP37: ='【1-B】悲観時（機構基準）収支'!O33 -> 0 | AQ37: ='【1-B】悲観時（機構基準）収支'!P33 -> 0 | AR37: ='【1-B】悲観時（機構基準）収支'!Q33 -> 0 | AS37: ='【1-B】悲観時（機構基準）収支'!R33 -> 0 | AT37: ='【1-B】悲観時（機構基準）収支'!S33 -> 0 | AU37: ='【1-B】悲観時（機構基準）収支'!T33 -> 0 | AV37: ='【1-B】悲観時（機構基準）収支'!U33 -> 0 | AW37: ='【1-B】悲観時（機構基準）収支'!V33 -> 0 | AX37: ='【1-B】悲観時（機構基準）収支'!W33 -> 0 | AY37: ='【1-B】悲観時（機構基準）収支'!X33 -> 0 | AZ37: ='【1-B】悲観時（機構基準）収支'!Y33 -> 0
C38: 23 | D38: ='【1-A-1】標準時収支'!B34 -> 0 | E38: ='【1-A-1】標準時収支'!C34 -> 0 | F38: ='【1-A-1】標準時収支'!D34 -> （その他項目名） | G38: ='【1-A-1】標準時収支'!E34 -> 0 | H38: ='【1-A-1】標準時収支'!F34 -> 0 | I38: ='【1-A-1】標準時収支'!G34 -> 0 | J38: ='【1-A-1】標準時収支'!H34 -> 0 | K38: ='【1-A-1】標準時収支'!I34 -> 0 | L38: ='【1-A-1】標準時収支'!J34 -> 0 | M38: ='【1-A-1】標準時収支'!K34 -> 0 | N38: ='【1-A-1】標準時収支'!L34 -> 0 | O38: ='【1-A-1】標準時収支'!M34 -> 0 | P38: ='【1-A-1】標準時収支'!N34 -> 0 | Q38: ='【1-A-1】標準時収支'!O34 -> 0 | R38: ='【1-A-1】標準時収支'!P34 -> 0 | S38: ='【1-A-1】標準時収支'!Q34 -> 0 | T38: ='【1-A-1】標準時収支'!R34 -> 0 | U38: ='【1-A-1】標準時収支'!S34 -> 0 | V38: ='【1-A-1】標準時収支'!T34 -> 0 | W38: ='【1-A-1】標準時収支'!U34 -> 0 | X38: ='【1-A-1】標準時収支'!V34 -> 0 | Y38: ='【1-A-1】標準時収支'!W34 -> 0 | Z38: ='【1-A-1】標準時収支'!X34 -> 0 | AA38: ='【1-A-1】標準時収支'!Y34 -> 0 | AC38: ='【1-B】悲観時（機構基準）収支'!B34 -> 0 | AD38: ='【1-B】悲観時（機構基準）収支'!C34 -> 0 | AE38: ='【1-B】悲観時（機構基準）収支'!D34 -> （その他項目名） | AF38: ='【1-B】悲観時（機構基準）収支'!E34 -> 0 | AG38: ='【1-B】悲観時（機構基準）収支'!F34 -> 0 | AH38: ='【1-B】悲観時（機構基準）収支'!G34 -> 0 | AI38: ='【1-B】悲観時（機構基準）収支'!H34 -> 0 | AJ38: ='【1-B】悲観時（機構基準）収支'!I34 -> 0 | AK38: ='【1-B】悲観時（機構基準）収支'!J34 -> 0 | AL38: ='【1-B】悲観時（機構基準）収支'!K34 -> 0 | AM38: ='【1-B】悲観時（機構基準）収支'!L34 -> 0 | AN38: ='【1-B】悲観時（機構基準）収支'!M34 -> 0 | AO38: ='【1-B】悲観時（機構基準）収支'!N34 -> 0 | AP38: ='【1-B】悲観時（機構基準）収支'!O34 -> 0 | AQ38: ='【1-B】悲観時（機構基準）収支'!P34 -> 0 | AR38: ='【1-B】悲観時（機構基準）収支'!Q34 -> 0 | AS38: ='【1-B】悲観時（機構基準）収支'!R34 -> 0 | AT38: ='【1-B】悲観時（機構基準）収支'!S34 -> 0 | AU38: ='【1-B】悲観時（機構基準）収支'!T34 -> 0 | AV38: ='【1-B】悲観時（機構基準）収支'!U34 -> 0 | AW38: ='【1-B】悲観時（機構基準）収支'!V34 -> 0 | AX38: ='【1-B】悲観時（機構基準）収支'!W34 -> 0 | AY38: ='【1-B】悲観時（機構基準）収支'!X34 -> 0 | AZ38: ='【1-B】悲観時（機構基準）収支'!Y34 -> 0
C39: 24 | D39: ='【1-A-1】標準時収支'!B35 -> 0 | E39: ='【1-A-1】標準時収支'!C35 -> 0 | F39: ='【1-A-1】標準時収支'!D35 -> （その他項目名） | G39: ='【1-A-1】標準時収支'!E35 -> 0 | H39: ='【1-A-1】標準時収支'!F35 -> 0 | I39: ='【1-A-1】標準時収支'!G35 -> 0 | J39: ='【1-A-1】標準時収支'!H35 -> 0 | K39: ='【1-A-1】標準時収支'!I35 -> 0 | L39: ='【1-A-1】標準時収支'!J35 -> 0 | M39: ='【1-A-1】標準時収支'!K35 -> 0 | N39: ='【1-A-1】標準時収支'!L35 -> 0 | O39: ='【1-A-1】標準時収支'!M35 -> 0 | P39: ='【1-A-1】標準時収支'!N35 -> 0 | Q39: ='【1-A-1】標準時収支'!O35 -> 0 | R39: ='【1-A-1】標準時収支'!P35 -> 0 | S39: ='【1-A-1】標準時収支'!Q35 -> 0 | T39: ='【1-A-1】標準時収支'!R35 -> 0 | U39: ='【1-A-1】標準時収支'!S35 -> 0 | V39: ='【1-A-1】標準時収支'!T35 -> 0 | W39: ='【1-A-1】標準時収支'!U35 -> 0 | X39: ='【1-A-1】標準時収支'!V35 -> 0 | Y39: ='【1-A-1】標準時収支'!W35 -> 0 | Z39: ='【1-A-1】標準時収支'!X35 -> 0 | AA39: ='【1-A-1】標準時収支'!Y35 -> 0 | AC39: ='【1-B】悲観時（機構基準）収支'!B35 -> 0 | AD39: ='【1-B】悲観時（機構基準）収支'!C35 -> 0 | AE39: ='【1-B】悲観時（機構基準）収支'!D35 -> （その他項目名） | AF39: ='【1-B】悲観時（機構基準）収支'!E35 -> 0 | AG39: ='【1-B】悲観時（機構基準）収支'!F35 -> 0 | AH39: ='【1-B】悲観時（機構基準）収支'!G35 -> 0 | AI39: ='【1-B】悲観時（機構基準）収支'!H35 -> 0 | AJ39: ='【1-B】悲観時（機構基準）収支'!I35 -> 0 | AK39: ='【1-B】悲観時（機構基準）収支'!J35 -> 0 | AL39: ='【1-B】悲観時（機構基準）収支'!K35 -> 0 | AM39: ='【1-B】悲観時（機構基準）収支'!L35 -> 0 | AN39: ='【1-B】悲観時（機構基準）収支'!M35 -> 0 | AO39: ='【1-B】悲観時（機構基準）収支'!N35 -> 0 | AP39: ='【1-B】悲観時（機構基準）収支'!O35 -> 0 | AQ39: ='【1-B】悲観時（機構基準）収支'!P35 -> 0 | AR39: ='【1-B】悲観時（機構基準）収支'!Q35 -> 0 | AS39: ='【1-B】悲観時（機構基準）収支'!R35 -> 0 | AT39: ='【1-B】悲観時（機構基準）収支'!S35 -> 0 | AU39: ='【1-B】悲観時（機構基準）収支'!T35 -> 0 | AV39: ='【1-B】悲観時（機構基準）収支'!U35 -> 0 | AW39: ='【1-B】悲観時（機構基準）収支'!V35 -> 0 | AX39: ='【1-B】悲観時（機構基準）収支'!W35 -> 0 | AY39: ='【1-B】悲観時（機構基準）収支'!X35 -> 0 | AZ39: ='【1-B】悲観時（機構基準）収支'!Y35 -> 0
C40: 25 | D40: ='【1-A-1】標準時収支'!B36 -> 0 | E40: ='【1-A-1】標準時収支'!C36 -> 0 | F40: ='【1-A-1】標準時収支'!D36 -> （その他項目名） | G40: ='【1-A-1】標準時収支'!E36 -> 0 | H40: ='【1-A-1】標準時収支'!F36 -> 0 | I40: ='【1-A-1】標準時収支'!G36 -> 0 | J40: ='【1-A-1】標準時収支'!H36 -> 0 | K40: ='【1-A-1】標準時収支'!I36 -> 0 | L40: ='【1-A-1】標準時収支'!J36 -> 0 | M40: ='【1-A-1】標準時収支'!K36 -> 0 | N40: ='【1-A-1】標準時収支'!L36 -> 0 | O40: ='【1-A-1】標準時収支'!M36 -> 0 | P40: ='【1-A-1】標準時収支'!N36 -> 0 | Q40: ='【1-A-1】標準時収支'!O36 -> 0 | R40: ='【1-A-1】標準時収支'!P36 -> 0 | S40: ='【1-A-1】標準時収支'!Q36 -> 0 | T40: ='【1-A-1】標準時収支'!R36 -> 0 | U40: ='【1-A-1】標準時収支'!S36 -> 0 | V40: ='【1-A-1】標準時収支'!T36 -> 0 | W40: ='【1-A-1】標準時収支'!U36 -> 0 | X40: ='【1-A-1】標準時収支'!V36 -> 0 | Y40: ='【1-A-1】標準時収支'!W36 -> 0 | Z40: ='【1-A-1】標準時収支'!X36 -> 0 | AA40: ='【1-A-1】標準時収支'!Y36 -> 0 | AC40: ='【1-B】悲観時（機構基準）収支'!B36 -> 0 | AD40: ='【1-B】悲観時（機構基準）収支'!C36 -> 0 | AE40: ='【1-B】悲観時（機構基準）収支'!D36 -> （その他項目名） | AF40: ='【1-B】悲観時（機構基準）収支'!E36 -> 0 | AG40: ='【1-B】悲観時（機構基準）収支'!F36 -> 0 | AH40: ='【1-B】悲観時（機構基準）収支'!G36 -> 0 | AI40: ='【1-B】悲観時（機構基準）収支'!H36 -> 0 | AJ40: ='【1-B】悲観時（機構基準）収支'!I36 -> 0 | AK40: ='【1-B】悲観時（機構基準）収支'!J36 -> 0 | AL40: ='【1-B】悲観時（機構基準）収支'!K36 -> 0 | AM40: ='【1-B】悲観時（機構基準）収支'!L36 -> 0 | AN40: ='【1-B】悲観時（機構基準）収支'!M36 -> 0 | AO40: ='【1-B】悲観時（機構基準）収支'!N36 -> 0 | AP40: ='【1-B】悲観時（機構基準）収支'!O36 -> 0 | AQ40: ='【1-B】悲観時（機構基準）収支'!P36 -> 0 | AR40: ='【1-B】悲観時（機構基準）収支'!Q36 -> 0 | AS40: ='【1-B】悲観時（機構基準）収支'!R36 -> 0 | AT40: ='【1-B】悲観時（機構基準）収支'!S36 -> 0 | AU40: ='【1-B】悲観時（機構基準）収支'!T36 -> 0 | AV40: ='【1-B】悲観時（機構基準）収支'!U36 -> 0 | AW40: ='【1-B】悲観時（機構基準）収支'!V36 -> 0 | AX40: ='【1-B】悲観時（機構基準）収支'!W36 -> 0 | AY40: ='【1-B】悲観時（機構基準）収支'!X36 -> 0 | AZ40: ='【1-B】悲観時（機構基準）収支'!Y36 -> 0
C41: 26 | D41: ='【1-A-1】標準時収支'!B37 -> 0 | E41: ='【1-A-1】標準時収支'!C37 -> 当初想定するサービス対価 | F41: ='【1-A-1】標準時収支'!D37 -> 0 | G41: ='【1-A-1】標準時収支'!E37 -> 0 | H41: ='【1-A-1】標準時収支'!F37 -> 0 | I41: ='【1-A-1】標準時収支'!G37 -> 0 | J41: ='【1-A-1】標準時収支'!H37 -> 0 | K41: ='【1-A-1】標準時収支'!I37 -> 0 | L41: ='【1-A-1】標準時収支'!J37 -> 0 | M41: ='【1-A-1】標準時収支'!K37 -> 0 | N41: ='【1-A-1】標準時収支'!L37 -> 0 | O41: ='【1-A-1】標準時収支'!M37 -> 0 | P41: ='【1-A-1】標準時収支'!N37 -> 0 | Q41: ='【1-A-1】標準時収支'!O37 -> 0 | R41: ='【1-A-1】標準時収支'!P37 -> 0 | S41: ='【1-A-1】標準時収支'!Q37 -> 0 | T41: ='【1-A-1】標準時収支'!R37 -> 0 | U41: ='【1-A-1】標準時収支'!S37 -> 0 | V41: ='【1-A-1】標準時収支'!T37 -> 0 | W41: ='【1-A-1】標準時収支'!U37 -> 0 | X41: ='【1-A-1】標準時収支'!V37 -> 0 | Y41: ='【1-A-1】標準時収支'!W37 -> 0 | Z41: ='【1-A-1】標準時収支'!X37 -> 0 | AA41: ='【1-A-1】標準時収支'!Y37 -> 0 | AC41: ='【1-B】悲観時（機構基準）収支'!B37 -> 0 | AD41: ='【1-B】悲観時（機構基準）収支'!C37 -> 当初想定するサービス対価 | AE41: ='【1-B】悲観時（機構基準）収支'!D37 -> 0 | AF41: ='【1-B】悲観時（機構基準）収支'!E37 -> 0 | AG41: ='【1-B】悲観時（機構基準）収支'!F37 -> 0 | AH41: ='【1-B】悲観時（機構基準）収支'!G37 -> 0 | AI41: ='【1-B】悲観時（機構基準）収支'!H37 -> 0 | AJ41: ='【1-B】悲観時（機構基準）収支'!I37 -> 0 | AK41: ='【1-B】悲観時（機構基準）収支'!J37 -> 0 | AL41: ='【1-B】悲観時（機構基準）収支'!K37 -> 0 | AM41: ='【1-B】悲観時（機構基準）収支'!L37 -> 0 | AN41: ='【1-B】悲観時（機構基準）収支'!M37 -> 0 | AO41: ='【1-B】悲観時（機構基準）収支'!N37 -> 0 | AP41: ='【1-B】悲観時（機構基準）収支'!O37 -> 0 | AQ41: ='【1-B】悲観時（機構基準）収支'!P37 -> 0 | AR41: ='【1-B】悲観時（機構基準）収支'!Q37 -> 0 | AS41: ='【1-B】悲観時（機構基準）収支'!R37 -> 0 | AT41: ='【1-B】悲観時（機構基準）収支'!S37 -> 0 | AU41: ='【1-B】悲観時（機構基準）収支'!T37 -> 0 | AV41: ='【1-B】悲観時（機構基準）収支'!U37 -> 0 | AW41: ='【1-B】悲観時（機構基準）収支'!V37 -> 0 | AX41: ='【1-B】悲観時（機構基準）収支'!W37 -> 0 | AY41: ='【1-B】悲観時（機構基準）収支'!X37 -> 0 | AZ41: ='【1-B】悲観時（機構基準）収支'!Y37 -> 0
C42: 27 | D42: ='【1-A-1】標準時収支'!B38 -> 0 | E42: ='【1-A-1】標準時収支'!C38 -> 納付相当額 | F42: ='【1-A-1】標準時収支'!D38 -> 0 | G42: ='【1-A-1】標準時収支'!E38 -> 0 | H42: ='【1-A-1】標準時収支'!F38 -> 0 | I42: ='【1-A-1】標準時収支'!G38 -> 0 | J42: ='【1-A-1】標準時収支'!H38 -> 0 | K42: ='【1-A-1】標準時収支'!I38 -> 0 | L42: ='【1-A-1】標準時収支'!J38 -> 0 | M42: ='【1-A-1】標準時収支'!K38 -> 0 | N42: ='【1-A-1】標準時収支'!L38 -> 0 | O42: ='【1-A-1】標準時収支'!M38 -> 0 | P42: ='【1-A-1】標準時収支'!N38 -> 0 | Q42: ='【1-A-1】標準時収支'!O38 -> 0 | R42: ='【1-A-1】標準時収支'!P38 -> 0 | S42: ='【1-A-1】標準時収支'!Q38 -> 0 | T42: ='【1-A-1】標準時収支'!R38 -> 0 | U42: ='【1-A-1】標準時収支'!S38 -> 0 | V42: ='【1-A-1】標準時収支'!T38 -> 0 | W42: ='【1-A-1】標準時収支'!U38 -> 0 | X42: ='【1-A-1】標準時収支'!V38 -> 0 | Y42: ='【1-A-1】標準時収支'!W38 -> 0 | Z42: ='【1-A-1】標準時収支'!X38 -> 0 | AA42: ='【1-A-1】標準時収支'!Y38 -> 0 | AC42: ='【1-B】悲観時（機構基準）収支'!B38 -> 0 | AD42: ='【1-B】悲観時（機構基準）収支'!C38 -> 納付相当額 | AE42: ='【1-B】悲観時（機構基準）収支'!D38 -> 0 | AF42: ='【1-B】悲観時（機構基準）収支'!E38 -> 0 | AG42: ='【1-B】悲観時（機構基準）収支'!F38 -> 0 | AH42: ='【1-B】悲観時（機構基準）収支'!G38 -> 0 | AI42: ='【1-B】悲観時（機構基準）収支'!H38 -> 0 | AJ42: ='【1-B】悲観時（機構基準）収支'!I38 -> 0 | AK42: ='【1-B】悲観時（機構基準）収支'!J38 -> 0 | AL42: ='【1-B】悲観時（機構基準）収支'!K38 -> 0 | AM42: ='【1-B】悲観時（機構基準）収支'!L38 -> 0 | AN42: ='【1-B】悲観時（機構基準）収支'!M38 -> 0 | AO42: ='【1-B】悲観時（機構基準）収支'!N38 -> 0 | AP42: ='【1-B】悲観時（機構基準）収支'!O38 -> 0 | AQ42: ='【1-B】悲観時（機構基準）収支'!P38 -> 0 | AR42: ='【1-B】悲観時（機構基準）収支'!Q38 -> 0 | AS42: ='【1-B】悲観時（機構基準）収支'!R38 -> 0 | AT42: ='【1-B】悲観時（機構基準）収支'!S38 -> 0 | AU42: ='【1-B】悲観時（機構基準）収支'!T38 -> 0 | AV42: ='【1-B】悲観時（機構基準）収支'!U38 -> 0 | AW42: ='【1-B】悲観時（機構基準）収支'!V38 -> 0 | AX42: ='【1-B】悲観時（機構基準）収支'!W38 -> 0 | AY42: ='【1-B】悲観時（機構基準）収支'!X38 -> 0 | AZ42: ='【1-B】悲観時（機構基準）収支'!Y38 -> 0
C43: 28 | D43: ='【1-A-1】標準時収支'!B39 -> 0 | E43: ='【1-A-1】標準時収支'!C39 -> 追加給付額 | F43: ='【1-A-1】標準時収支'!D39 -> 0 | G43: ='【1-A-1】標準時収支'!E39 -> 0 | H43: ='【1-A-1】標準時収支'!F39 -> 0 | I43: ='【1-A-1】標準時収支'!G39 -> 0 | J43: ='【1-A-1】標準時収支'!H39 -> 0 | K43: ='【1-A-1】標準時収支'!I39 -> 0 | L43: ='【1-A-1】標準時収支'!J39 -> 0 | M43: ='【1-A-1】標準時収支'!K39 -> 0 | N43: ='【1-A-1】標準時収支'!L39 -> 0 | O43: ='【1-A-1】標準時収支'!M39 -> 0 | P43: ='【1-A-1】標準時収支'!N39 -> 0 | Q43: ='【1-A-1】標準時収支'!O39 -> 0 | R43: ='【1-A-1】標準時収支'!P39 -> 0 | S43: ='【1-A-1】標準時収支'!Q39 -> 0 | T43: ='【1-A-1】標準時収支'!R39 -> 0 | U43: ='【1-A-1】標準時収支'!S39 -> 0 | V43: ='【1-A-1】標準時収支'!T39 -> 0 | W43: ='【1-A-1】標準時収支'!U39 -> 0 | X43: ='【1-A-1】標準時収支'!V39 -> 0 | Y43: ='【1-A-1】標準時収支'!W39 -> 0 | Z43: ='【1-A-1】標準時収支'!X39 -> 0 | AA43: ='【1-A-1】標準時収支'!Y39 -> 0 | AC43: ='【1-B】悲観時（機構基準）収支'!B39 -> 0 | AD43: ='【1-B】悲観時（機構基準）収支'!C39 -> 追加給付額 | AE43: ='【1-B】悲観時（機構基準）収支'!D39 -> 0 | AF43: ='【1-B】悲観時（機構基準）収支'!E39 -> 0 | AG43: ='【1-B】悲観時（機構基準）収支'!F39 -> 0 | AH43: ='【1-B】悲観時（機構基準）収支'!G39 -> 0 | AI43: ='【1-B】悲観時（機構基準）収支'!H39 -> 0 | AJ43: ='【1-B】悲観時（機構基準）収支'!I39 -> 0 | AK43: ='【1-B】悲観時（機構基準）収支'!J39 -> 0 | AL43: ='【1-B】悲観時（機構基準）収支'!K39 -> 0 | AM43: ='【1-B】悲観時（機構基準）収支'!L39 -> 0 | AN43: ='【1-B】悲観時（機構基準）収支'!M39 -> 0 | AO43: ='【1-B】悲観時（機構基準）収支'!N39 -> 0 | AP43: ='【1-B】悲観時（機構基準）収支'!O39 -> 0 | AQ43: ='【1-B】悲観時（機構基準）収支'!P39 -> 0 | AR43: ='【1-B】悲観時（機構基準）収支'!Q39 -> 0 | AS43: ='【1-B】悲観時（機構基準）収支'!R39 -> 0 | AT43: ='【1-B】悲観時（機構基準）収支'!S39 -> 0 | AU43: ='【1-B】悲観時（機構基準）収支'!T39 -> 0 | AV43: ='【1-B】悲観時（機構基準）収支'!U39 -> 0 | AW43: ='【1-B】悲観時（機構基準）収支'!V39 -> 0 | AX43: ='【1-B】悲観時（機構基準）収支'!W39 -> 0 | AY43: ='【1-B】悲観時（機構基準）収支'!X39 -> 0 | AZ43: ='【1-B】悲観時（機構基準）収支'!Y39 -> 0
C44: 29 | D44: ='【1-A-1】標準時収支'!B40 -> 費用 | E44: ='【1-A-1】標準時収支'!C40 -> 0 | F44: ='【1-A-1】標準時収支'!D40 -> 0 | G44: ='【1-A-1】標準時収支'!E40 -> 0 | H44: ='【1-A-1】標準時収支'!F40 -> 0 | I44: ='【1-A-1】標準時収支'!G40 -> 0 | J44: ='【1-A-1】標準時収支'!H40 -> 0 | K44: ='【1-A-1】標準時収支'!I40 -> 0 | L44: ='【1-A-1】標準時収支'!J40 -> 0 | M44: ='【1-A-1】標準時収支'!K40 -> 0 | N44: ='【1-A-1】標準時収支'!L40 -> 0 | O44: ='【1-A-1】標準時収支'!M40 -> 0 | P44: ='【1-A-1】標準時収支'!N40 -> 0 | Q44: ='【1-A-1】標準時収支'!O40 -> 0 | R44: ='【1-A-1】標準時収支'!P40 -> 0 | S44: ='【1-A-1】標準時収支'!Q40 -> 0 | T44: ='【1-A-1】標準時収支'!R40 -> 0 | U44: ='【1-A-1】標準時収支'!S40 -> 0 | V44: ='【1-A-1】標準時収支'!T40 -> 0 | W44: ='【1-A-1】標準時収支'!U40 -> 0 | X44: ='【1-A-1】標準時収支'!V40 -> 0 | Y44: ='【1-A-1】標準時収支'!W40 -> 0 | Z44: ='【1-A-1】標準時収支'!X40 -> 0 | AA44: ='【1-A-1】標準時収支'!Y40 -> 0 | AC44: ='【1-B】悲観時（機構基準）収支'!B40 -> 費用 | AD44: ='【1-B】悲観時（機構基準）収支'!C40 -> 0 | AE44: ='【1-B】悲観時（機構基準）収支'!D40 -> 0 | AF44: ='【1-B】悲観時（機構基準）収支'!E40 -> 0 | AG44: ='【1-B】悲観時（機構基準）収支'!F40 -> 0 | AH44: ='【1-B】悲観時（機構基準）収支'!G40 -> 0 | AI44: ='【1-B】悲観時（機構基準）収支'!H40 -> 0 | AJ44: ='【1-B】悲観時（機構基準）収支'!I40 -> 0 | AK44: ='【1-B】悲観時（機構基準）収支'!J40 -> 0 | AL44: ='【1-B】悲観時（機構基準）収支'!K40 -> 0 | AM44: ='【1-B】悲観時（機構基準）収支'!L40 -> 0 | AN44: ='【1-B】悲観時（機構基準）収支'!M40 -> 0 | AO44: ='【1-B】悲観時（機構基準）収支'!N40 -> 0 | AP44: ='【1-B】悲観時（機構基準）収支'!O40 -> 0 | AQ44: ='【1-B】悲観時（機構基準）収支'!P40 -> 0 | AR44: ='【1-B】悲観時（機構基準）収支'!Q40 -> 0 | AS44: ='【1-B】悲観時（機構基準）収支'!R40 -> 0 | AT44: ='【1-B】悲観時（機構基準）収支'!S40 -> 0 | AU44: ='【1-B】悲観時（機構基準）収支'!T40 -> 0 | AV44: ='【1-B】悲観時（機構基準）収支'!U40 -> 0 | AW44: ='【1-B】悲観時（機構基準）収支'!V40 -> 0 | AX44: ='【1-B】悲観時（機構基準）収支'!W40 -> 0 | AY44: ='【1-B】悲観時（機構基準）収支'!X40 -> 0 | AZ44: ='【1-B】悲観時（機構基準）収支'!Y40 -> 0
C45: 30 | D45: ='【1-A-1】標準時収支'!B41 -> 0 | E45: ='【1-A-1】標準時収支'!C41 -> 事業費 | F45: ='【1-A-1】標準時収支'!D41 -> 0 | G45: ='【1-A-1】標準時収支'!E41 -> 0 | H45: ='【1-A-1】標準時収支'!F41 -> 0 | I45: ='【1-A-1】標準時収支'!G41 -> 0 | J45: ='【1-A-1】標準時収支'!H41 -> 0 | K45: ='【1-A-1】標準時収支'!I41 -> 0 | L45: ='【1-A-1】標準時収支'!J41 -> 0 | M45: ='【1-A-1】標準時収支'!K41 -> 0 | N45: ='【1-A-1】標準時収支'!L41 -> 0 | O45: ='【1-A-1】標準時収支'!M41 -> 0 | P45: ='【1-A-1】標準時収支'!N41 -> 0 | Q45: ='【1-A-1】標準時収支'!O41 -> 0 | R45: ='【1-A-1】標準時収支'!P41 -> 0 | S45: ='【1-A-1】標準時収支'!Q41 -> 0 | T45: ='【1-A-1】標準時収支'!R41 -> 0 | U45: ='【1-A-1】標準時収支'!S41 -> 0 | V45: ='【1-A-1】標準時収支'!T41 -> 0 | W45: ='【1-A-1】標準時収支'!U41 -> 0 | X45: ='【1-A-1】標準時収支'!V41 -> 0 | Y45: ='【1-A-1】標準時収支'!W41 -> 0 | Z45: ='【1-A-1】標準時収支'!X41 -> 0 | AA45: ='【1-A-1】標準時収支'!Y41 -> 0 | AC45: ='【1-B】悲観時（機構基準）収支'!B41 -> 0 | AD45: ='【1-B】悲観時（機構基準）収支'!C41 -> 事業費 | AE45: ='【1-B】悲観時（機構基準）収支'!D41 -> 0 | AF45: ='【1-B】悲観時（機構基準）収支'!E41 -> 0 | AG45: ='【1-B】悲観時（機構基準）収支'!F41 -> 0 | AH45: ='【1-B】悲観時（機構基準）収支'!G41 -> 0 | AI45: ='【1-B】悲観時（機構基準）収支'!H41 -> 0 | AJ45: ='【1-B】悲観時（機構基準）収支'!I41 -> 0 | AK45: ='【1-B】悲観時（機構基準）収支'!J41 -> 0 | AL45: ='【1-B】悲観時（機構基準）収支'!K41 -> 0 | AM45: ='【1-B】悲観時（機構基準）収支'!L41 -> 0 | AN45: ='【1-B】悲観時（機構基準）収支'!M41 -> 0 | AO45: ='【1-B】悲観時（機構基準）収支'!N41 -> 0 | AP45: ='【1-B】悲観時（機構基準）収支'!O41 -> 0 | AQ45: ='【1-B】悲観時（機構基準）収支'!P41 -> 0 | AR45: ='【1-B】悲観時（機構基準）収支'!Q41 -> 0 | AS45: ='【1-B】悲観時（機構基準）収支'!R41 -> 0 | AT45: ='【1-B】悲観時（機構基準）収支'!S41 -> 0 | AU45: ='【1-B】悲観時（機構基準）収支'!T41 -> 0 | AV45: ='【1-B】悲観時（機構基準）収支'!U41 -> 0 | AW45: ='【1-B】悲観時（機構基準）収支'!V41 -> 0 | AX45: ='【1-B】悲観時（機構基準）収支'!W41 -> 0 | AY45: ='【1-B】悲観時（機構基準）収支'!X41 -> 0 | AZ45: ='【1-B】悲観時（機構基準）収支'!Y41 -> 0
C46: 31 | D46: ='【1-A-1】標準時収支'!B42 -> 0 | E46: ='【1-A-1】標準時収支'!C42 -> 0 | F46: ='【1-A-1】標準時収支'!D42 -> 展示事業費 | G46: ='【1-A-1】標準時収支'!E42 -> 0 | H46: ='【1-A-1】標準時収支'!F42 -> 0 | I46: ='【1-A-1】標準時収支'!G42 -> 0 | J46: ='【1-A-1】標準時収支'!H42 -> 0 | K46: ='【1-A-1】標準時収支'!I42 -> 0 | L46: ='【1-A-1】標準時収支'!J42 -> 0 | M46: ='【1-A-1】標準時収支'!K42 -> 0 | N46: ='【1-A-1】標準時収支'!L42 -> 0 | O46: ='【1-A-1】標準時収支'!M42 -> 0 | P46: ='【1-A-1】標準時収支'!N42 -> 0 | Q46: ='【1-A-1】標準時収支'!O42 -> 0 | R46: ='【1-A-1】標準時収支'!P42 -> 0 | S46: ='【1-A-1】標準時収支'!Q42 -> 0 | T46: ='【1-A-1】標準時収支'!R42 -> 0 | U46: ='【1-A-1】標準時収支'!S42 -> 0 | V46: ='【1-A-1】標準時収支'!T42 -> 0 | W46: ='【1-A-1】標準時収支'!U42 -> 0 | X46: ='【1-A-1】標準時収支'!V42 -> 0 | Y46: ='【1-A-1】標準時収支'!W42 -> 0 | Z46: ='【1-A-1】標準時収支'!X42 -> 0 | AA46: ='【1-A-1】標準時収支'!Y42 -> 0 | AC46: ='【1-B】悲観時（機構基準）収支'!B42 -> 0 | AD46: ='【1-B】悲観時（機構基準）収支'!C42 -> 0 | AE46: ='【1-B】悲観時（機構基準）収支'!D42 -> 展示事業費 | AF46: ='【1-B】悲観時（機構基準）収支'!E42 -> 0 | AG46: ='【1-B】悲観時（機構基準）収支'!F42 -> 0 | AH46: ='【1-B】悲観時（機構基準）収支'!G42 -> 0 | AI46: ='【1-B】悲観時（機構基準）収支'!H42 -> 0 | AJ46: ='【1-B】悲観時（機構基準）収支'!I42 -> 0 | AK46: ='【1-B】悲観時（機構基準）収支'!J42 -> 0 | AL46: ='【1-B】悲観時（機構基準）収支'!K42 -> 0 | AM46: ='【1-B】悲観時（機構基準）収支'!L42 -> 0 | AN46: ='【1-B】悲観時（機構基準）収支'!M42 -> 0 | AO46: ='【1-B】悲観時（機構基準）収支'!N42 -> 0 | AP46: ='【1-B】悲観時（機構基準）収支'!O42 -> 0 | AQ46: ='【1-B】悲観時（機構基準）収支'!P42 -> 0 | AR46: ='【1-B】悲観時（機構基準）収支'!Q42 -> 0 | AS46: ='【1-B】悲観時（機構基準）収支'!R42 -> 0 | AT46: ='【1-B】悲観時（機構基準）収支'!S42 -> 0 | AU46: ='【1-B】悲観時（機構基準）収支'!T42 -> 0 | AV46: ='【1-B】悲観時（機構基準）収支'!U42 -> 0 | AW46: ='【1-B】悲観時（機構基準）収支'!V42 -> 0 | AX46: ='【1-B】悲観時（機構基準）収支'!W42 -> 0 | AY46: ='【1-B】悲観時（機構基準）収支'!X42 -> 0 | AZ46: ='【1-B】悲観時（機構基準）収支'!Y42 -> 0
C47: 32 | D47: ='【1-A-1】標準時収支'!B43 -> 0 | E47: ='【1-A-1】標準時収支'!C43 -> 0 | F47: ='【1-A-1】標準時収支'!D43 -> 事務 | G47: ='【1-A-1】標準時収支'!E43 -> 0 | H47: ='【1-A-1】標準時収支'!F43 -> 0 | I47: ='【1-A-1】標準時収支'!G43 -> 0 | J47: ='【1-A-1】標準時収支'!H43 -> 0 | K47: ='【1-A-1】標準時収支'!I43 -> 0 | L47: ='【1-A-1】標準時収支'!J43 -> 0 | M47: ='【1-A-1】標準時収支'!K43 -> 0 | N47: ='【1-A-1】標準時収支'!L43 -> 0 | O47: ='【1-A-1】標準時収支'!M43 -> 0 | P47: ='【1-A-1】標準時収支'!N43 -> 0 | Q47: ='【1-A-1】標準時収支'!O43 -> 0 | R47: ='【1-A-1】標準時収支'!P43 -> 0 | S47: ='【1-A-1】標準時収支'!Q43 -> 0 | T47: ='【1-A-1】標準時収支'!R43 -> 0 | U47: ='【1-A-1】標準時収支'!S43 -> 0 | V47: ='【1-A-1】標準時収支'!T43 -> 0 | W47: ='【1-A-1】標準時収支'!U43 -> 0 | X47: ='【1-A-1】標準時収支'!V43 -> 0 | Y47: ='【1-A-1】標準時収支'!W43 -> 0 | Z47: ='【1-A-1】標準時収支'!X43 -> 0 | AA47: ='【1-A-1】標準時収支'!Y43 -> 0 | AC47: ='【1-B】悲観時（機構基準）収支'!B43 -> 0 | AD47: ='【1-B】悲観時（機構基準）収支'!C43 -> 0 | AE47: ='【1-B】悲観時（機構基準）収支'!D43 -> 事務 | AF47: ='【1-B】悲観時（機構基準）収支'!E43 -> 0 | AG47: ='【1-B】悲観時（機構基準）収支'!F43 -> 0 | AH47: ='【1-B】悲観時（機構基準）収支'!G43 -> 0 | AI47: ='【1-B】悲観時（機構基準）収支'!H43 -> 0 | AJ47: ='【1-B】悲観時（機構基準）収支'!I43 -> 0 | AK47: ='【1-B】悲観時（機構基準）収支'!J43 -> 0 | AL47: ='【1-B】悲観時（機構基準）収支'!K43 -> 0 | AM47: ='【1-B】悲観時（機構基準）収支'!L43 -> 0 | AN47: ='【1-B】悲観時（機構基準）収支'!M43 -> 0 | AO47: ='【1-B】悲観時（機構基準）収支'!N43 -> 0 | AP47: ='【1-B】悲観時（機構基準）収支'!O43 -> 0 | AQ47: ='【1-B】悲観時（機構基準）収支'!P43 -> 0 | AR47: ='【1-B】悲観時（機構基準）収支'!Q43 -> 0 | AS47: ='【1-B】悲観時（機構基準）収支'!R43 -> 0 | AT47: ='【1-B】悲観時（機構基準）収支'!S43 -> 0 | AU47: ='【1-B】悲観時（機構基準）収支'!T43 -> 0 | AV47: ='【1-B】悲観時（機構基準）収支'!U43 -> 0 | AW47: ='【1-B】悲観時（機構基準）収支'!V43 -> 0 | AX47: ='【1-B】悲観時（機構基準）収支'!W43 -> 0 | AY47: ='【1-B】悲観時（機構基準）収支'!X43 -> 0 | AZ47: ='【1-B】悲観時（機構基準）収支'!Y43 -> 0
C48: 33 | D48: ='【1-A-1】標準時収支'!B44 -> 0 | E48: ='【1-A-1】標準時収支'!C44 -> 0 | F48: ='【1-A-1】標準時収支'!D44 -> 教育普及費 | G48: ='【1-A-1】標準時収支'!E44 -> 0 | H48: ='【1-A-1】標準時収支'!F44 -> 0 | I48: ='【1-A-1】標準時収支'!G44 -> 0 | J48: ='【1-A-1】標準時収支'!H44 -> 0 | K48: ='【1-A-1】標準時収支'!I44 -> 0 | L48: ='【1-A-1】標準時収支'!J44 -> 0 | M48: ='【1-A-1】標準時収支'!K44 -> 0 | N48: ='【1-A-1】標準時収支'!L44 -> 0 | O48: ='【1-A-1】標準時収支'!M44 -> 0 | P48: ='【1-A-1】標準時収支'!N44 -> 0 | Q48: ='【1-A-1】標準時収支'!O44 -> 0 | R48: ='【1-A-1】標準時収支'!P44 -> 0 | S48: ='【1-A-1】標準時収支'!Q44 -> 0 | T48: ='【1-A-1】標準時収支'!R44 -> 0 | U48: ='【1-A-1】標準時収支'!S44 -> 0 | V48: ='【1-A-1】標準時収支'!T44 -> 0 | W48: ='【1-A-1】標準時収支'!U44 -> 0 | X48: ='【1-A-1】標準時収支'!V44 -> 0 | Y48: ='【1-A-1】標準時収支'!W44 -> 0 | Z48: ='【1-A-1】標準時収支'!X44 -> 0 | AA48: ='【1-A-1】標準時収支'!Y44 -> 0 | AC48: ='【1-B】悲観時（機構基準）収支'!B44 -> 0 | AD48: ='【1-B】悲観時（機構基準）収支'!C44 -> 0 | AE48: ='【1-B】悲観時（機構基準）収支'!D44 -> 教育普及費 | AF48: ='【1-B】悲観時（機構基準）収支'!E44 -> 0 | AG48: ='【1-B】悲観時（機構基準）収支'!F44 -> 0 | AH48: ='【1-B】悲観時（機構基準）収支'!G44 -> 0 | AI48: ='【1-B】悲観時（機構基準）収支'!H44 -> 0 | AJ48: ='【1-B】悲観時（機構基準）収支'!I44 -> 0 | AK48: ='【1-B】悲観時（機構基準）収支'!J44 -> 0 | AL48: ='【1-B】悲観時（機構基準）収支'!K44 -> 0 | AM48: ='【1-B】悲観時（機構基準）収支'!L44 -> 0 | AN48: ='【1-B】悲観時（機構基準）収支'!M44 -> 0 | AO48: ='【1-B】悲観時（機構基準）収支'!N44 -> 0 | AP48: ='【1-B】悲観時（機構基準）収支'!O44 -> 0 | AQ48: ='【1-B】悲観時（機構基準）収支'!P44 -> 0 | AR48: ='【1-B】悲観時（機構基準）収支'!Q44 -> 0 | AS48: ='【1-B】悲観時（機構基準）収支'!R44 -> 0 | AT48: ='【1-B】悲観時（機構基準）収支'!S44 -> 0 | AU48: ='【1-B】悲観時（機構基準）収支'!T44 -> 0 | AV48: ='【1-B】悲観時（機構基準）収支'!U44 -> 0 | AW48: ='【1-B】悲観時（機構基準）収支'!V44 -> 0 | AX48: ='【1-B】悲観時（機構基準）収支'!W44 -> 0 | AY48: ='【1-B】悲観時（機構基準）収支'!X44 -> 0 | AZ48: ='【1-B】悲観時（機構基準）収支'!Y44 -> 0
C49: 34 | D49: ='【1-A-1】標準時収支'!B45 -> 0 | E49: ='【1-A-1】標準時収支'!C45 -> 0 | F49: ='【1-A-1】標準時収支'!D45 -> 渉外 | G49: ='【1-A-1】標準時収支'!E45 -> 0 | H49: ='【1-A-1】標準時収支'!F45 -> 0 | I49: ='【1-A-1】標準時収支'!G45 -> 0 | J49: ='【1-A-1】標準時収支'!H45 -> 0 | K49: ='【1-A-1】標準時収支'!I45 -> 0 | L49: ='【1-A-1】標準時収支'!J45 -> 0 | M49: ='【1-A-1】標準時収支'!K45 -> 0 | N49: ='【1-A-1】標準時収支'!L45 -> 0 | O49: ='【1-A-1】標準時収支'!M45 -> 0 | P49: ='【1-A-1】標準時収支'!N45 -> 0 | Q49: ='【1-A-1】標準時収支'!O45 -> 0 | R49: ='【1-A-1】標準時収支'!P45 -> 0 | S49: ='【1-A-1】標準時収支'!Q45 -> 0 | T49: ='【1-A-1】標準時収支'!R45 -> 0 | U49: ='【1-A-1】標準時収支'!S45 -> 0 | V49: ='【1-A-1】標準時収支'!T45 -> 0 | W49: ='【1-A-1】標準時収支'!U45 -> 0 | X49: ='【1-A-1】標準時収支'!V45 -> 0 | Y49: ='【1-A-1】標準時収支'!W45 -> 0 | Z49: ='【1-A-1】標準時収支'!X45 -> 0 | AA49: ='【1-A-1】標準時収支'!Y45 -> 0 | AC49: ='【1-B】悲観時（機構基準）収支'!B45 -> 0 | AD49: ='【1-B】悲観時（機構基準）収支'!C45 -> 0 | AE49: ='【1-B】悲観時（機構基準）収支'!D45 -> 渉外 | AF49: ='【1-B】悲観時（機構基準）収支'!E45 -> 0 | AG49: ='【1-B】悲観時（機構基準）収支'!F45 -> 0 | AH49: ='【1-B】悲観時（機構基準）収支'!G45 -> 0 | AI49: ='【1-B】悲観時（機構基準）収支'!H45 -> 0 | AJ49: ='【1-B】悲観時（機構基準）収支'!I45 -> 0 | AK49: ='【1-B】悲観時（機構基準）収支'!J45 -> 0 | AL49: ='【1-B】悲観時（機構基準）収支'!K45 -> 0 | AM49: ='【1-B】悲観時（機構基準）収支'!L45 -> 0 | AN49: ='【1-B】悲観時（機構基準）収支'!M45 -> 0 | AO49: ='【1-B】悲観時（機構基準）収支'!N45 -> 0 | AP49: ='【1-B】悲観時（機構基準）収支'!O45 -> 0 | AQ49: ='【1-B】悲観時（機構基準）収支'!P45 -> 0 | AR49: ='【1-B】悲観時（機構基準）収支'!Q45 -> 0 | AS49: ='【1-B】悲観時（機構基準）収支'!R45 -> 0 | AT49: ='【1-B】悲観時（機構基準）収支'!S45 -> 0 | AU49: ='【1-B】悲観時（機構基準）収支'!T45 -> 0 | AV49: ='【1-B】悲観時（機構基準）収支'!U45 -> 0 | AW49: ='【1-B】悲観時（機構基準）収支'!V45 -> 0 | AX49: ='【1-B】悲観時（機構基準）収支'!W45 -> 0 | AY49: ='【1-B】悲観時（機構基準）収支'!X45 -> 0 | AZ49: ='【1-B】悲観時（機構基準）収支'!Y45 -> 0
C50: 35 | D50: ='【1-A-1】標準時収支'!B46 -> 0 | E50: ='【1-A-1】標準時収支'!C46 -> 0 | F50: ='【1-A-1】標準時収支'!D46 -> （その他項目名） | G50: ='【1-A-1】標準時収支'!E46 -> 0 | H50: ='【1-A-1】標準時収支'!F46 -> 0 | I50: ='【1-A-1】標準時収支'!G46 -> 0 | J50: ='【1-A-1】標準時収支'!H46 -> 0 | K50: ='【1-A-1】標準時収支'!I46 -> 0 | L50: ='【1-A-1】標準時収支'!J46 -> 0 | M50: ='【1-A-1】標準時収支'!K46 -> 0 | N50: ='【1-A-1】標準時収支'!L46 -> 0 | O50: ='【1-A-1】標準時収支'!M46 -> 0 | P50: ='【1-A-1】標準時収支'!N46 -> 0 | Q50: ='【1-A-1】標準時収支'!O46 -> 0 | R50: ='【1-A-1】標準時収支'!P46 -> 0 | S50: ='【1-A-1】標準時収支'!Q46 -> 0 | T50: ='【1-A-1】標準時収支'!R46 -> 0 | U50: ='【1-A-1】標準時収支'!S46 -> 0 | V50: ='【1-A-1】標準時収支'!T46 -> 0 | W50: ='【1-A-1】標準時収支'!U46 -> 0 | X50: ='【1-A-1】標準時収支'!V46 -> 0 | Y50: ='【1-A-1】標準時収支'!W46 -> 0 | Z50: ='【1-A-1】標準時収支'!X46 -> 0 | AA50: ='【1-A-1】標準時収支'!Y46 -> 0 | AC50: ='【1-B】悲観時（機構基準）収支'!B46 -> 0 | AD50: ='【1-B】悲観時（機構基準）収支'!C46 -> 0 | AE50: ='【1-B】悲観時（機構基準）収支'!D46 -> （その他項目名） | AF50: ='【1-B】悲観時（機構基準）収支'!E46 -> 0 | AG50: ='【1-B】悲観時（機構基準）収支'!F46 -> 0 | AH50: ='【1-B】悲観時（機構基準）収支'!G46 -> 0 | AI50: ='【1-B】悲観時（機構基準）収支'!H46 -> 0 | AJ50: ='【1-B】悲観時（機構基準）収支'!I46 -> 0 | AK50: ='【1-B】悲観時（機構基準）収支'!J46 -> 0 | AL50: ='【1-B】悲観時（機構基準）収支'!K46 -> 0 | AM50: ='【1-B】悲観時（機構基準）収支'!L46 -> 0 | AN50: ='【1-B】悲観時（機構基準）収支'!M46 -> 0 | AO50: ='【1-B】悲観時（機構基準）収支'!N46 -> 0 | AP50: ='【1-B】悲観時（機構基準）収支'!O46 -> 0 | AQ50: ='【1-B】悲観時（機構基準）収支'!P46 -> 0 | AR50: ='【1-B】悲観時（機構基準）収支'!Q46 -> 0 | AS50: ='【1-B】悲観時（機構基準）収支'!R46 -> 0 | AT50: ='【1-B】悲観時（機構基準）収支'!S46 -> 0 | AU50: ='【1-B】悲観時（機構基準）収支'!T46 -> 0 | AV50: ='【1-B】悲観時（機構基準）収支'!U46 -> 0 | AW50: ='【1-B】悲観時（機構基準）収支'!V46 -> 0 | AX50: ='【1-B】悲観時（機構基準）収支'!W46 -> 0 | AY50: ='【1-B】悲観時（機構基準）収支'!X46 -> 0 | AZ50: ='【1-B】悲観時（機構基準）収支'!Y46 -> 0
C51: 36 | D51: ='【1-A-1】標準時収支'!B47 -> 0 | E51: ='【1-A-1】標準時収支'!C47 -> 0 | F51: ='【1-A-1】標準時収支'!D47 -> （その他項目名） | G51: ='【1-A-1】標準時収支'!E47 -> 0 | H51: ='【1-A-1】標準時収支'!F47 -> 0 | I51: ='【1-A-1】標準時収支'!G47 -> 0 | J51: ='【1-A-1】標準時収支'!H47 -> 0 | K51: ='【1-A-1】標準時収支'!I47 -> 0 | L51: ='【1-A-1】標準時収支'!J47 -> 0 | M51: ='【1-A-1】標準時収支'!K47 -> 0 | N51: ='【1-A-1】標準時収支'!L47 -> 0 | O51: ='【1-A-1】標準時収支'!M47 -> 0 | P51: ='【1-A-1】標準時収支'!N47 -> 0 | Q51: ='【1-A-1】標準時収支'!O47 -> 0 | R51: ='【1-A-1】標準時収支'!P47 -> 0 | S51: ='【1-A-1】標準時収支'!Q47 -> 0 | T51: ='【1-A-1】標準時収支'!R47 -> 0 | U51: ='【1-A-1】標準時収支'!S47 -> 0 | V51: ='【1-A-1】標準時収支'!T47 -> 0 | W51: ='【1-A-1】標準時収支'!U47 -> 0 | X51: ='【1-A-1】標準時収支'!V47 -> 0 | Y51: ='【1-A-1】標準時収支'!W47 -> 0 | Z51: ='【1-A-1】標準時収支'!X47 -> 0 | AA51: ='【1-A-1】標準時収支'!Y47 -> 0 | AC51: ='【1-B】悲観時（機構基準）収支'!B47 -> 0 | AD51: ='【1-B】悲観時（機構基準）収支'!C47 -> 0 | AE51: ='【1-B】悲観時（機構基準）収支'!D47 -> （その他項目名） | AF51: ='【1-B】悲観時（機構基準）収支'!E47 -> 0 | AG51: ='【1-B】悲観時（機構基準）収支'!F47 -> 0 | AH51: ='【1-B】悲観時（機構基準）収支'!G47 -> 0 | AI51: ='【1-B】悲観時（機構基準）収支'!H47 -> 0 | AJ51: ='【1-B】悲観時（機構基準）収支'!I47 -> 0 | AK51: ='【1-B】悲観時（機構基準）収支'!J47 -> 0 | AL51: ='【1-B】悲観時（機構基準）収支'!K47 -> 0 | AM51: ='【1-B】悲観時（機構基準）収支'!L47 -> 0 | AN51: ='【1-B】悲観時（機構基準）収支'!M47 -> 0 | AO51: ='【1-B】悲観時（機構基準）収支'!N47 -> 0 | AP51: ='【1-B】悲観時（機構基準）収支'!O47 -> 0 | AQ51: ='【1-B】悲観時（機構基準）収支'!P47 -> 0 | AR51: ='【1-B】悲観時（機構基準）収支'!Q47 -> 0 | AS51: ='【1-B】悲観時（機構基準）収支'!R47 -> 0 | AT51: ='【1-B】悲観時（機構基準）収支'!S47 -> 0 | AU51: ='【1-B】悲観時（機構基準）収支'!T47 -> 0 | AV51: ='【1-B】悲観時（機構基準）収支'!U47 -> 0 | AW51: ='【1-B】悲観時（機構基準）収支'!V47 -> 0 | AX51: ='【1-B】悲観時（機構基準）収支'!W47 -> 0 | AY51: ='【1-B】悲観時（機構基準）収支'!X47 -> 0 | AZ51: ='【1-B】悲観時（機構基準）収支'!Y47 -> 0
C52: 37 | D52: ='【1-A-1】標準時収支'!B48 -> 0 | E52: ='【1-A-1】標準時収支'!C48 -> 0 | F52: ='【1-A-1】標準時収支'!D48 -> （その他項目名） | G52: ='【1-A-1】標準時収支'!E48 -> 0 | H52: ='【1-A-1】標準時収支'!F48 -> 0 | I52: ='【1-A-1】標準時収支'!G48 -> 0 | J52: ='【1-A-1】標準時収支'!H48 -> 0 | K52: ='【1-A-1】標準時収支'!I48 -> 0 | L52: ='【1-A-1】標準時収支'!J48 -> 0 | M52: ='【1-A-1】標準時収支'!K48 -> 0 | N52: ='【1-A-1】標準時収支'!L48 -> 0 | O52: ='【1-A-1】標準時収支'!M48 -> 0 | P52: ='【1-A-1】標準時収支'!N48 -> 0 | Q52: ='【1-A-1】標準時収支'!O48 -> 0 | R52: ='【1-A-1】標準時収支'!P48 -> 0 | S52: ='【1-A-1】標準時収支'!Q48 -> 0 | T52: ='【1-A-1】標準時収支'!R48 -> 0 | U52: ='【1-A-1】標準時収支'!S48 -> 0 | V52: ='【1-A-1】標準時収支'!T48 -> 0 | W52: ='【1-A-1】標準時収支'!U48 -> 0 | X52: ='【1-A-1】標準時収支'!V48 -> 0 | Y52: ='【1-A-1】標準時収支'!W48 -> 0 | Z52: ='【1-A-1】標準時収支'!X48 -> 0 | AA52: ='【1-A-1】標準時収支'!Y48 -> 0 | AC52: ='【1-B】悲観時（機構基準）収支'!B48 -> 0 | AD52: ='【1-B】悲観時（機構基準）収支'!C48 -> 0 | AE52: ='【1-B】悲観時（機構基準）収支'!D48 -> （その他項目名） | AF52: ='【1-B】悲観時（機構基準）収支'!E48 -> 0 | AG52: ='【1-B】悲観時（機構基準）収支'!F48 -> 0 | AH52: ='【1-B】悲観時（機構基準）収支'!G48 -> 0 | AI52: ='【1-B】悲観時（機構基準）収支'!H48 -> 0 | AJ52: ='【1-B】悲観時（機構基準）収支'!I48 -> 0 | AK52: ='【1-B】悲観時（機構基準）収支'!J48 -> 0 | AL52: ='【1-B】悲観時（機構基準）収支'!K48 -> 0 | AM52: ='【1-B】悲観時（機構基準）収支'!L48 -> 0 | AN52: ='【1-B】悲観時（機構基準）収支'!M48 -> 0 | AO52: ='【1-B】悲観時（機構基準）収支'!N48 -> 0 | AP52: ='【1-B】悲観時（機構基準）収支'!O48 -> 0 | AQ52: ='【1-B】悲観時（機構基準）収支'!P48 -> 0 | AR52: ='【1-B】悲観時（機構基準）収支'!Q48 -> 0 | AS52: ='【1-B】悲観時（機構基準）収支'!R48 -> 0 | AT52: ='【1-B】悲観時（機構基準）収支'!S48 -> 0 | AU52: ='【1-B】悲観時（機構基準）収支'!T48 -> 0 | AV52: ='【1-B】悲観時（機構基準）収支'!U48 -> 0 | AW52: ='【1-B】悲観時（機構基準）収支'!V48 -> 0 | AX52: ='【1-B】悲観時（機構基準）収支'!W48 -> 0 | AY52: ='【1-B】悲観時（機構基準）収支'!X48 -> 0 | AZ52: ='【1-B】悲観時（機構基準）収支'!Y48 -> 0
C53: 38 | D53: ='【1-A-1】標準時収支'!B49 -> 0 | E53: ='【1-A-1】標準時収支'!C49 -> 0 | F53: ='【1-A-1】標準時収支'!D49 -> （その他項目名） | G53: ='【1-A-1】標準時収支'!E49 -> 0 | H53: ='【1-A-1】標準時収支'!F49 -> 0 | I53: ='【1-A-1】標準時収支'!G49 -> 0 | J53: ='【1-A-1】標準時収支'!H49 -> 0 | K53: ='【1-A-1】標準時収支'!I49 -> 0 | L53: ='【1-A-1】標準時収支'!J49 -> 0 | M53: ='【1-A-1】標準時収支'!K49 -> 0 | N53: ='【1-A-1】標準時収支'!L49 -> 0 | O53: ='【1-A-1】標準時収支'!M49 -> 0 | P53: ='【1-A-1】標準時収支'!N49 -> 0 | Q53: ='【1-A-1】標準時収支'!O49 -> 0 | R53: ='【1-A-1】標準時収支'!P49 -> 0 | S53: ='【1-A-1】標準時収支'!Q49 -> 0 | T53: ='【1-A-1】標準時収支'!R49 -> 0 | U53: ='【1-A-1】標準時収支'!S49 -> 0 | V53: ='【1-A-1】標準時収支'!T49 -> 0 | W53: ='【1-A-1】標準時収支'!U49 -> 0 | X53: ='【1-A-1】標準時収支'!V49 -> 0 | Y53: ='【1-A-1】標準時収支'!W49 -> 0 | Z53: ='【1-A-1】標準時収支'!X49 -> 0 | AA53: ='【1-A-1】標準時収支'!Y49 -> 0 | AC53: ='【1-B】悲観時（機構基準）収支'!B49 -> 0 | AD53: ='【1-B】悲観時（機構基準）収支'!C49 -> 0 | AE53: ='【1-B】悲観時（機構基準）収支'!D49 -> （その他項目名） | AF53: ='【1-B】悲観時（機構基準）収支'!E49 -> 0 | AG53: ='【1-B】悲観時（機構基準）収支'!F49 -> 0 | AH53: ='【1-B】悲観時（機構基準）収支'!G49 -> 0 | AI53: ='【1-B】悲観時（機構基準）収支'!H49 -> 0 | AJ53: ='【1-B】悲観時（機構基準）収支'!I49 -> 0 | AK53: ='【1-B】悲観時（機構基準）収支'!J49 -> 0 | AL53: ='【1-B】悲観時（機構基準）収支'!K49 -> 0 | AM53: ='【1-B】悲観時（機構基準）収支'!L49 -> 0 | AN53: ='【1-B】悲観時（機構基準）収支'!M49 -> 0 | AO53: ='【1-B】悲観時（機構基準）収支'!N49 -> 0 | AP53: ='【1-B】悲観時（機構基準）収支'!O49 -> 0 | AQ53: ='【1-B】悲観時（機構基準）収支'!P49 -> 0 | AR53: ='【1-B】悲観時（機構基準）収支'!Q49 -> 0 | AS53: ='【1-B】悲観時（機構基準）収支'!R49 -> 0 | AT53: ='【1-B】悲観時（機構基準）収支'!S49 -> 0 | AU53: ='【1-B】悲観時（機構基準）収支'!T49 -> 0 | AV53: ='【1-B】悲観時（機構基準）収支'!U49 -> 0 | AW53: ='【1-B】悲観時（機構基準）収支'!V49 -> 0 | AX53: ='【1-B】悲観時（機構基準）収支'!W49 -> 0 | AY53: ='【1-B】悲観時（機構基準）収支'!X49 -> 0 | AZ53: ='【1-B】悲観時（機構基準）収支'!Y49 -> 0
C54: 39 | D54: ='【1-A-1】標準時収支'!B50 -> 0 | E54: ='【1-A-1】標準時収支'!C50 -> 0 | F54: ='【1-A-1】標準時収支'!D50 -> （その他項目名） | G54: ='【1-A-1】標準時収支'!E50 -> 0 | H54: ='【1-A-1】標準時収支'!F50 -> 0 | I54: ='【1-A-1】標準時収支'!G50 -> 0 | J54: ='【1-A-1】標準時収支'!H50 -> 0 | K54: ='【1-A-1】標準時収支'!I50 -> 0 | L54: ='【1-A-1】標準時収支'!J50 -> 0 | M54: ='【1-A-1】標準時収支'!K50 -> 0 | N54: ='【1-A-1】標準時収支'!L50 -> 0 | O54: ='【1-A-1】標準時収支'!M50 -> 0 | P54: ='【1-A-1】標準時収支'!N50 -> 0 | Q54: ='【1-A-1】標準時収支'!O50 -> 0 | R54: ='【1-A-1】標準時収支'!P50 -> 0 | S54: ='【1-A-1】標準時収支'!Q50 -> 0 | T54: ='【1-A-1】標準時収支'!R50 -> 0 | U54: ='【1-A-1】標準時収支'!S50 -> 0 | V54: ='【1-A-1】標準時収支'!T50 -> 0 | W54: ='【1-A-1】標準時収支'!U50 -> 0 | X54: ='【1-A-1】標準時収支'!V50 -> 0 | Y54: ='【1-A-1】標準時収支'!W50 -> 0 | Z54: ='【1-A-1】標準時収支'!X50 -> 0 | AA54: ='【1-A-1】標準時収支'!Y50 -> 0 | AC54: ='【1-B】悲観時（機構基準）収支'!B50 -> 0 | AD54: ='【1-B】悲観時（機構基準）収支'!C50 -> 0 | AE54: ='【1-B】悲観時（機構基準）収支'!D50 -> （その他項目名） | AF54: ='【1-B】悲観時（機構基準）収支'!E50 -> 0 | AG54: ='【1-B】悲観時（機構基準）収支'!F50 -> 0 | AH54: ='【1-B】悲観時（機構基準）収支'!G50 -> 0 | AI54: ='【1-B】悲観時（機構基準）収支'!H50 -> 0 | AJ54: ='【1-B】悲観時（機構基準）収支'!I50 -> 0 | AK54: ='【1-B】悲観時（機構基準）収支'!J50 -> 0 | AL54: ='【1-B】悲観時（機構基準）収支'!K50 -> 0 | AM54: ='【1-B】悲観時（機構基準）収支'!L50 -> 0 | AN54: ='【1-B】悲観時（機構基準）収支'!M50 -> 0 | AO54: ='【1-B】悲観時（機構基準）収支'!N50 -> 0 | AP54: ='【1-B】悲観時（機構基準）収支'!O50 -> 0 | AQ54: ='【1-B】悲観時（機構基準）収支'!P50 -> 0 | AR54: ='【1-B】悲観時（機構基準）収支'!Q50 -> 0 | AS54: ='【1-B】悲観時（機構基準）収支'!R50 -> 0 | AT54: ='【1-B】悲観時（機構基準）収支'!S50 -> 0 | AU54: ='【1-B】悲観時（機構基準）収支'!T50 -> 0 | AV54: ='【1-B】悲観時（機構基準）収支'!U50 -> 0 | AW54: ='【1-B】悲観時（機構基準）収支'!V50 -> 0 | AX54: ='【1-B】悲観時（機構基準）収支'!W50 -> 0 | AY54: ='【1-B】悲観時（機構基準）収支'!X50 -> 0 | AZ54: ='【1-B】悲観時（機構基準）収支'!Y50 -> 0
C55: 40 | D55: ='【1-A-1】標準時収支'!B51 -> 0 | E55: ='【1-A-1】標準時収支'!C51 -> 0 | F55: ='【1-A-1】標準時収支'!D51 -> （その他項目名） | G55: ='【1-A-1】標準時収支'!E51 -> 0 | H55: ='【1-A-1】標準時収支'!F51 -> 0 | I55: ='【1-A-1】標準時収支'!G51 -> 0 | J55: ='【1-A-1】標準時収支'!H51 -> 0 | K55: ='【1-A-1】標準時収支'!I51 -> 0 | L55: ='【1-A-1】標準時収支'!J51 -> 0 | M55: ='【1-A-1】標準時収支'!K51 -> 0 | N55: ='【1-A-1】標準時収支'!L51 -> 0 | O55: ='【1-A-1】標準時収支'!M51 -> 0 | P55: ='【1-A-1】標準時収支'!N51 -> 0 | Q55: ='【1-A-1】標準時収支'!O51 -> 0 | R55: ='【1-A-1】標準時収支'!P51 -> 0 | S55: ='【1-A-1】標準時収支'!Q51 -> 0 | T55: ='【1-A-1】標準時収支'!R51 -> 0 | U55: ='【1-A-1】標準時収支'!S51 -> 0 | V55: ='【1-A-1】標準時収支'!T51 -> 0 | W55: ='【1-A-1】標準時収支'!U51 -> 0 | X55: ='【1-A-1】標準時収支'!V51 -> 0 | Y55: ='【1-A-1】標準時収支'!W51 -> 0 | Z55: ='【1-A-1】標準時収支'!X51 -> 0 | AA55: ='【1-A-1】標準時収支'!Y51 -> 0 | AC55: ='【1-B】悲観時（機構基準）収支'!B51 -> 0 | AD55: ='【1-B】悲観時（機構基準）収支'!C51 -> 0 | AE55: ='【1-B】悲観時（機構基準）収支'!D51 -> （その他項目名） | AF55: ='【1-B】悲観時（機構基準）収支'!E51 -> 0 | AG55: ='【1-B】悲観時（機構基準）収支'!F51 -> 0 | AH55: ='【1-B】悲観時（機構基準）収支'!G51 -> 0 | AI55: ='【1-B】悲観時（機構基準）収支'!H51 -> 0 | AJ55: ='【1-B】悲観時（機構基準）収支'!I51 -> 0 | AK55: ='【1-B】悲観時（機構基準）収支'!J51 -> 0 | AL55: ='【1-B】悲観時（機構基準）収支'!K51 -> 0 | AM55: ='【1-B】悲観時（機構基準）収支'!L51 -> 0 | AN55: ='【1-B】悲観時（機構基準）収支'!M51 -> 0 | AO55: ='【1-B】悲観時（機構基準）収支'!N51 -> 0 | AP55: ='【1-B】悲観時（機構基準）収支'!O51 -> 0 | AQ55: ='【1-B】悲観時（機構基準）収支'!P51 -> 0 | AR55: ='【1-B】悲観時（機構基準）収支'!Q51 -> 0 | AS55: ='【1-B】悲観時（機構基準）収支'!R51 -> 0 | AT55: ='【1-B】悲観時（機構基準）収支'!S51 -> 0 | AU55: ='【1-B】悲観時（機構基準）収支'!T51 -> 0 | AV55: ='【1-B】悲観時（機構基準）収支'!U51 -> 0 | AW55: ='【1-B】悲観時（機構基準）収支'!V51 -> 0 | AX55: ='【1-B】悲観時（機構基準）収支'!W51 -> 0 | AY55: ='【1-B】悲観時（機構基準）収支'!X51 -> 0 | AZ55: ='【1-B】悲観時（機構基準）収支'!Y51 -> 0
C56: 41 | D56: ='【1-A-1】標準時収支'!B52 -> 0 | E56: ='【1-A-1】標準時収支'!C52 -> 維持管理費 | F56: ='【1-A-1】標準時収支'!D52 -> 0 | G56: ='【1-A-1】標準時収支'!E52 -> 0 | H56: ='【1-A-1】標準時収支'!F52 -> 0 | I56: ='【1-A-1】標準時収支'!G52 -> 0 | J56: ='【1-A-1】標準時収支'!H52 -> 0 | K56: ='【1-A-1】標準時収支'!I52 -> 0 | L56: ='【1-A-1】標準時収支'!J52 -> 0 | M56: ='【1-A-1】標準時収支'!K52 -> 0 | N56: ='【1-A-1】標準時収支'!L52 -> 0 | O56: ='【1-A-1】標準時収支'!M52 -> 0 | P56: ='【1-A-1】標準時収支'!N52 -> 0 | Q56: ='【1-A-1】標準時収支'!O52 -> 0 | R56: ='【1-A-1】標準時収支'!P52 -> 0 | S56: ='【1-A-1】標準時収支'!Q52 -> 0 | T56: ='【1-A-1】標準時収支'!R52 -> 0 | U56: ='【1-A-1】標準時収支'!S52 -> 0 | V56: ='【1-A-1】標準時収支'!T52 -> 0 | W56: ='【1-A-1】標準時収支'!U52 -> 0 | X56: ='【1-A-1】標準時収支'!V52 -> 0 | Y56: ='【1-A-1】標準時収支'!W52 -> 0 | Z56: ='【1-A-1】標準時収支'!X52 -> 0 | AA56: ='【1-A-1】標準時収支'!Y52 -> 0 | AC56: ='【1-B】悲観時（機構基準）収支'!B52 -> 0 | AD56: ='【1-B】悲観時（機構基準）収支'!C52 -> 維持管理費 | AE56: ='【1-B】悲観時（機構基準）収支'!D52 -> 0 | AF56: ='【1-B】悲観時（機構基準）収支'!E52 -> 0 | AG56: ='【1-B】悲観時（機構基準）収支'!F52 -> 0 | AH56: ='【1-B】悲観時（機構基準）収支'!G52 -> 0 | AI56: ='【1-B】悲観時（機構基準）収支'!H52 -> 0 | AJ56: ='【1-B】悲観時（機構基準）収支'!I52 -> 0 | AK56: ='【1-B】悲観時（機構基準）収支'!J52 -> 0 | AL56: ='【1-B】悲観時（機構基準）収支'!K52 -> 0 | AM56: ='【1-B】悲観時（機構基準）収支'!L52 -> 0 | AN56: ='【1-B】悲観時（機構基準）収支'!M52 -> 0 | AO56: ='【1-B】悲観時（機構基準）収支'!N52 -> 0 | AP56: ='【1-B】悲観時（機構基準）収支'!O52 -> 0 | AQ56: ='【1-B】悲観時（機構基準）収支'!P52 -> 0 | AR56: ='【1-B】悲観時（機構基準）収支'!Q52 -> 0 | AS56: ='【1-B】悲観時（機構基準）収支'!R52 -> 0 | AT56: ='【1-B】悲観時（機構基準）収支'!S52 -> 0 | AU56: ='【1-B】悲観時（機構基準）収支'!T52 -> 0 | AV56: ='【1-B】悲観時（機構基準）収支'!U52 -> 0 | AW56: ='【1-B】悲観時（機構基準）収支'!V52 -> 0 | AX56: ='【1-B】悲観時（機構基準）収支'!W52 -> 0 | AY56: ='【1-B】悲観時（機構基準）収支'!X52 -> 0 | AZ56: ='【1-B】悲観時（機構基準）収支'!Y52 -> 0
C57: 42 | D57: ='【1-A-1】標準時収支'!B53 -> 0 | E57: ='【1-A-1】標準時収支'!C53 -> 0 | F57: ='【1-A-1】標準時収支'!D53 -> 施設管理費 | G57: ='【1-A-1】標準時収支'!E53 -> 0 | H57: ='【1-A-1】標準時収支'!F53 -> 0 | I57: ='【1-A-1】標準時収支'!G53 -> 0 | J57: ='【1-A-1】標準時収支'!H53 -> 0 | K57: ='【1-A-1】標準時収支'!I53 -> 0 | L57: ='【1-A-1】標準時収支'!J53 -> 0 | M57: ='【1-A-1】標準時収支'!K53 -> 0 | N57: ='【1-A-1】標準時収支'!L53 -> 0 | O57: ='【1-A-1】標準時収支'!M53 -> 0 | P57: ='【1-A-1】標準時収支'!N53 -> 0 | Q57: ='【1-A-1】標準時収支'!O53 -> 0 | R57: ='【1-A-1】標準時収支'!P53 -> 0 | S57: ='【1-A-1】標準時収支'!Q53 -> 0 | T57: ='【1-A-1】標準時収支'!R53 -> 0 | U57: ='【1-A-1】標準時収支'!S53 -> 0 | V57: ='【1-A-1】標準時収支'!T53 -> 0 | W57: ='【1-A-1】標準時収支'!U53 -> 0 | X57: ='【1-A-1】標準時収支'!V53 -> 0 | Y57: ='【1-A-1】標準時収支'!W53 -> 0 | Z57: ='【1-A-1】標準時収支'!X53 -> 0 | AA57: ='【1-A-1】標準時収支'!Y53 -> 0 | AC57: ='【1-B】悲観時（機構基準）収支'!B53 -> 0 | AD57: ='【1-B】悲観時（機構基準）収支'!C53 -> 0 | AE57: ='【1-B】悲観時（機構基準）収支'!D53 -> 施設管理費 | AF57: ='【1-B】悲観時（機構基準）収支'!E53 -> 0 | AG57: ='【1-B】悲観時（機構基準）収支'!F53 -> 0 | AH57: ='【1-B】悲観時（機構基準）収支'!G53 -> 0 | AI57: ='【1-B】悲観時（機構基準）収支'!H53 -> 0 | AJ57: ='【1-B】悲観時（機構基準）収支'!I53 -> 0 | AK57: ='【1-B】悲観時（機構基準）収支'!J53 -> 0 | AL57: ='【1-B】悲観時（機構基準）収支'!K53 -> 0 | AM57: ='【1-B】悲観時（機構基準）収支'!L53 -> 0 | AN57: ='【1-B】悲観時（機構基準）収支'!M53 -> 0 | AO57: ='【1-B】悲観時（機構基準）収支'!N53 -> 0 | AP57: ='【1-B】悲観時（機構基準）収支'!O53 -> 0 | AQ57: ='【1-B】悲観時（機構基準）収支'!P53 -> 0 | AR57: ='【1-B】悲観時（機構基準）収支'!Q53 -> 0 | AS57: ='【1-B】悲観時（機構基準）収支'!R53 -> 0 | AT57: ='【1-B】悲観時（機構基準）収支'!S53 -> 0 | AU57: ='【1-B】悲観時（機構基準）収支'!T53 -> 0 | AV57: ='【1-B】悲観時（機構基準）収支'!U53 -> 0 | AW57: ='【1-B】悲観時（機構基準）収支'!V53 -> 0 | AX57: ='【1-B】悲観時（機構基準）収支'!W53 -> 0 | AY57: ='【1-B】悲観時（機構基準）収支'!X53 -> 0 | AZ57: ='【1-B】悲観時（機構基準）収支'!Y53 -> 0
C58: 43 | D58: ='【1-A-1】標準時収支'!B54 -> 0 | E58: ='【1-A-1】標準時収支'!C54 -> 0 | F58: ='【1-A-1】標準時収支'!D54 -> 0 | G58: ='【1-A-1】標準時収支'!E54 -> 設備管理・保守費 | H58: ='【1-A-1】標準時収支'!F54 -> 0 | I58: ='【1-A-1】標準時収支'!G54 -> 0 | J58: ='【1-A-1】標準時収支'!H54 -> 0 | K58: ='【1-A-1】標準時収支'!I54 -> 0 | L58: ='【1-A-1】標準時収支'!J54 -> 0 | M58: ='【1-A-1】標準時収支'!K54 -> 0 | N58: ='【1-A-1】標準時収支'!L54 -> 0 | O58: ='【1-A-1】標準時収支'!M54 -> 0 | P58: ='【1-A-1】標準時収支'!N54 -> 0 | Q58: ='【1-A-1】標準時収支'!O54 -> 0 | R58: ='【1-A-1】標準時収支'!P54 -> 0 | S58: ='【1-A-1】標準時収支'!Q54 -> 0 | T58: ='【1-A-1】標準時収支'!R54 -> 0 | U58: ='【1-A-1】標準時収支'!S54 -> 0 | V58: ='【1-A-1】標準時収支'!T54 -> 0 | W58: ='【1-A-1】標準時収支'!U54 -> 0 | X58: ='【1-A-1】標準時収支'!V54 -> 0 | Y58: ='【1-A-1】標準時収支'!W54 -> 0 | Z58: ='【1-A-1】標準時収支'!X54 -> 0 | AA58: ='【1-A-1】標準時収支'!Y54 -> 0 | AC58: ='【1-B】悲観時（機構基準）収支'!B54 -> 0 | AD58: ='【1-B】悲観時（機構基準）収支'!C54 -> 0 | AE58: ='【1-B】悲観時（機構基準）収支'!D54 -> 0 | AF58: ='【1-B】悲観時（機構基準）収支'!E54 -> 設備管理・保守費 | AG58: ='【1-B】悲観時（機構基準）収支'!F54 -> 0 | AH58: ='【1-B】悲観時（機構基準）収支'!G54 -> 0 | AI58: ='【1-B】悲観時（機構基準）収支'!H54 -> 0 | AJ58: ='【1-B】悲観時（機構基準）収支'!I54 -> 0 | AK58: ='【1-B】悲観時（機構基準）収支'!J54 -> 0 | AL58: ='【1-B】悲観時（機構基準）収支'!K54 -> 0 | AM58: ='【1-B】悲観時（機構基準）収支'!L54 -> 0 | AN58: ='【1-B】悲観時（機構基準）収支'!M54 -> 0 | AO58: ='【1-B】悲観時（機構基準）収支'!N54 -> 0 | AP58: ='【1-B】悲観時（機構基準）収支'!O54 -> 0 | AQ58: ='【1-B】悲観時（機構基準）収支'!P54 -> 0 | AR58: ='【1-B】悲観時（機構基準）収支'!Q54 -> 0 | AS58: ='【1-B】悲観時（機構基準）収支'!R54 -> 0 | AT58: ='【1-B】悲観時（機構基準）収支'!S54 -> 0 | AU58: ='【1-B】悲観時（機構基準）収支'!T54 -> 0 | AV58: ='【1-B】悲観時（機構基準）収支'!U54 -> 0 | AW58: ='【1-B】悲観時（機構基準）収支'!V54 -> 0 | AX58: ='【1-B】悲観時（機構基準）収支'!W54 -> 0 | AY58: ='【1-B】悲観時（機構基準）収支'!X54 -> 0 | AZ58: ='【1-B】悲観時（機構基準）収支'!Y54 -> 0
C59: 44 | D59: ='【1-A-1】標準時収支'!B55 -> 0 | E59: ='【1-A-1】標準時収支'!C55 -> 0 | F59: ='【1-A-1】標準時収支'!D55 -> 0 | G59: ='【1-A-1】標準時収支'!E55 -> 警備費 | H59: ='【1-A-1】標準時収支'!F55 -> 0 | I59: ='【1-A-1】標準時収支'!G55 -> 0 | J59: ='【1-A-1】標準時収支'!H55 -> 0 | K59: ='【1-A-1】標準時収支'!I55 -> 0 | L59: ='【1-A-1】標準時収支'!J55 -> 0 | M59: ='【1-A-1】標準時収支'!K55 -> 0 | N59: ='【1-A-1】標準時収支'!L55 -> 0 | O59: ='【1-A-1】標準時収支'!M55 -> 0 | P59: ='【1-A-1】標準時収支'!N55 -> 0 | Q59: ='【1-A-1】標準時収支'!O55 -> 0 | R59: ='【1-A-1】標準時収支'!P55 -> 0 | S59: ='【1-A-1】標準時収支'!Q55 -> 0 | T59: ='【1-A-1】標準時収支'!R55 -> 0 | U59: ='【1-A-1】標準時収支'!S55 -> 0 | V59: ='【1-A-1】標準時収支'!T55 -> 0 | W59: ='【1-A-1】標準時収支'!U55 -> 0 | X59: ='【1-A-1】標準時収支'!V55 -> 0 | Y59: ='【1-A-1】標準時収支'!W55 -> 0 | Z59: ='【1-A-1】標準時収支'!X55 -> 0 | AA59: ='【1-A-1】標準時収支'!Y55 -> 0 | AC59: ='【1-B】悲観時（機構基準）収支'!B55 -> 0 | AD59: ='【1-B】悲観時（機構基準）収支'!C55 -> 0 | AE59: ='【1-B】悲観時（機構基準）収支'!D55 -> 0 | AF59: ='【1-B】悲観時（機構基準）収支'!E55 -> 警備費 | AG59: ='【1-B】悲観時（機構基準）収支'!F55 -> 0 | AH59: ='【1-B】悲観時（機構基準）収支'!G55 -> 0 | AI59: ='【1-B】悲観時（機構基準）収支'!H55 -> 0 | AJ59: ='【1-B】悲観時（機構基準）収支'!I55 -> 0 | AK59: ='【1-B】悲観時（機構基準）収支'!J55 -> 0 | AL59: ='【1-B】悲観時（機構基準）収支'!K55 -> 0 | AM59: ='【1-B】悲観時（機構基準）収支'!L55 -> 0 | AN59: ='【1-B】悲観時（機構基準）収支'!M55 -> 0 | AO59: ='【1-B】悲観時（機構基準）収支'!N55 -> 0 | AP59: ='【1-B】悲観時（機構基準）収支'!O55 -> 0 | AQ59: ='【1-B】悲観時（機構基準）収支'!P55 -> 0 | AR59: ='【1-B】悲観時（機構基準）収支'!Q55 -> 0 | AS59: ='【1-B】悲観時（機構基準）収支'!R55 -> 0 | AT59: ='【1-B】悲観時（機構基準）収支'!S55 -> 0 | AU59: ='【1-B】悲観時（機構基準）収支'!T55 -> 0 | AV59: ='【1-B】悲観時（機構基準）収支'!U55 -> 0 | AW59: ='【1-B】悲観時（機構基準）収支'!V55 -> 0 | AX59: ='【1-B】悲観時（機構基準）収支'!W55 -> 0 | AY59: ='【1-B】悲観時（機構基準）収支'!X55 -> 0 | AZ59: ='【1-B】悲観時（機構基準）収支'!Y55 -> 0
C60: 45 | D60: ='【1-A-1】標準時収支'!B56 -> 0 | E60: ='【1-A-1】標準時収支'!C56 -> 0 | F60: ='【1-A-1】標準時収支'!D56 -> 0 | G60: ='【1-A-1】標準時収支'!E56 -> 清掃費 | H60: ='【1-A-1】標準時収支'!F56 -> 0 | I60: ='【1-A-1】標準時収支'!G56 -> 0 | J60: ='【1-A-1】標準時収支'!H56 -> 0 | K60: ='【1-A-1】標準時収支'!I56 -> 0 | L60: ='【1-A-1】標準時収支'!J56 -> 0 | M60: ='【1-A-1】標準時収支'!K56 -> 0 | N60: ='【1-A-1】標準時収支'!L56 -> 0 | O60: ='【1-A-1】標準時収支'!M56 -> 0 | P60: ='【1-A-1】標準時収支'!N56 -> 0 | Q60: ='【1-A-1】標準時収支'!O56 -> 0 | R60: ='【1-A-1】標準時収支'!P56 -> 0 | S60: ='【1-A-1】標準時収支'!Q56 -> 0 | T60: ='【1-A-1】標準時収支'!R56 -> 0 | U60: ='【1-A-1】標準時収支'!S56 -> 0 | V60: ='【1-A-1】標準時収支'!T56 -> 0 | W60: ='【1-A-1】標準時収支'!U56 -> 0 | X60: ='【1-A-1】標準時収支'!V56 -> 0 | Y60: ='【1-A-1】標準時収支'!W56 -> 0 | Z60: ='【1-A-1】標準時収支'!X56 -> 0 | AA60: ='【1-A-1】標準時収支'!Y56 -> 0 | AC60: ='【1-B】悲観時（機構基準）収支'!B56 -> 0 | AD60: ='【1-B】悲観時（機構基準）収支'!C56 -> 0 | AE60: ='【1-B】悲観時（機構基準）収支'!D56 -> 0 | AF60: ='【1-B】悲観時（機構基準）収支'!E56 -> 清掃費 | AG60: ='【1-B】悲観時（機構基準）収支'!F56 -> 0 | AH60: ='【1-B】悲観時（機構基準）収支'!G56 -> 0 | AI60: ='【1-B】悲観時（機構基準）収支'!H56 -> 0 | AJ60: ='【1-B】悲観時（機構基準）収支'!I56 -> 0 | AK60: ='【1-B】悲観時（機構基準）収支'!J56 -> 0 | AL60: ='【1-B】悲観時（機構基準）収支'!K56 -> 0 | AM60: ='【1-B】悲観時（機構基準）収支'!L56 -> 0 | AN60: ='【1-B】悲観時（機構基準）収支'!M56 -> 0 | AO60: ='【1-B】悲観時（機構基準）収支'!N56 -> 0 | AP60: ='【1-B】悲観時（機構基準）収支'!O56 -> 0 | AQ60: ='【1-B】悲観時（機構基準）収支'!P56 -> 0 | AR60: ='【1-B】悲観時（機構基準）収支'!Q56 -> 0 | AS60: ='【1-B】悲観時（機構基準）収支'!R56 -> 0 | AT60: ='【1-B】悲観時（機構基準）収支'!S56 -> 0 | AU60: ='【1-B】悲観時（機構基準）収支'!T56 -> 0 | AV60: ='【1-B】悲観時（機構基準）収支'!U56 -> 0 | AW60: ='【1-B】悲観時（機構基準）収支'!V56 -> 0 | AX60: ='【1-B】悲観時（機構基準）収支'!W56 -> 0 | AY60: ='【1-B】悲観時（機構基準）収支'!X56 -> 0 | AZ60: ='【1-B】悲観時（機構基準）収支'!Y56 -> 0
C61: 46 | D61: ='【1-A-1】標準時収支'!B57 -> 0 | E61: ='【1-A-1】標準時収支'!C57 -> 0 | F61: ='【1-A-1】標準時収支'!D57 -> 0 | G61: ='【1-A-1】標準時収支'!E57 -> 建物修繕費 | H61: ='【1-A-1】標準時収支'!F57 -> 0 | I61: ='【1-A-1】標準時収支'!G57 -> 0 | J61: ='【1-A-1】標準時収支'!H57 -> 0 | K61: ='【1-A-1】標準時収支'!I57 -> 0 | L61: ='【1-A-1】標準時収支'!J57 -> 0 | M61: ='【1-A-1】標準時収支'!K57 -> 0 | N61: ='【1-A-1】標準時収支'!L57 -> 0 | O61: ='【1-A-1】標準時収支'!M57 -> 0 | P61: ='【1-A-1】標準時収支'!N57 -> 0 | Q61: ='【1-A-1】標準時収支'!O57 -> 0 | R61: ='【1-A-1】標準時収支'!P57 -> 0 | S61: ='【1-A-1】標準時収支'!Q57 -> 0 | T61: ='【1-A-1】標準時収支'!R57 -> 0 | U61: ='【1-A-1】標準時収支'!S57 -> 0 | V61: ='【1-A-1】標準時収支'!T57 -> 0 | W61: ='【1-A-1】標準時収支'!U57 -> 0 | X61: ='【1-A-1】標準時収支'!V57 -> 0 | Y61: ='【1-A-1】標準時収支'!W57 -> 0 | Z61: ='【1-A-1】標準時収支'!X57 -> 0 | AA61: ='【1-A-1】標準時収支'!Y57 -> 0 | AC61: ='【1-B】悲観時（機構基準）収支'!B57 -> 0 | AD61: ='【1-B】悲観時（機構基準）収支'!C57 -> 0 | AE61: ='【1-B】悲観時（機構基準）収支'!D57 -> 0 | AF61: ='【1-B】悲観時（機構基準）収支'!E57 -> 建物修繕費 | AG61: ='【1-B】悲観時（機構基準）収支'!F57 -> 0 | AH61: ='【1-B】悲観時（機構基準）収支'!G57 -> 0 | AI61: ='【1-B】悲観時（機構基準）収支'!H57 -> 0 | AJ61: ='【1-B】悲観時（機構基準）収支'!I57 -> 0 | AK61: ='【1-B】悲観時（機構基準）収支'!J57 -> 0 | AL61: ='【1-B】悲観時（機構基準）収支'!K57 -> 0 | AM61: ='【1-B】悲観時（機構基準）収支'!L57 -> 0 | AN61: ='【1-B】悲観時（機構基準）収支'!M57 -> 0 | AO61: ='【1-B】悲観時（機構基準）収支'!N57 -> 0 | AP61: ='【1-B】悲観時（機構基準）収支'!O57 -> 0 | AQ61: ='【1-B】悲観時（機構基準）収支'!P57 -> 0 | AR61: ='【1-B】悲観時（機構基準）収支'!Q57 -> 0 | AS61: ='【1-B】悲観時（機構基準）収支'!R57 -> 0 | AT61: ='【1-B】悲観時（機構基準）収支'!S57 -> 0 | AU61: ='【1-B】悲観時（機構基準）収支'!T57 -> 0 | AV61: ='【1-B】悲観時（機構基準）収支'!U57 -> 0 | AW61: ='【1-B】悲観時（機構基準）収支'!V57 -> 0 | AX61: ='【1-B】悲観時（機構基準）収支'!W57 -> 0 | AY61: ='【1-B】悲観時（機構基準）収支'!X57 -> 0 | AZ61: ='【1-B】悲観時（機構基準）収支'!Y57 -> 0
C62: 47 | D62: ='【1-A-1】標準時収支'!B58 -> 0 | E62: ='【1-A-1】標準時収支'!C58 -> 0 | F62: ='【1-A-1】標準時収支'!D58 -> 0 | G62: ='【1-A-1】標準時収支'!E58 -> （その他項目名） | H62: ='【1-A-1】標準時収支'!F58 -> 0 | I62: ='【1-A-1】標準時収支'!G58 -> 0 | J62: ='【1-A-1】標準時収支'!H58 -> 0 | K62: ='【1-A-1】標準時収支'!I58 -> 0 | L62: ='【1-A-1】標準時収支'!J58 -> 0 | M62: ='【1-A-1】標準時収支'!K58 -> 0 | N62: ='【1-A-1】標準時収支'!L58 -> 0 | O62: ='【1-A-1】標準時収支'!M58 -> 0 | P62: ='【1-A-1】標準時収支'!N58 -> 0 | Q62: ='【1-A-1】標準時収支'!O58 -> 0 | R62: ='【1-A-1】標準時収支'!P58 -> 0 | S62: ='【1-A-1】標準時収支'!Q58 -> 0 | T62: ='【1-A-1】標準時収支'!R58 -> 0 | U62: ='【1-A-1】標準時収支'!S58 -> 0 | V62: ='【1-A-1】標準時収支'!T58 -> 0 | W62: ='【1-A-1】標準時収支'!U58 -> 0 | X62: ='【1-A-1】標準時収支'!V58 -> 0 | Y62: ='【1-A-1】標準時収支'!W58 -> 0 | Z62: ='【1-A-1】標準時収支'!X58 -> 0 | AA62: ='【1-A-1】標準時収支'!Y58 -> 0 | AC62: ='【1-B】悲観時（機構基準）収支'!B58 -> 0 | AD62: ='【1-B】悲観時（機構基準）収支'!C58 -> 0 | AE62: ='【1-B】悲観時（機構基準）収支'!D58 -> 0 | AF62: ='【1-B】悲観時（機構基準）収支'!E58 -> （その他項目名） | AG62: ='【1-B】悲観時（機構基準）収支'!F58 -> 0 | AH62: ='【1-B】悲観時（機構基準）収支'!G58 -> 0 | AI62: ='【1-B】悲観時（機構基準）収支'!H58 -> 0 | AJ62: ='【1-B】悲観時（機構基準）収支'!I58 -> 0 | AK62: ='【1-B】悲観時（機構基準）収支'!J58 -> 0 | AL62: ='【1-B】悲観時（機構基準）収支'!K58 -> 0 | AM62: ='【1-B】悲観時（機構基準）収支'!L58 -> 0 | AN62: ='【1-B】悲観時（機構基準）収支'!M58 -> 0 | AO62: ='【1-B】悲観時（機構基準）収支'!N58 -> 0 | AP62: ='【1-B】悲観時（機構基準）収支'!O58 -> 0 | AQ62: ='【1-B】悲観時（機構基準）収支'!P58 -> 0 | AR62: ='【1-B】悲観時（機構基準）収支'!Q58 -> 0 | AS62: ='【1-B】悲観時（機構基準）収支'!R58 -> 0 | AT62: ='【1-B】悲観時（機構基準）収支'!S58 -> 0 | AU62: ='【1-B】悲観時（機構基準）収支'!T58 -> 0 | AV62: ='【1-B】悲観時（機構基準）収支'!U58 -> 0 | AW62: ='【1-B】悲観時（機構基準）収支'!V58 -> 0 | AX62: ='【1-B】悲観時（機構基準）収支'!W58 -> 0 | AY62: ='【1-B】悲観時（機構基準）収支'!X58 -> 0 | AZ62: ='【1-B】悲観時（機構基準）収支'!Y58 -> 0
C63: 48 | D63: ='【1-A-1】標準時収支'!B59 -> 0 | E63: ='【1-A-1】標準時収支'!C59 -> 0 | F63: ='【1-A-1】標準時収支'!D59 -> 0 | G63: ='【1-A-1】標準時収支'!E59 -> （その他項目名） | H63: ='【1-A-1】標準時収支'!F59 -> 0 | I63: ='【1-A-1】標準時収支'!G59 -> 0 | J63: ='【1-A-1】標準時収支'!H59 -> 0 | K63: ='【1-A-1】標準時収支'!I59 -> 0 | L63: ='【1-A-1】標準時収支'!J59 -> 0 | M63: ='【1-A-1】標準時収支'!K59 -> 0 | N63: ='【1-A-1】標準時収支'!L59 -> 0 | O63: ='【1-A-1】標準時収支'!M59 -> 0 | P63: ='【1-A-1】標準時収支'!N59 -> 0 | Q63: ='【1-A-1】標準時収支'!O59 -> 0 | R63: ='【1-A-1】標準時収支'!P59 -> 0 | S63: ='【1-A-1】標準時収支'!Q59 -> 0 | T63: ='【1-A-1】標準時収支'!R59 -> 0 | U63: ='【1-A-1】標準時収支'!S59 -> 0 | V63: ='【1-A-1】標準時収支'!T59 -> 0 | W63: ='【1-A-1】標準時収支'!U59 -> 0 | X63: ='【1-A-1】標準時収支'!V59 -> 0 | Y63: ='【1-A-1】標準時収支'!W59 -> 0 | Z63: ='【1-A-1】標準時収支'!X59 -> 0 | AA63: ='【1-A-1】標準時収支'!Y59 -> 0 | AC63: ='【1-B】悲観時（機構基準）収支'!B59 -> 0 | AD63: ='【1-B】悲観時（機構基準）収支'!C59 -> 0 | AE63: ='【1-B】悲観時（機構基準）収支'!D59 -> 0 | AF63: ='【1-B】悲観時（機構基準）収支'!E59 -> （その他項目名） | AG63: ='【1-B】悲観時（機構基準）収支'!F59 -> 0 | AH63: ='【1-B】悲観時（機構基準）収支'!G59 -> 0 | AI63: ='【1-B】悲観時（機構基準）収支'!H59 -> 0 | AJ63: ='【1-B】悲観時（機構基準）収支'!I59 -> 0 | AK63: ='【1-B】悲観時（機構基準）収支'!J59 -> 0 | AL63: ='【1-B】悲観時（機構基準）収支'!K59 -> 0 | AM63: ='【1-B】悲観時（機構基準）収支'!L59 -> 0 | AN63: ='【1-B】悲観時（機構基準）収支'!M59 -> 0 | AO63: ='【1-B】悲観時（機構基準）収支'!N59 -> 0 | AP63: ='【1-B】悲観時（機構基準）収支'!O59 -> 0 | AQ63: ='【1-B】悲観時（機構基準）収支'!P59 -> 0 | AR63: ='【1-B】悲観時（機構基準）収支'!Q59 -> 0 | AS63: ='【1-B】悲観時（機構基準）収支'!R59 -> 0 | AT63: ='【1-B】悲観時（機構基準）収支'!S59 -> 0 | AU63: ='【1-B】悲観時（機構基準）収支'!T59 -> 0 | AV63: ='【1-B】悲観時（機構基準）収支'!U59 -> 0 | AW63: ='【1-B】悲観時（機構基準）収支'!V59 -> 0 | AX63: ='【1-B】悲観時（機構基準）収支'!W59 -> 0 | AY63: ='【1-B】悲観時（機構基準）収支'!X59 -> 0 | AZ63: ='【1-B】悲観時（機構基準）収支'!Y59 -> 0
C64: 49 | D64: ='【1-A-1】標準時収支'!B60 -> 0 | E64: ='【1-A-1】標準時収支'!C60 -> 0 | F64: ='【1-A-1】標準時収支'!D60 -> 0 | G64: ='【1-A-1】標準時収支'!E60 -> （その他項目名） | H64: ='【1-A-1】標準時収支'!F60 -> 0 | I64: ='【1-A-1】標準時収支'!G60 -> 0 | J64: ='【1-A-1】標準時収支'!H60 -> 0 | K64: ='【1-A-1】標準時収支'!I60 -> 0 | L64: ='【1-A-1】標準時収支'!J60 -> 0 | M64: ='【1-A-1】標準時収支'!K60 -> 0 | N64: ='【1-A-1】標準時収支'!L60 -> 0 | O64: ='【1-A-1】標準時収支'!M60 -> 0 | P64: ='【1-A-1】標準時収支'!N60 -> 0 | Q64: ='【1-A-1】標準時収支'!O60 -> 0 | R64: ='【1-A-1】標準時収支'!P60 -> 0 | S64: ='【1-A-1】標準時収支'!Q60 -> 0 | T64: ='【1-A-1】標準時収支'!R60 -> 0 | U64: ='【1-A-1】標準時収支'!S60 -> 0 | V64: ='【1-A-1】標準時収支'!T60 -> 0 | W64: ='【1-A-1】標準時収支'!U60 -> 0 | X64: ='【1-A-1】標準時収支'!V60 -> 0 | Y64: ='【1-A-1】標準時収支'!W60 -> 0 | Z64: ='【1-A-1】標準時収支'!X60 -> 0 | AA64: ='【1-A-1】標準時収支'!Y60 -> 0 | AC64: ='【1-B】悲観時（機構基準）収支'!B60 -> 0 | AD64: ='【1-B】悲観時（機構基準）収支'!C60 -> 0 | AE64: ='【1-B】悲観時（機構基準）収支'!D60 -> 0 | AF64: ='【1-B】悲観時（機構基準）収支'!E60 -> （その他項目名） | AG64: ='【1-B】悲観時（機構基準）収支'!F60 -> 0 | AH64: ='【1-B】悲観時（機構基準）収支'!G60 -> 0 | AI64: ='【1-B】悲観時（機構基準）収支'!H60 -> 0 | AJ64: ='【1-B】悲観時（機構基準）収支'!I60 -> 0 | AK64: ='【1-B】悲観時（機構基準）収支'!J60 -> 0 | AL64: ='【1-B】悲観時（機構基準）収支'!K60 -> 0 | AM64: ='【1-B】悲観時（機構基準）収支'!L60 -> 0 | AN64: ='【1-B】悲観時（機構基準）収支'!M60 -> 0 | AO64: ='【1-B】悲観時（機構基準）収支'!N60 -> 0 | AP64: ='【1-B】悲観時（機構基準）収支'!O60 -> 0 | AQ64: ='【1-B】悲観時（機構基準）収支'!P60 -> 0 | AR64: ='【1-B】悲観時（機構基準）収支'!Q60 -> 0 | AS64: ='【1-B】悲観時（機構基準）収支'!R60 -> 0 | AT64: ='【1-B】悲観時（機構基準）収支'!S60 -> 0 | AU64: ='【1-B】悲観時（機構基準）収支'!T60 -> 0 | AV64: ='【1-B】悲観時（機構基準）収支'!U60 -> 0 | AW64: ='【1-B】悲観時（機構基準）収支'!V60 -> 0 | AX64: ='【1-B】悲観時（機構基準）収支'!W60 -> 0 | AY64: ='【1-B】悲観時（機構基準）収支'!X60 -> 0 | AZ64: ='【1-B】悲観時（機構基準）収支'!Y60 -> 0
C65: 50 | D65: ='【1-A-1】標準時収支'!B61 -> 0 | E65: ='【1-A-1】標準時収支'!C61 -> 0 | F65: ='【1-A-1】標準時収支'!D61 -> 0 | G65: ='【1-A-1】標準時収支'!E61 -> （その他項目名） | H65: ='【1-A-1】標準時収支'!F61 -> 0 | I65: ='【1-A-1】標準時収支'!G61 -> 0 | J65: ='【1-A-1】標準時収支'!H61 -> 0 | K65: ='【1-A-1】標準時収支'!I61 -> 0 | L65: ='【1-A-1】標準時収支'!J61 -> 0 | M65: ='【1-A-1】標準時収支'!K61 -> 0 | N65: ='【1-A-1】標準時収支'!L61 -> 0 | O65: ='【1-A-1】標準時収支'!M61 -> 0 | P65: ='【1-A-1】標準時収支'!N61 -> 0 | Q65: ='【1-A-1】標準時収支'!O61 -> 0 | R65: ='【1-A-1】標準時収支'!P61 -> 0 | S65: ='【1-A-1】標準時収支'!Q61 -> 0 | T65: ='【1-A-1】標準時収支'!R61 -> 0 | U65: ='【1-A-1】標準時収支'!S61 -> 0 | V65: ='【1-A-1】標準時収支'!T61 -> 0 | W65: ='【1-A-1】標準時収支'!U61 -> 0 | X65: ='【1-A-1】標準時収支'!V61 -> 0 | Y65: ='【1-A-1】標準時収支'!W61 -> 0 | Z65: ='【1-A-1】標準時収支'!X61 -> 0 | AA65: ='【1-A-1】標準時収支'!Y61 -> 0 | AC65: ='【1-B】悲観時（機構基準）収支'!B61 -> 0 | AD65: ='【1-B】悲観時（機構基準）収支'!C61 -> 0 | AE65: ='【1-B】悲観時（機構基準）収支'!D61 -> 0 | AF65: ='【1-B】悲観時（機構基準）収支'!E61 -> （その他項目名） | AG65: ='【1-B】悲観時（機構基準）収支'!F61 -> 0 | AH65: ='【1-B】悲観時（機構基準）収支'!G61 -> 0 | AI65: ='【1-B】悲観時（機構基準）収支'!H61 -> 0 | AJ65: ='【1-B】悲観時（機構基準）収支'!I61 -> 0 | AK65: ='【1-B】悲観時（機構基準）収支'!J61 -> 0 | AL65: ='【1-B】悲観時（機構基準）収支'!K61 -> 0 | AM65: ='【1-B】悲観時（機構基準）収支'!L61 -> 0 | AN65: ='【1-B】悲観時（機構基準）収支'!M61 -> 0 | AO65: ='【1-B】悲観時（機構基準）収支'!N61 -> 0 | AP65: ='【1-B】悲観時（機構基準）収支'!O61 -> 0 | AQ65: ='【1-B】悲観時（機構基準）収支'!P61 -> 0 | AR65: ='【1-B】悲観時（機構基準）収支'!Q61 -> 0 | AS65: ='【1-B】悲観時（機構基準）収支'!R61 -> 0 | AT65: ='【1-B】悲観時（機構基準）収支'!S61 -> 0 | AU65: ='【1-B】悲観時（機構基準）収支'!T61 -> 0 | AV65: ='【1-B】悲観時（機構基準）収支'!U61 -> 0 | AW65: ='【1-B】悲観時（機構基準）収支'!V61 -> 0 | AX65: ='【1-B】悲観時（機構基準）収支'!W61 -> 0 | AY65: ='【1-B】悲観時（機構基準）収支'!X61 -> 0 | AZ65: ='【1-B】悲観時（機構基準）収支'!Y61 -> 0
C66: 51 | D66: ='【1-A-1】標準時収支'!B62 -> 0 | E66: ='【1-A-1】標準時収支'!C62 -> 0 | F66: ='【1-A-1】標準時収支'!D62 -> 光熱水費 | G66: ='【1-A-1】標準時収支'!E62 -> 0 | H66: ='【1-A-1】標準時収支'!F62 -> 0 | I66: ='【1-A-1】標準時収支'!G62 -> 0 | J66: ='【1-A-1】標準時収支'!H62 -> 0 | K66: ='【1-A-1】標準時収支'!I62 -> 0 | L66: ='【1-A-1】標準時収支'!J62 -> 0 | M66: ='【1-A-1】標準時収支'!K62 -> 0 | N66: ='【1-A-1】標準時収支'!L62 -> 0 | O66: ='【1-A-1】標準時収支'!M62 -> 0 | P66: ='【1-A-1】標準時収支'!N62 -> 0 | Q66: ='【1-A-1】標準時収支'!O62 -> 0 | R66: ='【1-A-1】標準時収支'!P62 -> 0 | S66: ='【1-A-1】標準時収支'!Q62 -> 0 | T66: ='【1-A-1】標準時収支'!R62 -> 0 | U66: ='【1-A-1】標準時収支'!S62 -> 0 | V66: ='【1-A-1】標準時収支'!T62 -> 0 | W66: ='【1-A-1】標準時収支'!U62 -> 0 | X66: ='【1-A-1】標準時収支'!V62 -> 0 | Y66: ='【1-A-1】標準時収支'!W62 -> 0 | Z66: ='【1-A-1】標準時収支'!X62 -> 0 | AA66: ='【1-A-1】標準時収支'!Y62 -> 0 | AC66: ='【1-B】悲観時（機構基準）収支'!B62 -> 0 | AD66: ='【1-B】悲観時（機構基準）収支'!C62 -> 0 | AE66: ='【1-B】悲観時（機構基準）収支'!D62 -> 光熱水費 | AF66: ='【1-B】悲観時（機構基準）収支'!E62 -> 0 | AG66: ='【1-B】悲観時（機構基準）収支'!F62 -> 0 | AH66: ='【1-B】悲観時（機構基準）収支'!G62 -> 0 | AI66: ='【1-B】悲観時（機構基準）収支'!H62 -> 0 | AJ66: ='【1-B】悲観時（機構基準）収支'!I62 -> 0 | AK66: ='【1-B】悲観時（機構基準）収支'!J62 -> 0 | AL66: ='【1-B】悲観時（機構基準）収支'!K62 -> 0 | AM66: ='【1-B】悲観時（機構基準）収支'!L62 -> 0 | AN66: ='【1-B】悲観時（機構基準）収支'!M62 -> 0 | AO66: ='【1-B】悲観時（機構基準）収支'!N62 -> 0 | AP66: ='【1-B】悲観時（機構基準）収支'!O62 -> 0 | AQ66: ='【1-B】悲観時（機構基準）収支'!P62 -> 0 | AR66: ='【1-B】悲観時（機構基準）収支'!Q62 -> 0 | AS66: ='【1-B】悲観時（機構基準）収支'!R62 -> 0 | AT66: ='【1-B】悲観時（機構基準）収支'!S62 -> 0 | AU66: ='【1-B】悲観時（機構基準）収支'!T62 -> 0 | AV66: ='【1-B】悲観時（機構基準）収支'!U62 -> 0 | AW66: ='【1-B】悲観時（機構基準）収支'!V62 -> 0 | AX66: ='【1-B】悲観時（機構基準）収支'!W62 -> 0 | AY66: ='【1-B】悲観時（機構基準）収支'!X62 -> 0 | AZ66: ='【1-B】悲観時（機構基準）収支'!Y62 -> 0
C67: 52 | D67: ='【1-A-1】標準時収支'!B63 -> 0 | E67: ='【1-A-1】標準時収支'!C63 -> 0 | F67: ='【1-A-1】標準時収支'!D63 -> 0 | G67: ='【1-A-1】標準時収支'!E63 -> 地域冷暖房費 | H67: ='【1-A-1】標準時収支'!F63 -> 0 | I67: ='【1-A-1】標準時収支'!G63 -> 0 | J67: ='【1-A-1】標準時収支'!H63 -> 0 | K67: ='【1-A-1】標準時収支'!I63 -> 0 | L67: ='【1-A-1】標準時収支'!J63 -> 0 | M67: ='【1-A-1】標準時収支'!K63 -> 0 | N67: ='【1-A-1】標準時収支'!L63 -> 0 | O67: ='【1-A-1】標準時収支'!M63 -> 0 | P67: ='【1-A-1】標準時収支'!N63 -> 0 | Q67: ='【1-A-1】標準時収支'!O63 -> 0 | R67: ='【1-A-1】標準時収支'!P63 -> 0 | S67: ='【1-A-1】標準時収支'!Q63 -> 0 | T67: ='【1-A-1】標準時収支'!R63 -> 0 | U67: ='【1-A-1】標準時収支'!S63 -> 0 | V67: ='【1-A-1】標準時収支'!T63 -> 0 | W67: ='【1-A-1】標準時収支'!U63 -> 0 | X67: ='【1-A-1】標準時収支'!V63 -> 0 | Y67: ='【1-A-1】標準時収支'!W63 -> 0 | Z67: ='【1-A-1】標準時収支'!X63 -> 0 | AA67: ='【1-A-1】標準時収支'!Y63 -> 0 | AC67: ='【1-B】悲観時（機構基準）収支'!B63 -> 0 | AD67: ='【1-B】悲観時（機構基準）収支'!C63 -> 0 | AE67: ='【1-B】悲観時（機構基準）収支'!D63 -> 0 | AF67: ='【1-B】悲観時（機構基準）収支'!E63 -> 地域冷暖房費 | AG67: ='【1-B】悲観時（機構基準）収支'!F63 -> 0 | AH67: ='【1-B】悲観時（機構基準）収支'!G63 -> 0 | AI67: ='【1-B】悲観時（機構基準）収支'!H63 -> 0 | AJ67: ='【1-B】悲観時（機構基準）収支'!I63 -> 0 | AK67: ='【1-B】悲観時（機構基準）収支'!J63 -> 0 | AL67: ='【1-B】悲観時（機構基準）収支'!K63 -> 0 | AM67: ='【1-B】悲観時（機構基準）収支'!L63 -> 0 | AN67: ='【1-B】悲観時（機構基準）収支'!M63 -> 0 | AO67: ='【1-B】悲観時（機構基準）収支'!N63 -> 0 | AP67: ='【1-B】悲観時（機構基準）収支'!O63 -> 0 | AQ67: ='【1-B】悲観時（機構基準）収支'!P63 -> 0 | AR67: ='【1-B】悲観時（機構基準）収支'!Q63 -> 0 | AS67: ='【1-B】悲観時（機構基準）収支'!R63 -> 0 | AT67: ='【1-B】悲観時（機構基準）収支'!S63 -> 0 | AU67: ='【1-B】悲観時（機構基準）収支'!T63 -> 0 | AV67: ='【1-B】悲観時（機構基準）収支'!U63 -> 0 | AW67: ='【1-B】悲観時（機構基準）収支'!V63 -> 0 | AX67: ='【1-B】悲観時（機構基準）収支'!W63 -> 0 | AY67: ='【1-B】悲観時（機構基準）収支'!X63 -> 0 | AZ67: ='【1-B】悲観時（機構基準）収支'!Y63 -> 0
C68: 53 | D68: ='【1-A-1】標準時収支'!B64 -> 0 | E68: ='【1-A-1】標準時収支'!C64 -> 0 | F68: ='【1-A-1】標準時収支'!D64 -> 0 | G68: ='【1-A-1】標準時収支'!E64 -> （その他項目名） | H68: ='【1-A-1】標準時収支'!F64 -> 0 | I68: ='【1-A-1】標準時収支'!G64 -> 0 | J68: ='【1-A-1】標準時収支'!H64 -> 0 | K68: ='【1-A-1】標準時収支'!I64 -> 0 | L68: ='【1-A-1】標準時収支'!J64 -> 0 | M68: ='【1-A-1】標準時収支'!K64 -> 0 | N68: ='【1-A-1】標準時収支'!L64 -> 0 | O68: ='【1-A-1】標準時収支'!M64 -> 0 | P68: ='【1-A-1】標準時収支'!N64 -> 0 | Q68: ='【1-A-1】標準時収支'!O64 -> 0 | R68: ='【1-A-1】標準時収支'!P64 -> 0 | S68: ='【1-A-1】標準時収支'!Q64 -> 0 | T68: ='【1-A-1】標準時収支'!R64 -> 0 | U68: ='【1-A-1】標準時収支'!S64 -> 0 | V68: ='【1-A-1】標準時収支'!T64 -> 0 | W68: ='【1-A-1】標準時収支'!U64 -> 0 | X68: ='【1-A-1】標準時収支'!V64 -> 0 | Y68: ='【1-A-1】標準時収支'!W64 -> 0 | Z68: ='【1-A-1】標準時収支'!X64 -> 0 | AA68: ='【1-A-1】標準時収支'!Y64 -> 0 | AC68: ='【1-B】悲観時（機構基準）収支'!B64 -> 0 | AD68: ='【1-B】悲観時（機構基準）収支'!C64 -> 0 | AE68: ='【1-B】悲観時（機構基準）収支'!D64 -> 0 | AF68: ='【1-B】悲観時（機構基準）収支'!E64 -> （その他項目名） | AG68: ='【1-B】悲観時（機構基準）収支'!F64 -> 0 | AH68: ='【1-B】悲観時（機構基準）収支'!G64 -> 0 | AI68: ='【1-B】悲観時（機構基準）収支'!H64 -> 0 | AJ68: ='【1-B】悲観時（機構基準）収支'!I64 -> 0 | AK68: ='【1-B】悲観時（機構基準）収支'!J64 -> 0 | AL68: ='【1-B】悲観時（機構基準）収支'!K64 -> 0 | AM68: ='【1-B】悲観時（機構基準）収支'!L64 -> 0 | AN68: ='【1-B】悲観時（機構基準）収支'!M64 -> 0 | AO68: ='【1-B】悲観時（機構基準）収支'!N64 -> 0 | AP68: ='【1-B】悲観時（機構基準）収支'!O64 -> 0 | AQ68: ='【1-B】悲観時（機構基準）収支'!P64 -> 0 | AR68: ='【1-B】悲観時（機構基準）収支'!Q64 -> 0 | AS68: ='【1-B】悲観時（機構基準）収支'!R64 -> 0 | AT68: ='【1-B】悲観時（機構基準）収支'!S64 -> 0 | AU68: ='【1-B】悲観時（機構基準）収支'!T64 -> 0 | AV68: ='【1-B】悲観時（機構基準）収支'!U64 -> 0 | AW68: ='【1-B】悲観時（機構基準）収支'!V64 -> 0 | AX68: ='【1-B】悲観時（機構基準）収支'!W64 -> 0 | AY68: ='【1-B】悲観時（機構基準）収支'!X64 -> 0 | AZ68: ='【1-B】悲観時（機構基準）収支'!Y64 -> 0
C69: 54 | D69: ='【1-A-1】標準時収支'!B65 -> 0 | E69: ='【1-A-1】標準時収支'!C65 -> 0 | F69: ='【1-A-1】標準時収支'!D65 -> 0 | G69: ='【1-A-1】標準時収支'!E65 -> （その他項目名） | H69: ='【1-A-1】標準時収支'!F65 -> 0 | I69: ='【1-A-1】標準時収支'!G65 -> 0 | J69: ='【1-A-1】標準時収支'!H65 -> 0 | K69: ='【1-A-1】標準時収支'!I65 -> 0 | L69: ='【1-A-1】標準時収支'!J65 -> 0 | M69: ='【1-A-1】標準時収支'!K65 -> 0 | N69: ='【1-A-1】標準時収支'!L65 -> 0 | O69: ='【1-A-1】標準時収支'!M65 -> 0 | P69: ='【1-A-1】標準時収支'!N65 -> 0 | Q69: ='【1-A-1】標準時収支'!O65 -> 0 | R69: ='【1-A-1】標準時収支'!P65 -> 0 | S69: ='【1-A-1】標準時収支'!Q65 -> 0 | T69: ='【1-A-1】標準時収支'!R65 -> 0 | U69: ='【1-A-1】標準時収支'!S65 -> 0 | V69: ='【1-A-1】標準時収支'!T65 -> 0 | W69: ='【1-A-1】標準時収支'!U65 -> 0 | X69: ='【1-A-1】標準時収支'!V65 -> 0 | Y69: ='【1-A-1】標準時収支'!W65 -> 0 | Z69: ='【1-A-1】標準時収支'!X65 -> 0 | AA69: ='【1-A-1】標準時収支'!Y65 -> 0 | AC69: ='【1-B】悲観時（機構基準）収支'!B65 -> 0 | AD69: ='【1-B】悲観時（機構基準）収支'!C65 -> 0 | AE69: ='【1-B】悲観時（機構基準）収支'!D65 -> 0 | AF69: ='【1-B】悲観時（機構基準）収支'!E65 -> （その他項目名） | AG69: ='【1-B】悲観時（機構基準）収支'!F65 -> 0 | AH69: ='【1-B】悲観時（機構基準）収支'!G65 -> 0 | AI69: ='【1-B】悲観時（機構基準）収支'!H65 -> 0 | AJ69: ='【1-B】悲観時（機構基準）収支'!I65 -> 0 | AK69: ='【1-B】悲観時（機構基準）収支'!J65 -> 0 | AL69: ='【1-B】悲観時（機構基準）収支'!K65 -> 0 | AM69: ='【1-B】悲観時（機構基準）収支'!L65 -> 0 | AN69: ='【1-B】悲観時（機構基準）収支'!M65 -> 0 | AO69: ='【1-B】悲観時（機構基準）収支'!N65 -> 0 | AP69: ='【1-B】悲観時（機構基準）収支'!O65 -> 0 | AQ69: ='【1-B】悲観時（機構基準）収支'!P65 -> 0 | AR69: ='【1-B】悲観時（機構基準）収支'!Q65 -> 0 | AS69: ='【1-B】悲観時（機構基準）収支'!R65 -> 0 | AT69: ='【1-B】悲観時（機構基準）収支'!S65 -> 0 | AU69: ='【1-B】悲観時（機構基準）収支'!T65 -> 0 | AV69: ='【1-B】悲観時（機構基準）収支'!U65 -> 0 | AW69: ='【1-B】悲観時（機構基準）収支'!V65 -> 0 | AX69: ='【1-B】悲観時（機構基準）収支'!W65 -> 0 | AY69: ='【1-B】悲観時（機構基準）収支'!X65 -> 0 | AZ69: ='【1-B】悲観時（機構基準）収支'!Y65 -> 0
C70: 55 | D70: ='【1-A-1】標準時収支'!B66 -> 0 | E70: ='【1-A-1】標準時収支'!C66 -> 0 | F70: ='【1-A-1】標準時収支'!D66 -> 0 | G70: ='【1-A-1】標準時収支'!E66 -> （その他項目名） | H70: ='【1-A-1】標準時収支'!F66 -> 0 | I70: ='【1-A-1】標準時収支'!G66 -> 0 | J70: ='【1-A-1】標準時収支'!H66 -> 0 | K70: ='【1-A-1】標準時収支'!I66 -> 0 | L70: ='【1-A-1】標準時収支'!J66 -> 0 | M70: ='【1-A-1】標準時収支'!K66 -> 0 | N70: ='【1-A-1】標準時収支'!L66 -> 0 | O70: ='【1-A-1】標準時収支'!M66 -> 0 | P70: ='【1-A-1】標準時収支'!N66 -> 0 | Q70: ='【1-A-1】標準時収支'!O66 -> 0 | R70: ='【1-A-1】標準時収支'!P66 -> 0 | S70: ='【1-A-1】標準時収支'!Q66 -> 0 | T70: ='【1-A-1】標準時収支'!R66 -> 0 | U70: ='【1-A-1】標準時収支'!S66 -> 0 | V70: ='【1-A-1】標準時収支'!T66 -> 0 | W70: ='【1-A-1】標準時収支'!U66 -> 0 | X70: ='【1-A-1】標準時収支'!V66 -> 0 | Y70: ='【1-A-1】標準時収支'!W66 -> 0 | Z70: ='【1-A-1】標準時収支'!X66 -> 0 | AA70: ='【1-A-1】標準時収支'!Y66 -> 0 | AC70: ='【1-B】悲観時（機構基準）収支'!B66 -> 0 | AD70: ='【1-B】悲観時（機構基準）収支'!C66 -> 0 | AE70: ='【1-B】悲観時（機構基準）収支'!D66 -> 0 | AF70: ='【1-B】悲観時（機構基準）収支'!E66 -> （その他項目名） | AG70: ='【1-B】悲観時（機構基準）収支'!F66 -> 0 | AH70: ='【1-B】悲観時（機構基準）収支'!G66 -> 0 | AI70: ='【1-B】悲観時（機構基準）収支'!H66 -> 0 | AJ70: ='【1-B】悲観時（機構基準）収支'!I66 -> 0 | AK70: ='【1-B】悲観時（機構基準）収支'!J66 -> 0 | AL70: ='【1-B】悲観時（機構基準）収支'!K66 -> 0 | AM70: ='【1-B】悲観時（機構基準）収支'!L66 -> 0 | AN70: ='【1-B】悲観時（機構基準）収支'!M66 -> 0 | AO70: ='【1-B】悲観時（機構基準）収支'!N66 -> 0 | AP70: ='【1-B】悲観時（機構基準）収支'!O66 -> 0 | AQ70: ='【1-B】悲観時（機構基準）収支'!P66 -> 0 | AR70: ='【1-B】悲観時（機構基準）収支'!Q66 -> 0 | AS70: ='【1-B】悲観時（機構基準）収支'!R66 -> 0 | AT70: ='【1-B】悲観時（機構基準）収支'!S66 -> 0 | AU70: ='【1-B】悲観時（機構基準）収支'!T66 -> 0 | AV70: ='【1-B】悲観時（機構基準）収支'!U66 -> 0 | AW70: ='【1-B】悲観時（機構基準）収支'!V66 -> 0 | AX70: ='【1-B】悲観時（機構基準）収支'!W66 -> 0 | AY70: ='【1-B】悲観時（機構基準）収支'!X66 -> 0 | AZ70: ='【1-B】悲観時（機構基準）収支'!Y66 -> 0
C71: 56 | D71: ='【1-A-1】標準時収支'!B67 -> 0 | E71: ='【1-A-1】標準時収支'!C67 -> 0 | F71: ='【1-A-1】標準時収支'!D67 -> 0 | G71: ='【1-A-1】標準時収支'!E67 -> （その他項目名） | H71: ='【1-A-1】標準時収支'!F67 -> 0 | I71: ='【1-A-1】標準時収支'!G67 -> 0 | J71: ='【1-A-1】標準時収支'!H67 -> 0 | K71: ='【1-A-1】標準時収支'!I67 -> 0 | L71: ='【1-A-1】標準時収支'!J67 -> 0 | M71: ='【1-A-1】標準時収支'!K67 -> 0 | N71: ='【1-A-1】標準時収支'!L67 -> 0 | O71: ='【1-A-1】標準時収支'!M67 -> 0 | P71: ='【1-A-1】標準時収支'!N67 -> 0 | Q71: ='【1-A-1】標準時収支'!O67 -> 0 | R71: ='【1-A-1】標準時収支'!P67 -> 0 | S71: ='【1-A-1】標準時収支'!Q67 -> 0 | T71: ='【1-A-1】標準時収支'!R67 -> 0 | U71: ='【1-A-1】標準時収支'!S67 -> 0 | V71: ='【1-A-1】標準時収支'!T67 -> 0 | W71: ='【1-A-1】標準時収支'!U67 -> 0 | X71: ='【1-A-1】標準時収支'!V67 -> 0 | Y71: ='【1-A-1】標準時収支'!W67 -> 0 | Z71: ='【1-A-1】標準時収支'!X67 -> 0 | AA71: ='【1-A-1】標準時収支'!Y67 -> 0 | AC71: ='【1-B】悲観時（機構基準）収支'!B67 -> 0 | AD71: ='【1-B】悲観時（機構基準）収支'!C67 -> 0 | AE71: ='【1-B】悲観時（機構基準）収支'!D67 -> 0 | AF71: ='【1-B】悲観時（機構基準）収支'!E67 -> （その他項目名） | AG71: ='【1-B】悲観時（機構基準）収支'!F67 -> 0 | AH71: ='【1-B】悲観時（機構基準）収支'!G67 -> 0 | AI71: ='【1-B】悲観時（機構基準）収支'!H67 -> 0 | AJ71: ='【1-B】悲観時（機構基準）収支'!I67 -> 0 | AK71: ='【1-B】悲観時（機構基準）収支'!J67 -> 0 | AL71: ='【1-B】悲観時（機構基準）収支'!K67 -> 0 | AM71: ='【1-B】悲観時（機構基準）収支'!L67 -> 0 | AN71: ='【1-B】悲観時（機構基準）収支'!M67 -> 0 | AO71: ='【1-B】悲観時（機構基準）収支'!N67 -> 0 | AP71: ='【1-B】悲観時（機構基準）収支'!O67 -> 0 | AQ71: ='【1-B】悲観時（機構基準）収支'!P67 -> 0 | AR71: ='【1-B】悲観時（機構基準）収支'!Q67 -> 0 | AS71: ='【1-B】悲観時（機構基準）収支'!R67 -> 0 | AT71: ='【1-B】悲観時（機構基準）収支'!S67 -> 0 | AU71: ='【1-B】悲観時（機構基準）収支'!T67 -> 0 | AV71: ='【1-B】悲観時（機構基準）収支'!U67 -> 0 | AW71: ='【1-B】悲観時（機構基準）収支'!V67 -> 0 | AX71: ='【1-B】悲観時（機構基準）収支'!W67 -> 0 | AY71: ='【1-B】悲観時（機構基準）収支'!X67 -> 0 | AZ71: ='【1-B】悲観時（機構基準）収支'!Y67 -> 0
C72: 57 | D72: ='【1-A-1】標準時収支'!B68 -> 0 | E72: ='【1-A-1】標準時収支'!C68 -> 0 | F72: ='【1-A-1】標準時収支'!D68 -> 調査研究費 | G72: ='【1-A-1】標準時収支'!E68 -> 0 | H72: ='【1-A-1】標準時収支'!F68 -> 0 | I72: ='【1-A-1】標準時収支'!G68 -> 0 | J72: ='【1-A-1】標準時収支'!H68 -> 0 | K72: ='【1-A-1】標準時収支'!I68 -> 0 | L72: ='【1-A-1】標準時収支'!J68 -> 0 | M72: ='【1-A-1】標準時収支'!K68 -> 0 | N72: ='【1-A-1】標準時収支'!L68 -> 0 | O72: ='【1-A-1】標準時収支'!M68 -> 0 | P72: ='【1-A-1】標準時収支'!N68 -> 0 | Q72: ='【1-A-1】標準時収支'!O68 -> 0 | R72: ='【1-A-1】標準時収支'!P68 -> 0 | S72: ='【1-A-1】標準時収支'!Q68 -> 0 | T72: ='【1-A-1】標準時収支'!R68 -> 0 | U72: ='【1-A-1】標準時収支'!S68 -> 0 | V72: ='【1-A-1】標準時収支'!T68 -> 0 | W72: ='【1-A-1】標準時収支'!U68 -> 0 | X72: ='【1-A-1】標準時収支'!V68 -> 0 | Y72: ='【1-A-1】標準時収支'!W68 -> 0 | Z72: ='【1-A-1】標準時収支'!X68 -> 0 | AA72: ='【1-A-1】標準時収支'!Y68 -> 0 | AC72: ='【1-B】悲観時（機構基準）収支'!B68 -> 0 | AD72: ='【1-B】悲観時（機構基準）収支'!C68 -> 0 | AE72: ='【1-B】悲観時（機構基準）収支'!D68 -> 調査研究費 | AF72: ='【1-B】悲観時（機構基準）収支'!E68 -> 0 | AG72: ='【1-B】悲観時（機構基準）収支'!F68 -> 0 | AH72: ='【1-B】悲観時（機構基準）収支'!G68 -> 0 | AI72: ='【1-B】悲観時（機構基準）収支'!H68 -> 0 | AJ72: ='【1-B】悲観時（機構基準）収支'!I68 -> 0 | AK72: ='【1-B】悲観時（機構基準）収支'!J68 -> 0 | AL72: ='【1-B】悲観時（機構基準）収支'!K68 -> 0 | AM72: ='【1-B】悲観時（機構基準）収支'!L68 -> 0 | AN72: ='【1-B】悲観時（機構基準）収支'!M68 -> 0 | AO72: ='【1-B】悲観時（機構基準）収支'!N68 -> 0 | AP72: ='【1-B】悲観時（機構基準）収支'!O68 -> 0 | AQ72: ='【1-B】悲観時（機構基準）収支'!P68 -> 0 | AR72: ='【1-B】悲観時（機構基準）収支'!Q68 -> 0 | AS72: ='【1-B】悲観時（機構基準）収支'!R68 -> 0 | AT72: ='【1-B】悲観時（機構基準）収支'!S68 -> 0 | AU72: ='【1-B】悲観時（機構基準）収支'!T68 -> 0 | AV72: ='【1-B】悲観時（機構基準）収支'!U68 -> 0 | AW72: ='【1-B】悲観時（機構基準）収支'!V68 -> 0 | AX72: ='【1-B】悲観時（機構基準）収支'!W68 -> 0 | AY72: ='【1-B】悲観時（機構基準）収支'!X68 -> 0 | AZ72: ='【1-B】悲観時（機構基準）収支'!Y68 -> 0
C73: 58 | D73: ='【1-A-1】標準時収支'!B69 -> 0 | E73: ='【1-A-1】標準時収支'!C69 -> 0 | F73: ='【1-A-1】標準時収支'!D69 -> 収集・保管費 | G73: ='【1-A-1】標準時収支'!E69 -> 0 | H73: ='【1-A-1】標準時収支'!F69 -> 0 | I73: ='【1-A-1】標準時収支'!G69 -> 0 | J73: ='【1-A-1】標準時収支'!H69 -> 0 | K73: ='【1-A-1】標準時収支'!I69 -> 0 | L73: ='【1-A-1】標準時収支'!J69 -> 0 | M73: ='【1-A-1】標準時収支'!K69 -> 0 | N73: ='【1-A-1】標準時収支'!L69 -> 0 | O73: ='【1-A-1】標準時収支'!M69 -> 0 | P73: ='【1-A-1】標準時収支'!N69 -> 0 | Q73: ='【1-A-1】標準時収支'!O69 -> 0 | R73: ='【1-A-1】標準時収支'!P69 -> 0 | S73: ='【1-A-1】標準時収支'!Q69 -> 0 | T73: ='【1-A-1】標準時収支'!R69 -> 0 | U73: ='【1-A-1】標準時収支'!S69 -> 0 | V73: ='【1-A-1】標準時収支'!T69 -> 0 | W73: ='【1-A-1】標準時収支'!U69 -> 0 | X73: ='【1-A-1】標準時収支'!V69 -> 0 | Y73: ='【1-A-1】標準時収支'!W69 -> 0 | Z73: ='【1-A-1】標準時収支'!X69 -> 0 | AA73: ='【1-A-1】標準時収支'!Y69 -> 0 | AC73: ='【1-B】悲観時（機構基準）収支'!B69 -> 0 | AD73: ='【1-B】悲観時（機構基準）収支'!C69 -> 0 | AE73: ='【1-B】悲観時（機構基準）収支'!D69 -> 収集・保管費 | AF73: ='【1-B】悲観時（機構基準）収支'!E69 -> 0 | AG73: ='【1-B】悲観時（機構基準）収支'!F69 -> 0 | AH73: ='【1-B】悲観時（機構基準）収支'!G69 -> 0 | AI73: ='【1-B】悲観時（機構基準）収支'!H69 -> 0 | AJ73: ='【1-B】悲観時（機構基準）収支'!I69 -> 0 | AK73: ='【1-B】悲観時（機構基準）収支'!J69 -> 0 | AL73: ='【1-B】悲観時（機構基準）収支'!K69 -> 0 | AM73: ='【1-B】悲観時（機構基準）収支'!L69 -> 0 | AN73: ='【1-B】悲観時（機構基準）収支'!M69 -> 0 | AO73: ='【1-B】悲観時（機構基準）収支'!N69 -> 0 | AP73: ='【1-B】悲観時（機構基準）収支'!O69 -> 0 | AQ73: ='【1-B】悲観時（機構基準）収支'!P69 -> 0 | AR73: ='【1-B】悲観時（機構基準）収支'!Q69 -> 0 | AS73: ='【1-B】悲観時（機構基準）収支'!R69 -> 0 | AT73: ='【1-B】悲観時（機構基準）収支'!S69 -> 0 | AU73: ='【1-B】悲観時（機構基準）収支'!T69 -> 0 | AV73: ='【1-B】悲観時（機構基準）収支'!U69 -> 0 | AW73: ='【1-B】悲観時（機構基準）収支'!V69 -> 0 | AX73: ='【1-B】悲観時（機構基準）収支'!W69 -> 0 | AY73: ='【1-B】悲観時（機構基準）収支'!X69 -> 0 | AZ73: ='【1-B】悲観時（機構基準）収支'!Y69 -> 0
C74: 59 | D74: ='【1-A-1】標準時収支'!B70 -> 0 | E74: ='【1-A-1】標準時収支'!C70 -> 0 | F74: ='【1-A-1】標準時収支'!D70 -> 教育普及費 | G74: ='【1-A-1】標準時収支'!E70 -> 0 | H74: ='【1-A-1】標準時収支'!F70 -> 0 | I74: ='【1-A-1】標準時収支'!G70 -> 0 | J74: ='【1-A-1】標準時収支'!H70 -> 0 | K74: ='【1-A-1】標準時収支'!I70 -> 0 | L74: ='【1-A-1】標準時収支'!J70 -> 0 | M74: ='【1-A-1】標準時収支'!K70 -> 0 | N74: ='【1-A-1】標準時収支'!L70 -> 0 | O74: ='【1-A-1】標準時収支'!M70 -> 0 | P74: ='【1-A-1】標準時収支'!N70 -> 0 | Q74: ='【1-A-1】標準時収支'!O70 -> 0 | R74: ='【1-A-1】標準時収支'!P70 -> 0 | S74: ='【1-A-1】標準時収支'!Q70 -> 0 | T74: ='【1-A-1】標準時収支'!R70 -> 0 | U74: ='【1-A-1】標準時収支'!S70 -> 0 | V74: ='【1-A-1】標準時収支'!T70 -> 0 | W74: ='【1-A-1】標準時収支'!U70 -> 0 | X74: ='【1-A-1】標準時収支'!V70 -> 0 | Y74: ='【1-A-1】標準時収支'!W70 -> 0 | Z74: ='【1-A-1】標準時収支'!X70 -> 0 | AA74: ='【1-A-1】標準時収支'!Y70 -> 0 | AC74: ='【1-B】悲観時（機構基準）収支'!B70 -> 0 | AD74: ='【1-B】悲観時（機構基準）収支'!C70 -> 0 | AE74: ='【1-B】悲観時（機構基準）収支'!D70 -> 教育普及費 | AF74: ='【1-B】悲観時（機構基準）収支'!E70 -> 0 | AG74: ='【1-B】悲観時（機構基準）収支'!F70 -> 0 | AH74: ='【1-B】悲観時（機構基準）収支'!G70 -> 0 | AI74: ='【1-B】悲観時（機構基準）収支'!H70 -> 0 | AJ74: ='【1-B】悲観時（機構基準）収支'!I70 -> 0 | AK74: ='【1-B】悲観時（機構基準）収支'!J70 -> 0 | AL74: ='【1-B】悲観時（機構基準）収支'!K70 -> 0 | AM74: ='【1-B】悲観時（機構基準）収支'!L70 -> 0 | AN74: ='【1-B】悲観時（機構基準）収支'!M70 -> 0 | AO74: ='【1-B】悲観時（機構基準）収支'!N70 -> 0 | AP74: ='【1-B】悲観時（機構基準）収支'!O70 -> 0 | AQ74: ='【1-B】悲観時（機構基準）収支'!P70 -> 0 | AR74: ='【1-B】悲観時（機構基準）収支'!Q70 -> 0 | AS74: ='【1-B】悲観時（機構基準）収支'!R70 -> 0 | AT74: ='【1-B】悲観時（機構基準）収支'!S70 -> 0 | AU74: ='【1-B】悲観時（機構基準）収支'!T70 -> 0 | AV74: ='【1-B】悲観時（機構基準）収支'!U70 -> 0 | AW74: ='【1-B】悲観時（機構基準）収支'!V70 -> 0 | AX74: ='【1-B】悲観時（機構基準）収支'!W70 -> 0 | AY74: ='【1-B】悲観時（機構基準）収支'!X70 -> 0 | AZ74: ='【1-B】悲観時（機構基準）収支'!Y70 -> 0
C75: 60 | D75: ='【1-A-1】標準時収支'!B71 -> 0 | E75: ='【1-A-1】標準時収支'!C71 -> 0 | F75: ='【1-A-1】標準時収支'!D71 -> アーカイブ及び記録・管理費 | G75: ='【1-A-1】標準時収支'!E71 -> 0 | H75: ='【1-A-1】標準時収支'!F71 -> 0 | I75: ='【1-A-1】標準時収支'!G71 -> 0 | J75: ='【1-A-1】標準時収支'!H71 -> 0 | K75: ='【1-A-1】標準時収支'!I71 -> 0 | L75: ='【1-A-1】標準時収支'!J71 -> 0 | M75: ='【1-A-1】標準時収支'!K71 -> 0 | N75: ='【1-A-1】標準時収支'!L71 -> 0 | O75: ='【1-A-1】標準時収支'!M71 -> 0 | P75: ='【1-A-1】標準時収支'!N71 -> 0 | Q75: ='【1-A-1】標準時収支'!O71 -> 0 | R75: ='【1-A-1】標準時収支'!P71 -> 0 | S75: ='【1-A-1】標準時収支'!Q71 -> 0 | T75: ='【1-A-1】標準時収支'!R71 -> 0 | U75: ='【1-A-1】標準時収支'!S71 -> 0 | V75: ='【1-A-1】標準時収支'!T71 -> 0 | W75: ='【1-A-1】標準時収支'!U71 -> 0 | X75: ='【1-A-1】標準時収支'!V71 -> 0 | Y75: ='【1-A-1】標準時収支'!W71 -> 0 | Z75: ='【1-A-1】標準時収支'!X71 -> 0 | AA75: ='【1-A-1】標準時収支'!Y71 -> 0 | AC75: ='【1-B】悲観時（機構基準）収支'!B71 -> 0 | AD75: ='【1-B】悲観時（機構基準）収支'!C71 -> 0 | AE75: ='【1-B】悲観時（機構基準）収支'!D71 -> アーカイブ及び記録・管理費 | AF75: ='【1-B】悲観時（機構基準）収支'!E71 -> 0 | AG75: ='【1-B】悲観時（機構基準）収支'!F71 -> 0 | AH75: ='【1-B】悲観時（機構基準）収支'!G71 -> 0 | AI75: ='【1-B】悲観時（機構基準）収支'!H71 -> 0 | AJ75: ='【1-B】悲観時（機構基準）収支'!I71 -> 0 | AK75: ='【1-B】悲観時（機構基準）収支'!J71 -> 0 | AL75: ='【1-B】悲観時（機構基準）収支'!K71 -> 0 | AM75: ='【1-B】悲観時（機構基準）収支'!L71 -> 0 | AN75: ='【1-B】悲観時（機構基準）収支'!M71 -> 0 | AO75: ='【1-B】悲観時（機構基準）収支'!N71 -> 0 | AP75: ='【1-B】悲観時（機構基準）収支'!O71 -> 0 | AQ75: ='【1-B】悲観時（機構基準）収支'!P71 -> 0 | AR75: ='【1-B】悲観時（機構基準）収支'!Q71 -> 0 | AS75: ='【1-B】悲観時（機構基準）収支'!R71 -> 0 | AT75: ='【1-B】悲観時（機構基準）収支'!S71 -> 0 | AU75: ='【1-B】悲観時（機構基準）収支'!T71 -> 0 | AV75: ='【1-B】悲観時（機構基準）収支'!U71 -> 0 | AW75: ='【1-B】悲観時（機構基準）収支'!V71 -> 0 | AX75: ='【1-B】悲観時（機構基準）収支'!W71 -> 0 | AY75: ='【1-B】悲観時（機構基準）収支'!X71 -> 0 | AZ75: ='【1-B】悲観時（機構基準）収支'!Y71 -> 0
C76: 61 | D76: ='【1-A-1】標準時収支'!B72 -> 0 | E76: ='【1-A-1】標準時収支'!C72 -> 0 | F76: ='【1-A-1】標準時収支'!D72 -> 事務 | G76: ='【1-A-1】標準時収支'!E72 -> 0 | H76: ='【1-A-1】標準時収支'!F72 -> 0 | I76: ='【1-A-1】標準時収支'!G72 -> 0 | J76: ='【1-A-1】標準時収支'!H72 -> 0 | K76: ='【1-A-1】標準時収支'!I72 -> 0 | L76: ='【1-A-1】標準時収支'!J72 -> 0 | M76: ='【1-A-1】標準時収支'!K72 -> 0 | N76: ='【1-A-1】標準時収支'!L72 -> 0 | O76: ='【1-A-1】標準時収支'!M72 -> 0 | P76: ='【1-A-1】標準時収支'!N72 -> 0 | Q76: ='【1-A-1】標準時収支'!O72 -> 0 | R76: ='【1-A-1】標準時収支'!P72 -> 0 | S76: ='【1-A-1】標準時収支'!Q72 -> 0 | T76: ='【1-A-1】標準時収支'!R72 -> 0 | U76: ='【1-A-1】標準時収支'!S72 -> 0 | V76: ='【1-A-1】標準時収支'!T72 -> 0 | W76: ='【1-A-1】標準時収支'!U72 -> 0 | X76: ='【1-A-1】標準時収支'!V72 -> 0 | Y76: ='【1-A-1】標準時収支'!W72 -> 0 | Z76: ='【1-A-1】標準時収支'!X72 -> 0 | AA76: ='【1-A-1】標準時収支'!Y72 -> 0 | AC76: ='【1-B】悲観時（機構基準）収支'!B72 -> 0 | AD76: ='【1-B】悲観時（機構基準）収支'!C72 -> 0 | AE76: ='【1-B】悲観時（機構基準）収支'!D72 -> 事務 | AF76: ='【1-B】悲観時（機構基準）収支'!E72 -> 0 | AG76: ='【1-B】悲観時（機構基準）収支'!F72 -> 0 | AH76: ='【1-B】悲観時（機構基準）収支'!G72 -> 0 | AI76: ='【1-B】悲観時（機構基準）収支'!H72 -> 0 | AJ76: ='【1-B】悲観時（機構基準）収支'!I72 -> 0 | AK76: ='【1-B】悲観時（機構基準）収支'!J72 -> 0 | AL76: ='【1-B】悲観時（機構基準）収支'!K72 -> 0 | AM76: ='【1-B】悲観時（機構基準）収支'!L72 -> 0 | AN76: ='【1-B】悲観時（機構基準）収支'!M72 -> 0 | AO76: ='【1-B】悲観時（機構基準）収支'!N72 -> 0 | AP76: ='【1-B】悲観時（機構基準）収支'!O72 -> 0 | AQ76: ='【1-B】悲観時（機構基準）収支'!P72 -> 0 | AR76: ='【1-B】悲観時（機構基準）収支'!Q72 -> 0 | AS76: ='【1-B】悲観時（機構基準）収支'!R72 -> 0 | AT76: ='【1-B】悲観時（機構基準）収支'!S72 -> 0 | AU76: ='【1-B】悲観時（機構基準）収支'!T72 -> 0 | AV76: ='【1-B】悲観時（機構基準）収支'!U72 -> 0 | AW76: ='【1-B】悲観時（機構基準）収支'!V72 -> 0 | AX76: ='【1-B】悲観時（機構基準）収支'!W72 -> 0 | AY76: ='【1-B】悲観時（機構基準）収支'!X72 -> 0 | AZ76: ='【1-B】悲観時（機構基準）収支'!Y72 -> 0
C77: 62 | D77: ='【1-A-1】標準時収支'!B73 -> 0 | E77: ='【1-A-1】標準時収支'!C73 -> 0 | F77: ='【1-A-1】標準時収支'!D73 -> 渉外 | G77: ='【1-A-1】標準時収支'!E73 -> 0 | H77: ='【1-A-1】標準時収支'!F73 -> 0 | I77: ='【1-A-1】標準時収支'!G73 -> 0 | J77: ='【1-A-1】標準時収支'!H73 -> 0 | K77: ='【1-A-1】標準時収支'!I73 -> 0 | L77: ='【1-A-1】標準時収支'!J73 -> 0 | M77: ='【1-A-1】標準時収支'!K73 -> 0 | N77: ='【1-A-1】標準時収支'!L73 -> 0 | O77: ='【1-A-1】標準時収支'!M73 -> 0 | P77: ='【1-A-1】標準時収支'!N73 -> 0 | Q77: ='【1-A-1】標準時収支'!O73 -> 0 | R77: ='【1-A-1】標準時収支'!P73 -> 0 | S77: ='【1-A-1】標準時収支'!Q73 -> 0 | T77: ='【1-A-1】標準時収支'!R73 -> 0 | U77: ='【1-A-1】標準時収支'!S73 -> 0 | V77: ='【1-A-1】標準時収支'!T73 -> 0 | W77: ='【1-A-1】標準時収支'!U73 -> 0 | X77: ='【1-A-1】標準時収支'!V73 -> 0 | Y77: ='【1-A-1】標準時収支'!W73 -> 0 | Z77: ='【1-A-1】標準時収支'!X73 -> 0 | AA77: ='【1-A-1】標準時収支'!Y73 -> 0 | AC77: ='【1-B】悲観時（機構基準）収支'!B73 -> 0 | AD77: ='【1-B】悲観時（機構基準）収支'!C73 -> 0 | AE77: ='【1-B】悲観時（機構基準）収支'!D73 -> 渉外 | AF77: ='【1-B】悲観時（機構基準）収支'!E73 -> 0 | AG77: ='【1-B】悲観時（機構基準）収支'!F73 -> 0 | AH77: ='【1-B】悲観時（機構基準）収支'!G73 -> 0 | AI77: ='【1-B】悲観時（機構基準）収支'!H73 -> 0 | AJ77: ='【1-B】悲観時（機構基準）収支'!I73 -> 0 | AK77: ='【1-B】悲観時（機構基準）収支'!J73 -> 0 | AL77: ='【1-B】悲観時（機構基準）収支'!K73 -> 0 | AM77: ='【1-B】悲観時（機構基準）収支'!L73 -> 0 | AN77: ='【1-B】悲観時（機構基準）収支'!M73 -> 0 | AO77: ='【1-B】悲観時（機構基準）収支'!N73 -> 0 | AP77: ='【1-B】悲観時（機構基準）収支'!O73 -> 0 | AQ77: ='【1-B】悲観時（機構基準）収支'!P73 -> 0 | AR77: ='【1-B】悲観時（機構基準）収支'!Q73 -> 0 | AS77: ='【1-B】悲観時（機構基準）収支'!R73 -> 0 | AT77: ='【1-B】悲観時（機構基準）収支'!S73 -> 0 | AU77: ='【1-B】悲観時（機構基準）収支'!T73 -> 0 | AV77: ='【1-B】悲観時（機構基準）収支'!U73 -> 0 | AW77: ='【1-B】悲観時（機構基準）収支'!V73 -> 0 | AX77: ='【1-B】悲観時（機構基準）収支'!W73 -> 0 | AY77: ='【1-B】悲観時（機構基準）収支'!X73 -> 0 | AZ77: ='【1-B】悲観時（機構基準）収支'!Y73 -> 0
C78: 63 | D78: ='【1-A-1】標準時収支'!B74 -> 0 | E78: ='【1-A-1】標準時収支'!C74 -> 0 | F78: ='【1-A-1】標準時収支'!D74 -> （その他項目名） | G78: ='【1-A-1】標準時収支'!E74 -> 0 | H78: ='【1-A-1】標準時収支'!F74 -> 0 | I78: ='【1-A-1】標準時収支'!G74 -> 0 | J78: ='【1-A-1】標準時収支'!H74 -> 0 | K78: ='【1-A-1】標準時収支'!I74 -> 0 | L78: ='【1-A-1】標準時収支'!J74 -> 0 | M78: ='【1-A-1】標準時収支'!K74 -> 0 | N78: ='【1-A-1】標準時収支'!L74 -> 0 | O78: ='【1-A-1】標準時収支'!M74 -> 0 | P78: ='【1-A-1】標準時収支'!N74 -> 0 | Q78: ='【1-A-1】標準時収支'!O74 -> 0 | R78: ='【1-A-1】標準時収支'!P74 -> 0 | S78: ='【1-A-1】標準時収支'!Q74 -> 0 | T78: ='【1-A-1】標準時収支'!R74 -> 0 | U78: ='【1-A-1】標準時収支'!S74 -> 0 | V78: ='【1-A-1】標準時収支'!T74 -> 0 | W78: ='【1-A-1】標準時収支'!U74 -> 0 | X78: ='【1-A-1】標準時収支'!V74 -> 0 | Y78: ='【1-A-1】標準時収支'!W74 -> 0 | Z78: ='【1-A-1】標準時収支'!X74 -> 0 | AA78: ='【1-A-1】標準時収支'!Y74 -> 0 | AC78: ='【1-B】悲観時（機構基準）収支'!B74 -> 0 | AD78: ='【1-B】悲観時（機構基準）収支'!C74 -> 0 | AE78: ='【1-B】悲観時（機構基準）収支'!D74 -> （その他項目名） | AF78: ='【1-B】悲観時（機構基準）収支'!E74 -> 0 | AG78: ='【1-B】悲観時（機構基準）収支'!F74 -> 0 | AH78: ='【1-B】悲観時（機構基準）収支'!G74 -> 0 | AI78: ='【1-B】悲観時（機構基準）収支'!H74 -> 0 | AJ78: ='【1-B】悲観時（機構基準）収支'!I74 -> 0 | AK78: ='【1-B】悲観時（機構基準）収支'!J74 -> 0 | AL78: ='【1-B】悲観時（機構基準）収支'!K74 -> 0 | AM78: ='【1-B】悲観時（機構基準）収支'!L74 -> 0 | AN78: ='【1-B】悲観時（機構基準）収支'!M74 -> 0 | AO78: ='【1-B】悲観時（機構基準）収支'!N74 -> 0 | AP78: ='【1-B】悲観時（機構基準）収支'!O74 -> 0 | AQ78: ='【1-B】悲観時（機構基準）収支'!P74 -> 0 | AR78: ='【1-B】悲観時（機構基準）収支'!Q74 -> 0 | AS78: ='【1-B】悲観時（機構基準）収支'!R74 -> 0 | AT78: ='【1-B】悲観時（機構基準）収支'!S74 -> 0 | AU78: ='【1-B】悲観時（機構基準）収支'!T74 -> 0 | AV78: ='【1-B】悲観時（機構基準）収支'!U74 -> 0 | AW78: ='【1-B】悲観時（機構基準）収支'!V74 -> 0 | AX78: ='【1-B】悲観時（機構基準）収支'!W74 -> 0 | AY78: ='【1-B】悲観時（機構基準）収支'!X74 -> 0 | AZ78: ='【1-B】悲観時（機構基準）収支'!Y74 -> 0
C79: 64 | D79: ='【1-A-1】標準時収支'!B75 -> 0 | E79: ='【1-A-1】標準時収支'!C75 -> 0 | F79: ='【1-A-1】標準時収支'!D75 -> （その他項目名） | G79: ='【1-A-1】標準時収支'!E75 -> 0 | H79: ='【1-A-1】標準時収支'!F75 -> 0 | I79: ='【1-A-1】標準時収支'!G75 -> 0 | J79: ='【1-A-1】標準時収支'!H75 -> 0 | K79: ='【1-A-1】標準時収支'!I75 -> 0 | L79: ='【1-A-1】標準時収支'!J75 -> 0 | M79: ='【1-A-1】標準時収支'!K75 -> 0 | N79: ='【1-A-1】標準時収支'!L75 -> 0 | O79: ='【1-A-1】標準時収支'!M75 -> 0 | P79: ='【1-A-1】標準時収支'!N75 -> 0 | Q79: ='【1-A-1】標準時収支'!O75 -> 0 | R79: ='【1-A-1】標準時収支'!P75 -> 0 | S79: ='【1-A-1】標準時収支'!Q75 -> 0 | T79: ='【1-A-1】標準時収支'!R75 -> 0 | U79: ='【1-A-1】標準時収支'!S75 -> 0 | V79: ='【1-A-1】標準時収支'!T75 -> 0 | W79: ='【1-A-1】標準時収支'!U75 -> 0 | X79: ='【1-A-1】標準時収支'!V75 -> 0 | Y79: ='【1-A-1】標準時収支'!W75 -> 0 | Z79: ='【1-A-1】標準時収支'!X75 -> 0 | AA79: ='【1-A-1】標準時収支'!Y75 -> 0 | AC79: ='【1-B】悲観時（機構基準）収支'!B75 -> 0 | AD79: ='【1-B】悲観時（機構基準）収支'!C75 -> 0 | AE79: ='【1-B】悲観時（機構基準）収支'!D75 -> （その他項目名） | AF79: ='【1-B】悲観時（機構基準）収支'!E75 -> 0 | AG79: ='【1-B】悲観時（機構基準）収支'!F75 -> 0 | AH79: ='【1-B】悲観時（機構基準）収支'!G75 -> 0 | AI79: ='【1-B】悲観時（機構基準）収支'!H75 -> 0 | AJ79: ='【1-B】悲観時（機構基準）収支'!I75 -> 0 | AK79: ='【1-B】悲観時（機構基準）収支'!J75 -> 0 | AL79: ='【1-B】悲観時（機構基準）収支'!K75 -> 0 | AM79: ='【1-B】悲観時（機構基準）収支'!L75 -> 0 | AN79: ='【1-B】悲観時（機構基準）収支'!M75 -> 0 | AO79: ='【1-B】悲観時（機構基準）収支'!N75 -> 0 | AP79: ='【1-B】悲観時（機構基準）収支'!O75 -> 0 | AQ79: ='【1-B】悲観時（機構基準）収支'!P75 -> 0 | AR79: ='【1-B】悲観時（機構基準）収支'!Q75 -> 0 | AS79: ='【1-B】悲観時（機構基準）収支'!R75 -> 0 | AT79: ='【1-B】悲観時（機構基準）収支'!S75 -> 0 | AU79: ='【1-B】悲観時（機構基準）収支'!T75 -> 0 | AV79: ='【1-B】悲観時（機構基準）収支'!U75 -> 0 | AW79: ='【1-B】悲観時（機構基準）収支'!V75 -> 0 | AX79: ='【1-B】悲観時（機構基準）収支'!W75 -> 0 | AY79: ='【1-B】悲観時（機構基準）収支'!X75 -> 0 | AZ79: ='【1-B】悲観時（機構基準）収支'!Y75 -> 0
C80: 65 | D80: ='【1-A-1】標準時収支'!B76 -> 0 | E80: ='【1-A-1】標準時収支'!C76 -> 0 | F80: ='【1-A-1】標準時収支'!D76 -> （その他項目名） | G80: ='【1-A-1】標準時収支'!E76 -> 0 | H80: ='【1-A-1】標準時収支'!F76 -> 0 | I80: ='【1-A-1】標準時収支'!G76 -> 0 | J80: ='【1-A-1】標準時収支'!H76 -> 0 | K80: ='【1-A-1】標準時収支'!I76 -> 0 | L80: ='【1-A-1】標準時収支'!J76 -> 0 | M80: ='【1-A-1】標準時収支'!K76 -> 0 | N80: ='【1-A-1】標準時収支'!L76 -> 0 | O80: ='【1-A-1】標準時収支'!M76 -> 0 | P80: ='【1-A-1】標準時収支'!N76 -> 0 | Q80: ='【1-A-1】標準時収支'!O76 -> 0 | R80: ='【1-A-1】標準時収支'!P76 -> 0 | S80: ='【1-A-1】標準時収支'!Q76 -> 0 | T80: ='【1-A-1】標準時収支'!R76 -> 0 | U80: ='【1-A-1】標準時収支'!S76 -> 0 | V80: ='【1-A-1】標準時収支'!T76 -> 0 | W80: ='【1-A-1】標準時収支'!U76 -> 0 | X80: ='【1-A-1】標準時収支'!V76 -> 0 | Y80: ='【1-A-1】標準時収支'!W76 -> 0 | Z80: ='【1-A-1】標準時収支'!X76 -> 0 | AA80: ='【1-A-1】標準時収支'!Y76 -> 0 | AC80: ='【1-B】悲観時（機構基準）収支'!B76 -> 0 | AD80: ='【1-B】悲観時（機構基準）収支'!C76 -> 0 | AE80: ='【1-B】悲観時（機構基準）収支'!D76 -> （その他項目名） | AF80: ='【1-B】悲観時（機構基準）収支'!E76 -> 0 | AG80: ='【1-B】悲観時（機構基準）収支'!F76 -> 0 | AH80: ='【1-B】悲観時（機構基準）収支'!G76 -> 0 | AI80: ='【1-B】悲観時（機構基準）収支'!H76 -> 0 | AJ80: ='【1-B】悲観時（機構基準）収支'!I76 -> 0 | AK80: ='【1-B】悲観時（機構基準）収支'!J76 -> 0 | AL80: ='【1-B】悲観時（機構基準）収支'!K76 -> 0 | AM80: ='【1-B】悲観時（機構基準）収支'!L76 -> 0 | AN80: ='【1-B】悲観時（機構基準）収支'!M76 -> 0 | AO80: ='【1-B】悲観時（機構基準）収支'!N76 -> 0 | AP80: ='【1-B】悲観時（機構基準）収支'!O76 -> 0 | AQ80: ='【1-B】悲観時（機構基準）収支'!P76 -> 0 | AR80: ='【1-B】悲観時（機構基準）収支'!Q76 -> 0 | AS80: ='【1-B】悲観時（機構基準）収支'!R76 -> 0 | AT80: ='【1-B】悲観時（機構基準）収支'!S76 -> 0 | AU80: ='【1-B】悲観時（機構基準）収支'!T76 -> 0 | AV80: ='【1-B】悲観時（機構基準）収支'!U76 -> 0 | AW80: ='【1-B】悲観時（機構基準）収支'!V76 -> 0 | AX80: ='【1-B】悲観時（機構基準）収支'!W76 -> 0 | AY80: ='【1-B】悲観時（機構基準）収支'!X76 -> 0 | AZ80: ='【1-B】悲観時（機構基準）収支'!Y76 -> 0
C81: 66 | D81: ='【1-A-1】標準時収支'!B77 -> 0 | E81: ='【1-A-1】標準時収支'!C77 -> 0 | F81: ='【1-A-1】標準時収支'!D77 -> （その他項目名） | G81: ='【1-A-1】標準時収支'!E77 -> 0 | H81: ='【1-A-1】標準時収支'!F77 -> 0 | I81: ='【1-A-1】標準時収支'!G77 -> 0 | J81: ='【1-A-1】標準時収支'!H77 -> 0 | K81: ='【1-A-1】標準時収支'!I77 -> 0 | L81: ='【1-A-1】標準時収支'!J77 -> 0 | M81: ='【1-A-1】標準時収支'!K77 -> 0 | N81: ='【1-A-1】標準時収支'!L77 -> 0 | O81: ='【1-A-1】標準時収支'!M77 -> 0 | P81: ='【1-A-1】標準時収支'!N77 -> 0 | Q81: ='【1-A-1】標準時収支'!O77 -> 0 | R81: ='【1-A-1】標準時収支'!P77 -> 0 | S81: ='【1-A-1】標準時収支'!Q77 -> 0 | T81: ='【1-A-1】標準時収支'!R77 -> 0 | U81: ='【1-A-1】標準時収支'!S77 -> 0 | V81: ='【1-A-1】標準時収支'!T77 -> 0 | W81: ='【1-A-1】標準時収支'!U77 -> 0 | X81: ='【1-A-1】標準時収支'!V77 -> 0 | Y81: ='【1-A-1】標準時収支'!W77 -> 0 | Z81: ='【1-A-1】標準時収支'!X77 -> 0 | AA81: ='【1-A-1】標準時収支'!Y77 -> 0 | AC81: ='【1-B】悲観時（機構基準）収支'!B77 -> 0 | AD81: ='【1-B】悲観時（機構基準）収支'!C77 -> 0 | AE81: ='【1-B】悲観時（機構基準）収支'!D77 -> （その他項目名） | AF81: ='【1-B】悲観時（機構基準）収支'!E77 -> 0 | AG81: ='【1-B】悲観時（機構基準）収支'!F77 -> 0 | AH81: ='【1-B】悲観時（機構基準）収支'!G77 -> 0 | AI81: ='【1-B】悲観時（機構基準）収支'!H77 -> 0 | AJ81: ='【1-B】悲観時（機構基準）収支'!I77 -> 0 | AK81: ='【1-B】悲観時（機構基準）収支'!J77 -> 0 | AL81: ='【1-B】悲観時（機構基準）収支'!K77 -> 0 | AM81: ='【1-B】悲観時（機構基準）収支'!L77 -> 0 | AN81: ='【1-B】悲観時（機構基準）収支'!M77 -> 0 | AO81: ='【1-B】悲観時（機構基準）収支'!N77 -> 0 | AP81: ='【1-B】悲観時（機構基準）収支'!O77 -> 0 | AQ81: ='【1-B】悲観時（機構基準）収支'!P77 -> 0 | AR81: ='【1-B】悲観時（機構基準）収支'!Q77 -> 0 | AS81: ='【1-B】悲観時（機構基準）収支'!R77 -> 0 | AT81: ='【1-B】悲観時（機構基準）収支'!S77 -> 0 | AU81: ='【1-B】悲観時（機構基準）収支'!T77 -> 0 | AV81: ='【1-B】悲観時（機構基準）収支'!U77 -> 0 | AW81: ='【1-B】悲観時（機構基準）収支'!V77 -> 0 | AX81: ='【1-B】悲観時（機構基準）収支'!W77 -> 0 | AY81: ='【1-B】悲観時（機構基準）収支'!X77 -> 0 | AZ81: ='【1-B】悲観時（機構基準）収支'!Y77 -> 0
C82: =C81+1 -> 67 | D82: ='【1-A-1】標準時収支'!B78 -> 0 | E82: ='【1-A-1】標準時収支'!C78 -> 0 | F82: ='【1-A-1】標準時収支'!D78 -> （その他項目名） | G82: ='【1-A-1】標準時収支'!E78 -> 0 | H82: ='【1-A-1】標準時収支'!F78 -> 0 | I82: ='【1-A-1】標準時収支'!G78 -> 0 | J82: ='【1-A-1】標準時収支'!H78 -> 0 | K82: ='【1-A-1】標準時収支'!I78 -> 0 | L82: ='【1-A-1】標準時収支'!J78 -> 0 | M82: ='【1-A-1】標準時収支'!K78 -> 0 | N82: ='【1-A-1】標準時収支'!L78 -> 0 | O82: ='【1-A-1】標準時収支'!M78 -> 0 | P82: ='【1-A-1】標準時収支'!N78 -> 0 | Q82: ='【1-A-1】標準時収支'!O78 -> 0 | R82: ='【1-A-1】標準時収支'!P78 -> 0 | S82: ='【1-A-1】標準時収支'!Q78 -> 0 | T82: ='【1-A-1】標準時収支'!R78 -> 0 | U82: ='【1-A-1】標準時収支'!S78 -> 0 | V82: ='【1-A-1】標準時収支'!T78 -> 0 | W82: ='【1-A-1】標準時収支'!U78 -> 0 | X82: ='【1-A-1】標準時収支'!V78 -> 0 | Y82: ='【1-A-1】標準時収支'!W78 -> 0 | Z82: ='【1-A-1】標準時収支'!X78 -> 0 | AA82: ='【1-A-1】標準時収支'!Y78 -> 0 | AC82: ='【1-B】悲観時（機構基準）収支'!B78 -> 0 | AD82: ='【1-B】悲観時（機構基準）収支'!C78 -> 0 | AE82: ='【1-B】悲観時（機構基準）収支'!D78 -> （その他項目名） | AF82: ='【1-B】悲観時（機構基準）収支'!E78 -> 0 | AG82: ='【1-B】悲観時（機構基準）収支'!F78 -> 0 | AH82: ='【1-B】悲観時（機構基準）収支'!G78 -> 0 | AI82: ='【1-B】悲観時（機構基準）収支'!H78 -> 0 | AJ82: ='【1-B】悲観時（機構基準）収支'!I78 -> 0 | AK82: ='【1-B】悲観時（機構基準）収支'!J78 -> 0 | AL82: ='【1-B】悲観時（機構基準）収支'!K78 -> 0 | AM82: ='【1-B】悲観時（機構基準）収支'!L78 -> 0 | AN82: ='【1-B】悲観時（機構基準）収支'!M78 -> 0 | AO82: ='【1-B】悲観時（機構基準）収支'!N78 -> 0 | AP82: ='【1-B】悲観時（機構基準）収支'!O78 -> 0 | AQ82: ='【1-B】悲観時（機構基準）収支'!P78 -> 0 | AR82: ='【1-B】悲観時（機構基準）収支'!Q78 -> 0 | AS82: ='【1-B】悲観時（機構基準）収支'!R78 -> 0 | AT82: ='【1-B】悲観時（機構基準）収支'!S78 -> 0 | AU82: ='【1-B】悲観時（機構基準）収支'!T78 -> 0 | AV82: ='【1-B】悲観時（機構基準）収支'!U78 -> 0 | AW82: ='【1-B】悲観時（機構基準）収支'!V78 -> 0 | AX82: ='【1-B】悲観時（機構基準）収支'!W78 -> 0 | AY82: ='【1-B】悲観時（機構基準）収支'!X78 -> 0 | AZ82: ='【1-B】悲観時（機構基準）収支'!Y78 -> 0
C83: 68 | D83: ='【1-A-1】標準時収支'!B79 -> 0 | E83: ='【1-A-1】標準時収支'!C79 -> （その他） | F83: ='【1-A-1】標準時収支'!D79 -> 0 | G83: ='【1-A-1】標準時収支'!E79 -> 0 | H83: ='【1-A-1】標準時収支'!F79 -> 0 | I83: ='【1-A-1】標準時収支'!G79 -> 0 | J83: ='【1-A-1】標準時収支'!H79 -> 0 | K83: ='【1-A-1】標準時収支'!I79 -> 0 | L83: ='【1-A-1】標準時収支'!J79 -> 0 | M83: ='【1-A-1】標準時収支'!K79 -> 0 | N83: ='【1-A-1】標準時収支'!L79 -> 0 | O83: ='【1-A-1】標準時収支'!M79 -> 0 | P83: ='【1-A-1】標準時収支'!N79 -> 0 | Q83: ='【1-A-1】標準時収支'!O79 -> 0 | R83: ='【1-A-1】標準時収支'!P79 -> 0 | S83: ='【1-A-1】標準時収支'!Q79 -> 0 | T83: ='【1-A-1】標準時収支'!R79 -> 0 | U83: ='【1-A-1】標準時収支'!S79 -> 0 | V83: ='【1-A-1】標準時収支'!T79 -> 0 | W83: ='【1-A-1】標準時収支'!U79 -> 0 | X83: ='【1-A-1】標準時収支'!V79 -> 0 | Y83: ='【1-A-1】標準時収支'!W79 -> 0 | Z83: ='【1-A-1】標準時収支'!X79 -> 0 | AA83: ='【1-A-1】標準時収支'!Y79 -> 0 | AC83: ='【1-B】悲観時（機構基準）収支'!B79 -> 0 | AD83: ='【1-B】悲観時（機構基準）収支'!C79 -> （その他） | AE83: ='【1-B】悲観時（機構基準）収支'!D79 -> 0 | AF83: ='【1-B】悲観時（機構基準）収支'!E79 -> 0 | AG83: ='【1-B】悲観時（機構基準）収支'!F79 -> 0 | AH83: ='【1-B】悲観時（機構基準）収支'!G79 -> 0 | AI83: ='【1-B】悲観時（機構基準）収支'!H79 -> 0 | AJ83: ='【1-B】悲観時（機構基準）収支'!I79 -> 0 | AK83: ='【1-B】悲観時（機構基準）収支'!J79 -> 0 | AL83: ='【1-B】悲観時（機構基準）収支'!K79 -> 0 | AM83: ='【1-B】悲観時（機構基準）収支'!L79 -> 0 | AN83: ='【1-B】悲観時（機構基準）収支'!M79 -> 0 | AO83: ='【1-B】悲観時（機構基準）収支'!N79 -> 0 | AP83: ='【1-B】悲観時（機構基準）収支'!O79 -> 0 | AQ83: ='【1-B】悲観時（機構基準）収支'!P79 -> 0 | AR83: ='【1-B】悲観時（機構基準）収支'!Q79 -> 0 | AS83: ='【1-B】悲観時（機構基準）収支'!R79 -> 0 | AT83: ='【1-B】悲観時（機構基準）収支'!S79 -> 0 | AU83: ='【1-B】悲観時（機構基準）収支'!T79 -> 0 | AV83: ='【1-B】悲観時（機構基準）収支'!U79 -> 0 | AW83: ='【1-B】悲観時（機構基準）収支'!V79 -> 0 | AX83: ='【1-B】悲観時（機構基準）収支'!W79 -> 0 | AY83: ='【1-B】悲観時（機構基準）収支'!X79 -> 0 | AZ83: ='【1-B】悲観時（機構基準）収支'!Y79 -> 0
C84: 69 | D84: ='【1-A-1】標準時収支'!B80 -> 0 | E84: ='【1-A-1】標準時収支'!C80 -> 0 | F84: ='【1-A-1】標準時収支'!D80 -> （その他項目名） | G84: ='【1-A-1】標準時収支'!E80 -> 0 | H84: ='【1-A-1】標準時収支'!F80 -> 0 | I84: ='【1-A-1】標準時収支'!G80 -> 0 | J84: ='【1-A-1】標準時収支'!H80 -> 0 | K84: ='【1-A-1】標準時収支'!I80 -> 0 | L84: ='【1-A-1】標準時収支'!J80 -> 0 | M84: ='【1-A-1】標準時収支'!K80 -> 0 | N84: ='【1-A-1】標準時収支'!L80 -> 0 | O84: ='【1-A-1】標準時収支'!M80 -> 0 | P84: ='【1-A-1】標準時収支'!N80 -> 0 | Q84: ='【1-A-1】標準時収支'!O80 -> 0 | R84: ='【1-A-1】標準時収支'!P80 -> 0 | S84: ='【1-A-1】標準時収支'!Q80 -> 0 | T84: ='【1-A-1】標準時収支'!R80 -> 0 | U84: ='【1-A-1】標準時収支'!S80 -> 0 | V84: ='【1-A-1】標準時収支'!T80 -> 0 | W84: ='【1-A-1】標準時収支'!U80 -> 0 | X84: ='【1-A-1】標準時収支'!V80 -> 0 | Y84: ='【1-A-1】標準時収支'!W80 -> 0 | Z84: ='【1-A-1】標準時収支'!X80 -> 0 | AA84: ='【1-A-1】標準時収支'!Y80 -> 0 | AC84: ='【1-B】悲観時（機構基準）収支'!B80 -> 0 | AD84: ='【1-B】悲観時（機構基準）収支'!C80 -> 0 | AE84: ='【1-B】悲観時（機構基準）収支'!D80 -> （その他項目名） | AF84: ='【1-B】悲観時（機構基準）収支'!E80 -> 0 | AG84: ='【1-B】悲観時（機構基準）収支'!F80 -> 0 | AH84: ='【1-B】悲観時（機構基準）収支'!G80 -> 0 | AI84: ='【1-B】悲観時（機構基準）収支'!H80 -> 0 | AJ84: ='【1-B】悲観時（機構基準）収支'!I80 -> 0 | AK84: ='【1-B】悲観時（機構基準）収支'!J80 -> 0 | AL84: ='【1-B】悲観時（機構基準）収支'!K80 -> 0 | AM84: ='【1-B】悲観時（機構基準）収支'!L80 -> 0 | AN84: ='【1-B】悲観時（機構基準）収支'!M80 -> 0 | AO84: ='【1-B】悲観時（機構基準）収支'!N80 -> 0 | AP84: ='【1-B】悲観時（機構基準）収支'!O80 -> 0 | AQ84: ='【1-B】悲観時（機構基準）収支'!P80 -> 0 | AR84: ='【1-B】悲観時（機構基準）収支'!Q80 -> 0 | AS84: ='【1-B】悲観時（機構基準）収支'!R80 -> 0 | AT84: ='【1-B】悲観時（機構基準）収支'!S80 -> 0 | AU84: ='【1-B】悲観時（機構基準）収支'!T80 -> 0 | AV84: ='【1-B】悲観時（機構基準）収支'!U80 -> 0 | AW84: ='【1-B】悲観時（機構基準）収支'!V80 -> 0 | AX84: ='【1-B】悲観時（機構基準）収支'!W80 -> 0 | AY84: ='【1-B】悲観時（機構基準）収支'!X80 -> 0 | AZ84: ='【1-B】悲観時（機構基準）収支'!Y80 -> 0
C85: 70 | D85: ='【1-A-1】標準時収支'!B81 -> 0 | E85: ='【1-A-1】標準時収支'!C81 -> 0 | F85: ='【1-A-1】標準時収支'!D81 -> （その他項目名） | G85: ='【1-A-1】標準時収支'!E81 -> 0 | H85: ='【1-A-1】標準時収支'!F81 -> 0 | I85: ='【1-A-1】標準時収支'!G81 -> 0 | J85: ='【1-A-1】標準時収支'!H81 -> 0 | K85: ='【1-A-1】標準時収支'!I81 -> 0 | L85: ='【1-A-1】標準時収支'!J81 -> 0 | M85: ='【1-A-1】標準時収支'!K81 -> 0 | N85: ='【1-A-1】標準時収支'!L81 -> 0 | O85: ='【1-A-1】標準時収支'!M81 -> 0 | P85: ='【1-A-1】標準時収支'!N81 -> 0 | Q85: ='【1-A-1】標準時収支'!O81 -> 0 | R85: ='【1-A-1】標準時収支'!P81 -> 0 | S85: ='【1-A-1】標準時収支'!Q81 -> 0 | T85: ='【1-A-1】標準時収支'!R81 -> 0 | U85: ='【1-A-1】標準時収支'!S81 -> 0 | V85: ='【1-A-1】標準時収支'!T81 -> 0 | W85: ='【1-A-1】標準時収支'!U81 -> 0 | X85: ='【1-A-1】標準時収支'!V81 -> 0 | Y85: ='【1-A-1】標準時収支'!W81 -> 0 | Z85: ='【1-A-1】標準時収支'!X81 -> 0 | AA85: ='【1-A-1】標準時収支'!Y81 -> 0 | AC85: ='【1-B】悲観時（機構基準）収支'!B81 -> 0 | AD85: ='【1-B】悲観時（機構基準）収支'!C81 -> 0 | AE85: ='【1-B】悲観時（機構基準）収支'!D81 -> （その他項目名） | AF85: ='【1-B】悲観時（機構基準）収支'!E81 -> 0 | AG85: ='【1-B】悲観時（機構基準）収支'!F81 -> 0 | AH85: ='【1-B】悲観時（機構基準）収支'!G81 -> 0 | AI85: ='【1-B】悲観時（機構基準）収支'!H81 -> 0 | AJ85: ='【1-B】悲観時（機構基準）収支'!I81 -> 0 | AK85: ='【1-B】悲観時（機構基準）収支'!J81 -> 0 | AL85: ='【1-B】悲観時（機構基準）収支'!K81 -> 0 | AM85: ='【1-B】悲観時（機構基準）収支'!L81 -> 0 | AN85: ='【1-B】悲観時（機構基準）収支'!M81 -> 0 | AO85: ='【1-B】悲観時（機構基準）収支'!N81 -> 0 | AP85: ='【1-B】悲観時（機構基準）収支'!O81 -> 0 | AQ85: ='【1-B】悲観時（機構基準）収支'!P81 -> 0 | AR85: ='【1-B】悲観時（機構基準）収支'!Q81 -> 0 | AS85: ='【1-B】悲観時（機構基準）収支'!R81 -> 0 | AT85: ='【1-B】悲観時（機構基準）収支'!S81 -> 0 | AU85: ='【1-B】悲観時（機構基準）収支'!T81 -> 0 | AV85: ='【1-B】悲観時（機構基準）収支'!U81 -> 0 | AW85: ='【1-B】悲観時（機構基準）収支'!V81 -> 0 | AX85: ='【1-B】悲観時（機構基準）収支'!W81 -> 0 | AY85: ='【1-B】悲観時（機構基準）収支'!X81 -> 0 | AZ85: ='【1-B】悲観時（機構基準）収支'!Y81 -> 0
C86: 71 | D86: ='【1-A-1】標準時収支'!B82 -> 0 | E86: ='【1-A-1】標準時収支'!C82 -> 0 | F86: ='【1-A-1】標準時収支'!D82 -> （その他項目名） | G86: ='【1-A-1】標準時収支'!E82 -> 0 | H86: ='【1-A-1】標準時収支'!F82 -> 0 | I86: ='【1-A-1】標準時収支'!G82 -> 0 | J86: ='【1-A-1】標準時収支'!H82 -> 0 | K86: ='【1-A-1】標準時収支'!I82 -> 0 | L86: ='【1-A-1】標準時収支'!J82 -> 0 | M86: ='【1-A-1】標準時収支'!K82 -> 0 | N86: ='【1-A-1】標準時収支'!L82 -> 0 | O86: ='【1-A-1】標準時収支'!M82 -> 0 | P86: ='【1-A-1】標準時収支'!N82 -> 0 | Q86: ='【1-A-1】標準時収支'!O82 -> 0 | R86: ='【1-A-1】標準時収支'!P82 -> 0 | S86: ='【1-A-1】標準時収支'!Q82 -> 0 | T86: ='【1-A-1】標準時収支'!R82 -> 0 | U86: ='【1-A-1】標準時収支'!S82 -> 0 | V86: ='【1-A-1】標準時収支'!T82 -> 0 | W86: ='【1-A-1】標準時収支'!U82 -> 0 | X86: ='【1-A-1】標準時収支'!V82 -> 0 | Y86: ='【1-A-1】標準時収支'!W82 -> 0 | Z86: ='【1-A-1】標準時収支'!X82 -> 0 | AA86: ='【1-A-1】標準時収支'!Y82 -> 0 | AC86: ='【1-B】悲観時（機構基準）収支'!B82 -> 0 | AD86: ='【1-B】悲観時（機構基準）収支'!C82 -> 0 | AE86: ='【1-B】悲観時（機構基準）収支'!D82 -> （その他項目名） | AF86: ='【1-B】悲観時（機構基準）収支'!E82 -> 0 | AG86: ='【1-B】悲観時（機構基準）収支'!F82 -> 0 | AH86: ='【1-B】悲観時（機構基準）収支'!G82 -> 0 | AI86: ='【1-B】悲観時（機構基準）収支'!H82 -> 0 | AJ86: ='【1-B】悲観時（機構基準）収支'!I82 -> 0 | AK86: ='【1-B】悲観時（機構基準）収支'!J82 -> 0 | AL86: ='【1-B】悲観時（機構基準）収支'!K82 -> 0 | AM86: ='【1-B】悲観時（機構基準）収支'!L82 -> 0 | AN86: ='【1-B】悲観時（機構基準）収支'!M82 -> 0 | AO86: ='【1-B】悲観時（機構基準）収支'!N82 -> 0 | AP86: ='【1-B】悲観時（機構基準）収支'!O82 -> 0 | AQ86: ='【1-B】悲観時（機構基準）収支'!P82 -> 0 | AR86: ='【1-B】悲観時（機構基準）収支'!Q82 -> 0 | AS86: ='【1-B】悲観時（機構基準）収支'!R82 -> 0 | AT86: ='【1-B】悲観時（機構基準）収支'!S82 -> 0 | AU86: ='【1-B】悲観時（機構基準）収支'!T82 -> 0 | AV86: ='【1-B】悲観時（機構基準）収支'!U82 -> 0 | AW86: ='【1-B】悲観時（機構基準）収支'!V82 -> 0 | AX86: ='【1-B】悲観時（機構基準）収支'!W82 -> 0 | AY86: ='【1-B】悲観時（機構基準）収支'!X82 -> 0 | AZ86: ='【1-B】悲観時（機構基準）収支'!Y82 -> 0
C87: 72 | D87: ='【1-A-1】標準時収支'!B83 -> 0 | E87: ='【1-A-1】標準時収支'!C83 -> 0 | F87: ='【1-A-1】標準時収支'!D83 -> （その他項目名） | G87: ='【1-A-1】標準時収支'!E83 -> 0 | H87: ='【1-A-1】標準時収支'!F83 -> 0 | I87: ='【1-A-1】標準時収支'!G83 -> 0 | J87: ='【1-A-1】標準時収支'!H83 -> 0 | K87: ='【1-A-1】標準時収支'!I83 -> 0 | L87: ='【1-A-1】標準時収支'!J83 -> 0 | M87: ='【1-A-1】標準時収支'!K83 -> 0 | N87: ='【1-A-1】標準時収支'!L83 -> 0 | O87: ='【1-A-1】標準時収支'!M83 -> 0 | P87: ='【1-A-1】標準時収支'!N83 -> 0 | Q87: ='【1-A-1】標準時収支'!O83 -> 0 | R87: ='【1-A-1】標準時収支'!P83 -> 0 | S87: ='【1-A-1】標準時収支'!Q83 -> 0 | T87: ='【1-A-1】標準時収支'!R83 -> 0 | U87: ='【1-A-1】標準時収支'!S83 -> 0 | V87: ='【1-A-1】標準時収支'!T83 -> 0 | W87: ='【1-A-1】標準時収支'!U83 -> 0 | X87: ='【1-A-1】標準時収支'!V83 -> 0 | Y87: ='【1-A-1】標準時収支'!W83 -> 0 | Z87: ='【1-A-1】標準時収支'!X83 -> 0 | AA87: ='【1-A-1】標準時収支'!Y83 -> 0 | AC87: ='【1-B】悲観時（機構基準）収支'!B83 -> 0 | AD87: ='【1-B】悲観時（機構基準）収支'!C83 -> 0 | AE87: ='【1-B】悲観時（機構基準）収支'!D83 -> （その他項目名） | AF87: ='【1-B】悲観時（機構基準）収支'!E83 -> 0 | AG87: ='【1-B】悲観時（機構基準）収支'!F83 -> 0 | AH87: ='【1-B】悲観時（機構基準）収支'!G83 -> 0 | AI87: ='【1-B】悲観時（機構基準）収支'!H83 -> 0 | AJ87: ='【1-B】悲観時（機構基準）収支'!I83 -> 0 | AK87: ='【1-B】悲観時（機構基準）収支'!J83 -> 0 | AL87: ='【1-B】悲観時（機構基準）収支'!K83 -> 0 | AM87: ='【1-B】悲観時（機構基準）収支'!L83 -> 0 | AN87: ='【1-B】悲観時（機構基準）収支'!M83 -> 0 | AO87: ='【1-B】悲観時（機構基準）収支'!N83 -> 0 | AP87: ='【1-B】悲観時（機構基準）収支'!O83 -> 0 | AQ87: ='【1-B】悲観時（機構基準）収支'!P83 -> 0 | AR87: ='【1-B】悲観時（機構基準）収支'!Q83 -> 0 | AS87: ='【1-B】悲観時（機構基準）収支'!R83 -> 0 | AT87: ='【1-B】悲観時（機構基準）収支'!S83 -> 0 | AU87: ='【1-B】悲観時（機構基準）収支'!T83 -> 0 | AV87: ='【1-B】悲観時（機構基準）収支'!U83 -> 0 | AW87: ='【1-B】悲観時（機構基準）収支'!V83 -> 0 | AX87: ='【1-B】悲観時（機構基準）収支'!W83 -> 0 | AY87: ='【1-B】悲観時（機構基準）収支'!X83 -> 0 | AZ87: ='【1-B】悲観時（機構基準）収支'!Y83 -> 0
C88: 73 | D88: ='【1-A-1】標準時収支'!B84 -> 0 | E88: ='【1-A-1】標準時収支'!C84 -> 0 | F88: ='【1-A-1】標準時収支'!D84 -> （その他項目名） | G88: ='【1-A-1】標準時収支'!E84 -> 0 | H88: ='【1-A-1】標準時収支'!F84 -> 0 | I88: ='【1-A-1】標準時収支'!G84 -> 0 | J88: ='【1-A-1】標準時収支'!H84 -> 0 | K88: ='【1-A-1】標準時収支'!I84 -> 0 | L88: ='【1-A-1】標準時収支'!J84 -> 0 | M88: ='【1-A-1】標準時収支'!K84 -> 0 | N88: ='【1-A-1】標準時収支'!L84 -> 0 | O88: ='【1-A-1】標準時収支'!M84 -> 0 | P88: ='【1-A-1】標準時収支'!N84 -> 0 | Q88: ='【1-A-1】標準時収支'!O84 -> 0 | R88: ='【1-A-1】標準時収支'!P84 -> 0 | S88: ='【1-A-1】標準時収支'!Q84 -> 0 | T88: ='【1-A-1】標準時収支'!R84 -> 0 | U88: ='【1-A-1】標準時収支'!S84 -> 0 | V88: ='【1-A-1】標準時収支'!T84 -> 0 | W88: ='【1-A-1】標準時収支'!U84 -> 0 | X88: ='【1-A-1】標準時収支'!V84 -> 0 | Y88: ='【1-A-1】標準時収支'!W84 -> 0 | Z88: ='【1-A-1】標準時収支'!X84 -> 0 | AA88: ='【1-A-1】標準時収支'!Y84 -> 0 | AC88: ='【1-B】悲観時（機構基準）収支'!B84 -> 0 | AD88: ='【1-B】悲観時（機構基準）収支'!C84 -> 0 | AE88: ='【1-B】悲観時（機構基準）収支'!D84 -> （その他項目名） | AF88: ='【1-B】悲観時（機構基準）収支'!E84 -> 0 | AG88: ='【1-B】悲観時（機構基準）収支'!F84 -> 0 | AH88: ='【1-B】悲観時（機構基準）収支'!G84 -> 0 | AI88: ='【1-B】悲観時（機構基準）収支'!H84 -> 0 | AJ88: ='【1-B】悲観時（機構基準）収支'!I84 -> 0 | AK88: ='【1-B】悲観時（機構基準）収支'!J84 -> 0 | AL88: ='【1-B】悲観時（機構基準）収支'!K84 -> 0 | AM88: ='【1-B】悲観時（機構基準）収支'!L84 -> 0 | AN88: ='【1-B】悲観時（機構基準）収支'!M84 -> 0 | AO88: ='【1-B】悲観時（機構基準）収支'!N84 -> 0 | AP88: ='【1-B】悲観時（機構基準）収支'!O84 -> 0 | AQ88: ='【1-B】悲観時（機構基準）収支'!P84 -> 0 | AR88: ='【1-B】悲観時（機構基準）収支'!Q84 -> 0 | AS88: ='【1-B】悲観時（機構基準）収支'!R84 -> 0 | AT88: ='【1-B】悲観時（機構基準）収支'!S84 -> 0 | AU88: ='【1-B】悲観時（機構基準）収支'!T84 -> 0 | AV88: ='【1-B】悲観時（機構基準）収支'!U84 -> 0 | AW88: ='【1-B】悲観時（機構基準）収支'!V84 -> 0 | AX88: ='【1-B】悲観時（機構基準）収支'!W84 -> 0 | AY88: ='【1-B】悲観時（機構基準）収支'!X84 -> 0 | AZ88: ='【1-B】悲観時（機構基準）収支'!Y84 -> 0
C89: 74 | D89: ='【1-A-1】標準時収支'!B85 -> 営業損益 | E89: ='【1-A-1】標準時収支'!C85 -> 0 | F89: ='【1-A-1】標準時収支'!D85 -> 0 | G89: ='【1-A-1】標準時収支'!E85 -> 0 | H89: ='【1-A-1】標準時収支'!F85 -> 0 | I89: ='【1-A-1】標準時収支'!G85 -> 0 | J89: ='【1-A-1】標準時収支'!H85 -> 0 | K89: ='【1-A-1】標準時収支'!I85 -> 0 | L89: ='【1-A-1】標準時収支'!J85 -> 0 | M89: ='【1-A-1】標準時収支'!K85 -> 0 | N89: ='【1-A-1】標準時収支'!L85 -> 0 | O89: ='【1-A-1】標準時収支'!M85 -> 0 | P89: ='【1-A-1】標準時収支'!N85 -> 0 | Q89: ='【1-A-1】標準時収支'!O85 -> 0 | R89: ='【1-A-1】標準時収支'!P85 -> 0 | S89: ='【1-A-1】標準時収支'!Q85 -> 0 | T89: ='【1-A-1】標準時収支'!R85 -> 0 | U89: ='【1-A-1】標準時収支'!S85 -> 0 | V89: ='【1-A-1】標準時収支'!T85 -> 0 | W89: ='【1-A-1】標準時収支'!U85 -> 0 | X89: ='【1-A-1】標準時収支'!V85 -> 0 | Y89: ='【1-A-1】標準時収支'!W85 -> 0 | Z89: ='【1-A-1】標準時収支'!X85 -> 0 | AA89: ='【1-A-1】標準時収支'!Y85 -> 0 | AC89: ='【1-B】悲観時（機構基準）収支'!B85 -> 営業損益 | AD89: ='【1-B】悲観時（機構基準）収支'!C85 -> 0 | AE89: ='【1-B】悲観時（機構基準）収支'!D85 -> 0 | AF89: ='【1-B】悲観時（機構基準）収支'!E85 -> 0 | AG89: ='【1-B】悲観時（機構基準）収支'!F85 -> 0 | AH89: ='【1-B】悲観時（機構基準）収支'!G85 -> 0 | AI89: ='【1-B】悲観時（機構基準）収支'!H85 -> 0 | AJ89: ='【1-B】悲観時（機構基準）収支'!I85 -> 0 | AK89: ='【1-B】悲観時（機構基準）収支'!J85 -> 0 | AL89: ='【1-B】悲観時（機構基準）収支'!K85 -> 0 | AM89: ='【1-B】悲観時（機構基準）収支'!L85 -> 0 | AN89: ='【1-B】悲観時（機構基準）収支'!M85 -> 0 | AO89: ='【1-B】悲観時（機構基準）収支'!N85 -> 0 | AP89: ='【1-B】悲観時（機構基準）収支'!O85 -> 0 | AQ89: ='【1-B】悲観時（機構基準）収支'!P85 -> 0 | AR89: ='【1-B】悲観時（機構基準）収支'!Q85 -> 0 | AS89: ='【1-B】悲観時（機構基準）収支'!R85 -> 0 | AT89: ='【1-B】悲観時（機構基準）収支'!S85 -> 0 | AU89: ='【1-B】悲観時（機構基準）収支'!T85 -> 0 | AV89: ='【1-B】悲観時（機構基準）収支'!U85 -> 0 | AW89: ='【1-B】悲観時（機構基準）収支'!V85 -> 0 | AX89: ='【1-B】悲観時（機構基準）収支'!W85 -> 0 | AY89: ='【1-B】悲観時（機構基準）収支'!X85 -> 0 | AZ89: ='【1-B】悲観時（機構基準）収支'!Y85 -> 0
C90: 75 | D90: ='【1-A-1】標準時収支'!B86 -> 営業外損益 | E90: ='【1-A-1】標準時収支'!C86 -> 0 | F90: ='【1-A-1】標準時収支'!D86 -> 0 | G90: ='【1-A-1】標準時収支'!E86 -> 0 | H90: ='【1-A-1】標準時収支'!F86 -> 0 | I90: ='【1-A-1】標準時収支'!G86 -> 0 | J90: ='【1-A-1】標準時収支'!H86 -> 0 | K90: ='【1-A-1】標準時収支'!I86 -> 0 | L90: ='【1-A-1】標準時収支'!J86 -> 0 | M90: ='【1-A-1】標準時収支'!K86 -> 0 | N90: ='【1-A-1】標準時収支'!L86 -> 0 | O90: ='【1-A-1】標準時収支'!M86 -> 0 | P90: ='【1-A-1】標準時収支'!N86 -> 0 | Q90: ='【1-A-1】標準時収支'!O86 -> 0 | R90: ='【1-A-1】標準時収支'!P86 -> 0 | S90: ='【1-A-1】標準時収支'!Q86 -> 0 | T90: ='【1-A-1】標準時収支'!R86 -> 0 | U90: ='【1-A-1】標準時収支'!S86 -> 0 | V90: ='【1-A-1】標準時収支'!T86 -> 0 | W90: ='【1-A-1】標準時収支'!U86 -> 0 | X90: ='【1-A-1】標準時収支'!V86 -> 0 | Y90: ='【1-A-1】標準時収支'!W86 -> 0 | Z90: ='【1-A-1】標準時収支'!X86 -> 0 | AA90: ='【1-A-1】標準時収支'!Y86 -> 0 | AC90: ='【1-B】悲観時（機構基準）収支'!B86 -> 営業外損益 | AD90: ='【1-B】悲観時（機構基準）収支'!C86 -> 0 | AE90: ='【1-B】悲観時（機構基準）収支'!D86 -> 0 | AF90: ='【1-B】悲観時（機構基準）収支'!E86 -> 0 | AG90: ='【1-B】悲観時（機構基準）収支'!F86 -> 0 | AH90: ='【1-B】悲観時（機構基準）収支'!G86 -> 0 | AI90: ='【1-B】悲観時（機構基準）収支'!H86 -> 0 | AJ90: ='【1-B】悲観時（機構基準）収支'!I86 -> 0 | AK90: ='【1-B】悲観時（機構基準）収支'!J86 -> 0 | AL90: ='【1-B】悲観時（機構基準）収支'!K86 -> 0 | AM90: ='【1-B】悲観時（機構基準）収支'!L86 -> 0 | AN90: ='【1-B】悲観時（機構基準）収支'!M86 -> 0 | AO90: ='【1-B】悲観時（機構基準）収支'!N86 -> 0 | AP90: ='【1-B】悲観時（機構基準）収支'!O86 -> 0 | AQ90: ='【1-B】悲観時（機構基準）収支'!P86 -> 0 | AR90: ='【1-B】悲観時（機構基準）収支'!Q86 -> 0 | AS90: ='【1-B】悲観時（機構基準）収支'!R86 -> 0 | AT90: ='【1-B】悲観時（機構基準）収支'!S86 -> 0 | AU90: ='【1-B】悲観時（機構基準）収支'!T86 -> 0 | AV90: ='【1-B】悲観時（機構基準）収支'!U86 -> 0 | AW90: ='【1-B】悲観時（機構基準）収支'!V86 -> 0 | AX90: ='【1-B】悲観時（機構基準）収支'!W86 -> 0 | AY90: ='【1-B】悲観時（機構基準）収支'!X86 -> 0 | AZ90: ='【1-B】悲観時（機構基準）収支'!Y86 -> 0
C91: 76 | D91: ='【1-A-1】標準時収支'!B87 -> 0 | E91: ='【1-A-1】標準時収支'!C87 -> 営業外収入 | F91: ='【1-A-1】標準時収支'!D87 -> 0 | G91: ='【1-A-1】標準時収支'!E87 -> 0 | H91: ='【1-A-1】標準時収支'!F87 -> 0 | I91: ='【1-A-1】標準時収支'!G87 -> 0 | J91: ='【1-A-1】標準時収支'!H87 -> 0 | K91: ='【1-A-1】標準時収支'!I87 -> 0 | L91: ='【1-A-1】標準時収支'!J87 -> 0 | M91: ='【1-A-1】標準時収支'!K87 -> 0 | N91: ='【1-A-1】標準時収支'!L87 -> 0 | O91: ='【1-A-1】標準時収支'!M87 -> 0 | P91: ='【1-A-1】標準時収支'!N87 -> 0 | Q91: ='【1-A-1】標準時収支'!O87 -> 0 | R91: ='【1-A-1】標準時収支'!P87 -> 0 | S91: ='【1-A-1】標準時収支'!Q87 -> 0 | T91: ='【1-A-1】標準時収支'!R87 -> 0 | U91: ='【1-A-1】標準時収支'!S87 -> 0 | V91: ='【1-A-1】標準時収支'!T87 -> 0 | W91: ='【1-A-1】標準時収支'!U87 -> 0 | X91: ='【1-A-1】標準時収支'!V87 -> 0 | Y91: ='【1-A-1】標準時収支'!W87 -> 0 | Z91: ='【1-A-1】標準時収支'!X87 -> 0 | AA91: ='【1-A-1】標準時収支'!Y87 -> 0 | AC91: ='【1-B】悲観時（機構基準）収支'!B87 -> 0 | AD91: ='【1-B】悲観時（機構基準）収支'!C87 -> 営業外収入 | AE91: ='【1-B】悲観時（機構基準）収支'!D87 -> 0 | AF91: ='【1-B】悲観時（機構基準）収支'!E87 -> 0 | AG91: ='【1-B】悲観時（機構基準）収支'!F87 -> 0 | AH91: ='【1-B】悲観時（機構基準）収支'!G87 -> 0 | AI91: ='【1-B】悲観時（機構基準）収支'!H87 -> 0 | AJ91: ='【1-B】悲観時（機構基準）収支'!I87 -> 0 | AK91: ='【1-B】悲観時（機構基準）収支'!J87 -> 0 | AL91: ='【1-B】悲観時（機構基準）収支'!K87 -> 0 | AM91: ='【1-B】悲観時（機構基準）収支'!L87 -> 0 | AN91: ='【1-B】悲観時（機構基準）収支'!M87 -> 0 | AO91: ='【1-B】悲観時（機構基準）収支'!N87 -> 0 | AP91: ='【1-B】悲観時（機構基準）収支'!O87 -> 0 | AQ91: ='【1-B】悲観時（機構基準）収支'!P87 -> 0 | AR91: ='【1-B】悲観時（機構基準）収支'!Q87 -> 0 | AS91: ='【1-B】悲観時（機構基準）収支'!R87 -> 0 | AT91: ='【1-B】悲観時（機構基準）収支'!S87 -> 0 | AU91: ='【1-B】悲観時（機構基準）収支'!T87 -> 0 | AV91: ='【1-B】悲観時（機構基準）収支'!U87 -> 0 | AW91: ='【1-B】悲観時（機構基準）収支'!V87 -> 0 | AX91: ='【1-B】悲観時（機構基準）収支'!W87 -> 0 | AY91: ='【1-B】悲観時（機構基準）収支'!X87 -> 0 | AZ91: ='【1-B】悲観時（機構基準）収支'!Y87 -> 0
C92: 77 | D92: ='【1-A-1】標準時収支'!B88 -> 0 | E92: ='【1-A-1】標準時収支'!C88 -> 0 | F92: ='【1-A-1】標準時収支'!D88 -> （その他項目名） | G92: ='【1-A-1】標準時収支'!E88 -> 0 | H92: ='【1-A-1】標準時収支'!F88 -> 0 | I92: ='【1-A-1】標準時収支'!G88 -> 0 | J92: ='【1-A-1】標準時収支'!H88 -> 0 | K92: ='【1-A-1】標準時収支'!I88 -> 0 | L92: ='【1-A-1】標準時収支'!J88 -> 0 | M92: ='【1-A-1】標準時収支'!K88 -> 0 | N92: ='【1-A-1】標準時収支'!L88 -> 0 | O92: ='【1-A-1】標準時収支'!M88 -> 0 | P92: ='【1-A-1】標準時収支'!N88 -> 0 | Q92: ='【1-A-1】標準時収支'!O88 -> 0 | R92: ='【1-A-1】標準時収支'!P88 -> 0 | S92: ='【1-A-1】標準時収支'!Q88 -> 0 | T92: ='【1-A-1】標準時収支'!R88 -> 0 | U92: ='【1-A-1】標準時収支'!S88 -> 0 | V92: ='【1-A-1】標準時収支'!T88 -> 0 | W92: ='【1-A-1】標準時収支'!U88 -> 0 | X92: ='【1-A-1】標準時収支'!V88 -> 0 | Y92: ='【1-A-1】標準時収支'!W88 -> 0 | Z92: ='【1-A-1】標準時収支'!X88 -> 0 | AA92: ='【1-A-1】標準時収支'!Y88 -> 0 | AC92: ='【1-B】悲観時（機構基準）収支'!B88 -> 0 | AD92: ='【1-B】悲観時（機構基準）収支'!C88 -> 0 | AE92: ='【1-B】悲観時（機構基準）収支'!D88 -> （その他項目名） | AF92: ='【1-B】悲観時（機構基準）収支'!E88 -> 0 | AG92: ='【1-B】悲観時（機構基準）収支'!F88 -> 0 | AH92: ='【1-B】悲観時（機構基準）収支'!G88 -> 0 | AI92: ='【1-B】悲観時（機構基準）収支'!H88 -> 0 | AJ92: ='【1-B】悲観時（機構基準）収支'!I88 -> 0 | AK92: ='【1-B】悲観時（機構基準）収支'!J88 -> 0 | AL92: ='【1-B】悲観時（機構基準）収支'!K88 -> 0 | AM92: ='【1-B】悲観時（機構基準）収支'!L88 -> 0 | AN92: ='【1-B】悲観時（機構基準）収支'!M88 -> 0 | AO92: ='【1-B】悲観時（機構基準）収支'!N88 -> 0 | AP92: ='【1-B】悲観時（機構基準）収支'!O88 -> 0 | AQ92: ='【1-B】悲観時（機構基準）収支'!P88 -> 0 | AR92: ='【1-B】悲観時（機構基準）収支'!Q88 -> 0 | AS92: ='【1-B】悲観時（機構基準）収支'!R88 -> 0 | AT92: ='【1-B】悲観時（機構基準）収支'!S88 -> 0 | AU92: ='【1-B】悲観時（機構基準）収支'!T88 -> 0 | AV92: ='【1-B】悲観時（機構基準）収支'!U88 -> 0 | AW92: ='【1-B】悲観時（機構基準）収支'!V88 -> 0 | AX92: ='【1-B】悲観時（機構基準）収支'!W88 -> 0 | AY92: ='【1-B】悲観時（機構基準）収支'!X88 -> 0 | AZ92: ='【1-B】悲観時（機構基準）収支'!Y88 -> 0
C93: 78 | D93: ='【1-A-1】標準時収支'!B89 -> 0 | E93: ='【1-A-1】標準時収支'!C89 -> 0 | F93: ='【1-A-1】標準時収支'!D89 -> （その他項目名） | G93: ='【1-A-1】標準時収支'!E89 -> 0 | H93: ='【1-A-1】標準時収支'!F89 -> 0 | I93: ='【1-A-1】標準時収支'!G89 -> 0 | J93: ='【1-A-1】標準時収支'!H89 -> 0 | K93: ='【1-A-1】標準時収支'!I89 -> 0 | L93: ='【1-A-1】標準時収支'!J89 -> 0 | M93: ='【1-A-1】標準時収支'!K89 -> 0 | N93: ='【1-A-1】標準時収支'!L89 -> 0 | O93: ='【1-A-1】標準時収支'!M89 -> 0 | P93: ='【1-A-1】標準時収支'!N89 -> 0 | Q93: ='【1-A-1】標準時収支'!O89 -> 0 | R93: ='【1-A-1】標準時収支'!P89 -> 0 | S93: ='【1-A-1】標準時収支'!Q89 -> 0 | T93: ='【1-A-1】標準時収支'!R89 -> 0 | U93: ='【1-A-1】標準時収支'!S89 -> 0 | V93: ='【1-A-1】標準時収支'!T89 -> 0 | W93: ='【1-A-1】標準時収支'!U89 -> 0 | X93: ='【1-A-1】標準時収支'!V89 -> 0 | Y93: ='【1-A-1】標準時収支'!W89 -> 0 | Z93: ='【1-A-1】標準時収支'!X89 -> 0 | AA93: ='【1-A-1】標準時収支'!Y89 -> 0 | AC93: ='【1-B】悲観時（機構基準）収支'!B89 -> 0 | AD93: ='【1-B】悲観時（機構基準）収支'!C89 -> 0 | AE93: ='【1-B】悲観時（機構基準）収支'!D89 -> （その他項目名） | AF93: ='【1-B】悲観時（機構基準）収支'!E89 -> 0 | AG93: ='【1-B】悲観時（機構基準）収支'!F89 -> 0 | AH93: ='【1-B】悲観時（機構基準）収支'!G89 -> 0 | AI93: ='【1-B】悲観時（機構基準）収支'!H89 -> 0 | AJ93: ='【1-B】悲観時（機構基準）収支'!I89 -> 0 | AK93: ='【1-B】悲観時（機構基準）収支'!J89 -> 0 | AL93: ='【1-B】悲観時（機構基準）収支'!K89 -> 0 | AM93: ='【1-B】悲観時（機構基準）収支'!L89 -> 0 | AN93: ='【1-B】悲観時（機構基準）収支'!M89 -> 0 | AO93: ='【1-B】悲観時（機構基準）収支'!N89 -> 0 | AP93: ='【1-B】悲観時（機構基準）収支'!O89 -> 0 | AQ93: ='【1-B】悲観時（機構基準）収支'!P89 -> 0 | AR93: ='【1-B】悲観時（機構基準）収支'!Q89 -> 0 | AS93: ='【1-B】悲観時（機構基準）収支'!R89 -> 0 | AT93: ='【1-B】悲観時（機構基準）収支'!S89 -> 0 | AU93: ='【1-B】悲観時（機構基準）収支'!T89 -> 0 | AV93: ='【1-B】悲観時（機構基準）収支'!U89 -> 0 | AW93: ='【1-B】悲観時（機構基準）収支'!V89 -> 0 | AX93: ='【1-B】悲観時（機構基準）収支'!W89 -> 0 | AY93: ='【1-B】悲観時（機構基準）収支'!X89 -> 0 | AZ93: ='【1-B】悲観時（機構基準）収支'!Y89 -> 0
C94: 79 | D94: ='【1-A-1】標準時収支'!B90 -> 0 | E94: ='【1-A-1】標準時収支'!C90 -> 0 | F94: ='【1-A-1】標準時収支'!D90 -> （その他項目名） | G94: ='【1-A-1】標準時収支'!E90 -> 0 | H94: ='【1-A-1】標準時収支'!F90 -> 0 | I94: ='【1-A-1】標準時収支'!G90 -> 0 | J94: ='【1-A-1】標準時収支'!H90 -> 0 | K94: ='【1-A-1】標準時収支'!I90 -> 0 | L94: ='【1-A-1】標準時収支'!J90 -> 0 | M94: ='【1-A-1】標準時収支'!K90 -> 0 | N94: ='【1-A-1】標準時収支'!L90 -> 0 | O94: ='【1-A-1】標準時収支'!M90 -> 0 | P94: ='【1-A-1】標準時収支'!N90 -> 0 | Q94: ='【1-A-1】標準時収支'!O90 -> 0 | R94: ='【1-A-1】標準時収支'!P90 -> 0 | S94: ='【1-A-1】標準時収支'!Q90 -> 0 | T94: ='【1-A-1】標準時収支'!R90 -> 0 | U94: ='【1-A-1】標準時収支'!S90 -> 0 | V94: ='【1-A-1】標準時収支'!T90 -> 0 | W94: ='【1-A-1】標準時収支'!U90 -> 0 | X94: ='【1-A-1】標準時収支'!V90 -> 0 | Y94: ='【1-A-1】標準時収支'!W90 -> 0 | Z94: ='【1-A-1】標準時収支'!X90 -> 0 | AA94: ='【1-A-1】標準時収支'!Y90 -> 0 | AC94: ='【1-B】悲観時（機構基準）収支'!B90 -> 0 | AD94: ='【1-B】悲観時（機構基準）収支'!C90 -> 0 | AE94: ='【1-B】悲観時（機構基準）収支'!D90 -> （その他項目名） | AF94: ='【1-B】悲観時（機構基準）収支'!E90 -> 0 | AG94: ='【1-B】悲観時（機構基準）収支'!F90 -> 0 | AH94: ='【1-B】悲観時（機構基準）収支'!G90 -> 0 | AI94: ='【1-B】悲観時（機構基準）収支'!H90 -> 0 | AJ94: ='【1-B】悲観時（機構基準）収支'!I90 -> 0 | AK94: ='【1-B】悲観時（機構基準）収支'!J90 -> 0 | AL94: ='【1-B】悲観時（機構基準）収支'!K90 -> 0 | AM94: ='【1-B】悲観時（機構基準）収支'!L90 -> 0 | AN94: ='【1-B】悲観時（機構基準）収支'!M90 -> 0 | AO94: ='【1-B】悲観時（機構基準）収支'!N90 -> 0 | AP94: ='【1-B】悲観時（機構基準）収支'!O90 -> 0 | AQ94: ='【1-B】悲観時（機構基準）収支'!P90 -> 0 | AR94: ='【1-B】悲観時（機構基準）収支'!Q90 -> 0 | AS94: ='【1-B】悲観時（機構基準）収支'!R90 -> 0 | AT94: ='【1-B】悲観時（機構基準）収支'!S90 -> 0 | AU94: ='【1-B】悲観時（機構基準）収支'!T90 -> 0 | AV94: ='【1-B】悲観時（機構基準）収支'!U90 -> 0 | AW94: ='【1-B】悲観時（機構基準）収支'!V90 -> 0 | AX94: ='【1-B】悲観時（機構基準）収支'!W90 -> 0 | AY94: ='【1-B】悲観時（機構基準）収支'!X90 -> 0 | AZ94: ='【1-B】悲観時（機構基準）収支'!Y90 -> 0
C95: 80 | D95: ='【1-A-1】標準時収支'!B91 -> 0 | E95: ='【1-A-1】標準時収支'!C91 -> 0 | F95: ='【1-A-1】標準時収支'!D91 -> （その他項目名） | G95: ='【1-A-1】標準時収支'!E91 -> 0 | H95: ='【1-A-1】標準時収支'!F91 -> 0 | I95: ='【1-A-1】標準時収支'!G91 -> 0 | J95: ='【1-A-1】標準時収支'!H91 -> 0 | K95: ='【1-A-1】標準時収支'!I91 -> 0 | L95: ='【1-A-1】標準時収支'!J91 -> 0 | M95: ='【1-A-1】標準時収支'!K91 -> 0 | N95: ='【1-A-1】標準時収支'!L91 -> 0 | O95: ='【1-A-1】標準時収支'!M91 -> 0 | P95: ='【1-A-1】標準時収支'!N91 -> 0 | Q95: ='【1-A-1】標準時収支'!O91 -> 0 | R95: ='【1-A-1】標準時収支'!P91 -> 0 | S95: ='【1-A-1】標準時収支'!Q91 -> 0 | T95: ='【1-A-1】標準時収支'!R91 -> 0 | U95: ='【1-A-1】標準時収支'!S91 -> 0 | V95: ='【1-A-1】標準時収支'!T91 -> 0 | W95: ='【1-A-1】標準時収支'!U91 -> 0 | X95: ='【1-A-1】標準時収支'!V91 -> 0 | Y95: ='【1-A-1】標準時収支'!W91 -> 0 | Z95: ='【1-A-1】標準時収支'!X91 -> 0 | AA95: ='【1-A-1】標準時収支'!Y91 -> 0 | AC95: ='【1-B】悲観時（機構基準）収支'!B91 -> 0 | AD95: ='【1-B】悲観時（機構基準）収支'!C91 -> 0 | AE95: ='【1-B】悲観時（機構基準）収支'!D91 -> （その他項目名） | AF95: ='【1-B】悲観時（機構基準）収支'!E91 -> 0 | AG95: ='【1-B】悲観時（機構基準）収支'!F91 -> 0 | AH95: ='【1-B】悲観時（機構基準）収支'!G91 -> 0 | AI95: ='【1-B】悲観時（機構基準）収支'!H91 -> 0 | AJ95: ='【1-B】悲観時（機構基準）収支'!I91 -> 0 | AK95: ='【1-B】悲観時（機構基準）収支'!J91 -> 0 | AL95: ='【1-B】悲観時（機構基準）収支'!K91 -> 0 | AM95: ='【1-B】悲観時（機構基準）収支'!L91 -> 0 | AN95: ='【1-B】悲観時（機構基準）収支'!M91 -> 0 | AO95: ='【1-B】悲観時（機構基準）収支'!N91 -> 0 | AP95: ='【1-B】悲観時（機構基準）収支'!O91 -> 0 | AQ95: ='【1-B】悲観時（機構基準）収支'!P91 -> 0 | AR95: ='【1-B】悲観時（機構基準）収支'!Q91 -> 0 | AS95: ='【1-B】悲観時（機構基準）収支'!R91 -> 0 | AT95: ='【1-B】悲観時（機構基準）収支'!S91 -> 0 | AU95: ='【1-B】悲観時（機構基準）収支'!T91 -> 0 | AV95: ='【1-B】悲観時（機構基準）収支'!U91 -> 0 | AW95: ='【1-B】悲観時（機構基準）収支'!V91 -> 0 | AX95: ='【1-B】悲観時（機構基準）収支'!W91 -> 0 | AY95: ='【1-B】悲観時（機構基準）収支'!X91 -> 0 | AZ95: ='【1-B】悲観時（機構基準）収支'!Y91 -> 0
C96: 81 | D96: ='【1-A-1】標準時収支'!B92 -> 0 | E96: ='【1-A-1】標準時収支'!C92 -> 0 | F96: ='【1-A-1】標準時収支'!D92 -> （その他項目名） | G96: ='【1-A-1】標準時収支'!E92 -> 0 | H96: ='【1-A-1】標準時収支'!F92 -> 0 | I96: ='【1-A-1】標準時収支'!G92 -> 0 | J96: ='【1-A-1】標準時収支'!H92 -> 0 | K96: ='【1-A-1】標準時収支'!I92 -> 0 | L96: ='【1-A-1】標準時収支'!J92 -> 0 | M96: ='【1-A-1】標準時収支'!K92 -> 0 | N96: ='【1-A-1】標準時収支'!L92 -> 0 | O96: ='【1-A-1】標準時収支'!M92 -> 0 | P96: ='【1-A-1】標準時収支'!N92 -> 0 | Q96: ='【1-A-1】標準時収支'!O92 -> 0 | R96: ='【1-A-1】標準時収支'!P92 -> 0 | S96: ='【1-A-1】標準時収支'!Q92 -> 0 | T96: ='【1-A-1】標準時収支'!R92 -> 0 | U96: ='【1-A-1】標準時収支'!S92 -> 0 | V96: ='【1-A-1】標準時収支'!T92 -> 0 | W96: ='【1-A-1】標準時収支'!U92 -> 0 | X96: ='【1-A-1】標準時収支'!V92 -> 0 | Y96: ='【1-A-1】標準時収支'!W92 -> 0 | Z96: ='【1-A-1】標準時収支'!X92 -> 0 | AA96: ='【1-A-1】標準時収支'!Y92 -> 0 | AC96: ='【1-B】悲観時（機構基準）収支'!B92 -> 0 | AD96: ='【1-B】悲観時（機構基準）収支'!C92 -> 0 | AE96: ='【1-B】悲観時（機構基準）収支'!D92 -> （その他項目名） | AF96: ='【1-B】悲観時（機構基準）収支'!E92 -> 0 | AG96: ='【1-B】悲観時（機構基準）収支'!F92 -> 0 | AH96: ='【1-B】悲観時（機構基準）収支'!G92 -> 0 | AI96: ='【1-B】悲観時（機構基準）収支'!H92 -> 0 | AJ96: ='【1-B】悲観時（機構基準）収支'!I92 -> 0 | AK96: ='【1-B】悲観時（機構基準）収支'!J92 -> 0 | AL96: ='【1-B】悲観時（機構基準）収支'!K92 -> 0 | AM96: ='【1-B】悲観時（機構基準）収支'!L92 -> 0 | AN96: ='【1-B】悲観時（機構基準）収支'!M92 -> 0 | AO96: ='【1-B】悲観時（機構基準）収支'!N92 -> 0 | AP96: ='【1-B】悲観時（機構基準）収支'!O92 -> 0 | AQ96: ='【1-B】悲観時（機構基準）収支'!P92 -> 0 | AR96: ='【1-B】悲観時（機構基準）収支'!Q92 -> 0 | AS96: ='【1-B】悲観時（機構基準）収支'!R92 -> 0 | AT96: ='【1-B】悲観時（機構基準）収支'!S92 -> 0 | AU96: ='【1-B】悲観時（機構基準）収支'!T92 -> 0 | AV96: ='【1-B】悲観時（機構基準）収支'!U92 -> 0 | AW96: ='【1-B】悲観時（機構基準）収支'!V92 -> 0 | AX96: ='【1-B】悲観時（機構基準）収支'!W92 -> 0 | AY96: ='【1-B】悲観時（機構基準）収支'!X92 -> 0 | AZ96: ='【1-B】悲観時（機構基準）収支'!Y92 -> 0
C97: 82 | D97: ='【1-A-1】標準時収支'!B93 -> 0 | E97: ='【1-A-1】標準時収支'!C93 -> 営業外費用 | F97: ='【1-A-1】標準時収支'!D93 -> 0 | G97: ='【1-A-1】標準時収支'!E93 -> 0 | H97: ='【1-A-1】標準時収支'!F93 -> 0 | I97: ='【1-A-1】標準時収支'!G93 -> 0 | J97: ='【1-A-1】標準時収支'!H93 -> 0 | K97: ='【1-A-1】標準時収支'!I93 -> 0 | L97: ='【1-A-1】標準時収支'!J93 -> 0 | M97: ='【1-A-1】標準時収支'!K93 -> 0 | N97: ='【1-A-1】標準時収支'!L93 -> 0 | O97: ='【1-A-1】標準時収支'!M93 -> 0 | P97: ='【1-A-1】標準時収支'!N93 -> 0 | Q97: ='【1-A-1】標準時収支'!O93 -> 0 | R97: ='【1-A-1】標準時収支'!P93 -> 0 | S97: ='【1-A-1】標準時収支'!Q93 -> 0 | T97: ='【1-A-1】標準時収支'!R93 -> 0 | U97: ='【1-A-1】標準時収支'!S93 -> 0 | V97: ='【1-A-1】標準時収支'!T93 -> 0 | W97: ='【1-A-1】標準時収支'!U93 -> 0 | X97: ='【1-A-1】標準時収支'!V93 -> 0 | Y97: ='【1-A-1】標準時収支'!W93 -> 0 | Z97: ='【1-A-1】標準時収支'!X93 -> 0 | AA97: ='【1-A-1】標準時収支'!Y93 -> 0 | AC97: ='【1-B】悲観時（機構基準）収支'!B93 -> 0 | AD97: ='【1-B】悲観時（機構基準）収支'!C93 -> 営業外費用 | AE97: ='【1-B】悲観時（機構基準）収支'!D93 -> 0 | AF97: ='【1-B】悲観時（機構基準）収支'!E93 -> 0 | AG97: ='【1-B】悲観時（機構基準）収支'!F93 -> 0 | AH97: ='【1-B】悲観時（機構基準）収支'!G93 -> 0 | AI97: ='【1-B】悲観時（機構基準）収支'!H93 -> 0 | AJ97: ='【1-B】悲観時（機構基準）収支'!I93 -> 0 | AK97: ='【1-B】悲観時（機構基準）収支'!J93 -> 0 | AL97: ='【1-B】悲観時（機構基準）収支'!K93 -> 0 | AM97: ='【1-B】悲観時（機構基準）収支'!L93 -> 0 | AN97: ='【1-B】悲観時（機構基準）収支'!M93 -> 0 | AO97: ='【1-B】悲観時（機構基準）収支'!N93 -> 0 | AP97: ='【1-B】悲観時（機構基準）収支'!O93 -> 0 | AQ97: ='【1-B】悲観時（機構基準）収支'!P93 -> 0 | AR97: ='【1-B】悲観時（機構基準）収支'!Q93 -> 0 | AS97: ='【1-B】悲観時（機構基準）収支'!R93 -> 0 | AT97: ='【1-B】悲観時（機構基準）収支'!S93 -> 0 | AU97: ='【1-B】悲観時（機構基準）収支'!T93 -> 0 | AV97: ='【1-B】悲観時（機構基準）収支'!U93 -> 0 | AW97: ='【1-B】悲観時（機構基準）収支'!V93 -> 0 | AX97: ='【1-B】悲観時（機構基準）収支'!W93 -> 0 | AY97: ='【1-B】悲観時（機構基準）収支'!X93 -> 0 | AZ97: ='【1-B】悲観時（機構基準）収支'!Y93 -> 0
C98: 83 | D98: ='【1-A-1】標準時収支'!B94 -> 0 | E98: ='【1-A-1】標準時収支'!C94 -> 0 | F98: ='【1-A-1】標準時収支'!D94 -> （その他項目名） | G98: ='【1-A-1】標準時収支'!E94 -> 0 | H98: ='【1-A-1】標準時収支'!F94 -> 0 | I98: ='【1-A-1】標準時収支'!G94 -> 0 | J98: ='【1-A-1】標準時収支'!H94 -> 0 | K98: ='【1-A-1】標準時収支'!I94 -> 0 | L98: ='【1-A-1】標準時収支'!J94 -> 0 | M98: ='【1-A-1】標準時収支'!K94 -> 0 | N98: ='【1-A-1】標準時収支'!L94 -> 0 | O98: ='【1-A-1】標準時収支'!M94 -> 0 | P98: ='【1-A-1】標準時収支'!N94 -> 0 | Q98: ='【1-A-1】標準時収支'!O94 -> 0 | R98: ='【1-A-1】標準時収支'!P94 -> 0 | S98: ='【1-A-1】標準時収支'!Q94 -> 0 | T98: ='【1-A-1】標準時収支'!R94 -> 0 | U98: ='【1-A-1】標準時収支'!S94 -> 0 | V98: ='【1-A-1】標準時収支'!T94 -> 0 | W98: ='【1-A-1】標準時収支'!U94 -> 0 | X98: ='【1-A-1】標準時収支'!V94 -> 0 | Y98: ='【1-A-1】標準時収支'!W94 -> 0 | Z98: ='【1-A-1】標準時収支'!X94 -> 0 | AA98: ='【1-A-1】標準時収支'!Y94 -> 0 | AC98: ='【1-B】悲観時（機構基準）収支'!B94 -> 0 | AD98: ='【1-B】悲観時（機構基準）収支'!C94 -> 0 | AE98: ='【1-B】悲観時（機構基準）収支'!D94 -> （その他項目名） | AF98: ='【1-B】悲観時（機構基準）収支'!E94 -> 0 | AG98: ='【1-B】悲観時（機構基準）収支'!F94 -> 0 | AH98: ='【1-B】悲観時（機構基準）収支'!G94 -> 0 | AI98: ='【1-B】悲観時（機構基準）収支'!H94 -> 0 | AJ98: ='【1-B】悲観時（機構基準）収支'!I94 -> 0 | AK98: ='【1-B】悲観時（機構基準）収支'!J94 -> 0 | AL98: ='【1-B】悲観時（機構基準）収支'!K94 -> 0 | AM98: ='【1-B】悲観時（機構基準）収支'!L94 -> 0 | AN98: ='【1-B】悲観時（機構基準）収支'!M94 -> 0 | AO98: ='【1-B】悲観時（機構基準）収支'!N94 -> 0 | AP98: ='【1-B】悲観時（機構基準）収支'!O94 -> 0 | AQ98: ='【1-B】悲観時（機構基準）収支'!P94 -> 0 | AR98: ='【1-B】悲観時（機構基準）収支'!Q94 -> 0 | AS98: ='【1-B】悲観時（機構基準）収支'!R94 -> 0 | AT98: ='【1-B】悲観時（機構基準）収支'!S94 -> 0 | AU98: ='【1-B】悲観時（機構基準）収支'!T94 -> 0 | AV98: ='【1-B】悲観時（機構基準）収支'!U94 -> 0 | AW98: ='【1-B】悲観時（機構基準）収支'!V94 -> 0 | AX98: ='【1-B】悲観時（機構基準）収支'!W94 -> 0 | AY98: ='【1-B】悲観時（機構基準）収支'!X94 -> 0 | AZ98: ='【1-B】悲観時（機構基準）収支'!Y94 -> 0
C99: 84 | D99: ='【1-A-1】標準時収支'!B95 -> 0 | E99: ='【1-A-1】標準時収支'!C95 -> 0 | F99: ='【1-A-1】標準時収支'!D95 -> （その他項目名） | G99: ='【1-A-1】標準時収支'!E95 -> 0 | H99: ='【1-A-1】標準時収支'!F95 -> 0 | I99: ='【1-A-1】標準時収支'!G95 -> 0 | J99: ='【1-A-1】標準時収支'!H95 -> 0 | K99: ='【1-A-1】標準時収支'!I95 -> 0 | L99: ='【1-A-1】標準時収支'!J95 -> 0 | M99: ='【1-A-1】標準時収支'!K95 -> 0 | N99: ='【1-A-1】標準時収支'!L95 -> 0 | O99: ='【1-A-1】標準時収支'!M95 -> 0 | P99: ='【1-A-1】標準時収支'!N95 -> 0 | Q99: ='【1-A-1】標準時収支'!O95 -> 0 | R99: ='【1-A-1】標準時収支'!P95 -> 0 | S99: ='【1-A-1】標準時収支'!Q95 -> 0 | T99: ='【1-A-1】標準時収支'!R95 -> 0 | U99: ='【1-A-1】標準時収支'!S95 -> 0 | V99: ='【1-A-1】標準時収支'!T95 -> 0 | W99: ='【1-A-1】標準時収支'!U95 -> 0 | X99: ='【1-A-1】標準時収支'!V95 -> 0 | Y99: ='【1-A-1】標準時収支'!W95 -> 0 | Z99: ='【1-A-1】標準時収支'!X95 -> 0 | AA99: ='【1-A-1】標準時収支'!Y95 -> 0 | AC99: ='【1-B】悲観時（機構基準）収支'!B95 -> 0 | AD99: ='【1-B】悲観時（機構基準）収支'!C95 -> 0 | AE99: ='【1-B】悲観時（機構基準）収支'!D95 -> （その他項目名） | AF99: ='【1-B】悲観時（機構基準）収支'!E95 -> 0 | AG99: ='【1-B】悲観時（機構基準）収支'!F95 -> 0 | AH99: ='【1-B】悲観時（機構基準）収支'!G95 -> 0 | AI99: ='【1-B】悲観時（機構基準）収支'!H95 -> 0 | AJ99: ='【1-B】悲観時（機構基準）収支'!I95 -> 0 | AK99: ='【1-B】悲観時（機構基準）収支'!J95 -> 0 | AL99: ='【1-B】悲観時（機構基準）収支'!K95 -> 0 | AM99: ='【1-B】悲観時（機構基準）収支'!L95 -> 0 | AN99: ='【1-B】悲観時（機構基準）収支'!M95 -> 0 | AO99: ='【1-B】悲観時（機構基準）収支'!N95 -> 0 | AP99: ='【1-B】悲観時（機構基準）収支'!O95 -> 0 | AQ99: ='【1-B】悲観時（機構基準）収支'!P95 -> 0 | AR99: ='【1-B】悲観時（機構基準）収支'!Q95 -> 0 | AS99: ='【1-B】悲観時（機構基準）収支'!R95 -> 0 | AT99: ='【1-B】悲観時（機構基準）収支'!S95 -> 0 | AU99: ='【1-B】悲観時（機構基準）収支'!T95 -> 0 | AV99: ='【1-B】悲観時（機構基準）収支'!U95 -> 0 | AW99: ='【1-B】悲観時（機構基準）収支'!V95 -> 0 | AX99: ='【1-B】悲観時（機構基準）収支'!W95 -> 0 | AY99: ='【1-B】悲観時（機構基準）収支'!X95 -> 0 | AZ99: ='【1-B】悲観時（機構基準）収支'!Y95 -> 0
C100: 85 | D100: ='【1-A-1】標準時収支'!B96 -> 0 | E100: ='【1-A-1】標準時収支'!C96 -> 0 | F100: ='【1-A-1】標準時収支'!D96 -> （その他項目名） | G100: ='【1-A-1】標準時収支'!E96 -> 0 | H100: ='【1-A-1】標準時収支'!F96 -> 0 | I100: ='【1-A-1】標準時収支'!G96 -> 0 | J100: ='【1-A-1】標準時収支'!H96 -> 0 | K100: ='【1-A-1】標準時収支'!I96 -> 0 | L100: ='【1-A-1】標準時収支'!J96 -> 0 | M100: ='【1-A-1】標準時収支'!K96 -> 0 | N100: ='【1-A-1】標準時収支'!L96 -> 0 | O100: ='【1-A-1】標準時収支'!M96 -> 0 | P100: ='【1-A-1】標準時収支'!N96 -> 0 | Q100: ='【1-A-1】標準時収支'!O96 -> 0 | R100: ='【1-A-1】標準時収支'!P96 -> 0 | S100: ='【1-A-1】標準時収支'!Q96 -> 0 | T100: ='【1-A-1】標準時収支'!R96 -> 0 | U100: ='【1-A-1】標準時収支'!S96 -> 0 | V100: ='【1-A-1】標準時収支'!T96 -> 0 | W100: ='【1-A-1】標準時収支'!U96 -> 0 | X100: ='【1-A-1】標準時収支'!V96 -> 0 | Y100: ='【1-A-1】標準時収支'!W96 -> 0 | Z100: ='【1-A-1】標準時収支'!X96 -> 0 | AA100: ='【1-A-1】標準時収支'!Y96 -> 0 | AC100: ='【1-B】悲観時（機構基準）収支'!B96 -> 0 | AD100: ='【1-B】悲観時（機構基準）収支'!C96 -> 0 | AE100: ='【1-B】悲観時（機構基準）収支'!D96 -> （その他項目名） | AF100: ='【1-B】悲観時（機構基準）収支'!E96 -> 0 | AG100: ='【1-B】悲観時（機構基準）収支'!F96 -> 0 | AH100: ='【1-B】悲観時（機構基準）収支'!G96 -> 0 | AI100: ='【1-B】悲観時（機構基準）収支'!H96 -> 0 | AJ100: ='【1-B】悲観時（機構基準）収支'!I96 -> 0 | AK100: ='【1-B】悲観時（機構基準）収支'!J96 -> 0 | AL100: ='【1-B】悲観時（機構基準）収支'!K96 -> 0 | AM100: ='【1-B】悲観時（機構基準）収支'!L96 -> 0 | AN100: ='【1-B】悲観時（機構基準）収支'!M96 -> 0 | AO100: ='【1-B】悲観時（機構基準）収支'!N96 -> 0 | AP100: ='【1-B】悲観時（機構基準）収支'!O96 -> 0 | AQ100: ='【1-B】悲観時（機構基準）収支'!P96 -> 0 | AR100: ='【1-B】悲観時（機構基準）収支'!Q96 -> 0 | AS100: ='【1-B】悲観時（機構基準）収支'!R96 -> 0 | AT100: ='【1-B】悲観時（機構基準）収支'!S96 -> 0 | AU100: ='【1-B】悲観時（機構基準）収支'!T96 -> 0 | AV100: ='【1-B】悲観時（機構基準）収支'!U96 -> 0 | AW100: ='【1-B】悲観時（機構基準）収支'!V96 -> 0 | AX100: ='【1-B】悲観時（機構基準）収支'!W96 -> 0 | AY100: ='【1-B】悲観時（機構基準）収支'!X96 -> 0 | AZ100: ='【1-B】悲観時（機構基準）収支'!Y96 -> 0
C101: 86 | D101: ='【1-A-1】標準時収支'!B97 -> 0 | E101: ='【1-A-1】標準時収支'!C97 -> 0 | F101: ='【1-A-1】標準時収支'!D97 -> （その他項目名） | G101: ='【1-A-1】標準時収支'!E97 -> 0 | H101: ='【1-A-1】標準時収支'!F97 -> 0 | I101: ='【1-A-1】標準時収支'!G97 -> 0 | J101: ='【1-A-1】標準時収支'!H97 -> 0 | K101: ='【1-A-1】標準時収支'!I97 -> 0 | L101: ='【1-A-1】標準時収支'!J97 -> 0 | M101: ='【1-A-1】標準時収支'!K97 -> 0 | N101: ='【1-A-1】標準時収支'!L97 -> 0 | O101: ='【1-A-1】標準時収支'!M97 -> 0 | P101: ='【1-A-1】標準時収支'!N97 -> 0 | Q101: ='【1-A-1】標準時収支'!O97 -> 0 | R101: ='【1-A-1】標準時収支'!P97 -> 0 | S101: ='【1-A-1】標準時収支'!Q97 -> 0 | T101: ='【1-A-1】標準時収支'!R97 -> 0 | U101: ='【1-A-1】標準時収支'!S97 -> 0 | V101: ='【1-A-1】標準時収支'!T97 -> 0 | W101: ='【1-A-1】標準時収支'!U97 -> 0 | X101: ='【1-A-1】標準時収支'!V97 -> 0 | Y101: ='【1-A-1】標準時収支'!W97 -> 0 | Z101: ='【1-A-1】標準時収支'!X97 -> 0 | AA101: ='【1-A-1】標準時収支'!Y97 -> 0 | AC101: ='【1-B】悲観時（機構基準）収支'!B97 -> 0 | AD101: ='【1-B】悲観時（機構基準）収支'!C97 -> 0 | AE101: ='【1-B】悲観時（機構基準）収支'!D97 -> （その他項目名） | AF101: ='【1-B】悲観時（機構基準）収支'!E97 -> 0 | AG101: ='【1-B】悲観時（機構基準）収支'!F97 -> 0 | AH101: ='【1-B】悲観時（機構基準）収支'!G97 -> 0 | AI101: ='【1-B】悲観時（機構基準）収支'!H97 -> 0 | AJ101: ='【1-B】悲観時（機構基準）収支'!I97 -> 0 | AK101: ='【1-B】悲観時（機構基準）収支'!J97 -> 0 | AL101: ='【1-B】悲観時（機構基準）収支'!K97 -> 0 | AM101: ='【1-B】悲観時（機構基準）収支'!L97 -> 0 | AN101: ='【1-B】悲観時（機構基準）収支'!M97 -> 0 | AO101: ='【1-B】悲観時（機構基準）収支'!N97 -> 0 | AP101: ='【1-B】悲観時（機構基準）収支'!O97 -> 0 | AQ101: ='【1-B】悲観時（機構基準）収支'!P97 -> 0 | AR101: ='【1-B】悲観時（機構基準）収支'!Q97 -> 0 | AS101: ='【1-B】悲観時（機構基準）収支'!R97 -> 0 | AT101: ='【1-B】悲観時（機構基準）収支'!S97 -> 0 | AU101: ='【1-B】悲観時（機構基準）収支'!T97 -> 0 | AV101: ='【1-B】悲観時（機構基準）収支'!U97 -> 0 | AW101: ='【1-B】悲観時（機構基準）収支'!V97 -> 0 | AX101: ='【1-B】悲観時（機構基準）収支'!W97 -> 0 | AY101: ='【1-B】悲観時（機構基準）収支'!X97 -> 0 | AZ101: ='【1-B】悲観時（機構基準）収支'!Y97 -> 0
C102: 87 | D102: ='【1-A-1】標準時収支'!B98 -> 0 | E102: ='【1-A-1】標準時収支'!C98 -> 0 | F102: ='【1-A-1】標準時収支'!D98 -> （その他項目名） | G102: ='【1-A-1】標準時収支'!E98 -> 0 | H102: ='【1-A-1】標準時収支'!F98 -> 0 | I102: ='【1-A-1】標準時収支'!G98 -> 0 | J102: ='【1-A-1】標準時収支'!H98 -> 0 | K102: ='【1-A-1】標準時収支'!I98 -> 0 | L102: ='【1-A-1】標準時収支'!J98 -> 0 | M102: ='【1-A-1】標準時収支'!K98 -> 0 | N102: ='【1-A-1】標準時収支'!L98 -> 0 | O102: ='【1-A-1】標準時収支'!M98 -> 0 | P102: ='【1-A-1】標準時収支'!N98 -> 0 | Q102: ='【1-A-1】標準時収支'!O98 -> 0 | R102: ='【1-A-1】標準時収支'!P98 -> 0 | S102: ='【1-A-1】標準時収支'!Q98 -> 0 | T102: ='【1-A-1】標準時収支'!R98 -> 0 | U102: ='【1-A-1】標準時収支'!S98 -> 0 | V102: ='【1-A-1】標準時収支'!T98 -> 0 | W102: ='【1-A-1】標準時収支'!U98 -> 0 | X102: ='【1-A-1】標準時収支'!V98 -> 0 | Y102: ='【1-A-1】標準時収支'!W98 -> 0 | Z102: ='【1-A-1】標準時収支'!X98 -> 0 | AA102: ='【1-A-1】標準時収支'!Y98 -> 0 | AC102: ='【1-B】悲観時（機構基準）収支'!B98 -> 0 | AD102: ='【1-B】悲観時（機構基準）収支'!C98 -> 0 | AE102: ='【1-B】悲観時（機構基準）収支'!D98 -> （その他項目名） | AF102: ='【1-B】悲観時（機構基準）収支'!E98 -> 0 | AG102: ='【1-B】悲観時（機構基準）収支'!F98 -> 0 | AH102: ='【1-B】悲観時（機構基準）収支'!G98 -> 0 | AI102: ='【1-B】悲観時（機構基準）収支'!H98 -> 0 | AJ102: ='【1-B】悲観時（機構基準）収支'!I98 -> 0 | AK102: ='【1-B】悲観時（機構基準）収支'!J98 -> 0 | AL102: ='【1-B】悲観時（機構基準）収支'!K98 -> 0 | AM102: ='【1-B】悲観時（機構基準）収支'!L98 -> 0 | AN102: ='【1-B】悲観時（機構基準）収支'!M98 -> 0 | AO102: ='【1-B】悲観時（機構基準）収支'!N98 -> 0 | AP102: ='【1-B】悲観時（機構基準）収支'!O98 -> 0 | AQ102: ='【1-B】悲観時（機構基準）収支'!P98 -> 0 | AR102: ='【1-B】悲観時（機構基準）収支'!Q98 -> 0 | AS102: ='【1-B】悲観時（機構基準）収支'!R98 -> 0 | AT102: ='【1-B】悲観時（機構基準）収支'!S98 -> 0 | AU102: ='【1-B】悲観時（機構基準）収支'!T98 -> 0 | AV102: ='【1-B】悲観時（機構基準）収支'!U98 -> 0 | AW102: ='【1-B】悲観時（機構基準）収支'!V98 -> 0 | AX102: ='【1-B】悲観時（機構基準）収支'!W98 -> 0 | AY102: ='【1-B】悲観時（機構基準）収支'!X98 -> 0 | AZ102: ='【1-B】悲観時（機構基準）収支'!Y98 -> 0
C103: 88 | D103: ='【1-A-1】標準時収支'!B99 -> 0 | E103: ='【1-A-1】標準時収支'!C99 -> 0 | F103: ='【1-A-1】標準時収支'!D99 -> （その他項目名） | G103: ='【1-A-1】標準時収支'!E99 -> 0 | H103: ='【1-A-1】標準時収支'!F99 -> 0 | I103: ='【1-A-1】標準時収支'!G99 -> 0 | J103: ='【1-A-1】標準時収支'!H99 -> 0 | K103: ='【1-A-1】標準時収支'!I99 -> 0 | L103: ='【1-A-1】標準時収支'!J99 -> 0 | M103: ='【1-A-1】標準時収支'!K99 -> 0 | N103: ='【1-A-1】標準時収支'!L99 -> 0 | O103: ='【1-A-1】標準時収支'!M99 -> 0 | P103: ='【1-A-1】標準時収支'!N99 -> 0 | Q103: ='【1-A-1】標準時収支'!O99 -> 0 | R103: ='【1-A-1】標準時収支'!P99 -> 0 | S103: ='【1-A-1】標準時収支'!Q99 -> 0 | T103: ='【1-A-1】標準時収支'!R99 -> 0 | U103: ='【1-A-1】標準時収支'!S99 -> 0 | V103: ='【1-A-1】標準時収支'!T99 -> 0 | W103: ='【1-A-1】標準時収支'!U99 -> 0 | X103: ='【1-A-1】標準時収支'!V99 -> 0 | Y103: ='【1-A-1】標準時収支'!W99 -> 0 | Z103: ='【1-A-1】標準時収支'!X99 -> 0 | AA103: ='【1-A-1】標準時収支'!Y99 -> 0 | AC103: ='【1-B】悲観時（機構基準）収支'!B99 -> 0 | AD103: ='【1-B】悲観時（機構基準）収支'!C99 -> 0 | AE103: ='【1-B】悲観時（機構基準）収支'!D99 -> （その他項目名） | AF103: ='【1-B】悲観時（機構基準）収支'!E99 -> 0 | AG103: ='【1-B】悲観時（機構基準）収支'!F99 -> 0 | AH103: ='【1-B】悲観時（機構基準）収支'!G99 -> 0 | AI103: ='【1-B】悲観時（機構基準）収支'!H99 -> 0 | AJ103: ='【1-B】悲観時（機構基準）収支'!I99 -> 0 | AK103: ='【1-B】悲観時（機構基準）収支'!J99 -> 0 | AL103: ='【1-B】悲観時（機構基準）収支'!K99 -> 0 | AM103: ='【1-B】悲観時（機構基準）収支'!L99 -> 0 | AN103: ='【1-B】悲観時（機構基準）収支'!M99 -> 0 | AO103: ='【1-B】悲観時（機構基準）収支'!N99 -> 0 | AP103: ='【1-B】悲観時（機構基準）収支'!O99 -> 0 | AQ103: ='【1-B】悲観時（機構基準）収支'!P99 -> 0 | AR103: ='【1-B】悲観時（機構基準）収支'!Q99 -> 0 | AS103: ='【1-B】悲観時（機構基準）収支'!R99 -> 0 | AT103: ='【1-B】悲観時（機構基準）収支'!S99 -> 0 | AU103: ='【1-B】悲観時（機構基準）収支'!T99 -> 0 | AV103: ='【1-B】悲観時（機構基準）収支'!U99 -> 0 | AW103: ='【1-B】悲観時（機構基準）収支'!V99 -> 0 | AX103: ='【1-B】悲観時（機構基準）収支'!W99 -> 0 | AY103: ='【1-B】悲観時（機構基準）収支'!X99 -> 0 | AZ103: ='【1-B】悲観時（機構基準）収支'!Y99 -> 0
C104: 89 | D104: ='【1-A-1】標準時収支'!B100 -> 税引前当期純利益 | E104: ='【1-A-1】標準時収支'!C100 -> 0 | F104: ='【1-A-1】標準時収支'!D100 -> 0 | G104: ='【1-A-1】標準時収支'!E100 -> 0 | H104: ='【1-A-1】標準時収支'!F100 -> 0 | I104: ='【1-A-1】標準時収支'!G100 -> 0 | J104: ='【1-A-1】標準時収支'!H100 -> 0 | K104: ='【1-A-1】標準時収支'!I100 -> 0 | L104: ='【1-A-1】標準時収支'!J100 -> 0 | M104: ='【1-A-1】標準時収支'!K100 -> 0 | N104: ='【1-A-1】標準時収支'!L100 -> 0 | O104: ='【1-A-1】標準時収支'!M100 -> 0 | P104: ='【1-A-1】標準時収支'!N100 -> 0 | Q104: ='【1-A-1】標準時収支'!O100 -> 0 | R104: ='【1-A-1】標準時収支'!P100 -> 0 | S104: ='【1-A-1】標準時収支'!Q100 -> 0 | T104: ='【1-A-1】標準時収支'!R100 -> 0 | U104: ='【1-A-1】標準時収支'!S100 -> 0 | V104: ='【1-A-1】標準時収支'!T100 -> 0 | W104: ='【1-A-1】標準時収支'!U100 -> 0 | X104: ='【1-A-1】標準時収支'!V100 -> 0 | Y104: ='【1-A-1】標準時収支'!W100 -> 0 | Z104: ='【1-A-1】標準時収支'!X100 -> 0 | AA104: ='【1-A-1】標準時収支'!Y100 -> 0 | AC104: ='【1-B】悲観時（機構基準）収支'!B100 -> 税引前当期純利益 | AD104: ='【1-B】悲観時（機構基準）収支'!C100 -> 0 | AE104: ='【1-B】悲観時（機構基準）収支'!D100 -> 0 | AF104: ='【1-B】悲観時（機構基準）収支'!E100 -> 0 | AG104: ='【1-B】悲観時（機構基準）収支'!F100 -> 0 | AH104: ='【1-B】悲観時（機構基準）収支'!G100 -> 0 | AI104: ='【1-B】悲観時（機構基準）収支'!H100 -> 0 | AJ104: ='【1-B】悲観時（機構基準）収支'!I100 -> 0 | AK104: ='【1-B】悲観時（機構基準）収支'!J100 -> 0 | AL104: ='【1-B】悲観時（機構基準）収支'!K100 -> 0 | AM104: ='【1-B】悲観時（機構基準）収支'!L100 -> 0 | AN104: ='【1-B】悲観時（機構基準）収支'!M100 -> 0 | AO104: ='【1-B】悲観時（機構基準）収支'!N100 -> 0 | AP104: ='【1-B】悲観時（機構基準）収支'!O100 -> 0 | AQ104: ='【1-B】悲観時（機構基準）収支'!P100 -> 0 | AR104: ='【1-B】悲観時（機構基準）収支'!Q100 -> 0 | AS104: ='【1-B】悲観時（機構基準）収支'!R100 -> 0 | AT104: ='【1-B】悲観時（機構基準）収支'!S100 -> 0 | AU104: ='【1-B】悲観時（機構基準）収支'!T100 -> 0 | AV104: ='【1-B】悲観時（機構基準）収支'!U100 -> 0 | AW104: ='【1-B】悲観時（機構基準）収支'!V100 -> 0 | AX104: ='【1-B】悲観時（機構基準）収支'!W100 -> 0 | AY104: ='【1-B】悲観時（機構基準）収支'!X100 -> 0 | AZ104: ='【1-B】悲観時（機構基準）収支'!Y100 -> 0
C105: 90 | D105: ='【1-A-1】標準時収支'!B101 -> 法人税等 | E105: ='【1-A-1】標準時収支'!C101 -> 0 | F105: ='【1-A-1】標準時収支'!D101 -> 0 | G105: ='【1-A-1】標準時収支'!E101 -> 0 | H105: ='【1-A-1】標準時収支'!F101 -> 0 | I105: ='【1-A-1】標準時収支'!G101 -> 0 | J105: ='【1-A-1】標準時収支'!H101 -> 0 | K105: ='【1-A-1】標準時収支'!I101 -> 0 | L105: ='【1-A-1】標準時収支'!J101 -> 0 | M105: ='【1-A-1】標準時収支'!K101 -> 0 | N105: ='【1-A-1】標準時収支'!L101 -> 0 | O105: ='【1-A-1】標準時収支'!M101 -> 0 | P105: ='【1-A-1】標準時収支'!N101 -> 0 | Q105: ='【1-A-1】標準時収支'!O101 -> 0 | R105: ='【1-A-1】標準時収支'!P101 -> 0 | S105: ='【1-A-1】標準時収支'!Q101 -> 0 | T105: ='【1-A-1】標準時収支'!R101 -> 0 | U105: ='【1-A-1】標準時収支'!S101 -> 0 | V105: ='【1-A-1】標準時収支'!T101 -> 0 | W105: ='【1-A-1】標準時収支'!U101 -> 0 | X105: ='【1-A-1】標準時収支'!V101 -> 0 | Y105: ='【1-A-1】標準時収支'!W101 -> 0 | Z105: ='【1-A-1】標準時収支'!X101 -> 0 | AA105: ='【1-A-1】標準時収支'!Y101 -> 0 | AC105: ='【1-B】悲観時（機構基準）収支'!B101 -> 法人税等 | AD105: ='【1-B】悲観時（機構基準）収支'!C101 -> 0 | AE105: ='【1-B】悲観時（機構基準）収支'!D101 -> 0 | AF105: ='【1-B】悲観時（機構基準）収支'!E101 -> 0 | AG105: ='【1-B】悲観時（機構基準）収支'!F101 -> 0 | AH105: ='【1-B】悲観時（機構基準）収支'!G101 -> 0 | AI105: ='【1-B】悲観時（機構基準）収支'!H101 -> 0 | AJ105: ='【1-B】悲観時（機構基準）収支'!I101 -> 0 | AK105: ='【1-B】悲観時（機構基準）収支'!J101 -> 0 | AL105: ='【1-B】悲観時（機構基準）収支'!K101 -> 0 | AM105: ='【1-B】悲観時（機構基準）収支'!L101 -> 0 | AN105: ='【1-B】悲観時（機構基準）収支'!M101 -> 0 | AO105: ='【1-B】悲観時（機構基準）収支'!N101 -> 0 | AP105: ='【1-B】悲観時（機構基準）収支'!O101 -> 0 | AQ105: ='【1-B】悲観時（機構基準）収支'!P101 -> 0 | AR105: ='【1-B】悲観時（機構基準）収支'!Q101 -> 0 | AS105: ='【1-B】悲観時（機構基準）収支'!R101 -> 0 | AT105: ='【1-B】悲観時（機構基準）収支'!S101 -> 0 | AU105: ='【1-B】悲観時（機構基準）収支'!T101 -> 0 | AV105: ='【1-B】悲観時（機構基準）収支'!U101 -> 0 | AW105: ='【1-B】悲観時（機構基準）収支'!V101 -> 0 | AX105: ='【1-B】悲観時（機構基準）収支'!W101 -> 0 | AY105: ='【1-B】悲観時（機構基準）収支'!X101 -> 0 | AZ105: ='【1-B】悲観時（機構基準）収支'!Y101 -> 0
C106: 91 | D106: ='【1-A-1】標準時収支'!B102 -> 税引後当期純利益 | E106: ='【1-A-1】標準時収支'!C102 -> 0 | F106: ='【1-A-1】標準時収支'!D102 -> 0 | G106: ='【1-A-1】標準時収支'!E102 -> 0 | H106: ='【1-A-1】標準時収支'!F102 -> 0 | I106: ='【1-A-1】標準時収支'!G102 -> 0 | J106: ='【1-A-1】標準時収支'!H102 -> 0 | K106: ='【1-A-1】標準時収支'!I102 -> 0 | L106: ='【1-A-1】標準時収支'!J102 -> 0 | M106: ='【1-A-1】標準時収支'!K102 -> 0 | N106: ='【1-A-1】標準時収支'!L102 -> 0 | O106: ='【1-A-1】標準時収支'!M102 -> 0 | P106: ='【1-A-1】標準時収支'!N102 -> 0 | Q106: ='【1-A-1】標準時収支'!O102 -> 0 | R106: ='【1-A-1】標準時収支'!P102 -> 0 | S106: ='【1-A-1】標準時収支'!Q102 -> 0 | T106: ='【1-A-1】標準時収支'!R102 -> 0 | U106: ='【1-A-1】標準時収支'!S102 -> 0 | V106: ='【1-A-1】標準時収支'!T102 -> 0 | W106: ='【1-A-1】標準時収支'!U102 -> 0 | X106: ='【1-A-1】標準時収支'!V102 -> 0 | Y106: ='【1-A-1】標準時収支'!W102 -> 0 | Z106: ='【1-A-1】標準時収支'!X102 -> 0 | AA106: ='【1-A-1】標準時収支'!Y102 -> 0 | AC106: ='【1-B】悲観時（機構基準）収支'!B102 -> 税引後当期純利益 | AD106: ='【1-B】悲観時（機構基準）収支'!C102 -> 0 | AE106: ='【1-B】悲観時（機構基準）収支'!D102 -> 0 | AF106: ='【1-B】悲観時（機構基準）収支'!E102 -> 0 | AG106: ='【1-B】悲観時（機構基準）収支'!F102 -> 0 | AH106: ='【1-B】悲観時（機構基準）収支'!G102 -> 0 | AI106: ='【1-B】悲観時（機構基準）収支'!H102 -> 0 | AJ106: ='【1-B】悲観時（機構基準）収支'!I102 -> 0 | AK106: ='【1-B】悲観時（機構基準）収支'!J102 -> 0 | AL106: ='【1-B】悲観時（機構基準）収支'!K102 -> 0 | AM106: ='【1-B】悲観時（機構基準）収支'!L102 -> 0 | AN106: ='【1-B】悲観時（機構基準）収支'!M102 -> 0 | AO106: ='【1-B】悲観時（機構基準）収支'!N102 -> 0 | AP106: ='【1-B】悲観時（機構基準）収支'!O102 -> 0 | AQ106: ='【1-B】悲観時（機構基準）収支'!P102 -> 0 | AR106: ='【1-B】悲観時（機構基準）収支'!Q102 -> 0 | AS106: ='【1-B】悲観時（機構基準）収支'!R102 -> 0 | AT106: ='【1-B】悲観時（機構基準）収支'!S102 -> 0 | AU106: ='【1-B】悲観時（機構基準）収支'!T102 -> 0 | AV106: ='【1-B】悲観時（機構基準）収支'!U102 -> 0 | AW106: ='【1-B】悲観時（機構基準）収支'!V102 -> 0 | AX106: ='【1-B】悲観時（機構基準）収支'!W102 -> 0 | AY106: ='【1-B】悲観時（機構基準）収支'!X102 -> 0 | AZ106: ='【1-B】悲観時（機構基準）収支'!Y102 -> 0
K108: =K9 -> 2020標準時 | L108: 2021標準時 | M108: 2022標準時 | N108: 2023標準時 | O108: 2024標準時 | P108: 2025標準時 | Q108: 2026標準時 | R108: 2027標準時 | S108: 2028標準時 | T108: 2029標準時 | U108: 2030標準時 | V108: 2031標準時 | W108: 2032標準時 | X108: 2033標準時 | Y108: 2034標準時 | Z108: 2035標準時 | AA108: 2036標準時 | AJ108: =AJ9 -> 2020悲観時（機構基準） | AK108: 2021悲観時（機構基準） | AL108: 2022悲観時（機構基準） | AM108: 2023悲観時（機構基準） | AN108: 2024悲観時（機構基準） | AO108: 2025悲観時（機構基準） | AP108: 2026悲観時（機構基準） | AQ108: 2027悲観時（機構基準） | AR108: 2028悲観時（機構基準） | AS108: 2029悲観時（機構基準） | AT108: 2030悲観時（機構基準） | AU108: 2031悲観時（機構基準） | AV108: 2032悲観時（機構基準） | AW108: 2033悲観時（機構基準） | AX108: 2034悲観時（機構基準） | AY108: 2035悲観時（機構基準） | AZ108: 2036悲観時（機構基準）
D109: ='【1-A-1】標準時収支'!B200 -> 精算フラグ | AC109: ='【1-B】悲観時（機構基準）収支'!B189 -> 追加給付額算定用EIRR | AZ109: ='【1-B】悲観時（機構基準）収支'!Y189 -> 単位：千円
AC110: ='【1-B】悲観時（機構基準）収支'!B190 -> 年度 | AG110: ='【1-B】悲観時（機構基準）収支'!F201 -> 0 | AJ110: ='【1-B】悲観時（機構基準）収支'!I190 -> 令和2年度 | AK110: ='【1-B】悲観時（機構基準）収支'!J190 -> 令和3年度 | AL110: ='【1-B】悲観時（機構基準）収支'!K190 -> 令和4年度 | AM110: ='【1-B】悲観時（機構基準）収支'!L190 -> 令和5年度 | AN110: ='【1-B】悲観時（機構基準）収支'!M190 -> 令和6年度 | AO110: ='【1-B】悲観時（機構基準）収支'!N190 -> 令和7年度 | AP110: ='【1-B】悲観時（機構基準）収支'!O190 -> 令和8年度 | AQ110: ='【1-B】悲観時（機構基準）収支'!P190 -> 令和9年度 | AR110: ='【1-B】悲観時（機構基準）収支'!Q190 -> 令和10年度 | AS110: ='【1-B】悲観時（機構基準）収支'!R190 -> 令和11年度 | AT110: ='【1-B】悲観時（機構基準）収支'!S190 -> 令和12年度 | AU110: ='【1-B】悲観時（機構基準）収支'!T190 -> 令和13年度 | AV110: ='【1-B】悲観時（機構基準）収支'!U190 -> 令和14年度 | AW110: ='【1-B】悲観時（機構基準）収支'!V190 -> 令和15年度 | AX110: ='【1-B】悲観時（機構基準）収支'!W190 -> 令和16年度 | AY110: ='【1-B】悲観時（機構基準）収支'!X190 -> 令和17年度 | AZ110: ='【1-B】悲観時（機構基準）収支'!Y190 -> 令和18年度
D111: ='【1-A-1】標準時収支'!B202 -> EIRR算定 | H111: ='【1-A-1】標準時収支'!F202 -> 0 | K111: ='【1-A-1】標準時収支'!I202 -> 0 | L111: ='【1-A-1】標準時収支'!J202 -> 0 | M111: ='【1-A-1】標準時収支'!K202 -> 0 | N111: ='【1-A-1】標準時収支'!L202 -> 0 | O111: ='【1-A-1】標準時収支'!M202 -> 0 | P111: ='【1-A-1】標準時収支'!N202 -> 0 | Q111: ='【1-A-1】標準時収支'!O202 -> 0 | R111: ='【1-A-1】標準時収支'!P202 -> 0 | S111: ='【1-A-1】標準時収支'!Q202 -> 0 | T111: ='【1-A-1】標準時収支'!R202 -> 0 | U111: ='【1-A-1】標準時収支'!S202 -> 0 | V111: ='【1-A-1】標準時収支'!T202 -> 0 | W111: ='【1-A-1】標準時収支'!U202 -> 0 | X111: ='【1-A-1】標準時収支'!V202 -> 0 | Y111: ='【1-A-1】標準時収支'!W202 -> 0 | Z111: ='【1-A-1】標準時収支'!X202 -> 0 | AA111: ='【1-A-1】標準時収支'!Y202 -> 0 | AC111: ='【1-B】悲観時（機構基準）収支'!B202 -> EIRR算定 | AG111: ='【1-B】悲観時（機構基準）収支'!F202 -> 0 | AJ111: ='【1-B】悲観時（機構基準）収支'!I202 -> 0 | AK111: ='【1-B】悲観時（機構基準）収支'!J202 -> 0 | AL111: ='【1-B】悲観時（機構基準）収支'!K202 -> 0 | AM111: ='【1-B】悲観時（機構基準）収支'!L202 -> 0 | AN111: ='【1-B】悲観時（機構基準）収支'!M202 -> 0 | AO111: ='【1-B】悲観時（機構基準）収支'!N202 -> 0 | AP111: ='【1-B】悲観時（機構基準）収支'!O202 -> 0 | AQ111: ='【1-B】悲観時（機構基準）収支'!P202 -> 0 | AR111: ='【1-B】悲観時（機構基準）収支'!Q202 -> 0 | AS111: ='【1-B】悲観時（機構基準）収支'!R202 -> 0 | AT111: ='【1-B】悲観時（機構基準）収支'!S202 -> 0 | AU111: ='【1-B】悲観時（機構基準）収支'!T202 -> 0 | AV111: ='【1-B】悲観時（機構基準）収支'!U202 -> 0 | AW111: ='【1-B】悲観時（機構基準）収支'!V202 -> 0 | AX111: ='【1-B】悲観時（機構基準）収支'!W202 -> 0 | AY111: ='【1-B】悲観時（機構基準）収支'!X202 -> 0 | AZ111: ='【1-B】悲観時（機構基準）収支'!Y202 -> 0
C112: 1 | E112: ='【1-A-1】標準時収支'!C203 -> 出資金の拠出 | H112: ='【1-A-1】標準時収支'!F203 -> 0 | K112: ='【1-A-1】標準時収支'!I203 -> 0 | L112: ='【1-A-1】標準時収支'!J203 -> 0 | M112: ='【1-A-1】標準時収支'!K203 -> 0 | N112: ='【1-A-1】標準時収支'!L203 -> 0 | O112: ='【1-A-1】標準時収支'!M203 -> 0 | P112: ='【1-A-1】標準時収支'!N203 -> 0 | Q112: ='【1-A-1】標準時収支'!O203 -> 0 | R112: ='【1-A-1】標準時収支'!P203 -> 0 | S112: ='【1-A-1】標準時収支'!Q203 -> 0 | T112: ='【1-A-1】標準時収支'!R203 -> 0 | U112: ='【1-A-1】標準時収支'!S203 -> 0 | V112: ='【1-A-1】標準時収支'!T203 -> 0 | W112: ='【1-A-1】標準時収支'!U203 -> 0 | X112: ='【1-A-1】標準時収支'!V203 -> 0 | Y112: ='【1-A-1】標準時収支'!W203 -> 0 | Z112: ='【1-A-1】標準時収支'!X203 -> 0 | AA112: ='【1-A-1】標準時収支'!Y203 -> 0 | AD112: ='【1-B】悲観時（機構基準）収支'!C203 -> 出資金の拠出 | AG112: ='【1-B】悲観時（機構基準）収支'!F203 -> 0 | AJ112: ='【1-B】悲観時（機構基準）収支'!I203 -> 0 | AK112: ='【1-B】悲観時（機構基準）収支'!J203 -> 0 | AL112: ='【1-B】悲観時（機構基準）収支'!K203 -> 0 | AM112: ='【1-B】悲観時（機構基準）収支'!L203 -> 0 | AN112: ='【1-B】悲観時（機構基準）収支'!M203 -> 0 | AO112: ='【1-B】悲観時（機構基準）収支'!N203 -> 0 | AP112: ='【1-B】悲観時（機構基準）収支'!O203 -> 0 | AQ112: ='【1-B】悲観時（機構基準）収支'!P203 -> 0 | AR112: ='【1-B】悲観時（機構基準）収支'!Q203 -> 0 | AS112: ='【1-B】悲観時（機構基準）収支'!R203 -> 0 | AT112: ='【1-B】悲観時（機構基準）収支'!S203 -> 0 | AU112: ='【1-B】悲観時（機構基準）収支'!T203 -> 0 | AV112: ='【1-B】悲観時（機構基準）収支'!U203 -> 0 | AW112: ='【1-B】悲観時（機構基準）収支'!V203 -> 0 | AX112: ='【1-B】悲観時（機構基準）収支'!W203 -> 0 | AY112: ='【1-B】悲観時（機構基準）収支'!X203 -> 0 | AZ112: ='【1-B】悲観時（機構基準）収支'!Y203 -> 0
C113: =C112+1 -> 2 | E113: ='【1-A-1】標準時収支'!C204 -> 出資金の償還 | H113: ='【1-A-1】標準時収支'!F204 -> 0 | K113: ='【1-A-1】標準時収支'!I204 -> 0 | L113: ='【1-A-1】標準時収支'!J204 -> 0 | M113: ='【1-A-1】標準時収支'!K204 -> 0 | N113: ='【1-A-1】標準時収支'!L204 -> 0 | O113: ='【1-A-1】標準時収支'!M204 -> 0 | P113: ='【1-A-1】標準時収支'!N204 -> 0 | Q113: ='【1-A-1】標準時収支'!O204 -> 0 | R113: ='【1-A-1】標準時収支'!P204 -> 0 | S113: ='【1-A-1】標準時収支'!Q204 -> 0 | T113: ='【1-A-1】標準時収支'!R204 -> 0 | U113: ='【1-A-1】標準時収支'!S204 -> 0 | V113: ='【1-A-1】標準時収支'!T204 -> 0 | W113: ='【1-A-1】標準時収支'!U204 -> 0 | X113: ='【1-A-1】標準時収支'!V204 -> 0 | Y113: ='【1-A-1】標準時収支'!W204 -> 0 | Z113: ='【1-A-1】標準時収支'!X204 -> 0 | AA113: ='【1-A-1】標準時収支'!Y204 -> 0 | AD113: ='【1-B】悲観時（機構基準）収支'!C204 -> 出資金の償還 | AG113: ='【1-B】悲観時（機構基準）収支'!F204 -> 0 | AJ113: ='【1-B】悲観時（機構基準）収支'!I204 -> 0 | AK113: ='【1-B】悲観時（機構基準）収支'!J204 -> 0 | AL113: ='【1-B】悲観時（機構基準）収支'!K204 -> 0 | AM113: ='【1-B】悲観時（機構基準）収支'!L204 -> 0 | AN113: ='【1-B】悲観時（機構基準）収支'!M204 -> 0 | AO113: ='【1-B】悲観時（機構基準）収支'!N204 -> 0 | AP113: ='【1-B】悲観時（機構基準）収支'!O204 -> 0 | AQ113: ='【1-B】悲観時（機構基準）収支'!P204 -> 0 | AR113: ='【1-B】悲観時（機構基準）収支'!Q204 -> 0 | AS113: ='【1-B】悲観時（機構基準）収支'!R204 -> 0 | AT113: ='【1-B】悲観時（機構基準）収支'!S204 -> 0 | AU113: ='【1-B】悲観時（機構基準）収支'!T204 -> 0 | AV113: ='【1-B】悲観時（機構基準）収支'!U204 -> 0 | AW113: ='【1-B】悲観時（機構基準）収支'!V204 -> 0 | AX113: ='【1-B】悲観時（機構基準）収支'!W204 -> 0 | AY113: ='【1-B】悲観時（機構基準）収支'!X204 -> 0 | AZ113: ='【1-B】悲観時（機構基準）収支'!Y204 -> 0
C114: =C113+1 -> 3 | E114: ='【1-A-1】標準時収支'!C205 -> 配当金の受取（清算時配当含む） | H114: ='【1-A-1】標準時収支'!F205 -> 0 | K114: ='【1-A-1】標準時収支'!I205 -> 0 | L114: ='【1-A-1】標準時収支'!J205 -> 0 | M114: ='【1-A-1】標準時収支'!K205 -> 0 | N114: ='【1-A-1】標準時収支'!L205 -> 0 | O114: ='【1-A-1】標準時収支'!M205 -> 0 | P114: ='【1-A-1】標準時収支'!N205 -> 0 | Q114: ='【1-A-1】標準時収支'!O205 -> 0 | R114: ='【1-A-1】標準時収支'!P205 -> 0 | S114: ='【1-A-1】標準時収支'!Q205 -> 0 | T114: ='【1-A-1】標準時収支'!R205 -> 0 | U114: ='【1-A-1】標準時収支'!S205 -> 0 | V114: ='【1-A-1】標準時収支'!T205 -> 0 | W114: ='【1-A-1】標準時収支'!U205 -> 0 | X114: ='【1-A-1】標準時収支'!V205 -> 0 | Y114: ='【1-A-1】標準時収支'!W205 -> 0 | Z114: ='【1-A-1】標準時収支'!X205 -> 0 | AA114: ='【1-A-1】標準時収支'!Y205 -> 0 | AD114: ='【1-B】悲観時（機構基準）収支'!C205 -> 配当金の受取（清算時配当含む） | AG114: ='【1-B】悲観時（機構基準）収支'!F205 -> 0 | AJ114: ='【1-B】悲観時（機構基準）収支'!I205 -> 0 | AK114: ='【1-B】悲観時（機構基準）収支'!J205 -> 0 | AL114: ='【1-B】悲観時（機構基準）収支'!K205 -> 0 | AM114: ='【1-B】悲観時（機構基準）収支'!L205 -> 0 | AN114: ='【1-B】悲観時（機構基準）収支'!M205 -> 0 | AO114: ='【1-B】悲観時（機構基準）収支'!N205 -> 0 | AP114: ='【1-B】悲観時（機構基準）収支'!O205 -> 0 | AQ114: ='【1-B】悲観時（機構基準）収支'!P205 -> 0 | AR114: ='【1-B】悲観時（機構基準）収支'!Q205 -> 0 | AS114: ='【1-B】悲観時（機構基準）収支'!R205 -> 0 | AT114: ='【1-B】悲観時（機構基準）収支'!S205 -> 0 | AU114: ='【1-B】悲観時（機構基準）収支'!T205 -> 0 | AV114: ='【1-B】悲観時（機構基準）収支'!U205 -> 0 | AW114: ='【1-B】悲観時（機構基準）収支'!V205 -> 0 | AX114: ='【1-B】悲観時（機構基準）収支'!W205 -> 0 | AY114: ='【1-B】悲観時（機構基準）収支'!X205 -> 0 | AZ114: ='【1-B】悲観時（機構基準）収支'!Y205 -> 0
C115: =C114+1 -> 4 | D115: ='【1-A-1】標準時収支'!B206 -> EIRR | H115: ='【1-A-1】標準時収支'!F206 ->  | K115: ='【1-A-1】標準時収支'!I206 -> 0 | L115: ='【1-A-1】標準時収支'!J206 -> 0 | M115: ='【1-A-1】標準時収支'!K206 -> 0 | N115: ='【1-A-1】標準時収支'!L206 -> 0 | O115: ='【1-A-1】標準時収支'!M206 -> 0 | P115: ='【1-A-1】標準時収支'!N206 -> 0 | Q115: ='【1-A-1】標準時収支'!O206 -> 0 | R115: ='【1-A-1】標準時収支'!P206 -> 0 | S115: ='【1-A-1】標準時収支'!Q206 -> 0 | T115: ='【1-A-1】標準時収支'!R206 -> 0 | U115: ='【1-A-1】標準時収支'!S206 -> 0 | V115: ='【1-A-1】標準時収支'!T206 -> 0 | W115: ='【1-A-1】標準時収支'!U206 -> 0 | X115: ='【1-A-1】標準時収支'!V206 -> 0 | Y115: ='【1-A-1】標準時収支'!W206 -> 0 | Z115: ='【1-A-1】標準時収支'!X206 -> 0 | AA115: ='【1-A-1】標準時収支'!Y206 -> 0 | AC115: ='【1-B】悲観時（機構基準）収支'!B206 -> EIRR | AG115: ='【1-B】悲観時（機構基準）収支'!F206 ->  | AJ115: ='【1-B】悲観時（機構基準）収支'!I206 -> 0 | AK115: ='【1-B】悲観時（機構基準）収支'!J206 -> 0 | AL115: ='【1-B】悲観時（機構基準）収支'!K206 -> 0 | AM115: ='【1-B】悲観時（機構基準）収支'!L206 -> 0 | AN115: ='【1-B】悲観時（機構基準）収支'!M206 -> 0 | AO115: ='【1-B】悲観時（機構基準）収支'!N206 -> 0 | AP115: ='【1-B】悲観時（機構基準）収支'!O206 -> 0 | AQ115: ='【1-B】悲観時（機構基準）収支'!P206 -> 0 | AR115: ='【1-B】悲観時（機構基準）収支'!Q206 -> 0 | AS115: ='【1-B】悲観時（機構基準）収支'!R206 -> 0 | AT115: ='【1-B】悲観時（機構基準）収支'!S206 -> 0 | AU115: ='【1-B】悲観時（機構基準）収支'!T206 -> 0 | AV115: ='【1-B】悲観時（機構基準）収支'!U206 -> 0 | AW115: ='【1-B】悲観時（機構基準）収支'!V206 -> 0 | AX115: ='【1-B】悲観時（機構基準）収支'!W206 -> 0 | AY115: ='【1-B】悲観時（機構基準）収支'!X206 -> 0 | AZ115: ='【1-B】悲観時（機構基準）収支'!Y206 -> 0
J117: VFM基準 | K117: 4683157.35 | L117: Record.VFM | M117: 0.09037141086 | N117: Target.VFM | O117: =0-(H240-AG145)/AG145 -> 1.013328951 | P117: Value.VFM | Q117: =O117<=M117 -> FALSE | R117: Check.VFM
J118: IRR基準 | K118: 0 | L118: Record.IRR | M118: ='【1-A-2】標準時収支 提案指標'!E8 -> 0 | N118: Target.IRR | O118: =H248 ->  | P118: Value.IRR | Q118: =O118>=M118 ->  | R118: Check.IRR
J119: 機構基準 | K119: ='【1-A-2】標準時収支 提案指標'!E9 -> 0
J120: 追加給付 | K120: =MAX(MIN(K117:K119),0) -> 0 | L120: Min.Additional.Payment
L122: =L124="標準時" -> TRUE | M122: =M124="標準時" -> TRUE | N122: TRUE | O122: TRUE | P122: FALSE | Q122: TRUE | R122: TRUE | S122: TRUE | T122: TRUE | U122: TRUE | V122: TRUE | W122: TRUE | X122: TRUE | Y122: TRUE | Z122: TRUE | AA122: TRUE | AB122: Case.Check
L123: 1 | M123: =L123+1 -> 2 | N123: 3 | O123: 4 | P123: 5 | Q123: 6 | R123: 7 | S123: 8 | T123: 9 | U123: 10 | V123: 11 | W123: 12 | X123: 13 | Y123: 14 | Z123: 15 | AA123: 16
B124: 5 | C124: macro.scenario | I124: 追加給付用フラグ | K124: =IF($B124>=K123,K132,"標準時") -> 標準時 | L124: 標準時 | M124: 標準時 | N124: 標準時 | O124: 標準時 | P124: 悲観時（機構基準） | Q124: 標準時 | R124: 標準時 | S124: 標準時 | T124: 標準時 | U124: 標準時 | V124: 標準時 | W124: 標準時 | X124: 標準時 | Y124: 標準時 | Z124: 標準時 | AA124: 標準時 | AJ124: 2020 | AK124: =AJ124+1 -> 2021 | AL124: =AK124+1 -> 2022 | AM124: 2023 | AN124: 2024 | AO124: 2025 | AP124: 2026 | AQ124: 2027 | AR124: 2028 | AS124: 2029 | AT124: 2030 | AU124: 2031 | AV124: 2032 | AW124: 2033 | AX124: 2034 | AY124: 2035 | AZ124: 2036
AJ125: =K124 -> 標準時 | AK125: =AJ125 -> 標準時 | AL125: =AK125 -> 標準時 | AM125: 標準時 | AN125: 標準時 | AO125: 標準時 | AP125: 標準時 | AQ125: 標準時 | AR125: 標準時 | AS125: 標準時 | AT125: 標準時 | AU125: 標準時 | AV125: 標準時 | AW125: 標準時 | AX125: 標準時 | AY125: 標準時 | AZ125: 標準時
K126: 2020 | L126: =K126+1 -> 2021 | M126: =L126+1 -> 2022 | N126: 2023 | O126: 2024 | P126: 2025 | Q126: 2026 | R126: 2027 | S126: 2028 | T126: 2029 | U126: 2030 | V126: 2031 | W126: 2032 | X126: 2033 | Y126: 2034 | Z126: 2035 | AA126: 2036 | AJ126: =AJ124&AJ125 -> 2020標準時 | AK126: 2021標準時 | AL126: 2022標準時 | AM126: 2023標準時 | AN126: 2024標準時 | AO126: 2025標準時 | AP126: 2026標準時 | AQ126: 2027標準時 | AR126: 2028標準時 | AS126: 2029標準時 | AT126: 2030標準時 | AU126: 2031標準時 | AV126: 2032標準時 | AW126: 2033標準時 | AX126: 2034標準時 | AY126: 2035標準時 | AZ126: 2036標準時
K127: =IF(K128<=macro.scenario,"悲観時（機構基準）","標準時") -> 悲観時（機構基準） | L127: 悲観時（機構基準） | M127: 悲観時（機構基準） | N127: 悲観時（機構基準） | O127: 悲観時（機構基準） | P127: 悲観時（機構基準） | Q127: 標準時 | R127: 標準時 | S127: 標準時 | T127: 標準時 | U127: 標準時 | V127: 標準時 | W127: 標準時 | X127: 標準時 | Y127: 標準時 | Z127: 標準時 | AA127: 標準時 | AJ127: =K17 -> 0 | AK127: 0 | AL127: 0 | AM127: 0 | AN127: 0 | AO127: 0 | AP127: 0 | AQ127: 0 | AR127: 0 | AS127: 0 | AT127: 0 | AU127: 0 | AV127: 0 | AW127: 0 | AX127: 0 | AY127: 0 | AZ127: 0
K128: 0 | L128: =K128+1 -> 1 | M128: 2 | N128: 3 | O128: 4 | P128: 5 | Q128: 6 | R128: 7 | S128: 8 | T128: 9 | U128: 10 | V128: 11 | W128: 12 | X128: 13 | Y128: 14 | Z128: 15 | AA128: 16 | AJ128: =K134/AJ127 ->  | AK128: 1 | AL128: 1 | AM128: 1 | AN128: 1 | AO128: =1-13.5% -> 0.865 | AP128: 1 | AQ128: 1 | AR128: =1-13.5% -> 0.865 | AS128: 1 | AT128: 1 | AU128: 1 | AV128: =1-13.5% -> 0.865 | AW128: 1 | AX128: 1 | AY128: 1 | AZ128: 1
K129: =K126&K127 -> 2020悲観時（機構基準） | L129: 2021悲観時（機構基準） | M129: 2022悲観時（機構基準） | N129: 2023悲観時（機構基準） | O129: 2024悲観時（機構基準） | P129: 2025悲観時（機構基準） | Q129: 2026標準時 | R129: 2027標準時 | S129: 2028標準時 | T129: 2029標準時 | U129: 2030標準時 | V129: 2031標準時 | W129: 2032標準時 | X129: 2033標準時 | Y129: 2034標準時 | Z129: 2035標準時 | AA129: 2036標準時
B130: 追加給付算定 | D130: 損益計算書 | AC130: 損益計算書（PSC）
B131: =B130 -> 追加給付算定 | D131: 事業年度 | H131: 期中合計額 | L131: 2021年度 | M131: 2022年度 | N131: 2023年度 | O131: 2024年度 | P131: 2025年度 | Q131: 2026年度 | R131: 2027年度 | S131: 2028年度 | T131: 2029年度 | U131: 2030年度 | V131: 2031年度 | W131: 2032年度 | X131: 2033年度 | Y131: 2034年度 | Z131: 2035年度 | AA131: 2036年度 | AC131: 事業年度 | AH131: 当初データ | AI131: 当初データ | AJ131: 2020年度 | AK131: 2021年度 | AL131: 2022年度 | AM131: 2023年度 | AN131: 2024年度 | AO131: 2025年度 | AP131: 2026年度 | AQ131: 2027年度 | AR131: 2028年度 | AS131: 2029年度 | AT131: 2030年度 | AU131: 2031年度 | AV131: 2032年度 | AW131: 2033年度 | AX131: 2034年度 | AY131: 2035年度 | AZ131: 2036年度
B132: =B131 -> 追加給付算定 | D132: ケース | K132: ='【1-B】悲観時（機構基準）収支'!I11 -> 標準時 | L132: ='【1-B】悲観時（機構基準）収支'!J11 -> 標準時 | M132: ='【1-B】悲観時（機構基準）収支'!K11 -> 標準時 | N132: ='【1-B】悲観時（機構基準）収支'!L11 -> 標準時 | O132: ='【1-B】悲観時（機構基準）収支'!M11 -> 標準時 | P132: ='【1-B】悲観時（機構基準）収支'!N11 -> 悲観時（機構基準） | Q132: ='【1-B】悲観時（機構基準）収支'!O11 -> 標準時 | R132: ='【1-B】悲観時（機構基準）収支'!P11 -> 標準時 | S132: ='【1-B】悲観時（機構基準）収支'!Q11 -> 悲観時（機構基準） | T132: ='【1-B】悲観時（機構基準）収支'!R11 -> 標準時 | U132: ='【1-B】悲観時（機構基準）収支'!S11 -> 標準時 | V132: ='【1-B】悲観時（機構基準）収支'!T11 -> 標準時 | W132: ='【1-B】悲観時（機構基準）収支'!U11 -> 悲観時（機構基準） | X132: ='【1-B】悲観時（機構基準）収支'!V11 -> 標準時 | Y132: ='【1-B】悲観時（機構基準）収支'!W11 -> 標準時 | Z132: ='【1-B】悲観時（機構基準）収支'!X11 -> 標準時 | AA132: ='【1-B】悲観時（機構基準）収支'!Y11 -> 標準時 | AC132: ケース | AH132: 標準時 | AI132: 標準時 | AJ132: =K132 -> 標準時 | AK132: 標準時 | AL132: 標準時 | AM132: 標準時 | AN132: 標準時 | AO132: 悲観時（機構基準） | AP132: 標準時 | AQ132: 標準時 | AR132: 悲観時（機構基準） | AS132: 標準時 | AT132: 標準時 | AU132: 標準時 | AV132: 悲観時（機構基準） | AW132: 標準時 | AX132: 標準時 | AY132: 標準時 | AZ132: 標準時
B133: 追加給付算定 | C133: 1 | D133: =D16 -> 収入 | E133: 0 | F133: 0 | G133: 0 | H133: =SUM(K133:AA133) -> 0 | K133: =SUM(K134,K140,K146,K152,K158:K160) -> 0 | L133: =SUM(L134,L140,L146,L152,L158:L160) -> 0 | M133: 0 | N133: 0 | O133: 0 | P133: 0 | Q133: 0 | R133: 0 | S133: 0 | T133: 0 | U133: 0 | V133: 0 | W133: 0 | X133: 0 | Y133: 0 | Z133: 0 | AA133: 0 | AC133: 収入 | AJ133: 0 | AK133: =SUM(AK134,AK135,AK136,AK137) -> 39714.2667 | AL133: 298922.5969 | AM133: 298922.5969 | AN133: 298922.5969 | AO133: 267455.5774 | AP133: 298922.5969 | AQ133: 298922.5969 | AR133: 267455.5774 | AS133: 298922.5969 | AT133: 298922.5969 | AU133: 298922.5969 | AV133: 267455.5774 | AW133: 298922.5969 | AX133: 298922.5969 | AY133: 298922.5969 | AZ133: 298922.5969
B134: 追加給付算定 | C134: =C133+1 -> 2 | D134: 0 | E134: 展示収入 | F134: 0 | G134: 0 | H134: 0 | K134: =SUM(K135:K139) -> 0 | L134: =SUM(L135:L139) -> 0 | M134: 0 | N134: 0 | O134: 0 | P134: 0 | Q134: 0 | R134: 0 | S134: 0 | T134: 0 | U134: 0 | V134: 0 | W134: 0 | X134: 0 | Y134: 0 | Z134: 0 | AA134: 0 | AD134: 展示収入 | AH134: 9634.545455 | AI134: 233089.0328 | AJ134: 0 | AK134: =AH134*AK128 -> 9634.545455 | AL134: =$AI134*AL128 -> 233089.0328 | AM134: 233089.0328 | AN134: 233089.0328 | AO134: 201622.0134 | AP134: 233089.0328 | AQ134: 233089.0328 | AR134: 201622.0134 | AS134: 233089.0328 | AT134: 233089.0328 | AU134: 233089.0328 | AV134: 201622.0134 | AW134: 233089.0328 | AX134: 233089.0328 | AY134: 233089.0328 | AZ134: 233089.0328
B135: 追加給付算定 | C135: =C134+1 -> 3 | D135: 0 | E135: 0 | F135: 企画展収入 | G135: 0 | H135: 0 | K135: =INDEX($K$16:$AZ$106,MATCH($C135,$C$16:$C$106,0),MATCH(K$129,$K$9:$AZ$9,0)) -> 0 | L135: 0 | M135: 0 | N135: 0 | O135: 0 | P135: 0 | Q135: 0 | R135: 0 | S135: 0 | T135: 0 | U135: =INDEX($K$16:$AZ$106,MATCH($C135,$C$16:$C$106,0),MATCH(U$129,$K$9:$AZ$9,0)) -> 0 | V135: 0 | W135: 0 | X135: 0 | Y135: 0 | Z135: 0 | AA135: 0 | AD135: 駐車場収入 | AJ135: 0 | AK135: 27817 | AL135: 37090 | AM135: 37090 | AN135: 37090 | AO135: 37090 | AP135: 37090 | AQ135: 37090 | AR135: 37090 | AS135: 37090 | AT135: 37090 | AU135: 37090 | AV135: 37090 | AW135: 37090 | AX135: 37090 | AY135: 37090 | AZ135: 37090
B136: 追加給付算定 | C136: 4 | D136: 0 | E136: 0 | F136: コレクション展収入 | G136: 0 | H136: 0 | K136: 0 | L136: 0 | M136: 0 | N136: 0 | O136: 0 | P136: 0 | Q136: 0 | R136: 0 | S136: 0 | T136: 0 | U136: 0 | V136: 0 | W136: 0 | X136: 0 | Y136: 0 | Z136: 0 | AA136: 0 | AD136: サービス施設収入 | AJ136: 0 | AK136: 1543.541 | AL136: 18522.492 | AM136: 18522.492 | AN136: 18522.492 | AO136: 18522.492 | AP136: 18522.492 | AQ136: 18522.492 | AR136: 18522.492 | AS136: 18522.492 | AT136: 18522.492 | AU136: 18522.492 | AV136: 18522.492 | AW136: 18522.492 | AX136: 18522.492 | AY136: 18522.492 | AZ136: 18522.492
B137: 追加給付算定 | C137: 5 | D137: 0 | E137: 0 | F137: （その他項目名） | G137: 0 | H137: 0 | K137: 0 | L137: 0 | M137: 0 | N137: 0 | O137: 0 | P137: 0 | Q137: 0 | R137: 0 | S137: 0 | T137: 0 | U137: 0 | V137: 0 | W137: 0 | X137: 0 | Y137: 0 | Z137: 0 | AA137: 0 | AD137: その他収入 | AJ137: 0 | AK137: 719.180244 | AL137: 10221.07202 | AM137: 10221.07202 | AN137: 10221.07202 | AO137: 10221.07202 | AP137: 10221.07202 | AQ137: 10221.07202 | AR137: 10221.07202 | AS137: 10221.07202 | AT137: 10221.07202 | AU137: 10221.07202 | AV137: 10221.07202 | AW137: 10221.07202 | AX137: 10221.07202 | AY137: 10221.07202 | AZ137: 10221.07202
B138: 追加給付算定 | C138: 6 | D138: 0 | E138: 0 | F138: （その他項目名） | G138: 0 | H138: 0 | K138: 0 | L138: 0 | M138: 0 | N138: 0 | O138: 0 | P138: 0 | Q138: 0 | R138: 0 | S138: 0 | T138: 0 | U138: 0 | V138: 0 | W138: 0 | X138: 0 | Y138: 0 | Z138: 0 | AA138: 0 | AC138: 費用 | AJ138: 28850 | AK138: 343807 | AL138: 619470.6296 | AM138: 619470.6296 | AN138: 619470.6296 | AO138: 619470.6296 | AP138: 619470.6296 | AQ138: 619470.6296 | AR138: 619470.6296 | AS138: 619470.6296 | AT138: 619470.6296 | AU138: 619470.6296 | AV138: 619470.6296 | AW138: 619470.6296 | AX138: 619470.6296 | AY138: 619470.6296 | AZ138: 619470.6296
B139: 追加給付算定 | C139: 7 | D139: 0 | E139: 0 | F139: （その他項目名） | G139: 0 | H139: 0 | K139: 0 | L139: 0 | M139: 0 | N139: 0 | O139: 0 | P139: 0 | Q139: 0 | R139: 0 | S139: 0 | T139: 0 | U139: 0 | V139: 0 | W139: 0 | X139: 0 | Y139: 0 | Z139: 0 | AA139: 0 | AC139: 当期利益 | AJ139: =AJ133-AJ138 -> -28850 | AK139: =AK133-AK138 -> -304092.7333 | AL139: -320548.0328 | AM139: -320548.0328 | AN139: -320548.0328 | AO139: -352015.0522 | AP139: -320548.0328 | AQ139: -320548.0328 | AR139: -352015.0522 | AS139: -320548.0328 | AT139: -320548.0328 | AU139: -320548.0328 | AV139: -352015.0522 | AW139: -320548.0328 | AX139: -320548.0328 | AY139: -320548.0328 | AZ139: -320548.0328
B140: 追加給付算定 | C140: 8 | D140: 0 | E140: 駐車場収入 | F140: 0 | G140: 0 | H140: 0 | K140: =SUM(K141:K145) -> 0 | L140: =SUM(L141:L145) -> 0 | M140: 0 | N140: 0 | O140: 0 | P140: 0 | Q140: 0 | R140: 0 | S140: 0 | T140: 0 | U140: 0 | V140: 0 | W140: 0 | X140: 0 | Y140: 0 | Z140: 0 | AA140: 0 | AC140: 人件費 | AJ140: 0 | AK140: -2796.4 | AL140: -5697.1 | AM140: -5697.1 | AN140: -5697.1 | AO140: -5697.1 | AP140: -5697.1 | AQ140: -5697.1 | AR140: -5697.1 | AS140: -5697.1 | AT140: -5697.1 | AU140: -5697.1 | AV140: -5697.1 | AW140: -5697.1 | AX140: -5697.1 | AY140: -5697.1 | AZ140: -5697.1
B141: 追加給付算定 | C141: 9 | D141: 0 | E141: 0 | F141: （例）駐車場土地賃貸料 | G141: 0 | H141: 0 | K141: =INDEX($K$16:$AZ$106,MATCH($C141,$C$16:$C$106,0),MATCH(K$129,$K$9:$AZ$9,0)) -> 0 | L141: 0 | M141: 0 | N141: 0 | O141: 0 | P141: 0 | Q141: 0 | R141: 0 | S141: 0 | T141: 0 | U141: =INDEX($K$16:$AZ$106,MATCH($C141,$C$16:$C$106,0),MATCH(U$129,$K$9:$AZ$9,0)) -> 0 | V141: 0 | W141: 0 | X141: 0 | Y141: 0 | Z141: 0 | AA141: 0
B142: 追加給付算定 | C142: 10 | D142: 0 | E142: 0 | F142: （その他項目名） | G142: 0 | H142: 0 | K142: 0 | L142: 0 | M142: 0 | N142: 0 | O142: 0 | P142: 0 | Q142: 0 | R142: 0 | S142: 0 | T142: 0 | U142: 0 | V142: 0 | W142: 0 | X142: 0 | Y142: 0 | Z142: 0 | AA142: 0 | AC142: 従来方式の地独の収支 | AJ142: =AJ139*(1+$H$4)-AJ140 -> -31735 | AK142: -331705.6066 | AL142: -346905.736 | AM142: -346905.736 | AN142: -346905.736 | AO142: -381519.4574 | AP142: -346905.736 | AQ142: -346905.736 | AR142: -381519.4574 | AS142: -346905.736 | AT142: -346905.736 | AU142: -346905.736 | AV142: -381519.4574 | AW142: -346905.736 | AX142: -346905.736 | AY142: -346905.736 | AZ142: -346905.736
B143: 追加給付算定 | C143: 11 | D143: 0 | E143: 0 | F143: （その他項目名） | G143: 0 | H143: 0 | K143: 0 | L143: 0 | M143: 0 | N143: 0 | O143: 0 | P143: 0 | Q143: 0 | R143: 0 | S143: 0 | T143: 0 | U143: 0 | V143: 0 | W143: 0 | X143: 0 | Y143: 0 | Z143: 0 | AA143: 0 | AC143: リスク調整費 | AJ143: 0 | AK143: -6630 | AL143: -8840 | AM143: -8840 | AN143: -8840 | AO143: -8840 | AP143: -8840 | AQ143: -8840 | AR143: -8840 | AS143: -8840 | AT143: -8840 | AU143: -8840 | AV143: -8840 | AW143: -8840 | AX143: -8840 | AY143: -8840 | AZ143: -8840
B144: 追加給付算定 | C144: 12 | D144: 0 | E144: 0 | F144: （その他項目名） | G144: 0 | H144: 0 | K144: 0 | L144: 0 | M144: 0 | N144: 0 | O144: 0 | P144: 0 | Q144: 0 | R144: 0 | S144: 0 | T144: 0 | U144: 0 | V144: 0 | W144: 0 | X144: 0 | Y144: 0 | Z144: 0 | AA144: 0 | AC144: リスク調整後の地独の収支 | AG144: =SUM(AH144:AZ144) -> -5810097.811 | AH144: 0 | AI144: 0 | AJ144: =SUM(AJ142:AJ143) -> -31735 | AK144: -338335.6066 | AL144: -355745.736 | AM144: -355745.736 | AN144: -355745.736 | AO144: -390359.4574 | AP144: -355745.736 | AQ144: -355745.736 | AR144: -390359.4574 | AS144: -355745.736 | AT144: -355745.736 | AU144: -355745.736 | AV144: -390359.4574 | AW144: -355745.736 | AX144: -355745.736 | AY144: -355745.736 | AZ144: -355745.736
B145: 追加給付算定 | C145: 13 | D145: 0 | E145: 0 | F145: （その他項目名） | G145: 0 | H145: 0 | K145: 0 | L145: 0 | M145: 0 | N145: 0 | O145: 0 | P145: 0 | Q145: 0 | R145: 0 | S145: 0 | T145: 0 | U145: 0 | V145: 0 | W145: 0 | X145: 0 | Y145: 0 | Z145: 0 | AA145: 0 | AC145: 公共負担額 | AG145: =0-NPV(H5,AH144:AZ144) -> 4648536.681
B146: 追加給付算定 | C146: 14 | D146: 0 | E146: サービス施設収入 | F146: 0 | G146: 0 | H146: 0 | K146: =SUM(K147:K151) -> 0 | L146: =SUM(L147:L151) -> 0 | M146: 0 | N146: 0 | O146: 0 | P146: 0 | Q146: 0 | R146: 0 | S146: 0 | T146: 0 | U146: 0 | V146: 0 | W146: 0 | X146: 0 | Y146: 0 | Z146: 0 | AA146: 0
B147: 追加給付算定 | C147: 15 | D147: 0 | E147: 0 | F147: （例）レストランテナント料 | G147: 0 | H147: 0 | K147: =INDEX($K$16:$AZ$106,MATCH($C147,$C$16:$C$106,0),MATCH(K$129,$K$9:$AZ$9,0)) -> 0 | L147: 0 | M147: 0 | N147: 0 | O147: 0 | P147: 0 | Q147: 0 | R147: 0 | S147: 0 | T147: 0 | U147: =INDEX($K$16:$AZ$106,MATCH($C147,$C$16:$C$106,0),MATCH(U$129,$K$9:$AZ$9,0)) -> 0 | V147: 0 | W147: 0 | X147: 0 | Y147: 0 | Z147: 0 | AA147: 0
B148: 追加給付算定 | C148: 16 | D148: 0 | E148: 0 | F148: （その他項目名） | G148: 0 | H148: 0 | K148: 0 | L148: 0 | M148: 0 | N148: 0 | O148: 0 | P148: 0 | Q148: 0 | R148: 0 | S148: 0 | T148: 0 | U148: 0 | V148: 0 | W148: 0 | X148: 0 | Y148: 0 | Z148: 0 | AA148: 0
B149: 追加給付算定 | C149: 17 | D149: 0 | E149: 0 | F149: （その他項目名） | G149: 0 | H149: 0 | K149: 0 | L149: 0 | M149: 0 | N149: 0 | O149: 0 | P149: 0 | Q149: 0 | R149: 0 | S149: 0 | T149: 0 | U149: 0 | V149: 0 | W149: 0 | X149: 0 | Y149: 0 | Z149: 0 | AA149: 0
B150: 追加給付算定 | C150: 18 | D150: 0 | E150: 0 | F150: （その他項目名） | G150: 0 | H150: 0 | K150: 0 | L150: 0 | M150: 0 | N150: 0 | O150: 0 | P150: 0 | Q150: 0 | R150: 0 | S150: 0 | T150: 0 | U150: 0 | V150: 0 | W150: 0 | X150: 0 | Y150: 0 | Z150: 0 | AA150: 0
B151: 追加給付算定 | C151: 19 | D151: 0 | E151: 0 | F151: （その他項目名） | G151: 0 | H151: 0 | K151: 0 | L151: 0 | M151: 0 | N151: 0 | O151: 0 | P151: 0 | Q151: 0 | R151: 0 | S151: 0 | T151: 0 | U151: 0 | V151: 0 | W151: 0 | X151: 0 | Y151: 0 | Z151: 0 | AA151: 0
B152: 追加給付算定 | C152: 20 | D152: 0 | E152: その他収入 | F152: 0 | G152: 0 | H152: 0 | K152: =SUM(K153:K157) -> 0 | L152: =SUM(L153:L157) -> 0 | M152: 0 | N152: 0 | O152: 0 | P152: 0 | Q152: 0 | R152: 0 | S152: 0 | T152: 0 | U152: 0 | V152: 0 | W152: 0 | X152: 0 | Y152: 0 | Z152: 0 | AA152: 0
B153: 追加給付算定 | C153: 21 | D153: =D36 -> 0 | E153: 0 | F153: （その他項目名） | G153: 0 | H153: 0 | K153: =INDEX($K$16:$AZ$106,MATCH($C153,$C$16:$C$106,0),MATCH(K$129,$K$9:$AZ$9,0)) -> 0 | L153: 0 | M153: 0 | N153: 0 | O153: 0 | P153: 0 | Q153: 0 | R153: 0 | S153: 0 | T153: 0 | U153: =INDEX($K$16:$AZ$106,MATCH($C153,$C$16:$C$106,0),MATCH(U$129,$K$9:$AZ$9,0)) -> 0 | V153: 0 | W153: 0 | X153: 0 | Y153: 0 | Z153: 0 | AA153: 0
B154: 追加給付算定 | C154: 22 | D154: 0 | E154: 0 | F154: （その他項目名） | G154: 0 | H154: 0 | K154: 0 | L154: 0 | M154: 0 | N154: 0 | O154: 0 | P154: 0 | Q154: 0 | R154: 0 | S154: 0 | T154: 0 | U154: 0 | V154: 0 | W154: 0 | X154: 0 | Y154: 0 | Z154: 0 | AA154: 0
B155: 追加給付算定 | C155: 23 | D155: 0 | E155: 0 | F155: （その他項目名） | G155: 0 | H155: 0 | K155: 0 | L155: 0 | M155: 0 | N155: 0 | O155: 0 | P155: 0 | Q155: 0 | R155: 0 | S155: 0 | T155: 0 | U155: 0 | V155: 0 | W155: 0 | X155: 0 | Y155: 0 | Z155: 0 | AA155: 0
B156: 追加給付算定 | C156: 24 | D156: 0 | E156: 0 | F156: （その他項目名） | G156: 0 | H156: 0 | K156: 0 | L156: 0 | M156: 0 | N156: 0 | O156: 0 | P156: 0 | Q156: 0 | R156: 0 | S156: 0 | T156: 0 | U156: 0 | V156: 0 | W156: 0 | X156: 0 | Y156: 0 | Z156: 0 | AA156: 0
B157: 追加給付算定 | C157: 25 | D157: 0 | E157: 0 | F157: （その他項目名） | G157: 0 | H157: 0 | K157: 0 | L157: 0 | M157: 0 | N157: 0 | O157: 0 | P157: 0 | Q157: 0 | R157: 0 | S157: 0 | T157: 0 | U157: 0 | V157: 0 | W157: 0 | X157: 0 | Y157: 0 | Z157: 0 | AA157: 0
B158: 追加給付算定 | C158: 26 | D158: 0 | E158: 当初想定するサービス対価 | F158: 0 | G158: 0 | H158: 0 | K158: 0 | L158: 0 | M158: 0 | N158: 0 | O158: 0 | P158: 0 | Q158: 0 | R158: 0 | S158: 0 | T158: 0 | U158: 0 | V158: 0 | W158: 0 | X158: 0 | Y158: 0 | Z158: 0 | AA158: 0
B159: 追加給付算定 | C159: 27 | D159: 0 | E159: 納付相当額 | F159: 0 | G159: 0 | H159: 0 | K159: 0 | L159: 0 | M159: 0 | N159: 0 | O159: 0 | P159: 0 | Q159: 0 | R159: 0 | S159: 0 | T159: 0 | U159: 0 | V159: 0 | W159: 0 | X159: 0 | Y159: 0 | Z159: 0 | AA159: 0
B160: 追加給付算定 | C160: 28 | D160: 0 | E160: 追加給付額 | F160: 0 | G160: 0 | H160: 0 | K160: 0 | L160: 0 | M160: 0 | N160: 0 | O160: 0 | P160: 0 | Q160: 0 | R160: 0 | S160: 0 | T160: 0 | U160: 0 | V160: 0 | W160: 0 | X160: 0 | Y160: 0 | Z160: 0 | AA160: 0 | AB160: Additional.Payment
B161: 追加給付算定 | C161: 29 | D161: 費用 | E161: 0 | F161: 0 | G161: 0 | H161: 0 | K161: =SUM(K162,K173,K200) -> 0 | L161: =SUM(L162,L173,L200) -> 0 | M161: 0 | N161: 0 | O161: 0 | P161: 0 | Q161: 0 | R161: 0 | S161: 0 | T161: 0 | U161: 0 | V161: 0 | W161: 0 | X161: 0 | Y161: 0 | Z161: 0 | AA161: 0
B162: 追加給付算定 | C162: 30 | D162: 0 | E162: 事業費 | F162: 0 | G162: 0 | H162: 0 | K162: =SUM(K163:K172) -> 0 | L162: =SUM(L163:L172) -> 0 | M162: 0 | N162: 0 | O162: 0 | P162: 0 | Q162: 0 | R162: 0 | S162: 0 | T162: 0 | U162: 0 | V162: 0 | W162: 0 | X162: 0 | Y162: 0 | Z162: 0 | AA162: 0
B163: 追加給付算定 | C163: 31 | D163: 0 | E163: 0 | F163: 展示事業費 | G163: 0 | H163: 0 | K163: =INDEX($K$16:$AZ$106,MATCH($C163,$C$16:$C$106,0),MATCH(K$129,$K$9:$AZ$9,0)) -> 0 | L163: 0 | M163: 0 | N163: 0 | O163: 0 | P163: 0 | Q163: 0 | R163: 0 | S163: 0 | T163: 0 | U163: =INDEX($K$16:$AZ$106,MATCH($C163,$C$16:$C$106,0),MATCH(U$129,$K$9:$AZ$9,0)) -> 0 | V163: 0 | W163: 0 | X163: 0 | Y163: 0 | Z163: 0 | AA163: 0
B164: 追加給付算定 | C164: 32 | D164: 0 | E164: 0 | F164: 事務 | G164: 0 | H164: 0 | K164: 0 | L164: 0 | M164: 0 | N164: 0 | O164: 0 | P164: 0 | Q164: 0 | R164: 0 | S164: 0 | T164: 0 | U164: 0 | V164: 0 | W164: 0 | X164: 0 | Y164: 0 | Z164: 0 | AA164: 0
B165: 追加給付算定 | C165: 33 | D165: 0 | E165: 0 | F165: 教育普及費 | G165: 0 | H165: 0 | K165: 0 | L165: 0 | M165: 0 | N165: 0 | O165: 0 | P165: 0 | Q165: 0 | R165: 0 | S165: 0 | T165: 0 | U165: 0 | V165: 0 | W165: 0 | X165: 0 | Y165: 0 | Z165: 0 | AA165: 0
B166: 追加給付算定 | C166: 34 | D166: 0 | E166: 0 | F166: 渉外 | G166: 0 | H166: 0 | K166: 0 | L166: 0 | M166: 0 | N166: 0 | O166: 0 | P166: 0 | Q166: 0 | R166: 0 | S166: 0 | T166: 0 | U166: 0 | V166: 0 | W166: 0 | X166: 0 | Y166: 0 | Z166: 0 | AA166: 0
B167: 追加給付算定 | C167: 35 | D167: 0 | E167: 0 | F167: （その他項目名） | G167: 0 | H167: 0 | K167: 0 | L167: 0 | M167: 0 | N167: 0 | O167: 0 | P167: 0 | Q167: 0 | R167: 0 | S167: 0 | T167: 0 | U167: 0 | V167: 0 | W167: 0 | X167: 0 | Y167: 0 | Z167: 0 | AA167: 0
B168: 追加給付算定 | C168: 36 | D168: 0 | E168: 0 | F168: （その他項目名） | G168: 0 | H168: 0 | K168: 0 | L168: 0 | M168: 0 | N168: 0 | O168: 0 | P168: 0 | Q168: 0 | R168: 0 | S168: 0 | T168: 0 | U168: 0 | V168: 0 | W168: 0 | X168: 0 | Y168: 0 | Z168: 0 | AA168: 0
B169: 追加給付算定 | C169: 37 | D169: 0 | E169: 0 | F169: （その他項目名） | G169: 0 | H169: 0 | K169: 0 | L169: 0 | M169: 0 | N169: 0 | O169: 0 | P169: 0 | Q169: 0 | R169: 0 | S169: 0 | T169: 0 | U169: 0 | V169: 0 | W169: 0 | X169: 0 | Y169: 0 | Z169: 0 | AA169: 0
B170: 追加給付算定 | C170: 38 | D170: 0 | E170: 0 | F170: （その他項目名） | G170: 0 | H170: 0 | K170: 0 | L170: 0 | M170: 0 | N170: 0 | O170: 0 | P170: 0 | Q170: 0 | R170: 0 | S170: 0 | T170: 0 | U170: 0 | V170: 0 | W170: 0 | X170: 0 | Y170: 0 | Z170: 0 | AA170: 0
B171: 追加給付算定 | C171: 39 | D171: 0 | E171: 0 | F171: （その他項目名） | G171: 0 | H171: 0 | K171: 0 | L171: 0 | M171: 0 | N171: 0 | O171: 0 | P171: 0 | Q171: 0 | R171: 0 | S171: 0 | T171: 0 | U171: 0 | V171: 0 | W171: 0 | X171: 0 | Y171: 0 | Z171: 0 | AA171: 0
B172: 追加給付算定 | C172: 40 | D172: 0 | E172: 0 | F172: （その他項目名） | G172: 0 | H172: 0 | K172: 0 | L172: 0 | M172: 0 | N172: 0 | O172: 0 | P172: 0 | Q172: 0 | R172: 0 | S172: 0 | T172: 0 | U172: 0 | V172: 0 | W172: 0 | X172: 0 | Y172: 0 | Z172: 0 | AA172: 0
B173: 追加給付算定 | C173: 41 | D173: =D56 -> 0 | E173: 維持管理費 | F173: 0 | G173: 0 | H173: 0 | K173: =SUM(K174,K183,K189:K199) -> 0 | L173: =SUM(L174,L183,L189:L199) -> 0 | M173: 0 | N173: 0 | O173: 0 | P173: 0 | Q173: 0 | R173: 0 | S173: 0 | T173: 0 | U173: 0 | V173: 0 | W173: 0 | X173: 0 | Y173: 0 | Z173: 0 | AA173: 0
B174: 追加給付算定 | C174: 42 | D174: 0 | E174: 0 | F174: 施設管理費 | G174: 0 | H174: 0 | K174: =SUM(K175:K182) -> 0 | L174: =SUM(L175:L182) -> 0 | M174: 0 | N174: 0 | O174: 0 | P174: 0 | Q174: 0 | R174: 0 | S174: 0 | T174: 0 | U174: 0 | V174: 0 | W174: 0 | X174: 0 | Y174: 0 | Z174: 0 | AA174: 0
B175: 追加給付算定 | C175: 43 | D175: 0 | E175: 0 | F175: 0 | G175: 設備管理・保守費 | H175: 0 | K175: =INDEX($K$16:$AZ$106,MATCH($C175,$C$16:$C$106,0),MATCH(K$129,$K$9:$AZ$9,0)) -> 0 | L175: 0 | M175: 0 | N175: 0 | O175: 0 | P175: 0 | Q175: 0 | R175: 0 | S175: 0 | T175: 0 | U175: =INDEX($K$16:$AZ$106,MATCH($C175,$C$16:$C$106,0),MATCH(U$129,$K$9:$AZ$9,0)) -> 0 | V175: 0 | W175: 0 | X175: 0 | Y175: 0 | Z175: 0 | AA175: 0
B176: 追加給付算定 | C176: 44 | D176: 0 | E176: 0 | F176: 0 | G176: 警備費 | H176: 0 | K176: 0 | L176: 0 | M176: 0 | N176: 0 | O176: 0 | P176: 0 | Q176: 0 | R176: 0 | S176: 0 | T176: 0 | U176: 0 | V176: 0 | W176: 0 | X176: 0 | Y176: 0 | Z176: 0 | AA176: 0
B177: 追加給付算定 | C177: 45 | D177: 0 | E177: 0 | F177: 0 | G177: 清掃費 | H177: 0 | K177: 0 | L177: 0 | M177: 0 | N177: 0 | O177: 0 | P177: 0 | Q177: 0 | R177: 0 | S177: 0 | T177: 0 | U177: 0 | V177: 0 | W177: 0 | X177: 0 | Y177: 0 | Z177: 0 | AA177: 0
B178: 追加給付算定 | C178: 46 | D178: 0 | E178: 0 | F178: 0 | G178: 建物修繕費 | H178: 0 | K178: 0 | L178: 0 | M178: 0 | N178: 0 | O178: 0 | P178: 0 | Q178: 0 | R178: 0 | S178: 0 | T178: 0 | U178: 0 | V178: 0 | W178: 0 | X178: 0 | Y178: 0 | Z178: 0 | AA178: 0
B179: 追加給付算定 | C179: 47 | D179: 0 | E179: 0 | F179: 0 | G179: （その他項目名） | H179: 0 | K179: 0 | L179: 0 | M179: 0 | N179: 0 | O179: 0 | P179: 0 | Q179: 0 | R179: 0 | S179: 0 | T179: 0 | U179: 0 | V179: 0 | W179: 0 | X179: 0 | Y179: 0 | Z179: 0 | AA179: 0
B180: 追加給付算定 | C180: 48 | D180: 0 | E180: 0 | F180: 0 | G180: （その他項目名） | H180: 0 | K180: 0 | L180: 0 | M180: 0 | N180: 0 | O180: 0 | P180: 0 | Q180: 0 | R180: 0 | S180: 0 | T180: 0 | U180: 0 | V180: 0 | W180: 0 | X180: 0 | Y180: 0 | Z180: 0 | AA180: 0
B181: 追加給付算定 | C181: 49 | D181: 0 | E181: 0 | F181: 0 | G181: （その他項目名） | H181: 0 | K181: 0 | L181: 0 | M181: 0 | N181: 0 | O181: 0 | P181: 0 | Q181: 0 | R181: 0 | S181: 0 | T181: 0 | U181: 0 | V181: 0 | W181: 0 | X181: 0 | Y181: 0 | Z181: 0 | AA181: 0
B182: 追加給付算定 | C182: 50 | D182: 0 | E182: 0 | F182: 0 | G182: （その他項目名） | H182: 0 | K182: 0 | L182: 0 | M182: 0 | N182: 0 | O182: 0 | P182: 0 | Q182: 0 | R182: 0 | S182: 0 | T182: 0 | U182: 0 | V182: 0 | W182: 0 | X182: 0 | Y182: 0 | Z182: 0 | AA182: 0
B183: 追加給付算定 | C183: 51 | D183: 0 | E183: 0 | F183: 光熱水費 | G183: 0 | H183: 0 | K183: =SUM(K184:K188) -> 0 | L183: =SUM(L184:L188) -> 0 | M183: 0 | N183: 0 | O183: 0 | P183: 0 | Q183: 0 | R183: 0 | S183: 0 | T183: 0 | U183: 0 | V183: 0 | W183: 0 | X183: 0 | Y183: 0 | Z183: 0 | AA183: 0
B184: 追加給付算定 | C184: 52 | D184: 0 | E184: 0 | F184: 0 | G184: 地域冷暖房費 | H184: 0 | K184: =INDEX($K$16:$AZ$106,MATCH($C184,$C$16:$C$106,0),MATCH(K$129,$K$9:$AZ$9,0)) -> 0 | L184: 0 | M184: 0 | N184: 0 | O184: 0 | P184: 0 | Q184: 0 | R184: 0 | S184: 0 | T184: 0 | U184: =INDEX($K$16:$AZ$106,MATCH($C184,$C$16:$C$106,0),MATCH(U$129,$K$9:$AZ$9,0)) -> 0 | V184: 0 | W184: 0 | X184: 0 | Y184: 0 | Z184: 0 | AA184: 0
B185: 追加給付算定 | C185: 53 | D185: 0 | E185: 0 | F185: 0 | G185: （その他項目名） | H185: 0 | K185: 0 | L185: 0 | M185: 0 | N185: 0 | O185: 0 | P185: 0 | Q185: 0 | R185: 0 | S185: 0 | T185: 0 | U185: 0 | V185: 0 | W185: 0 | X185: 0 | Y185: 0 | Z185: 0 | AA185: 0
B186: 追加給付算定 | C186: 54 | D186: 0 | E186: 0 | F186: 0 | G186: （その他項目名） | H186: 0 | K186: 0 | L186: 0 | M186: 0 | N186: 0 | O186: 0 | P186: 0 | Q186: 0 | R186: 0 | S186: 0 | T186: 0 | U186: 0 | V186: 0 | W186: 0 | X186: 0 | Y186: 0 | Z186: 0 | AA186: 0
B187: 追加給付算定 | C187: 55 | D187: 0 | E187: 0 | F187: 0 | G187: （その他項目名） | H187: 0 | K187: 0 | L187: 0 | M187: 0 | N187: 0 | O187: 0 | P187: 0 | Q187: 0 | R187: 0 | S187: 0 | T187: 0 | U187: 0 | V187: 0 | W187: 0 | X187: 0 | Y187: 0 | Z187: 0 | AA187: 0
B188: 追加給付算定 | C188: 56 | D188: 0 | E188: 0 | F188: 0 | G188: （その他項目名） | H188: 0 | K188: 0 | L188: 0 | M188: 0 | N188: 0 | O188: 0 | P188: 0 | Q188: 0 | R188: 0 | S188: 0 | T188: 0 | U188: 0 | V188: 0 | W188: 0 | X188: 0 | Y188: 0 | Z188: 0 | AA188: 0
B189: 追加給付算定 | C189: 57 | D189: 0 | E189: 0 | F189: 調査研究費 | G189: 0 | H189: 0 | K189: 0 | L189: 0 | M189: 0 | N189: 0 | O189: 0 | P189: 0 | Q189: 0 | R189: 0 | S189: 0 | T189: 0 | U189: 0 | V189: 0 | W189: 0 | X189: 0 | Y189: 0 | Z189: 0 | AA189: 0
B190: 追加給付算定 | C190: 58 | D190: 0 | E190: 0 | F190: 収集・保管費 | G190: 0 | H190: 0 | K190: 0 | L190: 0 | M190: 0 | N190: 0 | O190: 0 | P190: 0 | Q190: 0 | R190: 0 | S190: 0 | T190: 0 | U190: 0 | V190: 0 | W190: 0 | X190: 0 | Y190: 0 | Z190: 0 | AA190: 0
B191: 追加給付算定 | C191: 59 | D191: 0 | E191: 0 | F191: 教育普及費 | G191: 0 | H191: 0 | K191: 0 | L191: 0 | M191: 0 | N191: 0 | O191: 0 | P191: 0 | Q191: 0 | R191: 0 | S191: 0 | T191: 0 | U191: 0 | V191: 0 | W191: 0 | X191: 0 | Y191: 0 | Z191: 0 | AA191: 0
B192: 追加給付算定 | C192: 60 | D192: 0 | E192: 0 | F192: アーカイブ及び記録・管理費 | G192: 0 | H192: 0 | K192: 0 | L192: 0 | M192: 0 | N192: 0 | O192: 0 | P192: 0 | Q192: 0 | R192: 0 | S192: 0 | T192: 0 | U192: 0 | V192: 0 | W192: 0 | X192: 0 | Y192: 0 | Z192: 0 | AA192: 0
B193: 追加給付算定 | C193: 61 | D193: =D76 -> 0 | E193: 0 | F193: 事務 | G193: 0 | H193: 0 | K193: 0 | L193: 0 | M193: 0 | N193: 0 | O193: 0 | P193: 0 | Q193: 0 | R193: 0 | S193: 0 | T193: 0 | U193: 0 | V193: 0 | W193: 0 | X193: 0 | Y193: 0 | Z193: 0 | AA193: 0
B194: 追加給付算定 | C194: 62 | D194: 0 | E194: 0 | F194: 渉外 | G194: 0 | H194: 0 | K194: =INDEX($K$16:$AZ$106,MATCH($C194,$C$16:$C$106,0),MATCH(K$129,$K$9:$AZ$9,0)) -> 0 | L194: 0 | M194: 0 | N194: 0 | O194: 0 | P194: 0 | Q194: 0 | R194: 0 | S194: 0 | T194: 0 | U194: =INDEX($K$16:$AZ$106,MATCH($C194,$C$16:$C$106,0),MATCH(U$129,$K$9:$AZ$9,0)) -> 0 | V194: 0 | W194: 0 | X194: 0 | Y194: 0 | Z194: 0 | AA194: 0
B195: 追加給付算定 | C195: 63 | D195: 0 | E195: 0 | F195: （その他項目名） | G195: 0 | H195: 0 | K195: 0 | L195: 0 | M195: 0 | N195: 0 | O195: 0 | P195: 0 | Q195: 0 | R195: 0 | S195: 0 | T195: 0 | U195: 0 | V195: 0 | W195: 0 | X195: 0 | Y195: 0 | Z195: 0 | AA195: 0
B196: =B195 -> 追加給付算定 | C196: 64 | D196: 0 | E196: 0 | F196: （その他項目名） | G196: 0 | H196: 0 | K196: 0 | L196: 0 | M196: 0 | N196: 0 | O196: 0 | P196: 0 | Q196: 0 | R196: 0 | S196: 0 | T196: 0 | U196: 0 | V196: 0 | W196: 0 | X196: 0 | Y196: 0 | Z196: 0 | AA196: 0
B197: 追加給付算定 | C197: 65 | D197: 0 | E197: 0 | F197: （その他項目名） | G197: 0 | H197: =SUM(K197:AA197) -> 0 | K197: 0 | L197: 0 | M197: 0 | N197: 0 | O197: 0 | P197: 0 | Q197: 0 | R197: 0 | S197: 0 | T197: 0 | U197: 0 | V197: 0 | W197: 0 | X197: 0 | Y197: 0 | Z197: 0 | AA197: 0
B198: 追加給付算定 | C198: 66 | D198: 0 | E198: 0 | F198: （その他項目名） | G198: 0 | H198: 0 | K198: 0 | L198: 0 | M198: 0 | N198: 0 | O198: 0 | P198: 0 | Q198: 0 | R198: 0 | S198: 0 | T198: 0 | U198: 0 | V198: 0 | W198: 0 | X198: 0 | Y198: 0 | Z198: 0 | AA198: 0
B199: 追加給付算定 | C199: =C198+1 -> 67 | D199: 0 | E199: 0 | F199: （その他項目名） | G199: 0 | H199: 0 | K199: 0 | L199: 0 | M199: 0 | N199: 0 | O199: 0 | P199: 0 | Q199: 0 | R199: 0 | S199: 0 | T199: 0 | U199: 0 | V199: 0 | W199: 0 | X199: 0 | Y199: 0 | Z199: 0 | AA199: 0
B200: 追加給付算定 | C200: 68 | D200: 0 | E200: （その他） | F200: 0 | G200: 0 | H200: 0 | K200: =SUM(K201:K205) -> 0 | L200: =SUM(L201:L205) -> 0 | M200: 0 | N200: 0 | O200: 0 | P200: 0 | Q200: 0 | R200: 0 | S200: 0 | T200: 0 | U200: 0 | V200: 0 | W200: 0 | X200: 0 | Y200: 0 | Z200: 0 | AA200: 0
B201: 追加給付算定 | C201: 69 | D201: 0 | E201: 0 | F201: （その他項目名） | G201: 0 | H201: 0 | K201: =INDEX($K$16:$AZ$106,MATCH($C201,$C$16:$C$106,0),MATCH(K$129,$K$9:$AZ$9,0)) -> 0 | L201: 0 | M201: 0 | N201: 0 | O201: 0 | P201: 0 | Q201: 0 | R201: 0 | S201: 0 | T201: 0 | U201: =INDEX($K$16:$AZ$106,MATCH($C201,$C$16:$C$106,0),MATCH(U$129,$K$9:$AZ$9,0)) -> 0 | V201: 0 | W201: 0 | X201: 0 | Y201: 0 | Z201: 0 | AA201: 0
B202: 追加給付算定 | C202: 70 | D202: 0 | E202: 0 | F202: （その他項目名） | G202: 0 | H202: 0 | K202: 0 | L202: 0 | M202: 0 | N202: 0 | O202: 0 | P202: 0 | Q202: 0 | R202: 0 | S202: 0 | T202: 0 | U202: 0 | V202: 0 | W202: 0 | X202: 0 | Y202: 0 | Z202: 0 | AA202: 0
B203: 追加給付算定 | C203: 71 | D203: 0 | E203: 0 | F203: （その他項目名） | G203: 0 | H203: 0 | K203: 0 | L203: 0 | M203: 0 | N203: 0 | O203: 0 | P203: 0 | Q203: 0 | R203: 0 | S203: 0 | T203: 0 | U203: 0 | V203: 0 | W203: 0 | X203: 0 | Y203: 0 | Z203: 0 | AA203: 0
B204: 追加給付算定 | C204: 72 | D204: 0 | E204: 0 | F204: （その他項目名） | G204: 0 | H204: 0 | K204: 0 | L204: 0 | M204: 0 | N204: 0 | O204: 0 | P204: 0 | Q204: 0 | R204: 0 | S204: 0 | T204: 0 | U204: 0 | V204: 0 | W204: 0 | X204: 0 | Y204: 0 | Z204: 0 | AA204: 0
B205: 追加給付算定 | C205: 73 | D205: 0 | E205: 0 | F205: （その他項目名） | G205: 0 | H205: 0 | K205: 0 | L205: 0 | M205: 0 | N205: 0 | O205: 0 | P205: 0 | Q205: 0 | R205: 0 | S205: 0 | T205: 0 | U205: 0 | V205: 0 | W205: 0 | X205: 0 | Y205: 0 | Z205: 0 | AA205: 0
... 43 more rows

Sheet 追加給付算定 (事業者基準) (hidden)
D1: 前提条件
G2: 法人市民税率 | H2: 0.02660242821
G3: 法人税率 | H3: 0.296
G4: 消費税率 | H4: 0.1
G5: 割引率 | H5: 0.02
K8: 2020 | L8: =K8+1 -> 2021 | M8: =L8+1 -> 2022 | N8: 2023 | O8: 2024 | P8: 2025 | Q8: 2026 | R8: 2027 | S8: 2028 | T8: 2029 | U8: 2030 | V8: 2031 | W8: 2032 | X8: 2033 | Y8: 2034 | Z8: 2035 | AA8: 2036 | AJ8: 2020 | AK8: =AJ8+1 -> 2021 | AL8: =AK8+1 -> 2022 | AM8: 2023 | AN8: 2024 | AO8: 2025 | AP8: 2026 | AQ8: 2027 | AR8: 2028 | AS8: 2029 | AT8: 2030 | AU8: 2031 | AV8: 2032 | AW8: 2033 | AX8: 2034 | AY8: 2035 | AZ8: 2036
K9: =K8&K10 -> 2020標準時 | L9: =L8&L10 -> 2021標準時 | M9: 2022標準時 | N9: 2023標準時 | O9: 2024標準時 | P9: 2025標準時 | Q9: 2026標準時 | R9: 2027標準時 | S9: 2028標準時 | T9: 2029標準時 | U9: 2030標準時 | V9: 2031標準時 | W9: 2032標準時 | X9: 2033標準時 | Y9: 2034標準時 | Z9: 2035標準時 | AA9: 2036標準時 | AJ9: =AJ8&AJ10 -> 2020悲観時（事業者基準） | AK9: =AK8&AK10 -> 2021悲観時（事業者基準） | AL9: 2022悲観時（事業者基準） | AM9: 2023悲観時（事業者基準） | AN9: 2024悲観時（事業者基準） | AO9: 2025悲観時（事業者基準） | AP9: 2026悲観時（事業者基準） | AQ9: 2027悲観時（事業者基準） | AR9: 2028悲観時（事業者基準） | AS9: 2029悲観時（事業者基準） | AT9: 2030悲観時（事業者基準） | AU9: 2031悲観時（事業者基準） | AV9: 2032悲観時（事業者基準） | AW9: 2033悲観時（事業者基準） | AX9: 2034悲観時（事業者基準） | AY9: 2035悲観時（事業者基準） | AZ9: 2036悲観時（事業者基準）
K10: 標準時 | L10: =K10 -> 標準時 | M10: =L10 -> 標準時 | N10: 標準時 | O10: 標準時 | P10: 標準時 | Q10: 標準時 | R10: 標準時 | S10: 標準時 | T10: 標準時 | U10: 標準時 | V10: 標準時 | W10: 標準時 | X10: 標準時 | Y10: 標準時 | Z10: 標準時 | AA10: 標準時 | AJ10: 悲観時（事業者基準） | AK10: =AJ10 -> 悲観時（事業者基準） | AL10: =AK10 -> 悲観時（事業者基準） | AM10: 悲観時（事業者基準） | AN10: 悲観時（事業者基準） | AO10: 悲観時（事業者基準） | AP10: 悲観時（事業者基準） | AQ10: 悲観時（事業者基準） | AR10: 悲観時（事業者基準） | AS10: 悲観時（事業者基準） | AT10: 悲観時（事業者基準） | AU10: 悲観時（事業者基準） | AV10: 悲観時（事業者基準） | AW10: 悲観時（事業者基準） | AX10: 悲観時（事業者基準） | AY10: 悲観時（事業者基準） | AZ10: 悲観時（事業者基準）
D11: ='【1-A-1】標準時収支'!B7 -> 損益計算書
D12: ='【1-A-1】標準時収支'!B8 -> 年度 | E12: ='【1-A-1】標準時収支'!C8 -> 0 | F12: ='【1-A-1】標準時収支'!D8 -> 0 | G12: ='【1-A-1】標準時収支'!E8 -> 0 | H12: ='【1-A-1】標準時収支'!F8 -> 期中合計額 | I12: ='【1-A-1】標準時収支'!G8 -> 0 | J12: ='【1-A-1】標準時収支'!H8 -> 0 | K12: ='【1-A-1】標準時収支'!I8 -> 令和2年度 | L12: ='【1-A-1】標準時収支'!J8 -> 令和3年度 | M12: ='【1-A-1】標準時収支'!K8 -> 令和4年度 | N12: ='【1-A-1】標準時収支'!L8 -> 令和5年度 | O12: ='【1-A-1】標準時収支'!M8 -> 令和6年度 | P12: ='【1-A-1】標準時収支'!N8 -> 令和7年度 | Q12: ='【1-A-1】標準時収支'!O8 -> 令和8年度 | R12: ='【1-A-1】標準時収支'!P8 -> 令和9年度 | S12: ='【1-A-1】標準時収支'!Q8 -> 令和10年度 | T12: ='【1-A-1】標準時収支'!R8 -> 令和11年度 | U12: ='【1-A-1】標準時収支'!S8 -> 令和12年度 | V12: ='【1-A-1】標準時収支'!T8 -> 令和13年度 | W12: ='【1-A-1】標準時収支'!U8 -> 令和14年度 | X12: ='【1-A-1】標準時収支'!V8 -> 令和15年度 | Y12: ='【1-A-1】標準時収支'!W8 -> 令和16年度 | Z12: ='【1-A-1】標準時収支'!X8 -> 令和17年度 | AA12: ='【1-A-1】標準時収支'!Y8 -> 令和18年度 | AC12: ='【1-C】悲観時（事業者基準）収支'!B5 -> 年度 | AD12: ='【1-C】悲観時（事業者基準）収支'!C5 -> 0 | AE12: ='【1-C】悲観時（事業者基準）収支'!D5 -> 0 | AF12: ='【1-C】悲観時（事業者基準）収支'!E5 -> 0 | AG12: ='【1-C】悲観時（事業者基準）収支'!F5 -> 期中合計額 | AH12: ='【1-C】悲観時（事業者基準）収支'!G5 -> 0 | AI12: ='【1-C】悲観時（事業者基準）収支'!H5 -> 0 | AJ12: ='【1-C】悲観時（事業者基準）収支'!I5 -> 令和2年度 | AK12: ='【1-C】悲観時（事業者基準）収支'!J5 -> 令和3年度 | AL12: ='【1-C】悲観時（事業者基準）収支'!K5 -> 令和4年度 | AM12: ='【1-C】悲観時（事業者基準）収支'!L5 -> 令和5年度 | AN12: ='【1-C】悲観時（事業者基準）収支'!M5 -> 令和6年度 | AO12: ='【1-C】悲観時（事業者基準）収支'!N5 -> 令和7年度 | AP12: ='【1-C】悲観時（事業者基準）収支'!O5 -> 令和8年度 | AQ12: ='【1-C】悲観時（事業者基準）収支'!P5 -> 令和9年度 | AR12: ='【1-C】悲観時（事業者基準）収支'!Q5 -> 令和10年度 | AS12: ='【1-C】悲観時（事業者基準）収支'!R5 -> 令和11年度 | AT12: ='【1-C】悲観時（事業者基準）収支'!S5 -> 令和12年度 | AU12: ='【1-C】悲観時（事業者基準）収支'!T5 -> 令和13年度 | AV12: ='【1-C】悲観時（事業者基準）収支'!U5 -> 令和14年度 | AW12: ='【1-C】悲観時（事業者基準）収支'!V5 -> 令和15年度 | AX12: ='【1-C】悲観時（事業者基準）収支'!W5 -> 令和16年度 | AY12: ='【1-C】悲観時（事業者基準）収支'!X5 -> 令和17年度 | AZ12: ='【1-C】悲観時（事業者基準）収支'!Y5 -> 令和18年度
D13: ='【1-A-1】標準時収支'!B9 -> 開始日付 | E13: ='【1-A-1】標準時収支'!C9 -> 0 | F13: ='【1-A-1】標準時収支'!D9 -> 0 | G13: ='【1-A-1】標準時収支'!E9 -> 0 | H13: ='【1-A-1】標準時収支'!F9 -> 0 | I13: ='【1-A-1】標準時収支'!G9 -> 0 | J13: ='【1-A-1】標準時収支'!H9 -> 0 | K13: ='【1-A-1】標準時収支'!I9 -> 2020-04-01 | L13: ='【1-A-1】標準時収支'!J9 -> 2021-04-01 | M13: ='【1-A-1】標準時収支'!K9 -> 2022-04-01 | N13: ='【1-A-1】標準時収支'!L9 -> 2023-04-01 | O13: ='【1-A-1】標準時収支'!M9 -> 2024-04-01 | P13: ='【1-A-1】標準時収支'!N9 -> 2025-04-01 | Q13: ='【1-A-1】標準時収支'!O9 -> 2026-04-01 | R13: ='【1-A-1】標準時収支'!P9 -> 2027-04-01 | S13: ='【1-A-1】標準時収支'!Q9 -> 2028-04-01 | T13: ='【1-A-1】標準時収支'!R9 -> 2029-04-01 | U13: ='【1-A-1】標準時収支'!S9 -> 2030-04-01 | V13: ='【1-A-1】標準時収支'!T9 -> 2031-04-01 | W13: ='【1-A-1】標準時収支'!U9 -> 2032-04-01 | X13: ='【1-A-1】標準時収支'!V9 -> 2033-04-01 | Y13: ='【1-A-1】標準時収支'!W9 -> 2034-04-01 | Z13: ='【1-A-1】標準時収支'!X9 -> 2035-04-01 | AA13: ='【1-A-1】標準時収支'!Y9 -> 2036-04-01 | AC13: ='【1-C】悲観時（事業者基準）収支'!B6 -> 開始日付 | AD13: ='【1-C】悲観時（事業者基準）収支'!C6 -> 0 | AE13: ='【1-C】悲観時（事業者基準）収支'!D6 -> 0 | AF13: ='【1-C】悲観時（事業者基準）収支'!E6 -> 0 | AG13: ='【1-C】悲観時（事業者基準）収支'!F6 -> 0 | AH13: ='【1-C】悲観時（事業者基準）収支'!G6 -> 0 | AI13: ='【1-C】悲観時（事業者基準）収支'!H6 -> 0 | AJ13: ='【1-C】悲観時（事業者基準）収支'!I6 -> 2020-04-01 | AK13: ='【1-C】悲観時（事業者基準）収支'!J6 -> 2021-04-01 | AL13: ='【1-C】悲観時（事業者基準）収支'!K6 -> 2022-04-01 | AM13: ='【1-C】悲観時（事業者基準）収支'!L6 -> 2023-04-01 | AN13: ='【1-C】悲観時（事業者基準）収支'!M6 -> 2024-04-01 | AO13: ='【1-C】悲観時（事業者基準）収支'!N6 -> 2025-04-01 | AP13: ='【1-C】悲観時（事業者基準）収支'!O6 -> 2026-04-01 | AQ13: ='【1-C】悲観時（事業者基準）収支'!P6 -> 2027-04-01 | AR13: ='【1-C】悲観時（事業者基準）収支'!Q6 -> 2028-04-01 | AS13: ='【1-C】悲観時（事業者基準）収支'!R6 -> 2029-04-01 | AT13: ='【1-C】悲観時（事業者基準）収支'!S6 -> 2030-04-01 | AU13: ='【1-C】悲観時（事業者基準）収支'!T6 -> 2031-04-01 | AV13: ='【1-C】悲観時（事業者基準）収支'!U6 -> 2032-04-01 | AW13: ='【1-C】悲観時（事業者基準）収支'!V6 -> 2033-04-01 | AX13: ='【1-C】悲観時（事業者基準）収支'!W6 -> 2034-04-01 | AY13: ='【1-C】悲観時（事業者基準）収支'!X6 -> 2035-04-01 | AZ13: ='【1-C】悲観時（事業者基準）収支'!Y6 -> 2036-04-01
D14: ='【1-A-1】標準時収支'!B10 -> 終了日付 | E14: ='【1-A-1】標準時収支'!C10 -> 0 | F14: ='【1-A-1】標準時収支'!D10 -> 0 | G14: ='【1-A-1】標準時収支'!E10 -> 0 | H14: ='【1-A-1】標準時収支'!F10 -> 0 | I14: ='【1-A-1】標準時収支'!G10 -> 0 | J14: ='【1-A-1】標準時収支'!H10 -> 0 | K14: ='【1-A-1】標準時収支'!I10 -> 2021-03-31 | L14: ='【1-A-1】標準時収支'!J10 -> 2022-03-31 | M14: ='【1-A-1】標準時収支'!K10 -> 2023-03-31 | N14: ='【1-A-1】標準時収支'!L10 -> 2024-03-31 | O14: ='【1-A-1】標準時収支'!M10 -> 2025-03-31 | P14: ='【1-A-1】標準時収支'!N10 -> 2026-03-31 | Q14: ='【1-A-1】標準時収支'!O10 -> 2027-03-31 | R14: ='【1-A-1】標準時収支'!P10 -> 2028-03-31 | S14: ='【1-A-1】標準時収支'!Q10 -> 2029-03-31 | T14: ='【1-A-1】標準時収支'!R10 -> 2030-03-31 | U14: ='【1-A-1】標準時収支'!S10 -> 2031-03-31 | V14: ='【1-A-1】標準時収支'!T10 -> 2032-03-31 | W14: ='【1-A-1】標準時収支'!U10 -> 2033-03-31 | X14: ='【1-A-1】標準時収支'!V10 -> 2034-03-31 | Y14: ='【1-A-1】標準時収支'!W10 -> 2035-03-31 | Z14: ='【1-A-1】標準時収支'!X10 -> 2036-03-31 | AA14: ='【1-A-1】標準時収支'!Y10 -> 2037-03-31 | AC14: ='【1-C】悲観時（事業者基準）収支'!B7 -> 終了日付 | AD14: ='【1-C】悲観時（事業者基準）収支'!C7 -> 0 | AE14: ='【1-C】悲観時（事業者基準）収支'!D7 -> 0 | AF14: ='【1-C】悲観時（事業者基準）収支'!E7 -> 0 | AG14: ='【1-C】悲観時（事業者基準）収支'!F7 -> 0 | AH14: ='【1-C】悲観時（事業者基準）収支'!G7 -> 0 | AI14: ='【1-C】悲観時（事業者基準）収支'!H7 -> 0 | AJ14: ='【1-C】悲観時（事業者基準）収支'!I7 -> 2021-03-31 | AK14: ='【1-C】悲観時（事業者基準）収支'!J7 -> 2022-03-31 | AL14: ='【1-C】悲観時（事業者基準）収支'!K7 -> 2023-03-31 | AM14: ='【1-C】悲観時（事業者基準）収支'!L7 -> 2024-03-31 | AN14: ='【1-C】悲観時（事業者基準）収支'!M7 -> 2025-03-31 | AO14: ='【1-C】悲観時（事業者基準）収支'!N7 -> 2026-03-31 | AP14: ='【1-C】悲観時（事業者基準）収支'!O7 -> 2027-03-31 | AQ14: ='【1-C】悲観時（事業者基準）収支'!P7 -> 2028-03-31 | AR14: ='【1-C】悲観時（事業者基準）収支'!Q7 -> 2029-03-31 | AS14: ='【1-C】悲観時（事業者基準）収支'!R7 -> 2030-03-31 | AT14: ='【1-C】悲観時（事業者基準）収支'!S7 -> 2031-03-31 | AU14: ='【1-C】悲観時（事業者基準）収支'!T7 -> 2032-03-31 | AV14: ='【1-C】悲観時（事業者基準）収支'!U7 -> 2033-03-31 | AW14: ='【1-C】悲観時（事業者基準）収支'!V7 -> 2034-03-31 | AX14: ='【1-C】悲観時（事業者基準）収支'!W7 -> 2035-03-31 | AY14: ='【1-C】悲観時（事業者基準）収支'!X7 -> 2036-03-31 | AZ14: ='【1-C】悲観時（事業者基準）収支'!Y7 -> 2037-03-31
D15: ='【1-A-1】標準時収支'!B11 -> ケース | E15: ='【1-A-1】標準時収支'!C11 -> 0 | F15: ='【1-A-1】標準時収支'!D11 -> 0 | G15: ='【1-A-1】標準時収支'!E11 -> 0 | H15: ='【1-A-1】標準時収支'!F11 -> 0 | I15: ='【1-A-1】標準時収支'!G11 -> 0 | J15: ='【1-A-1】標準時収支'!H11 -> 0 | K15: ='【1-A-1】標準時収支'!I11 -> 標準時 | L15: ='【1-A-1】標準時収支'!J11 -> 標準時 | M15: ='【1-A-1】標準時収支'!K11 -> 標準時 | N15: ='【1-A-1】標準時収支'!L11 -> 標準時 | O15: ='【1-A-1】標準時収支'!M11 -> 標準時 | P15: ='【1-A-1】標準時収支'!N11 -> 標準時 | Q15: ='【1-A-1】標準時収支'!O11 -> 標準時 | R15: ='【1-A-1】標準時収支'!P11 -> 標準時 | S15: ='【1-A-1】標準時収支'!Q11 -> 標準時 | T15: ='【1-A-1】標準時収支'!R11 -> 標準時 | U15: ='【1-A-1】標準時収支'!S11 -> 標準時 | V15: ='【1-A-1】標準時収支'!T11 -> 標準時 | W15: ='【1-A-1】標準時収支'!U11 -> 標準時 | X15: ='【1-A-1】標準時収支'!V11 -> 標準時 | Y15: ='【1-A-1】標準時収支'!W11 -> 標準時 | Z15: ='【1-A-1】標準時収支'!X11 -> 標準時 | AA15: ='【1-A-1】標準時収支'!Y11 -> 標準時 | AC15: ='【1-C】悲観時（事業者基準）収支'!B8 -> ケース | AD15: ='【1-C】悲観時（事業者基準）収支'!C8 -> 0 | AE15: ='【1-C】悲観時（事業者基準）収支'!D8 -> 0 | AF15: ='【1-C】悲観時（事業者基準）収支'!E8 -> 0 | AG15: ='【1-C】悲観時（事業者基準）収支'!F8 -> 0 | AH15: ='【1-C】悲観時（事業者基準）収支'!G8 -> 0 | AI15: ='【1-C】悲観時（事業者基準）収支'!H8 -> 0 | AJ15: ='【1-C】悲観時（事業者基準）収支'!I8 -> 標準時 | AK15: ='【1-C】悲観時（事業者基準）収支'!J8 -> 標準時 | AL15: ='【1-C】悲観時（事業者基準）収支'!K8 -> 標準時 | AM15: ='【1-C】悲観時（事業者基準）収支'!L8 -> 標準時 | AN15: ='【1-C】悲観時（事業者基準）収支'!M8 -> 標準時 | AO15: ='【1-C】悲観時（事業者基準）収支'!N8 -> 悲観時（事業者基準） | AP15: ='【1-C】悲観時（事業者基準）収支'!O8 -> 標準時 | AQ15: ='【1-C】悲観時（事業者基準）収支'!P8 -> 標準時 | AR15: ='【1-C】悲観時（事業者基準）収支'!Q8 -> 悲観時（事業者基準） | AS15: ='【1-C】悲観時（事業者基準）収支'!R8 -> 標準時 | AT15: ='【1-C】悲観時（事業者基準）収支'!S8 -> 標準時 | AU15: ='【1-C】悲観時（事業者基準）収支'!T8 -> 標準時 | AV15: ='【1-C】悲観時（事業者基準）収支'!U8 -> 悲観時（事業者基準） | AW15: ='【1-C】悲観時（事業者基準）収支'!V8 -> 標準時 | AX15: ='【1-C】悲観時（事業者基準）収支'!W8 -> 標準時 | AY15: ='【1-C】悲観時（事業者基準）収支'!X8 -> 標準時 | AZ15: ='【1-C】悲観時（事業者基準）収支'!Y8 -> 標準時
C16: 1 | D16: ='【1-A-1】標準時収支'!B12 -> 収入 | E16: ='【1-A-1】標準時収支'!C12 -> 0 | F16: ='【1-A-1】標準時収支'!D12 -> 0 | G16: ='【1-A-1】標準時収支'!E12 -> 0 | H16: ='【1-A-1】標準時収支'!F12 -> 0 | I16: ='【1-A-1】標準時収支'!G12 -> 0 | J16: ='【1-A-1】標準時収支'!H12 -> 0 | K16: ='【1-A-1】標準時収支'!I12 -> 0 | L16: ='【1-A-1】標準時収支'!J12 -> 0 | M16: ='【1-A-1】標準時収支'!K12 -> 0 | N16: ='【1-A-1】標準時収支'!L12 -> 0 | O16: ='【1-A-1】標準時収支'!M12 -> 0 | P16: ='【1-A-1】標準時収支'!N12 -> 0 | Q16: ='【1-A-1】標準時収支'!O12 -> 0 | R16: ='【1-A-1】標準時収支'!P12 -> 0 | S16: ='【1-A-1】標準時収支'!Q12 -> 0 | T16: ='【1-A-1】標準時収支'!R12 -> 0 | U16: ='【1-A-1】標準時収支'!S12 -> 0 | V16: ='【1-A-1】標準時収支'!T12 -> 0 | W16: ='【1-A-1】標準時収支'!U12 -> 0 | X16: ='【1-A-1】標準時収支'!V12 -> 0 | Y16: ='【1-A-1】標準時収支'!W12 -> 0 | Z16: ='【1-A-1】標準時収支'!X12 -> 0 | AA16: ='【1-A-1】標準時収支'!Y12 -> 0 | AC16: ='【1-C】悲観時（事業者基準）収支'!B9 -> 収入 | AD16: ='【1-C】悲観時（事業者基準）収支'!C9 -> 0 | AE16: ='【1-C】悲観時（事業者基準）収支'!D9 -> 0 | AF16: ='【1-C】悲観時（事業者基準）収支'!E9 -> 0 | AG16: ='【1-C】悲観時（事業者基準）収支'!F9 -> 0 | AH16: ='【1-C】悲観時（事業者基準）収支'!G9 -> 0 | AI16: ='【1-C】悲観時（事業者基準）収支'!H9 -> 0 | AJ16: ='【1-C】悲観時（事業者基準）収支'!I9 -> 0 | AK16: ='【1-C】悲観時（事業者基準）収支'!J9 -> 0 | AL16: ='【1-C】悲観時（事業者基準）収支'!K9 -> 0 | AM16: ='【1-C】悲観時（事業者基準）収支'!L9 -> 0 | AN16: ='【1-C】悲観時（事業者基準）収支'!M9 -> 0 | AO16: ='【1-C】悲観時（事業者基準）収支'!N9 -> 0 | AP16: ='【1-C】悲観時（事業者基準）収支'!O9 -> 0 | AQ16: ='【1-C】悲観時（事業者基準）収支'!P9 -> 0 | AR16: ='【1-C】悲観時（事業者基準）収支'!Q9 -> 0 | AS16: ='【1-C】悲観時（事業者基準）収支'!R9 -> 0 | AT16: ='【1-C】悲観時（事業者基準）収支'!S9 -> 0 | AU16: ='【1-C】悲観時（事業者基準）収支'!T9 -> 0 | AV16: ='【1-C】悲観時（事業者基準）収支'!U9 -> 0 | AW16: ='【1-C】悲観時（事業者基準）収支'!V9 -> 0 | AX16: ='【1-C】悲観時（事業者基準）収支'!W9 -> 0 | AY16: ='【1-C】悲観時（事業者基準）収支'!X9 -> 0 | AZ16: ='【1-C】悲観時（事業者基準）収支'!Y9 -> 0
C17: =C16+1 -> 2 | D17: ='【1-A-1】標準時収支'!B13 -> 0 | E17: ='【1-A-1】標準時収支'!C13 -> 展示収入 | F17: ='【1-A-1】標準時収支'!D13 -> 0 | G17: ='【1-A-1】標準時収支'!E13 -> 0 | H17: ='【1-A-1】標準時収支'!F13 -> 0 | I17: ='【1-A-1】標準時収支'!G13 -> 0 | J17: ='【1-A-1】標準時収支'!H13 -> 0 | K17: ='【1-A-1】標準時収支'!I13 -> 0 | L17: ='【1-A-1】標準時収支'!J13 -> 0 | M17: ='【1-A-1】標準時収支'!K13 -> 0 | N17: ='【1-A-1】標準時収支'!L13 -> 0 | O17: ='【1-A-1】標準時収支'!M13 -> 0 | P17: ='【1-A-1】標準時収支'!N13 -> 0 | Q17: ='【1-A-1】標準時収支'!O13 -> 0 | R17: ='【1-A-1】標準時収支'!P13 -> 0 | S17: ='【1-A-1】標準時収支'!Q13 -> 0 | T17: ='【1-A-1】標準時収支'!R13 -> 0 | U17: ='【1-A-1】標準時収支'!S13 -> 0 | V17: ='【1-A-1】標準時収支'!T13 -> 0 | W17: ='【1-A-1】標準時収支'!U13 -> 0 | X17: ='【1-A-1】標準時収支'!V13 -> 0 | Y17: ='【1-A-1】標準時収支'!W13 -> 0 | Z17: ='【1-A-1】標準時収支'!X13 -> 0 | AA17: ='【1-A-1】標準時収支'!Y13 -> 0 | AC17: ='【1-C】悲観時（事業者基準）収支'!B10 -> 0 | AD17: ='【1-C】悲観時（事業者基準）収支'!C10 -> 展示収入 | AE17: ='【1-C】悲観時（事業者基準）収支'!D10 -> 0 | AF17: ='【1-C】悲観時（事業者基準）収支'!E10 -> 0 | AG17: ='【1-C】悲観時（事業者基準）収支'!F10 -> 0 | AH17: ='【1-C】悲観時（事業者基準）収支'!G10 -> 0 | AI17: ='【1-C】悲観時（事業者基準）収支'!H10 -> 0 | AJ17: ='【1-C】悲観時（事業者基準）収支'!I10 -> 0 | AK17: ='【1-C】悲観時（事業者基準）収支'!J10 -> 0 | AL17: ='【1-C】悲観時（事業者基準）収支'!K10 -> 0 | AM17: ='【1-C】悲観時（事業者基準）収支'!L10 -> 0 | AN17: ='【1-C】悲観時（事業者基準）収支'!M10 -> 0 | AO17: ='【1-C】悲観時（事業者基準）収支'!N10 -> 0 | AP17: ='【1-C】悲観時（事業者基準）収支'!O10 -> 0 | AQ17: ='【1-C】悲観時（事業者基準）収支'!P10 -> 0 | AR17: ='【1-C】悲観時（事業者基準）収支'!Q10 -> 0 | AS17: ='【1-C】悲観時（事業者基準）収支'!R10 -> 0 | AT17: ='【1-C】悲観時（事業者基準）収支'!S10 -> 0 | AU17: ='【1-C】悲観時（事業者基準）収支'!T10 -> 0 | AV17: ='【1-C】悲観時（事業者基準）収支'!U10 -> 0 | AW17: ='【1-C】悲観時（事業者基準）収支'!V10 -> 0 | AX17: ='【1-C】悲観時（事業者基準）収支'!W10 -> 0 | AY17: ='【1-C】悲観時（事業者基準）収支'!X10 -> 0 | AZ17: ='【1-C】悲観時（事業者基準）収支'!Y10 -> 0
C18: =C17+1 -> 3 | D18: ='【1-A-1】標準時収支'!B14 -> 0 | E18: ='【1-A-1】標準時収支'!C14 -> 0 | F18: ='【1-A-1】標準時収支'!D14 -> 企画展収入 | G18: ='【1-A-1】標準時収支'!E14 -> 0 | H18: ='【1-A-1】標準時収支'!F14 -> 0 | I18: ='【1-A-1】標準時収支'!G14 -> 0 | J18: ='【1-A-1】標準時収支'!H14 -> 0 | K18: ='【1-A-1】標準時収支'!I14 -> 0 | L18: ='【1-A-1】標準時収支'!J14 -> 0 | M18: ='【1-A-1】標準時収支'!K14 -> 0 | N18: ='【1-A-1】標準時収支'!L14 -> 0 | O18: ='【1-A-1】標準時収支'!M14 -> 0 | P18: ='【1-A-1】標準時収支'!N14 -> 0 | Q18: ='【1-A-1】標準時収支'!O14 -> 0 | R18: ='【1-A-1】標準時収支'!P14 -> 0 | S18: ='【1-A-1】標準時収支'!Q14 -> 0 | T18: ='【1-A-1】標準時収支'!R14 -> 0 | U18: ='【1-A-1】標準時収支'!S14 -> 0 | V18: ='【1-A-1】標準時収支'!T14 -> 0 | W18: ='【1-A-1】標準時収支'!U14 -> 0 | X18: ='【1-A-1】標準時収支'!V14 -> 0 | Y18: ='【1-A-1】標準時収支'!W14 -> 0 | Z18: ='【1-A-1】標準時収支'!X14 -> 0 | AA18: ='【1-A-1】標準時収支'!Y14 -> 0 | AC18: ='【1-C】悲観時（事業者基準）収支'!B11 -> 0 | AD18: ='【1-C】悲観時（事業者基準）収支'!C11 -> 0 | AE18: ='【1-C】悲観時（事業者基準）収支'!D11 -> 企画展収入 | AF18: ='【1-C】悲観時（事業者基準）収支'!E11 -> 0 | AG18: ='【1-C】悲観時（事業者基準）収支'!F11 -> 0 | AH18: ='【1-C】悲観時（事業者基準）収支'!G11 -> 0 | AI18: ='【1-C】悲観時（事業者基準）収支'!H11 -> 0 | AJ18: ='【1-C】悲観時（事業者基準）収支'!I11 -> 0 | AK18: ='【1-C】悲観時（事業者基準）収支'!J11 -> 0 | AL18: ='【1-C】悲観時（事業者基準）収支'!K11 -> 0 | AM18: ='【1-C】悲観時（事業者基準）収支'!L11 -> 0 | AN18: ='【1-C】悲観時（事業者基準）収支'!M11 -> 0 | AO18: ='【1-C】悲観時（事業者基準）収支'!N11 -> 0 | AP18: ='【1-C】悲観時（事業者基準）収支'!O11 -> 0 | AQ18: ='【1-C】悲観時（事業者基準）収支'!P11 -> 0 | AR18: ='【1-C】悲観時（事業者基準）収支'!Q11 -> 0 | AS18: ='【1-C】悲観時（事業者基準）収支'!R11 -> 0 | AT18: ='【1-C】悲観時（事業者基準）収支'!S11 -> 0 | AU18: ='【1-C】悲観時（事業者基準）収支'!T11 -> 0 | AV18: ='【1-C】悲観時（事業者基準）収支'!U11 -> 0 | AW18: ='【1-C】悲観時（事業者基準）収支'!V11 -> 0 | AX18: ='【1-C】悲観時（事業者基準）収支'!W11 -> 0 | AY18: ='【1-C】悲観時（事業者基準）収支'!X11 -> 0 | AZ18: ='【1-C】悲観時（事業者基準）収支'!Y11 -> 0
C19: 4 | D19: ='【1-A-1】標準時収支'!B15 -> 0 | E19: ='【1-A-1】標準時収支'!C15 -> 0 | F19: ='【1-A-1】標準時収支'!D15 -> コレクション展収入 | G19: ='【1-A-1】標準時収支'!E15 -> 0 | H19: ='【1-A-1】標準時収支'!F15 -> 0 | I19: ='【1-A-1】標準時収支'!G15 -> 0 | J19: ='【1-A-1】標準時収支'!H15 -> 0 | K19: ='【1-A-1】標準時収支'!I15 -> 0 | L19: ='【1-A-1】標準時収支'!J15 -> 0 | M19: ='【1-A-1】標準時収支'!K15 -> 0 | N19: ='【1-A-1】標準時収支'!L15 -> 0 | O19: ='【1-A-1】標準時収支'!M15 -> 0 | P19: ='【1-A-1】標準時収支'!N15 -> 0 | Q19: ='【1-A-1】標準時収支'!O15 -> 0 | R19: ='【1-A-1】標準時収支'!P15 -> 0 | S19: ='【1-A-1】標準時収支'!Q15 -> 0 | T19: ='【1-A-1】標準時収支'!R15 -> 0 | U19: ='【1-A-1】標準時収支'!S15 -> 0 | V19: ='【1-A-1】標準時収支'!T15 -> 0 | W19: ='【1-A-1】標準時収支'!U15 -> 0 | X19: ='【1-A-1】標準時収支'!V15 -> 0 | Y19: ='【1-A-1】標準時収支'!W15 -> 0 | Z19: ='【1-A-1】標準時収支'!X15 -> 0 | AA19: ='【1-A-1】標準時収支'!Y15 -> 0 | AC19: ='【1-C】悲観時（事業者基準）収支'!B12 -> 0 | AD19: ='【1-C】悲観時（事業者基準）収支'!C12 -> 0 | AE19: ='【1-C】悲観時（事業者基準）収支'!D12 -> コレクション展収入 | AF19: ='【1-C】悲観時（事業者基準）収支'!E12 -> 0 | AG19: ='【1-C】悲観時（事業者基準）収支'!F12 -> 0 | AH19: ='【1-C】悲観時（事業者基準）収支'!G12 -> 0 | AI19: ='【1-C】悲観時（事業者基準）収支'!H12 -> 0 | AJ19: ='【1-C】悲観時（事業者基準）収支'!I12 -> 0 | AK19: ='【1-C】悲観時（事業者基準）収支'!J12 -> 0 | AL19: ='【1-C】悲観時（事業者基準）収支'!K12 -> 0 | AM19: ='【1-C】悲観時（事業者基準）収支'!L12 -> 0 | AN19: ='【1-C】悲観時（事業者基準）収支'!M12 -> 0 | AO19: ='【1-C】悲観時（事業者基準）収支'!N12 -> 0 | AP19: ='【1-C】悲観時（事業者基準）収支'!O12 -> 0 | AQ19: ='【1-C】悲観時（事業者基準）収支'!P12 -> 0 | AR19: ='【1-C】悲観時（事業者基準）収支'!Q12 -> 0 | AS19: ='【1-C】悲観時（事業者基準）収支'!R12 -> 0 | AT19: ='【1-C】悲観時（事業者基準）収支'!S12 -> 0 | AU19: ='【1-C】悲観時（事業者基準）収支'!T12 -> 0 | AV19: ='【1-C】悲観時（事業者基準）収支'!U12 -> 0 | AW19: ='【1-C】悲観時（事業者基準）収支'!V12 -> 0 | AX19: ='【1-C】悲観時（事業者基準）収支'!W12 -> 0 | AY19: ='【1-C】悲観時（事業者基準）収支'!X12 -> 0 | AZ19: ='【1-C】悲観時（事業者基準）収支'!Y12 -> 0
C20: 5 | D20: ='【1-A-1】標準時収支'!B16 -> 0 | E20: ='【1-A-1】標準時収支'!C16 -> 0 | F20: ='【1-A-1】標準時収支'!D16 -> （その他項目名） | G20: ='【1-A-1】標準時収支'!E16 -> 0 | H20: ='【1-A-1】標準時収支'!F16 -> 0 | I20: ='【1-A-1】標準時収支'!G16 -> 0 | J20: ='【1-A-1】標準時収支'!H16 -> 0 | K20: ='【1-A-1】標準時収支'!I16 -> 0 | L20: ='【1-A-1】標準時収支'!J16 -> 0 | M20: ='【1-A-1】標準時収支'!K16 -> 0 | N20: ='【1-A-1】標準時収支'!L16 -> 0 | O20: ='【1-A-1】標準時収支'!M16 -> 0 | P20: ='【1-A-1】標準時収支'!N16 -> 0 | Q20: ='【1-A-1】標準時収支'!O16 -> 0 | R20: ='【1-A-1】標準時収支'!P16 -> 0 | S20: ='【1-A-1】標準時収支'!Q16 -> 0 | T20: ='【1-A-1】標準時収支'!R16 -> 0 | U20: ='【1-A-1】標準時収支'!S16 -> 0 | V20: ='【1-A-1】標準時収支'!T16 -> 0 | W20: ='【1-A-1】標準時収支'!U16 -> 0 | X20: ='【1-A-1】標準時収支'!V16 -> 0 | Y20: ='【1-A-1】標準時収支'!W16 -> 0 | Z20: ='【1-A-1】標準時収支'!X16 -> 0 | AA20: ='【1-A-1】標準時収支'!Y16 -> 0 | AC20: ='【1-C】悲観時（事業者基準）収支'!B13 -> 0 | AD20: ='【1-C】悲観時（事業者基準）収支'!C13 -> 0 | AE20: ='【1-C】悲観時（事業者基準）収支'!D13 -> （その他項目名） | AF20: ='【1-C】悲観時（事業者基準）収支'!E13 -> 0 | AG20: ='【1-C】悲観時（事業者基準）収支'!F13 -> 0 | AH20: ='【1-C】悲観時（事業者基準）収支'!G13 -> 0 | AI20: ='【1-C】悲観時（事業者基準）収支'!H13 -> 0 | AJ20: ='【1-C】悲観時（事業者基準）収支'!I13 -> 0 | AK20: ='【1-C】悲観時（事業者基準）収支'!J13 -> 0 | AL20: ='【1-C】悲観時（事業者基準）収支'!K13 -> 0 | AM20: ='【1-C】悲観時（事業者基準）収支'!L13 -> 0 | AN20: ='【1-C】悲観時（事業者基準）収支'!M13 -> 0 | AO20: ='【1-C】悲観時（事業者基準）収支'!N13 -> 0 | AP20: ='【1-C】悲観時（事業者基準）収支'!O13 -> 0 | AQ20: ='【1-C】悲観時（事業者基準）収支'!P13 -> 0 | AR20: ='【1-C】悲観時（事業者基準）収支'!Q13 -> 0 | AS20: ='【1-C】悲観時（事業者基準）収支'!R13 -> 0 | AT20: ='【1-C】悲観時（事業者基準）収支'!S13 -> 0 | AU20: ='【1-C】悲観時（事業者基準）収支'!T13 -> 0 | AV20: ='【1-C】悲観時（事業者基準）収支'!U13 -> 0 | AW20: ='【1-C】悲観時（事業者基準）収支'!V13 -> 0 | AX20: ='【1-C】悲観時（事業者基準）収支'!W13 -> 0 | AY20: ='【1-C】悲観時（事業者基準）収支'!X13 -> 0 | AZ20: ='【1-C】悲観時（事業者基準）収支'!Y13 -> 0
C21: 6 | D21: ='【1-A-1】標準時収支'!B17 -> 0 | E21: ='【1-A-1】標準時収支'!C17 -> 0 | F21: ='【1-A-1】標準時収支'!D17 -> （その他項目名） | G21: ='【1-A-1】標準時収支'!E17 -> 0 | H21: ='【1-A-1】標準時収支'!F17 -> 0 | I21: ='【1-A-1】標準時収支'!G17 -> 0 | J21: ='【1-A-1】標準時収支'!H17 -> 0 | K21: ='【1-A-1】標準時収支'!I17 -> 0 | L21: ='【1-A-1】標準時収支'!J17 -> 0 | M21: ='【1-A-1】標準時収支'!K17 -> 0 | N21: ='【1-A-1】標準時収支'!L17 -> 0 | O21: ='【1-A-1】標準時収支'!M17 -> 0 | P21: ='【1-A-1】標準時収支'!N17 -> 0 | Q21: ='【1-A-1】標準時収支'!O17 -> 0 | R21: ='【1-A-1】標準時収支'!P17 -> 0 | S21: ='【1-A-1】標準時収支'!Q17 -> 0 | T21: ='【1-A-1】標準時収支'!R17 -> 0 | U21: ='【1-A-1】標準時収支'!S17 -> 0 | V21: ='【1-A-1】標準時収支'!T17 -> 0 | W21: ='【1-A-1】標準時収支'!U17 -> 0 | X21: ='【1-A-1】標準時収支'!V17 -> 0 | Y21: ='【1-A-1】標準時収支'!W17 -> 0 | Z21: ='【1-A-1】標準時収支'!X17 -> 0 | AA21: ='【1-A-1】標準時収支'!Y17 -> 0 | AC21: ='【1-C】悲観時（事業者基準）収支'!B14 -> 0 | AD21: ='【1-C】悲観時（事業者基準）収支'!C14 -> 0 | AE21: ='【1-C】悲観時（事業者基準）収支'!D14 -> （その他項目名） | AF21: ='【1-C】悲観時（事業者基準）収支'!E14 -> 0 | AG21: ='【1-C】悲観時（事業者基準）収支'!F14 -> 0 | AH21: ='【1-C】悲観時（事業者基準）収支'!G14 -> 0 | AI21: ='【1-C】悲観時（事業者基準）収支'!H14 -> 0 | AJ21: ='【1-C】悲観時（事業者基準）収支'!I14 -> 0 | AK21: ='【1-C】悲観時（事業者基準）収支'!J14 -> 0 | AL21: ='【1-C】悲観時（事業者基準）収支'!K14 -> 0 | AM21: ='【1-C】悲観時（事業者基準）収支'!L14 -> 0 | AN21: ='【1-C】悲観時（事業者基準）収支'!M14 -> 0 | AO21: ='【1-C】悲観時（事業者基準）収支'!N14 -> 0 | AP21: ='【1-C】悲観時（事業者基準）収支'!O14 -> 0 | AQ21: ='【1-C】悲観時（事業者基準）収支'!P14 -> 0 | AR21: ='【1-C】悲観時（事業者基準）収支'!Q14 -> 0 | AS21: ='【1-C】悲観時（事業者基準）収支'!R14 -> 0 | AT21: ='【1-C】悲観時（事業者基準）収支'!S14 -> 0 | AU21: ='【1-C】悲観時（事業者基準）収支'!T14 -> 0 | AV21: ='【1-C】悲観時（事業者基準）収支'!U14 -> 0 | AW21: ='【1-C】悲観時（事業者基準）収支'!V14 -> 0 | AX21: ='【1-C】悲観時（事業者基準）収支'!W14 -> 0 | AY21: ='【1-C】悲観時（事業者基準）収支'!X14 -> 0 | AZ21: ='【1-C】悲観時（事業者基準）収支'!Y14 -> 0
C22: 7 | D22: ='【1-A-1】標準時収支'!B18 -> 0 | E22: ='【1-A-1】標準時収支'!C18 -> 0 | F22: ='【1-A-1】標準時収支'!D18 -> （その他項目名） | G22: ='【1-A-1】標準時収支'!E18 -> 0 | H22: ='【1-A-1】標準時収支'!F18 -> 0 | I22: ='【1-A-1】標準時収支'!G18 -> 0 | J22: ='【1-A-1】標準時収支'!H18 -> 0 | K22: ='【1-A-1】標準時収支'!I18 -> 0 | L22: ='【1-A-1】標準時収支'!J18 -> 0 | M22: ='【1-A-1】標準時収支'!K18 -> 0 | N22: ='【1-A-1】標準時収支'!L18 -> 0 | O22: ='【1-A-1】標準時収支'!M18 -> 0 | P22: ='【1-A-1】標準時収支'!N18 -> 0 | Q22: ='【1-A-1】標準時収支'!O18 -> 0 | R22: ='【1-A-1】標準時収支'!P18 -> 0 | S22: ='【1-A-1】標準時収支'!Q18 -> 0 | T22: ='【1-A-1】標準時収支'!R18 -> 0 | U22: ='【1-A-1】標準時収支'!S18 -> 0 | V22: ='【1-A-1】標準時収支'!T18 -> 0 | W22: ='【1-A-1】標準時収支'!U18 -> 0 | X22: ='【1-A-1】標準時収支'!V18 -> 0 | Y22: ='【1-A-1】標準時収支'!W18 -> 0 | Z22: ='【1-A-1】標準時収支'!X18 -> 0 | AA22: ='【1-A-1】標準時収支'!Y18 -> 0 | AC22: ='【1-C】悲観時（事業者基準）収支'!B15 -> 0 | AD22: ='【1-C】悲観時（事業者基準）収支'!C15 -> 0 | AE22: ='【1-C】悲観時（事業者基準）収支'!D15 -> （その他項目名） | AF22: ='【1-C】悲観時（事業者基準）収支'!E15 -> 0 | AG22: ='【1-C】悲観時（事業者基準）収支'!F15 -> 0 | AH22: ='【1-C】悲観時（事業者基準）収支'!G15 -> 0 | AI22: ='【1-C】悲観時（事業者基準）収支'!H15 -> 0 | AJ22: ='【1-C】悲観時（事業者基準）収支'!I15 -> 0 | AK22: ='【1-C】悲観時（事業者基準）収支'!J15 -> 0 | AL22: ='【1-C】悲観時（事業者基準）収支'!K15 -> 0 | AM22: ='【1-C】悲観時（事業者基準）収支'!L15 -> 0 | AN22: ='【1-C】悲観時（事業者基準）収支'!M15 -> 0 | AO22: ='【1-C】悲観時（事業者基準）収支'!N15 -> 0 | AP22: ='【1-C】悲観時（事業者基準）収支'!O15 -> 0 | AQ22: ='【1-C】悲観時（事業者基準）収支'!P15 -> 0 | AR22: ='【1-C】悲観時（事業者基準）収支'!Q15 -> 0 | AS22: ='【1-C】悲観時（事業者基準）収支'!R15 -> 0 | AT22: ='【1-C】悲観時（事業者基準）収支'!S15 -> 0 | AU22: ='【1-C】悲観時（事業者基準）収支'!T15 -> 0 | AV22: ='【1-C】悲観時（事業者基準）収支'!U15 -> 0 | AW22: ='【1-C】悲観時（事業者基準）収支'!V15 -> 0 | AX22: ='【1-C】悲観時（事業者基準）収支'!W15 -> 0 | AY22: ='【1-C】悲観時（事業者基準）収支'!X15 -> 0 | AZ22: ='【1-C】悲観時（事業者基準）収支'!Y15 -> 0
C23: 8 | D23: ='【1-A-1】標準時収支'!B19 -> 0 | E23: ='【1-A-1】標準時収支'!C19 -> 駐車場収入 | F23: ='【1-A-1】標準時収支'!D19 -> 0 | G23: ='【1-A-1】標準時収支'!E19 -> 0 | H23: ='【1-A-1】標準時収支'!F19 -> 0 | I23: ='【1-A-1】標準時収支'!G19 -> 0 | J23: ='【1-A-1】標準時収支'!H19 -> 0 | K23: ='【1-A-1】標準時収支'!I19 -> 0 | L23: ='【1-A-1】標準時収支'!J19 -> 0 | M23: ='【1-A-1】標準時収支'!K19 -> 0 | N23: ='【1-A-1】標準時収支'!L19 -> 0 | O23: ='【1-A-1】標準時収支'!M19 -> 0 | P23: ='【1-A-1】標準時収支'!N19 -> 0 | Q23: ='【1-A-1】標準時収支'!O19 -> 0 | R23: ='【1-A-1】標準時収支'!P19 -> 0 | S23: ='【1-A-1】標準時収支'!Q19 -> 0 | T23: ='【1-A-1】標準時収支'!R19 -> 0 | U23: ='【1-A-1】標準時収支'!S19 -> 0 | V23: ='【1-A-1】標準時収支'!T19 -> 0 | W23: ='【1-A-1】標準時収支'!U19 -> 0 | X23: ='【1-A-1】標準時収支'!V19 -> 0 | Y23: ='【1-A-1】標準時収支'!W19 -> 0 | Z23: ='【1-A-1】標準時収支'!X19 -> 0 | AA23: ='【1-A-1】標準時収支'!Y19 -> 0 | AC23: ='【1-C】悲観時（事業者基準）収支'!B16 -> 0 | AD23: ='【1-C】悲観時（事業者基準）収支'!C16 -> 駐車場収入 | AE23: ='【1-C】悲観時（事業者基準）収支'!D16 -> 0 | AF23: ='【1-C】悲観時（事業者基準）収支'!E16 -> 0 | AG23: ='【1-C】悲観時（事業者基準）収支'!F16 -> 0 | AH23: ='【1-C】悲観時（事業者基準）収支'!G16 -> 0 | AI23: ='【1-C】悲観時（事業者基準）収支'!H16 -> 0 | AJ23: ='【1-C】悲観時（事業者基準）収支'!I16 -> 0 | AK23: ='【1-C】悲観時（事業者基準）収支'!J16 -> 0 | AL23: ='【1-C】悲観時（事業者基準）収支'!K16 -> 0 | AM23: ='【1-C】悲観時（事業者基準）収支'!L16 -> 0 | AN23: ='【1-C】悲観時（事業者基準）収支'!M16 -> 0 | AO23: ='【1-C】悲観時（事業者基準）収支'!N16 -> 0 | AP23: ='【1-C】悲観時（事業者基準）収支'!O16 -> 0 | AQ23: ='【1-C】悲観時（事業者基準）収支'!P16 -> 0 | AR23: ='【1-C】悲観時（事業者基準）収支'!Q16 -> 0 | AS23: ='【1-C】悲観時（事業者基準）収支'!R16 -> 0 | AT23: ='【1-C】悲観時（事業者基準）収支'!S16 -> 0 | AU23: ='【1-C】悲観時（事業者基準）収支'!T16 -> 0 | AV23: ='【1-C】悲観時（事業者基準）収支'!U16 -> 0 | AW23: ='【1-C】悲観時（事業者基準）収支'!V16 -> 0 | AX23: ='【1-C】悲観時（事業者基準）収支'!W16 -> 0 | AY23: ='【1-C】悲観時（事業者基準）収支'!X16 -> 0 | AZ23: ='【1-C】悲観時（事業者基準）収支'!Y16 -> 0
C24: 9 | D24: ='【1-A-1】標準時収支'!B20 -> 0 | E24: ='【1-A-1】標準時収支'!C20 -> 0 | F24: ='【1-A-1】標準時収支'!D20 -> （例）駐車場土地賃貸料 | G24: ='【1-A-1】標準時収支'!E20 -> 0 | H24: ='【1-A-1】標準時収支'!F20 -> 0 | I24: ='【1-A-1】標準時収支'!G20 -> 0 | J24: ='【1-A-1】標準時収支'!H20 -> 0 | K24: ='【1-A-1】標準時収支'!I20 -> 0 | L24: ='【1-A-1】標準時収支'!J20 -> 0 | M24: ='【1-A-1】標準時収支'!K20 -> 0 | N24: ='【1-A-1】標準時収支'!L20 -> 0 | O24: ='【1-A-1】標準時収支'!M20 -> 0 | P24: ='【1-A-1】標準時収支'!N20 -> 0 | Q24: ='【1-A-1】標準時収支'!O20 -> 0 | R24: ='【1-A-1】標準時収支'!P20 -> 0 | S24: ='【1-A-1】標準時収支'!Q20 -> 0 | T24: ='【1-A-1】標準時収支'!R20 -> 0 | U24: ='【1-A-1】標準時収支'!S20 -> 0 | V24: ='【1-A-1】標準時収支'!T20 -> 0 | W24: ='【1-A-1】標準時収支'!U20 -> 0 | X24: ='【1-A-1】標準時収支'!V20 -> 0 | Y24: ='【1-A-1】標準時収支'!W20 -> 0 | Z24: ='【1-A-1】標準時収支'!X20 -> 0 | AA24: ='【1-A-1】標準時収支'!Y20 -> 0 | AC24: ='【1-C】悲観時（事業者基準）収支'!B17 -> 0 | AD24: ='【1-C】悲観時（事業者基準）収支'!C17 -> 0 | AE24: ='【1-C】悲観時（事業者基準）収支'!D17 -> （例）駐車場土地賃貸料 | AF24: ='【1-C】悲観時（事業者基準）収支'!E17 -> 0 | AG24: ='【1-C】悲観時（事業者基準）収支'!F17 -> 0 | AH24: ='【1-C】悲観時（事業者基準）収支'!G17 -> 0 | AI24: ='【1-C】悲観時（事業者基準）収支'!H17 -> 0 | AJ24: ='【1-C】悲観時（事業者基準）収支'!I17 -> 0 | AK24: ='【1-C】悲観時（事業者基準）収支'!J17 -> 0 | AL24: ='【1-C】悲観時（事業者基準）収支'!K17 -> 0 | AM24: ='【1-C】悲観時（事業者基準）収支'!L17 -> 0 | AN24: ='【1-C】悲観時（事業者基準）収支'!M17 -> 0 | AO24: ='【1-C】悲観時（事業者基準）収支'!N17 -> 0 | AP24: ='【1-C】悲観時（事業者基準）収支'!O17 -> 0 | AQ24: ='【1-C】悲観時（事業者基準）収支'!P17 -> 0 | AR24: ='【1-C】悲観時（事業者基準）収支'!Q17 -> 0 | AS24: ='【1-C】悲観時（事業者基準）収支'!R17 -> 0 | AT24: ='【1-C】悲観時（事業者基準）収支'!S17 -> 0 | AU24: ='【1-C】悲観時（事業者基準）収支'!T17 -> 0 | AV24: ='【1-C】悲観時（事業者基準）収支'!U17 -> 0 | AW24: ='【1-C】悲観時（事業者基準）収支'!V17 -> 0 | AX24: ='【1-C】悲観時（事業者基準）収支'!W17 -> 0 | AY24: ='【1-C】悲観時（事業者基準）収支'!X17 -> 0 | AZ24: ='【1-C】悲観時（事業者基準）収支'!Y17 -> 0
C25: 10 | D25: ='【1-A-1】標準時収支'!B21 -> 0 | E25: ='【1-A-1】標準時収支'!C21 -> 0 | F25: ='【1-A-1】標準時収支'!D21 -> （その他項目名） | G25: ='【1-A-1】標準時収支'!E21 -> 0 | H25: ='【1-A-1】標準時収支'!F21 -> 0 | I25: ='【1-A-1】標準時収支'!G21 -> 0 | J25: ='【1-A-1】標準時収支'!H21 -> 0 | K25: ='【1-A-1】標準時収支'!I21 -> 0 | L25: ='【1-A-1】標準時収支'!J21 -> 0 | M25: ='【1-A-1】標準時収支'!K21 -> 0 | N25: ='【1-A-1】標準時収支'!L21 -> 0 | O25: ='【1-A-1】標準時収支'!M21 -> 0 | P25: ='【1-A-1】標準時収支'!N21 -> 0 | Q25: ='【1-A-1】標準時収支'!O21 -> 0 | R25: ='【1-A-1】標準時収支'!P21 -> 0 | S25: ='【1-A-1】標準時収支'!Q21 -> 0 | T25: ='【1-A-1】標準時収支'!R21 -> 0 | U25: ='【1-A-1】標準時収支'!S21 -> 0 | V25: ='【1-A-1】標準時収支'!T21 -> 0 | W25: ='【1-A-1】標準時収支'!U21 -> 0 | X25: ='【1-A-1】標準時収支'!V21 -> 0 | Y25: ='【1-A-1】標準時収支'!W21 -> 0 | Z25: ='【1-A-1】標準時収支'!X21 -> 0 | AA25: ='【1-A-1】標準時収支'!Y21 -> 0 | AC25: ='【1-C】悲観時（事業者基準）収支'!B18 -> 0 | AD25: ='【1-C】悲観時（事業者基準）収支'!C18 -> 0 | AE25: ='【1-C】悲観時（事業者基準）収支'!D18 -> （その他項目名） | AF25: ='【1-C】悲観時（事業者基準）収支'!E18 -> 0 | AG25: ='【1-C】悲観時（事業者基準）収支'!F18 -> 0 | AH25: ='【1-C】悲観時（事業者基準）収支'!G18 -> 0 | AI25: ='【1-C】悲観時（事業者基準）収支'!H18 -> 0 | AJ25: ='【1-C】悲観時（事業者基準）収支'!I18 -> 0 | AK25: ='【1-C】悲観時（事業者基準）収支'!J18 -> 0 | AL25: ='【1-C】悲観時（事業者基準）収支'!K18 -> 0 | AM25: ='【1-C】悲観時（事業者基準）収支'!L18 -> 0 | AN25: ='【1-C】悲観時（事業者基準）収支'!M18 -> 0 | AO25: ='【1-C】悲観時（事業者基準）収支'!N18 -> 0 | AP25: ='【1-C】悲観時（事業者基準）収支'!O18 -> 0 | AQ25: ='【1-C】悲観時（事業者基準）収支'!P18 -> 0 | AR25: ='【1-C】悲観時（事業者基準）収支'!Q18 -> 0 | AS25: ='【1-C】悲観時（事業者基準）収支'!R18 -> 0 | AT25: ='【1-C】悲観時（事業者基準）収支'!S18 -> 0 | AU25: ='【1-C】悲観時（事業者基準）収支'!T18 -> 0 | AV25: ='【1-C】悲観時（事業者基準）収支'!U18 -> 0 | AW25: ='【1-C】悲観時（事業者基準）収支'!V18 -> 0 | AX25: ='【1-C】悲観時（事業者基準）収支'!W18 -> 0 | AY25: ='【1-C】悲観時（事業者基準）収支'!X18 -> 0 | AZ25: ='【1-C】悲観時（事業者基準）収支'!Y18 -> 0
C26: 11 | D26: ='【1-A-1】標準時収支'!B22 -> 0 | E26: ='【1-A-1】標準時収支'!C22 -> 0 | F26: ='【1-A-1】標準時収支'!D22 -> （その他項目名） | G26: ='【1-A-1】標準時収支'!E22 -> 0 | H26: ='【1-A-1】標準時収支'!F22 -> 0 | I26: ='【1-A-1】標準時収支'!G22 -> 0 | J26: ='【1-A-1】標準時収支'!H22 -> 0 | K26: ='【1-A-1】標準時収支'!I22 -> 0 | L26: ='【1-A-1】標準時収支'!J22 -> 0 | M26: ='【1-A-1】標準時収支'!K22 -> 0 | N26: ='【1-A-1】標準時収支'!L22 -> 0 | O26: ='【1-A-1】標準時収支'!M22 -> 0 | P26: ='【1-A-1】標準時収支'!N22 -> 0 | Q26: ='【1-A-1】標準時収支'!O22 -> 0 | R26: ='【1-A-1】標準時収支'!P22 -> 0 | S26: ='【1-A-1】標準時収支'!Q22 -> 0 | T26: ='【1-A-1】標準時収支'!R22 -> 0 | U26: ='【1-A-1】標準時収支'!S22 -> 0 | V26: ='【1-A-1】標準時収支'!T22 -> 0 | W26: ='【1-A-1】標準時収支'!U22 -> 0 | X26: ='【1-A-1】標準時収支'!V22 -> 0 | Y26: ='【1-A-1】標準時収支'!W22 -> 0 | Z26: ='【1-A-1】標準時収支'!X22 -> 0 | AA26: ='【1-A-1】標準時収支'!Y22 -> 0 | AC26: ='【1-C】悲観時（事業者基準）収支'!B19 -> 0 | AD26: ='【1-C】悲観時（事業者基準）収支'!C19 -> 0 | AE26: ='【1-C】悲観時（事業者基準）収支'!D19 -> （その他項目名） | AF26: ='【1-C】悲観時（事業者基準）収支'!E19 -> 0 | AG26: ='【1-C】悲観時（事業者基準）収支'!F19 -> 0 | AH26: ='【1-C】悲観時（事業者基準）収支'!G19 -> 0 | AI26: ='【1-C】悲観時（事業者基準）収支'!H19 -> 0 | AJ26: ='【1-C】悲観時（事業者基準）収支'!I19 -> 0 | AK26: ='【1-C】悲観時（事業者基準）収支'!J19 -> 0 | AL26: ='【1-C】悲観時（事業者基準）収支'!K19 -> 0 | AM26: ='【1-C】悲観時（事業者基準）収支'!L19 -> 0 | AN26: ='【1-C】悲観時（事業者基準）収支'!M19 -> 0 | AO26: ='【1-C】悲観時（事業者基準）収支'!N19 -> 0 | AP26: ='【1-C】悲観時（事業者基準）収支'!O19 -> 0 | AQ26: ='【1-C】悲観時（事業者基準）収支'!P19 -> 0 | AR26: ='【1-C】悲観時（事業者基準）収支'!Q19 -> 0 | AS26: ='【1-C】悲観時（事業者基準）収支'!R19 -> 0 | AT26: ='【1-C】悲観時（事業者基準）収支'!S19 -> 0 | AU26: ='【1-C】悲観時（事業者基準）収支'!T19 -> 0 | AV26: ='【1-C】悲観時（事業者基準）収支'!U19 -> 0 | AW26: ='【1-C】悲観時（事業者基準）収支'!V19 -> 0 | AX26: ='【1-C】悲観時（事業者基準）収支'!W19 -> 0 | AY26: ='【1-C】悲観時（事業者基準）収支'!X19 -> 0 | AZ26: ='【1-C】悲観時（事業者基準）収支'!Y19 -> 0
C27: 12 | D27: ='【1-A-1】標準時収支'!B23 -> 0 | E27: ='【1-A-1】標準時収支'!C23 -> 0 | F27: ='【1-A-1】標準時収支'!D23 -> （その他項目名） | G27: ='【1-A-1】標準時収支'!E23 -> 0 | H27: ='【1-A-1】標準時収支'!F23 -> 0 | I27: ='【1-A-1】標準時収支'!G23 -> 0 | J27: ='【1-A-1】標準時収支'!H23 -> 0 | K27: ='【1-A-1】標準時収支'!I23 -> 0 | L27: ='【1-A-1】標準時収支'!J23 -> 0 | M27: ='【1-A-1】標準時収支'!K23 -> 0 | N27: ='【1-A-1】標準時収支'!L23 -> 0 | O27: ='【1-A-1】標準時収支'!M23 -> 0 | P27: ='【1-A-1】標準時収支'!N23 -> 0 | Q27: ='【1-A-1】標準時収支'!O23 -> 0 | R27: ='【1-A-1】標準時収支'!P23 -> 0 | S27: ='【1-A-1】標準時収支'!Q23 -> 0 | T27: ='【1-A-1】標準時収支'!R23 -> 0 | U27: ='【1-A-1】標準時収支'!S23 -> 0 | V27: ='【1-A-1】標準時収支'!T23 -> 0 | W27: ='【1-A-1】標準時収支'!U23 -> 0 | X27: ='【1-A-1】標準時収支'!V23 -> 0 | Y27: ='【1-A-1】標準時収支'!W23 -> 0 | Z27: ='【1-A-1】標準時収支'!X23 -> 0 | AA27: ='【1-A-1】標準時収支'!Y23 -> 0 | AC27: ='【1-C】悲観時（事業者基準）収支'!B20 -> 0 | AD27: ='【1-C】悲観時（事業者基準）収支'!C20 -> 0 | AE27: ='【1-C】悲観時（事業者基準）収支'!D20 -> （その他項目名） | AF27: ='【1-C】悲観時（事業者基準）収支'!E20 -> 0 | AG27: ='【1-C】悲観時（事業者基準）収支'!F20 -> 0 | AH27: ='【1-C】悲観時（事業者基準）収支'!G20 -> 0 | AI27: ='【1-C】悲観時（事業者基準）収支'!H20 -> 0 | AJ27: ='【1-C】悲観時（事業者基準）収支'!I20 -> 0 | AK27: ='【1-C】悲観時（事業者基準）収支'!J20 -> 0 | AL27: ='【1-C】悲観時（事業者基準）収支'!K20 -> 0 | AM27: ='【1-C】悲観時（事業者基準）収支'!L20 -> 0 | AN27: ='【1-C】悲観時（事業者基準）収支'!M20 -> 0 | AO27: ='【1-C】悲観時（事業者基準）収支'!N20 -> 0 | AP27: ='【1-C】悲観時（事業者基準）収支'!O20 -> 0 | AQ27: ='【1-C】悲観時（事業者基準）収支'!P20 -> 0 | AR27: ='【1-C】悲観時（事業者基準）収支'!Q20 -> 0 | AS27: ='【1-C】悲観時（事業者基準）収支'!R20 -> 0 | AT27: ='【1-C】悲観時（事業者基準）収支'!S20 -> 0 | AU27: ='【1-C】悲観時（事業者基準）収支'!T20 -> 0 | AV27: ='【1-C】悲観時（事業者基準）収支'!U20 -> 0 | AW27: ='【1-C】悲観時（事業者基準）収支'!V20 -> 0 | AX27: ='【1-C】悲観時（事業者基準）収支'!W20 -> 0 | AY27: ='【1-C】悲観時（事業者基準）収支'!X20 -> 0 | AZ27: ='【1-C】悲観時（事業者基準）収支'!Y20 -> 0
